Workbook

Sheet Cover
A1: RIIO price control model
B2: Gas Transmission
C3: =MID(CELL("filename"),SEARCH("[",CELL("filename"))+1,SEARCH("]",CELL("filename"))-SEARCH("[",CELL("filename"))-1) -> GT1 PCFM November 2017 DryRun3.xlsm
C4: DISCLAIMER: This purpose of this model is used to calculate Base Revenue (PU) at Final Proposals and MOD terms in subsequent years for Licensees on the basis of Financial Handbook and Licence conditions of the relevant Network Operator
B5: =IF(m_PCFM_year_t=1,"RIIO GT1 Price Control Financial Model for the Annual Iteration Process that will take place by 30 November 2013-14","RIIO GT1 Price Control Financial Model for the Annual Iteration Process that will take place by 30 November "&YEAR(UserInterface!$G$10)-2) -> RIIO GT1 Price Control Financial Model for the Annual Iteration Process that will take place by 30 November 2017
B7: Model key
E9: Sample | G9: Calculated value | I9: Sample | K9: Information and interface
E10: Sample | G10: Import | I10: Sample | K10: FP fixed input value
E11: Sample | G11: Export | I11: Sample | K11: Annual update input
E12: Sample | G12: Named range | I12: Sample | K12: Input linked from annual update
E13: Sample | G13: Formula change in cells to the right | I13: Sample | K13: Notes and instructions
B16: Contents
E18: INTERFACE > | I18: COMPANY SPECIFIC INPUT SHEETS >
E19: Cover | G19: Model key and content directory
E20: UserInterface | G20: Model operation | I20: NGGT TO | K20: Inputs for NGGT TO
E21: TaxTrigger | G21: Tax trigger calculations | I21: NGGT SO | K21: Inputs for NGGT SO
E22: INPUT SELECTION >
E23: Input | G23: Inputs for selected licensee
E24: CALCULATION >
E25: Totex | G25: Totex allowance and actuals
E26: TIM | G26: Totex Incentive Mechanism and capitalisation
E27: DARTs | G27: Direct Allowance Revenue Terms
E28: Depn | G28: Gas transmission regulatory depreciation
E29: SystemOperator | G29: System operator calculations
E30: Return&RAV | G30: RAV and return calculations
E31: TaxPools | G31: Tax pools and capital allowances
E32: Finance&Tax | G32: Net debt, equity issuance, financing costs and tax
E33: NonCore | G33: Calculations for non-core regulatory assets (Revenue drivers)
E34: Revenue | G34: Revenue and MOD
E35: OUTPUT >
E36: ResultsLive | G36: Results for selected company
E37: ResultsLive(SO) | G37: Results for SO (for selected company)
E38: SavedResults | G38: Saved results for all companies
B40: End of sheet

Sheet UserInterface
A1: User Interface
B2: =UserInterface!G17 -> NGGT TO
B3: Model operation
C5: PCFM year t
C6: Instruction: Use the following drop-down list to identify year t in the model. Year t is identified here by its end date.
E8: Year t selection:
E10: Year t selected: | G10: =EOMONTH(41364,G54*12) -> 2019-03-31
C12: Active company
C13: Instruction: Use the following drop-down list to select the active company in the model.
E15: Company selection:
E17: Selected company: | G17: =INDEX(E46:E46, E47) -> NGGT TO
C19: Model state
C20: Instruction: Use the following drop-down list to set the model state and run it as either the "Licence Model" or the "Tax Trigger Tool."
C21: Note: "Tax Trigger Tool" must be selected here for functionality on the "TaxTrigger" sheet to function.
C22: Selecting "Licence Model" ensures that the Tax Trigger Tool functionality is deactivated and does not affect the calculations in the model.
E24: Model status selection:
E26: Selected model status: | G26: =INDEX(E51:E52, E53) -> Licence Model
C28: Run model for all licensees
C29: Instruction: Click on the left button to save results for the selected company only. Click the right button to save results for all.
C30: Note: Annual iterations must have been completed for all prior years before running the model to generate MOD.
C31: The macros save results and values required for future years which cannot be recreated once inputs are revised.
C32: Running the macro saves the output from year t's iteration for use in future iterations.
C33: Results for the selected company can be found on the "LiveResults" sheet and also on the "SavedResults" sheet once saved by a macro.
B39: User selection lists
B40: Note: The lists below drive the drop-down lists above.
B41: Using the drop-down lists above returns an integer in the "cell link" positioned below their "source list."
B42: The number returned in the cell link corresponds to the position of the selected item in the source list.
B43: The company selection output is set as a "named range." This gives a stable anchor point for the "RunForAll" macro to change the company.
E45: ="Source for ''"&C12&"'' drop-down list" -> Source for ''Active company'' drop-down list | G45: ="Source for ''"&C5&"'' drop-down list" -> Source for ''PCFM year t'' drop-down list
E46: NGGT TO | G46: 2014-03-31
E47: 1 | G47: 2015-03-31
E48: Adjacent named range: m_identity | G48: 2016-03-31
G49: 2017-03-31
E50: ="Source for ''"&C19&"'' drop-down list" -> Source for ''Model state'' drop-down list | G50: 2018-03-31
E51: Licence Model | G51: 2019-03-31
E52: Tax Trigger Tool | G52: 2020-03-31
E53: 1 | G53: 2021-03-31
E54: Adjacent named range: m_model_state | G54: 6
G55: Adjacent named range: m_PCFM_year_t
B57: End of sheet

Sheet TaxTrigger
A1: Tax Trigger
B2: =UserInterface!G17 -> NGGT TO
E3: Parameter | G3: Units | I3: Constant | AH3: Annual values
E4: PCFM year ending | F4: =Cover!C3 -> GT1 PCFM November 2017 DryRun3.xlsm | I4: =UserInterface!$G$10 -> 2019-03-31 | K4: 1991-03-31 | L4: 1992-03-31 | M4: 1993-03-31 | N4: 1994-03-31 | O4: 1995-03-31 | P4: 1996-03-31 | Q4: 1997-03-31 | R4: 1998-03-31 | S4: 1999-03-31 | T4: 2000-03-31 | U4: 2001-03-31 | V4: 2002-03-31 | W4: 2003-03-31 | X4: 2004-03-31 | Y4: 2005-03-31 | Z4: 2006-03-31 | AA4: 2007-03-31 | AB4: 2008-03-31 | AC4: 2009-03-31 | AD4: 2010-03-31 | AE4: 2011-03-31 | AF4: 2012-03-31 | AG4: 2013-03-31 | AH4: 2014-03-31 | AI4: 2015-03-31 | AJ4: 2016-03-31 | AK4: 2017-03-31 | AL4: 2018-03-31 | AM4: 2019-03-31 | AN4: 2020-03-31 | AO4: 2021-03-31
B6: Tax trigger calculation
C8: Test operation
C9: Instruction: To run the model as the Tax Trigger Tool, the "model state" must be set to "Tax Trigger Tool" on the "UserInterface" sheet. The model state selected is shown below.
C10: Clicking the macro button below runs the "TaxTrigger" macro, performing the Tax Trigger adjustment calculation for the licensee (TO and SO) for year t.
C11: The output generated by the macro can be replicated manually using the following steps:
C12: 1. Clear any values from previous tests in the "Test state output" section below (named range "m_saved_original_results")
C13: 2. Set testing state to "Licence Model"
C14: 3. Copy the cells marked as the "m_calculated_tax" named range and paste them at the named range "m_saved_original_test."
C15: 4. Set testing state to "Tax Trigger Calculation"
C16: Note: The Tax Trigger Tool is disabled if the "Model state" below reads "Licence Model."
E18: Model state
E19: =UserInterface!G26 -> Licence Model
E22: State selection
E25: State options
E26: Licence Model
E27: Tax Trigger Calculation
E28: 2
E29: Adjacent named range: m_tax_trigger_state
E31: State selected
E32: =IF(E19 = "Licence Model", "Licence Model", INDEX(E26:E27, E28)) -> Licence Model
E34: Run macro
C39: Transmission operator
D41: Tax calculation
I43: Instruction
E44: Profits attributable to corporation tax | AH44: ='Finance&Tax'!AH199*Input!$AD$46/Input!AH$46 -> 29.15962509 | AI44: ='Finance&Tax'!AI199*Input!$AD$46/Input!AI$46 -> 41.99519775 | AJ44: ='Finance&Tax'!AJ199*Input!$AD$46/Input!AJ$46 -> 53.24530169 | AK44: ='Finance&Tax'!AK199*Input!$AD$46/Input!AK$46 -> 56.6442834 | AL44: ='Finance&Tax'!AL199*Input!$AD$46/Input!AL$46 -> 89.2871595 | AM44: ='Finance&Tax'!AM199*Input!$AD$46/Input!AM$46 -> 85.85545268 | AN44: ='Finance&Tax'!AN199*Input!$AD$46/Input!AN$46 -> 91.54483442 | AO44: ='Finance&Tax'!AO199*Input!$AD$46/Input!AO$46 -> 102.9847142
E45: Corporation tax rate | AH45: ='Finance&Tax'!AH216 -> 0.23 | AI45: ='Finance&Tax'!AI216 -> 0.21 | AJ45: ='Finance&Tax'!AJ216 -> 0.21 | AK45: ='Finance&Tax'!AK216 -> 0.21 | AL45: ='Finance&Tax'!AL216 -> 0.21 | AM45: ='Finance&Tax'!AM216 -> 0.21 | AN45: ='Finance&Tax'!AN216 -> 0.21 | AO45: ='Finance&Tax'!AO216 -> 0.21
E46: "Grossing-up" factor for tax on tax charge | AH46: ='Finance&Tax'!AH219 -> 1.298701299 | AI46: ='Finance&Tax'!AI219 -> 1.265822785 | AJ46: ='Finance&Tax'!AJ219 -> 1.265822785 | AK46: ='Finance&Tax'!AK219 -> 1.265822785 | AL46: ='Finance&Tax'!AL219 -> 1.265822785 | AM46: ='Finance&Tax'!AM219 -> 1.265822785 | AN46: ='Finance&Tax'!AN219 -> 1.265822785 | AO46: ='Finance&Tax'!AO219 -> 1.265822785
E47: Corporation tax charge (tax allowance) before losses | AH47: =AH45*AH44*AH46 -> 8.710017885 | AI47: =AI45*AI44*AI46 -> 11.16328041 | AJ47: 14.15381437 | AK47: 15.05734116 | AL47: 23.73456139 | AM47: 22.82233552 | AN47: 24.33470282 | AO47: 27.37568351
E49: Tax allowance (pre losses) before tax trigger | G49: £m 09/10 prices | AH49: =AH47 -> 8.710017885 | AI49: =AI47 -> 11.16328041 | AJ49: 14.15381437 | AK49: 15.05734116 | AL49: 23.73456139 | AM49: 22.82233552 | AN49: 24.33470282 | AO49: 27.37568351
E50: B event value | G50: £m 09/10 prices | AH50: =AH162 -> 0 | AI50: =AI162 -> 0 | AJ50: 0 | AK50: 0 | AL50: 0 | AM50: 0 | AN50: 0 | AO50: 0
E51: Threshold value adjustment | G51: £m 09/10 prices | AH51: =AH107 -> 0 | AI51: =AI107 -> 0 | AJ51: 0 | AK51: 0 | AL51: 0 | AM51: 2.302211912 | AN51: 2.385747678 | AO51: 2.473691051
E52: Tax allowance | G52: £m 09/10 prices | I52: =IF(m_tax_trigger_state = 1, "Copy cells -->", "-") -> - | AH52: =SUM(AH49:AH51) -> 8.710017885 | AI52: 11.16328041 | AJ52: 14.15381437 | AK52: 15.05734116 | AL52: 23.73456139 | AM52: 25.12454744 | AN52: 26.7204505 | AO52: 29.84937456
AH53: Adjacent named range: m_calculated_tax
D54: Test state output
D55: Note: The formula determines whether the recalculated tax is above or below the threshold and sets the adjustment accordingly
I57: Instruction
E58: Value with original settings | G58: £m 09/10 prices | I58: =IF(m_tax_trigger_state = 1, "Paste cells -->","") ->  | AG58: m_tax_trigger_results | AH58: 8.710017885 | AI58: 11.16328041 | AJ58: 14.15381437 | AK58: 15.05734116 | AL58: 23.73456139 | AM58: 22.82657249 | AN58: 24.34263354 | AO58: 27.38377439
AH59: Adjacent named range: m_saved_original_test
E60: Value with new settings and threshold adjustment | G60: text | AH60: =AH52 -> 8.710017885 | AI60: =AI52 -> 11.16328041 | AJ60: 14.15381437 | AK60: 15.05734116 | AL60: 23.73456139 | AM60: 25.12454744 | AN60: 26.7204505 | AO60: 29.84937456
D62: Result and output
D63: Note: Once the test is complete, the "Tax Trigger adjustment" below can be taken from below and inputted to the PCFM set to run as the Licence Model, rather than the Tax Trigger Tool.
E65: TO tax trigger adjustment | G65: £m 09/10 prices | AH65: =IF(AND(m_tax_trigger_state=2,m_model_state=2),IF(ABS((AH49+AH50)-AH58)> ABS(AH107), AH60 - AH58, 0),0) -> 0 | AI65: 0 | AJ65: 0 | AK65: 0 | AL65: 0 | AM65: 0 | AN65: 0 | AO65: 0
C67: System operator
D69: SO tax calculation
I71: Instruction
E72: Profits attributable to corporation tax | AH72: =SystemOperator!AH328*Input!$AD$46/Input!AH$46 -> 3.745590984 | AI72: =SystemOperator!AI328*Input!$AD$46/Input!AI$46 -> 0.4578220837 | AJ72: =SystemOperator!AJ328*Input!$AD$46/Input!AJ$46 -> 1.423861149 | AK72: =SystemOperator!AK328*Input!$AD$46/Input!AK$46 -> 0.6831270618 | AL72: =SystemOperator!AL328*Input!$AD$46/Input!AL$46 -> -0.9150234711 | AM72: =SystemOperator!AM328*Input!$AD$46/Input!AM$46 -> -0.007860282669 | AN72: =SystemOperator!AN328*Input!$AD$46/Input!AN$46 -> 3.149301489 | AO72: =SystemOperator!AO328*Input!$AD$46/Input!AO$46 -> 2.428738387
E73: Corporation tax rate | AH73: =SystemOperator!AH345 -> 0.23 | AI73: =SystemOperator!AI345 -> 0.21 | AJ73: =SystemOperator!AJ345 -> 0.21 | AK73: =SystemOperator!AK345 -> 0.21 | AL73: =SystemOperator!AL345 -> 0.21 | AM73: =SystemOperator!AM345 -> 0.21 | AN73: =SystemOperator!AN345 -> 0.21 | AO73: =SystemOperator!AO345 -> 0.21
E74: "Grossing-up" factor for tax on tax charge | AH74: =SystemOperator!AH348 -> 1.298701299 | AI74: =SystemOperator!AI348 -> 1.265822785 | AJ74: =SystemOperator!AJ348 -> 1.265822785 | AK74: =SystemOperator!AK348 -> 1.265822785 | AL74: =SystemOperator!AL348 -> 1.265822785 | AM74: =SystemOperator!AM348 -> 1.265822785 | AN74: =SystemOperator!AN348 -> 1.265822785 | AO74: =SystemOperator!AO348 -> 1.265822785
E75: Corporation tax charge (tax allowance) before losses | AH75: =AH73*AH72*AH74 -> 1.118812891 | AI75: =AI73*AI72*AI74 -> 0.1216995412 | AJ75: 0.3784947358 | AK75: 0.1815907379 | AL75: -0.2432340873 | AM75: -0.002089442229 | AN75: 0.837156092 | AO75: 0.6456140017
E77: Tax allowance (pre losses) before tax trigger | G77: £m 09/10 prices | AH77: =AH75 -> 1.118812891 | AI77: =AI75 -> 0.1216995412 | AJ77: 0.3784947358 | AK77: 0.1815907379 | AL77: -0.2432340873 | AM77: -0.002089442229 | AN77: 0.837156092 | AO77: 0.6456140017
E78: B event value | G78: £m 09/10 prices | AH78: =AH169 -> 0 | AI78: =AI169 -> 0 | AJ78: 0 | AK78: 0 | AL78: 0 | AM78: 0 | AN78: 0 | AO78: 0
E79: Threshold value adjustment | G79: £m 09/10 prices | AH79: =AH113 -> 0 | AI79: =AI113 -> 0 | AJ79: 0 | AK79: 0 | AL79: 0 | AM79: 0 | AN79: 0 | AO79: 0
E80: Tax allowance | G80: £m 09/10 prices | I80: =IF(m_tax_trigger_state = 1, "Copy cells -->", "-") -> - | AH80: =SUM(AH77:AH79) -> 1.118812891 | AI80: 0.1216995412 | AJ80: 0.3784947358 | AK80: 0.1815907379 | AL80: -0.2432340873 | AM80: -0.002089442229 | AN80: 0.837156092 | AO80: 0.6456140017
AH81: Adjacent named range: m_SO_calculated_tax
D82: Test state output
D83: Note: The formula determines whether the recalculated tax is above or below the threshold and sets the adjustment accordingly
I85: Instruction
E86: Value with original settings | G86: £m 09/10 prices | I86: =IF( m_tax_trigger_state = 1, "Paste cells -->","") ->  | AG86: m_tax_trigger_results
AH87: Adjacent named range: m_SO_saved_original_test
E88: Value with new settings and threshold adjustment | G88: text | AH88: =AH80 -> 1.118812891 | AI88: =AI80 -> 0.1216995412 | AJ88: 0.3784947358 | AK88: 0.1815907379 | AL88: -0.2432340873 | AM88: -0.002089442229 | AN88: 0.837156092 | AO88: 0.6456140017
D90: Result and output
D91: Note: Once the test is complete, the "Tax Trigger adjustment" below can be taken from below and inputted to the PCFM set to run as the Licence Model, rather than the Tax Trigger Tool.
E93: SO tax trigger adjustment | G93: £m 09/10 prices | AH93: =IF(AND(m_tax_trigger_state=2,m_model_state=2),IF(ABS((AH77+AH78)-AH86)> ABS(AH113), AH88 - AH86, 0),0) -> 0 | AI93: 0 | AJ93: 0 | AK93: 0 | AL93: 0 | AM93: 0 | AN93: 0 | AO93: 0
B95: Tax trigger parameters
B96: Instruction: Enter values in the yellow cells below for use in the Tax Trigger test.
B97: Note: Flags are used throughout to indicate whether the original or Tax Trigger value is being used. The live values below are exported for use throughout the model.
C99: Active policy
E101: Tax trigger tax settings are used | G101: flag | AH101: =IF(AND(AH$4 <= $I4, m_tax_trigger_state = 2, m_model_state = 2), TRUE, FALSE) -> FALSE | AI101: FALSE | AJ101: FALSE | AK101: FALSE | AL101: FALSE | AM101: FALSE | AN101: FALSE | AO101: FALSE
C103: TO threshold
E105: Threshold value | G105: £m 09/10 prices | AH105: =AH173 -> 1.780265549 | AI105: =AI173 -> 1.798539158 | AJ105: 1.845276683 | AK105: 1.998921779 | AL105: 2.345388807 | AM105: 2.302211912 | AN105: 2.385747678 | AO105: 2.473691051
E107: Threshold value applied | G107: £m 09/10 prices | AH107: =IF(OR((AH49+AH50) = AH58, AH58 = ""), 0, IF(AH58 < (AH49+AH50), -AH105, +AH105)) -> 0 | AI107: =IF(OR((AI49+AI50) = AI58, AI58 = ""), 0, IF(AI58 < (AI49+AI50), -AI105, +AI105)) -> 0 | AJ107: 0 | AK107: 0 | AL107: 0 | AM107: 2.302211912 | AN107: 2.385747678 | AO107: 2.473691051
C109: SO threshold
E111: Threshold value | G111: £m 09/10 prices | AH111: =AH174 -> 0.2527345982 | AI111: =AI174 -> 0.2253574264 | AJ111: 0.2298737806 | AK111: 0.2428663783 | AL111: 0.2454353845 | AM111: 0.2423130162 | AN111: 0.2490971312 | AO111: 0.2459906093
E113: Threshold value applied | G113: £m 09/10 prices | AH113: =IF(OR((AH77+AH78) = AH86, AH86 = ""), 0, IF(AH86 < (AH77+AH78), -AH111, +AH111)) -> 0 | AI113: =IF(OR((AI77+AI78) = AI86, AI86 = ""), 0, IF(AI86 < (AI77+AI78), -AI111, +AI111)) -> 0 | AJ113: 0 | AK113: 0 | AL113: 0 | AM113: 0 | AN113: 0 | AO113: 0
C115: Corporation tax rate
E117: Active | G117: text | AH117: =AH$101 = FALSE() -> TRUE | AI117: TRUE | AJ117: TRUE | AK117: TRUE | AL117: TRUE | AM117: TRUE | AN117: TRUE | AO117: TRUE
E118: RIIO | G118: % | J118: > | Y118: =Input!Y267 -> 0.3 | Z118: =Input!Z267 -> 0.3 | AA118: =Input!AA267 -> 0.3 | AB118: =Input!AB267 -> 0.3 | AC118: =Input!AC267 -> 0.28 | AD118: =Input!AD267 -> 0.28 | AE118: =Input!AE267 -> 0.28 | AF118: =Input!AF267 -> 0.26 | AG118: =Input!AG267 -> 0.24 | AH118: =Input!AH267 -> 0.23 | AI118: =Input!AI267 -> 0.21 | AJ118: =Input!AJ267 -> 0.21 | AK118: =Input!AK267 -> 0.21 | AL118: =Input!AL267 -> 0.21 | AM118: =Input!AM267 -> 0.21 | AN118: =Input!AN267 -> 0.21 | AO118: =Input!AO267 -> 0.21
E120: Active | G120: text | AH120: =AH$101 -> FALSE | AI120: FALSE | AJ120: FALSE | AK120: FALSE | AL120: FALSE | AM120: FALSE | AN120: FALSE | AO120: FALSE
E121: Tax trigger | G121: % | AH121: 0.23 | AI121: 0.21 | AJ121: 0.2 | AK121: 0.2 | AL121: 0.19 | AM121: 0.19 | AN121: 0.19 | AO121: 0.17
E123: Applied | G123: % | J123: > | Y123: =Y118 -> 0.3 | Z123: =Z118 -> 0.3 | AA123: =AA118 -> 0.3 | AB123: 0.3 | AC123: 0.28 | AD123: 0.28 | AE123: 0.28 | AF123: 0.26 | AG123: 0.24 | AH123: =(AH117 * AH118) + (AH120 * AH121) -> 0.23 | AI123: =(AI117 * AI118) + (AI120 * AI121) -> 0.21 | AJ123: 0.21 | AK123: 0.21 | AL123: 0.21 | AM123: 0.21 | AN123: 0.21 | AO123: 0.21
C125: Capital allowance rate
D127: General pool
E129: Active | G129: text | AH129: =AH$101 = FALSE() -> TRUE | AI129: TRUE | AJ129: TRUE | AK129: TRUE | AL129: TRUE | AM129: TRUE | AN129: TRUE | AO129: TRUE
E130: RIIO | G130: % | V130: =Input!V269 -> 0.25 | W130: =Input!W269 -> 0.25 | X130: =Input!X269 -> 0.25 | Y130: =Input!Y269 -> 0.25 | Z130: =Input!Z269 -> 0.25 | AA130: =Input!AA269 -> 0.25 | AB130: =Input!AB269 -> 0.25 | AC130: =Input!AC269 -> 0.2 | AD130: =Input!AD269 -> 0.2 | AE130: =Input!AE269 -> 0.2 | AF130: =Input!AF269 -> 0.2 | AG130: =Input!AG269 -> 0.18 | AH130: =Input!AH269 -> 0.18 | AI130: =Input!AI269 -> 0.18 | AJ130: =Input!AJ269 -> 0.18 | AK130: =Input!AK269 -> 0.18 | AL130: =Input!AL269 -> 0.18 | AM130: =Input!AM269 -> 0.18 | AN130: =Input!AN269 -> 0.18 | AO130: =Input!AO269 -> 0.18
E132: Active | G132: text | AH132: =AH$101 -> FALSE | AI132: FALSE | AJ132: FALSE | AK132: FALSE | AL132: FALSE | AM132: FALSE | AN132: FALSE | AO132: FALSE
E133: Tax trigger | G133: % | AH133: 0.18 | AI133: 0.18 | AJ133: 0.18 | AK133: 0.18 | AL133: 0.18 | AM133: 0.18 | AN133: 0.18 | AO133: 0.18
E135: Applied | G135: % | V135: =V130 -> 0.25 | W135: 0.25 | X135: 0.25 | Y135: 0.25 | Z135: 0.25 | AA135: 0.25 | AB135: 0.25 | AC135: 0.2 | AD135: 0.2 | AE135: 0.2 | AF135: 0.2 | AG135: =AG130 -> 0.18 | AH135: =(AH129 * AH130) + (AH132 * AH133) -> 0.18 | AI135: 0.18 | AJ135: 0.18 | AK135: 0.18 | AL135: 0.18 | AM135: 0.18 | AN135: 0.18 | AO135: 0.18
D137: Special Rate pool
E139: Active | G139: text | AH139: =AH$101 = FALSE() -> TRUE | AI139: TRUE | AJ139: TRUE | AK139: TRUE | AL139: TRUE | AM139: TRUE | AN139: TRUE | AO139: TRUE
E140: RIIO | G140: % | J140: > | V140: =Input!V270 -> 0.06 | W140: =Input!W270 -> 0.06 | X140: =Input!X270 -> 0.06 | Y140: =Input!Y270 -> 0.06 | Z140: =Input!Z270 -> 0.06 | AA140: =Input!AA270 -> 0.06 | AB140: =Input!AB270 -> 0.06 | AC140: =Input!AC270 -> 0.1 | AD140: =Input!AD270 -> 0.1 | AE140: =Input!AE270 -> 0.1 | AF140: =Input!AF270 -> 0.1 | AG140: =Input!AG270 -> 0.08 | AH140: =Input!AH270 -> 0.08 | AI140: =Input!AI270 -> 0.08 | AJ140: =Input!AJ270 -> 0.08 | AK140: =Input!AK270 -> 0.08 | AL140: =Input!AL270 -> 0.08 | AM140: =Input!AM270 -> 0.08 | AN140: =Input!AN270 -> 0.08 | AO140: =Input!AO270 -> 0.08
E142: Active | G142: text | AH142: =AH$101 -> FALSE | AI142: FALSE | AJ142: FALSE | AK142: FALSE | AL142: FALSE | AM142: FALSE | AN142: FALSE | AO142: FALSE
E143: Tax trigger | G143: % | AH143: 0.08 | AI143: 0.08 | AJ143: 0.08 | AK143: 0.08 | AL143: 0.08 | AM143: 0.08 | AN143: 0.08 | AO143: 0.08
E145: Applied | G145: % | J145: > | V145: =V140 -> 0.06 | W145: =W140 -> 0.06 | X145: =X140 -> 0.06 | Y145: =Y140 -> 0.06 | Z145: =Z140 -> 0.06 | AA145: =AA140 -> 0.06 | AB145: 0.06 | AC145: 0.1 | AD145: 0.1 | AE145: 0.1 | AF145: 0.1 | AG145: 0.08 | AH145: =(AH139 * AH140) + (AH142 * AH143) -> 0.08 | AI145: 0.08 | AJ145: 0.08 | AK145: 0.08 | AL145: 0.08 | AM145: 0.08 | AN145: 0.08 | AO145: 0.08
D147: Deferred revenue writing down allowance rate
E149: Active | G149: text | AH149: =AH$101 = FALSE() -> TRUE | AI149: TRUE | AJ149: TRUE | AK149: TRUE | AL149: TRUE | AM149: TRUE | AN149: TRUE | AO149: TRUE
E150: RIIO | G150: % | J150: > | V150: =Input!V271 -> 0 | W150: =Input!W271 -> 0 | X150: =Input!X271 -> 0 | Y150: =Input!Y271 -> 0 | Z150: =Input!Z271 -> 0 | AA150: =Input!AA271 -> 0 | AB150: =Input!AB271 -> 0 | AC150: =Input!AC271 -> 0 | AD150: =Input!AD271 -> 0 | AE150: =Input!AE271 -> 0 | AF150: =Input!AF271 -> 0 | AG150: =Input!AG271 -> 0 | AH150: =Input!AH271 -> 0.0222 | AI150: =Input!AI271 -> 0.0222 | AJ150: =Input!AJ271 -> 0.0222 | AK150: =Input!AK271 -> 0.0222 | AL150: =Input!AL271 -> 0.0222 | AM150: =Input!AM271 -> 0.0222 | AN150: =Input!AN271 -> 0.0222 | AO150: =Input!AO271 -> 0.0222
E152: Active | G152: text | AH152: =AH$101 -> FALSE | AI152: FALSE | AJ152: FALSE | AK152: FALSE | AL152: FALSE | AM152: FALSE | AN152: FALSE | AO152: FALSE
E153: Tax trigger | G153: % | AH153: 0.0222 | AI153: 0.0222 | AJ153: 0.0222 | AK153: 0.0222 | AL153: 0.0222 | AM153: 0.0222 | AN153: 0.0222 | AO153: 0.0222
E155: Applied | G155: % | J155: > | V155: =V150 -> 0 | W155: 0 | X155: 0 | Y155: 0 | Z155: 0 | AA155: 0 | AB155: 0 | AC155: 0 | AD155: 0 | AE155: 0 | AF155: 0 | AG155: =AG150 -> 0 | AH155: =(AH149 * AH150) + (AH152 * AH153) -> 0.0222 | AI155: 0.0222 | AJ155: 0.0222 | AK155: 0.0222 | AL155: 0.0222 | AM155: 0.0222 | AN155: 0.0222 | AO155: 0.0222
C157: TO B event value
E159: Active | G159: text | AH159: =AH$101 -> FALSE | AI159: FALSE | AJ159: FALSE | AK159: FALSE | AL159: FALSE | AM159: FALSE | AN159: FALSE | AO159: FALSE
E160: Tax trigger | G160: £m 09/10 prices | AH160: 0 | AI160: 0 | AJ160: 0 | AK160: 0 | AL160: 0 | AM160: 0 | AN160: 0 | AO160: 0
E162: Applied | G162: £m 09/10 prices | AH162: =AH159 * AH160 -> 0 | AI162: =AI159 * AI160 -> 0 | AJ162: 0 | AK162: 0 | AL162: 0 | AM162: 0 | AN162: 0 | AO162: 0
C164: SO B event value
E166: Active | G166: text | AH166: =AH$101 -> FALSE | AI166: FALSE | AJ166: FALSE | AK166: FALSE | AL166: FALSE | AM166: FALSE | AN166: FALSE | AO166: FALSE
E167: Tax trigger | G167: £m 09/10 prices | AH167: 0 | AI167: 0 | AJ167: 0 | AK167: 0 | AL167: 0 | AM167: 0 | AN167: 0 | AO167: 0
E169: Applied | G169: £m 09/10 prices | AH169: =AH166 * AH167 -> 0 | AI169: =AI166 * AI167 -> 0 | AJ169: 0 | AK169: 0 | AL169: 0 | AM169: 0 | AN169: 0 | AO169: 0
C171: Tax Trigger Deadbands
E173: NGGT TO | AH173: ='NGGT TO'!AH336 -> 1.780265549 | AI173: ='NGGT TO'!AI336 -> 1.798539158 | AJ173: ='NGGT TO'!AJ336 -> 1.845276683 | AK173: ='NGGT TO'!AK336 -> 1.998921779 | AL173: ='NGGT TO'!AL336 -> 2.345388807 | AM173: ='NGGT TO'!AM336 -> 2.302211912 | AN173: ='NGGT TO'!AN336 -> 2.385747678 | AO173: ='NGGT TO'!AO336 -> 2.473691051
E174: NGGT SO | AH174: ='NGGT SO'!AH113 -> 0.2527345982 | AI174: ='NGGT SO'!AI113 -> 0.2253574264 | AJ174: ='NGGT SO'!AJ113 -> 0.2298737806 | AK174: ='NGGT SO'!AK113 -> 0.2428663783 | AL174: ='NGGT SO'!AL113 -> 0.2454353845 | AM174: ='NGGT SO'!AM113 -> 0.2423130162 | AN174: ='NGGT SO'!AN113 -> 0.2490971312 | AO174: ='NGGT SO'!AO113 -> 0.2459906093
B176: End of sheet

Sheet MOD
A1: MOD
B2: =UserInterface!G17 -> NGGT TO
E3: Parameter | G3: Units | I3: Constant | AH3: Annual values
E4: PCFM year ending | F4: =Cover!C3 -> GT1 PCFM November 2017 DryRun3.xlsm | I4: =UserInterface!$G$10 -> 2019-03-31 | K4: 1991-03-31 | L4: 1992-03-31 | M4: 1993-03-31 | N4: 1994-03-31 | O4: 1995-03-31 | P4: 1996-03-31 | Q4: 1997-03-31 | R4: 1998-03-31 | S4: 1999-03-31 | T4: 2000-03-31 | U4: 2001-03-31 | V4: 2002-03-31 | W4: 2003-03-31 | X4: 2004-03-31 | Y4: 2005-03-31 | Z4: 2006-03-31 | AA4: 2007-03-31 | AB4: 2008-03-31 | AC4: 2009-03-31 | AD4: 2010-03-31 | AE4: 2011-03-31 | AF4: 2012-03-31 | AG4: 2013-03-31 | AH4: 2014-03-31 | AI4: 2015-03-31 | AJ4: 2016-03-31 | AK4: 2017-03-31 | AL4: 2018-03-31 | AM4: 2019-03-31 | AN4: 2020-03-31 | AO4: 2021-03-31
E5: Note: Base revenue referred to in the PCFM is not the BRt terms quoted in the licence as this also includes the terms TRUE and RPIFt which relate to retail price index adjustments
E6: =UserInterface!E10 -> Year t selected: | G6: =UserInterface!G10 -> 2019-03-31
E8: =Revenue!E64 -> Final Proposals base revenue | F8: =Revenue!F64 -> 0 | H8: =Revenue!H64 -> 0 | J8: =Revenue!J64 -> 0 | K8: =Revenue!K64 -> 0 | L8: =Revenue!L64 -> 0 | M8: =Revenue!M64 -> 0 | N8: =Revenue!N64 -> 0 | O8: =Revenue!O64 -> 0 | P8: =Revenue!P64 -> 0 | Q8: =Revenue!Q64 -> 0 | R8: =Revenue!R64 -> 0 | S8: =Revenue!S64 -> 0 | T8: =Revenue!T64 -> 0 | U8: =Revenue!U64 -> 0 | V8: =Revenue!V64 -> 0 | W8: =Revenue!W64 -> 0 | X8: =Revenue!X64 -> 0 | Y8: =Revenue!Y64 -> 0 | Z8: =Revenue!Z64 -> 0 | AA8: =Revenue!AA64 -> 0 | AB8: =Revenue!AB64 -> 0 | AC8: =Revenue!AC64 -> 0 | AD8: =Revenue!AD64 -> 0 | AE8: =Revenue!AE64 -> 0 | AF8: =Revenue!AF64 -> 0 | AG8: =Revenue!AG64 -> 0 | AH8: =Revenue!AH64 -> 538.6861414 | AI8: =Revenue!AI64 -> 542.9267327 | AJ8: =Revenue!AJ64 -> 547.9650832 | AK8: =Revenue!AK64 -> 580.5699292 | AL8: =Revenue!AL64 -> 658.6191948 | AM8: =Revenue!AM64 -> 626.8699596 | AN8: =Revenue!AN64 -> 621.7244692 | AO8: =Revenue!AO64 -> 620.3381298
E9: =Revenue!E65 -> MOD | F9: =Revenue!F65 -> 0 | H9: =Revenue!H65 -> 0 | J9: =Revenue!J65 -> 0 | K9: =Revenue!K65 -> 0 | L9: =Revenue!L65 -> 0 | M9: =Revenue!M65 -> 0 | N9: =Revenue!N65 -> 0 | O9: =Revenue!O65 -> 0 | P9: =Revenue!P65 -> 0 | Q9: =Revenue!Q65 -> 0 | R9: =Revenue!R65 -> 0 | S9: =Revenue!S65 -> 0 | T9: =Revenue!T65 -> 0 | U9: =Revenue!U65 -> 0 | V9: =Revenue!V65 -> 0 | W9: =Revenue!W65 -> 0 | X9: =Revenue!X65 -> 0 | Y9: =Revenue!Y65 -> 0 | Z9: =Revenue!Z65 -> 0 | AA9: =Revenue!AA65 -> 0 | AB9: =Revenue!AB65 -> 0 | AC9: =Revenue!AC65 -> 0 | AD9: =Revenue!AD65 -> 0 | AE9: =Revenue!AE65 -> 0 | AF9: =Revenue!AF65 -> 0 | AG9: =Revenue!AG65 -> 0 | AH9: =Revenue!AH65 -> 0 | AI9: =Revenue!AI65 -> 7.66059003 | AJ9: =Revenue!AJ65 -> 9.903155913 | AK9: =Revenue!AK65 -> 10.46238457 | AL9: =Revenue!AL65 -> 5.917948526 | AM9: =Revenue!AM65 -> -100.2092997 | AN9: =Revenue!AN65 -> 0 | AO9: =Revenue!AO65 -> 0
E10: =Revenue!E66 -> Base revenue | F10: =Revenue!F66 -> 0 | H10: =Revenue!H66 -> 0 | J10: =Revenue!J66 -> 0 | K10: =Revenue!K66 -> 0 | L10: =Revenue!L66 -> 0 | M10: =Revenue!M66 -> 0 | N10: =Revenue!N66 -> 0 | O10: =Revenue!O66 -> 0 | P10: =Revenue!P66 -> 0 | Q10: =Revenue!Q66 -> 0 | R10: =Revenue!R66 -> 0 | S10: =Revenue!S66 -> 0 | T10: =Revenue!T66 -> 0 | U10: =Revenue!U66 -> 0 | V10: =Revenue!V66 -> 0 | W10: =Revenue!W66 -> 0 | X10: =Revenue!X66 -> 0 | Y10: =Revenue!Y66 -> 0 | Z10: =Revenue!Z66 -> 0 | AA10: =Revenue!AA66 -> 0 | AB10: =Revenue!AB66 -> 0 | AC10: =Revenue!AC66 -> 0 | AD10: =Revenue!AD66 -> 0 | AE10: =Revenue!AE66 -> 0 | AF10: =Revenue!AF66 -> 0 | AG10: =Revenue!AG66 -> 0 | AH10: =Revenue!AH66 -> 538.6861414 | AI10: =Revenue!AI66 -> 550.5873227 | AJ10: =Revenue!AJ66 -> 557.8682391 | AK10: =Revenue!AK66 -> 591.0323138 | AL10: =Revenue!AL66 -> 664.5371434 | AM10: =Revenue!AM66 -> 526.6606599 | AN10: =Revenue!AN66 -> 621.7244692 | AO10: =Revenue!AO66 -> 620.3381298
B12: End of sheet

Sheet Input
A1: Input
B2: =UserInterface!G17 -> NGGT TO
E3: Parameter | F3: Licence condition | G3: Units | H3: Term | I3: Constant | AH3: Annual values
E4: PCFM year ending | F4: =Cover!C3 -> GT1 PCFM November 2017 DryRun3.xlsm | I4: =UserInterface!$G$10 -> 2019-03-31 | K4: 1991-03-31 | L4: 1992-03-31 | M4: 1993-03-31 | N4: 1994-03-31 | O4: 1995-03-31 | P4: 1996-03-31 | Q4: 1997-03-31 | R4: 1998-03-31 | S4: 1999-03-31 | T4: 2000-03-31 | U4: 2001-03-31 | V4: 2002-03-31 | W4: 2003-03-31 | X4: 2004-03-31 | Y4: 2005-03-31 | Z4: 2006-03-31 | AA4: 2007-03-31 | AB4: 2008-03-31 | AC4: 2009-03-31 | AD4: 2010-03-31 | AE4: 2011-03-31 | AF4: 2012-03-31 | AG4: 2013-03-31 | AH4: 2014-03-31 | AI4: 2015-03-31 | AJ4: 2016-03-31 | AK4: 2017-03-31 | AL4: 2018-03-31 | AM4: 2019-03-31 | AN4: 2020-03-31 | AO4: 2021-03-31
B6: PCFM Variable Values Table
E8: Allowed percentage cost of debt | F8: 5C | G8: annual real % | H8: CDE / SO CDE | AH8: =('NGGT TO'!AH8) -> 0.0292 | AI8: =('NGGT TO'!AI8) -> 0.0272 | AJ8: =('NGGT TO'!AJ8) -> 0.0255 | AK8: =('NGGT TO'!AK8) -> 0.0238 | AL8: =('NGGT TO'!AL8) -> 0.0222 | AM8: =('NGGT TO'!AM8) -> 0.0203 | AN8: =('NGGT TO'!AN8) -> 0.0203 | AO8: =('NGGT TO'!AO8) -> 0.0203
E9: Actual load related capex expenditure | F9: 5B | G9: £m 09/10 prices | H9: ALC | AH9: =('NGGT TO'!AH9) -> 2.94797639 | AI9: =('NGGT TO'!AI9) -> 1.224274215 | AJ9: =('NGGT TO'!AJ9) -> 1.145956865 | AK9: =('NGGT TO'!AK9) -> 1.374498823 | AL9: =('NGGT TO'!AL9) -> 0 | AM9: =('NGGT TO'!AM9) -> 0 | AN9: =('NGGT TO'!AN9) -> 0 | AO9: =('NGGT TO'!AO9) -> 0
E10: Actual asset replacement capex expenditure | F10: 5B | G10: £m 09/10 prices | H10: ARC | AH10: =('NGGT TO'!AH10) -> 42.87923468 | AI10: =('NGGT TO'!AI10) -> 47.9719367 | AJ10: =('NGGT TO'!AJ10) -> 58.45255902 | AK10: =('NGGT TO'!AK10) -> 75.52599994 | AL10: =('NGGT TO'!AL10) -> 0 | AM10: =('NGGT TO'!AM10) -> 0 | AN10: =('NGGT TO'!AN10) -> 0 | AO10: =('NGGT TO'!AO10) -> 0
E11: Actual other capex expenditure | F11: 5B | G11: £m 09/10 prices | H11: AOC | AH11: =('NGGT TO'!AH11) -> 30.99420489 | AI11: =('NGGT TO'!AI11) -> 28.43772055 | AJ11: =('NGGT TO'!AJ11) -> 27.44676491 | AK11: =('NGGT TO'!AK11) -> 15.24182934 | AL11: =('NGGT TO'!AL11) -> 0 | AM11: =('NGGT TO'!AM11) -> 0 | AN11: =('NGGT TO'!AN11) -> 0 | AO11: =('NGGT TO'!AO11) -> 0
E12: Actual controllable opex | F12: 5B | G12: £m 09/10 prices | H12: ACO | AH12: =('NGGT TO'!AH12) -> 65.77049217 | AI12: =('NGGT TO'!AI12) -> 69.56289799 | AJ12: =('NGGT TO'!AJ12) -> 69.82162847 | AK12: =('NGGT TO'!AK12) -> 78.83701845 | AL12: =('NGGT TO'!AL12) -> 0 | AM12: =('NGGT TO'!AM12) -> 0 | AN12: =('NGGT TO'!AN12) -> 0 | AO12: =('NGGT TO'!AO12) -> 0
E13: Actual non-operational capex | F13: 5B | G13: £m 09/10 prices | H13: ANC | AH13: =('NGGT TO'!AH13) -> 10.53669269 | AI13: =('NGGT TO'!AI13) -> 9.962463692 | AJ13: =('NGGT TO'!AJ13) -> 11.14324316 | AK13: =('NGGT TO'!AK13) -> 17.96495801 | AL13: =('NGGT TO'!AL13) -> 0 | AM13: =('NGGT TO'!AM13) -> 0 | AN13: =('NGGT TO'!AN13) -> 0 | AO13: =('NGGT TO'!AO13) -> 0
E14: Actual load related capex (uncertain) | F14: 5B | G14: £m 09/10 prices | H14: ALU | AH14: =('NGGT TO'!AH14) -> 0 | AI14: =('NGGT TO'!AI14) -> 0 | AJ14: =('NGGT TO'!AJ14) -> 0 | AK14: =('NGGT TO'!AK14) -> 0 | AL14: =('NGGT TO'!AL14) -> 0 | AM14: =('NGGT TO'!AM14) -> 0 | AN14: =('NGGT TO'!AN14) -> 0 | AO14: =('NGGT TO'!AO14) -> 0
E15: Actual asset replacement capex expenditure (uncertain) | F15: 5B | G15: £m 09/10 prices | H15: ARU | AH15: =('NGGT TO'!AH15) -> 0 | AI15: =('NGGT TO'!AI15) -> 1.893224155 | AJ15: =('NGGT TO'!AJ15) -> 2.054539335 | AK15: =('NGGT TO'!AK15) -> 25.03109116 | AL15: =('NGGT TO'!AL15) -> 0 | AM15: =('NGGT TO'!AM15) -> 0 | AN15: =('NGGT TO'!AN15) -> 0 | AO15: =('NGGT TO'!AO15) -> 0
E16: Actual other capex expenditure (uncertain) | F16: 5B | G16: £m 09/10 prices | H16: AOU | AH16: =('NGGT TO'!AH16) -> 30.59591506 | AI16: =('NGGT TO'!AI16) -> 19.90362345 | AJ16: =('NGGT TO'!AJ16) -> 12.10156698 | AK16: =('NGGT TO'!AK16) -> 3.241077742 | AL16: =('NGGT TO'!AL16) -> 0 | AM16: =('NGGT TO'!AM16) -> 0 | AN16: =('NGGT TO'!AN16) -> 0 | AO16: =('NGGT TO'!AO16) -> 0
E17: Actual controllable opex (uncertain) | F17: 5B | G17: £m 09/10 prices | H17: ACU | AH17: =('NGGT TO'!AH17) -> 5.139166968 | AI17: =('NGGT TO'!AI17) -> 3.623857086 | AJ17: =('NGGT TO'!AJ17) -> 5.10587798 | AK17: =('NGGT TO'!AK17) -> 6.438998398 | AL17: =('NGGT TO'!AL17) -> 0 | AM17: =('NGGT TO'!AM17) -> 0 | AN17: =('NGGT TO'!AN17) -> 0 | AO17: =('NGGT TO'!AO17) -> 0
E18: Uncertain costs - Enhanced Physical Site Security | F18: 5E | G18: £m 09/10 prices | H18: IAEEPS | AH18: =('NGGT TO'!AH18) -> 26.86365189 | AI18: =('NGGT TO'!AI18) -> 18.17186419 | AJ18: =('NGGT TO'!AJ18) -> 10.75105276 | AK18: =('NGGT TO'!AK18) -> 12.66199278 | AL18: =('NGGT TO'!AL18) -> 32.02539354 | AM18: =('NGGT TO'!AM18) -> 32.67953232 | AN18: =('NGGT TO'!AN18) -> 20.5043336 | AO18: =('NGGT TO'!AO18) -> 6.427666455
E19: Uncertain costs – Pipeline Diversion Costs | F19: 5E | G19: £m 09/10 prices | H19: IAEPD | AH19: =('NGGT TO'!AH19) -> 0 | AI19: =('NGGT TO'!AI19) -> 0 | AJ19: =('NGGT TO'!AJ19) -> 0 | AK19: =('NGGT TO'!AK19) -> 0 | AL19: =('NGGT TO'!AL19) -> 0 | AM19: =('NGGT TO'!AM19) -> 0 | AN19: =('NGGT TO'!AN19) -> 0 | AO19: =('NGGT TO'!AO19) -> 0
E20: Uncertain costs (Quarry & Loss Costs), uncertainty rate | F20: 5E | G20: £m 09/10 prices | H20: IAEQL | AH20: =('NGGT TO'!AH20) -> 0 | AI20: =('NGGT TO'!AI20) -> 0 | AJ20: =('NGGT TO'!AJ20) -> 0 | AK20: =('NGGT TO'!AK20) -> 0 | AL20: =('NGGT TO'!AL20) -> 0 | AM20: =('NGGT TO'!AM20) -> 0 | AN20: =('NGGT TO'!AN20) -> 0 | AO20: =('NGGT TO'!AO20) -> 0
E21: Innovation Roll out mechanism | F21: 5D | G21: £m 09/10 prices | H21: IRM | AH21: =('NGGT TO'!AH21) -> 0 | AI21: =('NGGT TO'!AI21) -> 0 | AJ21: =('NGGT TO'!AJ21) -> 0 | AK21: =('NGGT TO'!AK21) -> 0 | AL21: =('NGGT TO'!AL21) -> 0 | AM21: =('NGGT TO'!AM21) -> 0 | AN21: =('NGGT TO'!AN21) -> 0 | AO21: =('NGGT TO'!AO21) -> 0
E22: Incremental Obligated entry capacity, uncertainty rate | F22: 5F | G22: £m 09/10 prices | H22: ENCI | AH22: =('NGGT TO'!AH22) -> 0 | AI22: =('NGGT TO'!AI22) -> 0 | AJ22: =('NGGT TO'!AJ22) -> 0 | AK22: =('NGGT TO'!AK22) -> 0 | AL22: =('NGGT TO'!AL22) -> 0 | AM22: =('NGGT TO'!AM22) -> 0 | AN22: =('NGGT TO'!AN22) -> 0 | AO22: =('NGGT TO'!AO22) -> 0
E23: Incremental Obligated exit capacity, uncertainty rate | F23: 5G | G23: £m 09/10 prices | H23: EXCI | AH23: =('NGGT TO'!AH23) -> 0 | AI23: =('NGGT TO'!AI23) -> 0 | AJ23: =('NGGT TO'!AJ23) -> 0 | AK23: =('NGGT TO'!AK23) -> 0 | AL23: =('NGGT TO'!AL23) -> 0 | AM23: =('NGGT TO'!AM23) -> 0 | AN23: =('NGGT TO'!AN23) -> 0 | AO23: =('NGGT TO'!AO23) -> 0
E24: Uncertain costs – Network Flexibility Costs | F24: 5E | G24: £m 09/10 prices | H24: IAENF | AH24: =('NGGT TO'!AH24) -> 0 | AI24: =('NGGT TO'!AI24) -> 0 | AJ24: =('NGGT TO'!AJ24) -> 0 | AK24: =('NGGT TO'!AK24) -> 0 | AL24: =('NGGT TO'!AL24) -> 0 | AM24: =('NGGT TO'!AM24) -> 0 | AN24: =('NGGT TO'!AN24) -> 0 | AO24: =('NGGT TO'!AO24) -> 0
E25: Uncertain costs – Industrial Emissions | F25: 5E | G25: £m 09/10 prices | H25: IAEIE | AH25: =('NGGT TO'!AH25) -> 0 | AI25: =('NGGT TO'!AI25) -> 0 | AJ25: =('NGGT TO'!AJ25) -> 0 | AK25: =('NGGT TO'!AK25) -> 0 | AL25: =('NGGT TO'!AL25) -> 0 | AM25: =('NGGT TO'!AM25) -> 0 | AN25: =('NGGT TO'!AN25) -> 0 | AO25: =('NGGT TO'!AO25) -> 0
E26: Uncertain costs – One Off Asset Health Costs | F26: 5E | G26: £m 09/10 prices | H26: IAEAH | AH26: =('NGGT TO'!AH26) -> 0 | AI26: =('NGGT TO'!AI26) -> 0 | AJ26: =('NGGT TO'!AJ26) -> 0 | AK26: =('NGGT TO'!AK26) -> 0 | AL26: =('NGGT TO'!AL26) -> 0 | AM26: =('NGGT TO'!AM26) -> 0 | AN26: =('NGGT TO'!AN26) -> 0 | AO26: =('NGGT TO'!AO26) -> 0
E27: Tax liability – gearing/interest costs | F27: 5C | G27: £m nominal | H27: TGIE | AH27: =('NGGT TO'!AH27) -> 0 | AI27: =('NGGT TO'!AI27) -> 0 | AJ27: =('NGGT TO'!AJ27) -> 0 | AK27: =('NGGT TO'!AK27) -> 0 | AL27: =('NGGT TO'!AL27) -> 0 | AM27: =('NGGT TO'!AM27) -> 0 | AN27: =('NGGT TO'!AN27) -> 0 | AO27: =('NGGT TO'!AO27) -> 0
E28: Tax liability – tax trigger events | F28: 5C | G28: £m 09/10 prices | H28: TTE | AH28: =('NGGT TO'!AH28) -> 0 | AI28: =('NGGT TO'!AI28) -> 0 | AJ28: =('NGGT TO'!AJ28) -> 0 | AK28: =('NGGT TO'!AK28) -> 0 | AL28: =('NGGT TO'!AL28) -> -0.4337324576 | AM28: =('NGGT TO'!AM28) -> -0.36945821 | AN28: =('NGGT TO'!AN28) -> 0 | AO28: =('NGGT TO'!AO28) -> 0
E29: Pension Scheme Administration and Pension Protection Fund levy | F29: 5C | G29: £m 09/10 prices | H29: APFE | AH29: =('NGGT TO'!AH29) -> 2.7 | AI29: =('NGGT TO'!AI29) -> 2.6 | AJ29: =('NGGT TO'!AJ29) -> 2.6 | AK29: =('NGGT TO'!AK29) -> 2.7 | AL29: =('NGGT TO'!AL29) -> 2.6 | AM29: =('NGGT TO'!AM29) -> 1.503603057 | AN29: =('NGGT TO'!AN29) -> 1.503603057 | AO29: =('NGGT TO'!AO29) -> 1.503603057
E30: Pension Scheme Established Deficit | F30: 5C | G30: £m 09/10 prices | H30: EDE | AH30: =('NGGT TO'!AH30) -> 26.40985404 | AI30: =('NGGT TO'!AI30) -> 26.40985404 | AJ30: =('NGGT TO'!AJ30) -> 49.37750304 | AK30: =('NGGT TO'!AK30) -> 49.37750304 | AL30: =('NGGT TO'!AL30) -> 49.37750304 | AM30: =('NGGT TO'!AM30) -> 25.65504169 | AN30: =('NGGT TO'!AN30) -> 25.65504169 | AO30: =('NGGT TO'!AO30) -> 25.65504169
E31: Legacy price control adjustments to allowed revenue | F31: 5A | G31: £m 09/10 prices | H31: LAR | AH31: =('NGGT TO'!AH31) -> 7.909682702
E32: Legacy price control adjustments to RAV | F32: 5A | G32: £m 09/10 prices | H32: LRAV | AH32: =('NGGT TO'!AH32) -> 68.08137458
B34: Policy
C36: Cost of capital
E38: Cost of debt | G38: annual real % | AH38: =AH8 -> 0.0292 | AI38: 0.0272 | AJ38: 0.0255 | AK38: 0.0238 | AL38: 0.0222 | AM38: 0.0203 | AN38: 0.0203 | AO38: 0.0203
E39: Cost of equity | G39: annual real % | AH39: =('NGGT TO'!AH39) -> 0.068 | AI39: =('NGGT TO'!AI39) -> 0.068 | AJ39: =('NGGT TO'!AJ39) -> 0.068 | AK39: =('NGGT TO'!AK39) -> 0.068 | AL39: =('NGGT TO'!AL39) -> 0.068 | AM39: =('NGGT TO'!AM39) -> 0.068 | AN39: =('NGGT TO'!AN39) -> 0.068 | AO39: =('NGGT TO'!AO39) -> 0.068
E40: Notional gearing | G40: % | J40: > | AG40: =('NGGT TO'!AG40) -> 0.6 | AH40: =('NGGT TO'!AH40) -> 0.625 | AI40: =('NGGT TO'!AI40) -> 0.625 | AJ40: =('NGGT TO'!AJ40) -> 0.625 | AK40: =('NGGT TO'!AK40) -> 0.625 | AL40: =('NGGT TO'!AL40) -> 0.625 | AM40: =('NGGT TO'!AM40) -> 0.625 | AN40: =('NGGT TO'!AN40) -> 0.625 | AO40: =('NGGT TO'!AO40) -> 0.625
E42: Vanilla WACC | G42: annual real % | AH42: =(AH38 * AH40) + (AH39 * (1 - AH40)) -> 0.04375 | AI42: 0.0425 | AJ42: 0.0414375 | AK42: 0.040375 | AL42: 0.039375 | AM42: 0.0381875 | AN42: 0.0381875 | AO42: 0.0381875
E44: Pre-RIIO closing notional gearing | G44: % | I44: =('NGGT TO'!I44) -> 0.569
E46: Forecast RPI (simple average year to March) | G46: index value | J46: > | V46: =('NGGT TO'!V46) -> 173.875 | W46: =('NGGT TO'!W46) -> 177.517 | X46: =('NGGT TO'!X46) -> 182.475 | Y46: =('NGGT TO'!Y46) -> 188.15 | Z46: =('NGGT TO'!Z46) -> 193.108 | AA46: =('NGGT TO'!AA46) -> 200.317 | AB46: =('NGGT TO'!AB46) -> 208.592 | AC46: =('NGGT TO'!AC46) -> 214.783 | AD46: =('NGGT TO'!AD46) -> 215.767 | AE46: =('NGGT TO'!AE46) -> 226.475 | AF46: =('NGGT TO'!AF46) -> 237.342 | AG46: =('NGGT TO'!AG46) -> 243.988 | AH46: =('NGGT TO'!AH46) -> 250.82 | AI46: =('NGGT TO'!AI46) -> 257.843 | AJ46: =('NGGT TO'!AJ46) -> 265.063 | AK46: =('NGGT TO'!AK46) -> 272.485 | AL46: =('NGGT TO'!AL46) -> 280.115 | AM46: =('NGGT TO'!AM46) -> 287.958 | AN46: =('NGGT TO'!AN46) -> 296.021 | AO46: =('NGGT TO'!AO46) -> 304.31
E47: Cost of Debt Inflation | G47: index value | J47: > | V47: =('NGGT TO'!V47) -> 173.875 | W47: =('NGGT TO'!W47) -> 177.517 | X47: =('NGGT TO'!X47) -> 182.475 | Y47: =('NGGT TO'!Y47) -> 188.15 | Z47: =('NGGT TO'!Z47) -> 193.108 | AA47: =('NGGT TO'!AA47) -> 200.317 | AB47: =('NGGT TO'!AB47) -> 208.592 | AC47: =('NGGT TO'!AC47) -> 214.783 | AD47: =('NGGT TO'!AD47) -> 215.767 | AE47: =('NGGT TO'!AE47) -> 226.475 | AF47: =('NGGT TO'!AF47) -> 237.342 | AG47: =('NGGT TO'!AG47) -> 243.988 | AH47: =('NGGT TO'!AH47) -> 250.82 | AI47: =('NGGT TO'!AI47) -> 257.843 | AJ47: =('NGGT TO'!AJ47) -> 265.063 | AK47: =('NGGT TO'!AK47) -> 272.485 | AL47: =('NGGT TO'!AL47) -> 280.115 | AM47: =('NGGT TO'!AM47) -> 287.958 | AN47: =('NGGT TO'!AN47) -> 296.021 | AO47: =('NGGT TO'!AO47) -> 304.31
C48: TIM and capitalisation
E50: Years from t until normal reporting of actual costs | G50: years | I50: =('NGGT TO'!I50) -> 2
E52: Capitalised share of totex | G52: % | AH52: =('NGGT TO'!AH52) -> 0.644 | AI52: =('NGGT TO'!AI52) -> 0.644 | AJ52: =('NGGT TO'!AJ52) -> 0.644 | AK52: =('NGGT TO'!AK52) -> 0.644 | AL52: =('NGGT TO'!AL52) -> 0.644 | AM52: =('NGGT TO'!AM52) -> 0.644 | AN52: =('NGGT TO'!AN52) -> 0.644 | AO52: =('NGGT TO'!AO52) -> 0.644
E53: Capitalised share of entry, exit, network flexibility, industrial emission directive and asset health | G53: % | AH53: =('NGGT TO'!AH53) -> 0.9 | AI53: =('NGGT TO'!AI53) -> 0.9 | AJ53: =('NGGT TO'!AJ53) -> 0.9 | AK53: =('NGGT TO'!AK53) -> 0.9 | AL53: =('NGGT TO'!AL53) -> 0.9 | AM53: =('NGGT TO'!AM53) -> 0.9 | AN53: =('NGGT TO'!AN53) -> 0.9 | AO53: =('NGGT TO'!AO53) -> 0.9
E55: Incentive rate (slope) | G55: scalar | I55: =('NGGT TO'!I55) -> -0.0025
E56: Incentive rate (intercept) | G56: scalar | I56: =('NGGT TO'!I56) -> 0.75
E57: Additional income (intercept) | G57: scalar | I57: =('NGGT TO'!I57) -> 8.75
E59: Weight of Ofgem's view on price control totex | G59: % | I59: =('NGGT TO'!I59) -> 0.75
E60: Weight of operator's view on price control totex | G60: % | I60: =('NGGT TO'!I60) -> 0.25
E62: Ofgem's view of licensee totex | G62: £m 09/10 prices | I62: =('NGGT TO'!I62) -> 1604.192985
E63: Operator's view of licensee totex | G63: £m 09/10 prices | I63: =('NGGT TO'!I63) -> 2006.8036
E65: Ofgem's view of group price control totex | G65: £m 09/10 prices | I65: =('NGGT TO'!I65) -> 2046.500703
E66: Operator's view of group price control totex | G66: £m 09/10 prices | I66: =('NGGT TO'!I66) -> 2508.159874
C68: Finance
E70: Minimum equity issuance threshold | G70: % | I70: =('NGGT TO'!I70) -> 0.05
E71: Equity issuance costs | G71: % | I71: =('NGGT TO'!I71) -> 0.05
E72: Assumed dividends as % of notional equity portion of RAV | G72: % | I72: =('NGGT TO'!I72) -> 0.05
E74: Equity issuance gearing target | G74: % | AH74: =('NGGT TO'!AH74) -> 0.625 | AI74: =('NGGT TO'!AI74) -> 0.625 | AJ74: =('NGGT TO'!AJ74) -> 0.625 | AK74: =('NGGT TO'!AK74) -> 0.625 | AL74: =('NGGT TO'!AL74) -> 0.625 | AM74: =('NGGT TO'!AM74) -> 0.625 | AN74: =('NGGT TO'!AN74) -> 0.625 | AO74: =('NGGT TO'!AO74) -> 0.625
E76: Index-linked debt as a percentage of net debt | G76: % | AH76: =('NGGT TO'!AH76) -> 0.25 | AI76: =('NGGT TO'!AI76) -> 0.25 | AJ76: =('NGGT TO'!AJ76) -> 0.25 | AK76: =('NGGT TO'!AK76) -> 0.25 | AL76: =('NGGT TO'!AL76) -> 0.25 | AM76: =('NGGT TO'!AM76) -> 0.25 | AN76: =('NGGT TO'!AN76) -> 0.25 | AO76: =('NGGT TO'!AO76) -> 0.25
B78: Expenditure
C80: Totex
D82: Non-variant allowances
E84: Non-variant allowed load related capex expenditure | G84: £m 09/10 prices | AH84: =('NGGT TO'!AH84) -> 15.11577741 | AI84: =('NGGT TO'!AI84) -> 6.158518319 | AJ84: =('NGGT TO'!AJ84) -> 1.227999244 | AK84: =('NGGT TO'!AK84) -> 1.058649464 | AL84: =('NGGT TO'!AL84) -> 5.94595639 | AM84: =('NGGT TO'!AM84) -> 5.059420016 | AN84: =('NGGT TO'!AN84) -> 0.2315287874 | AO84: =('NGGT TO'!AO84) -> 0
E85: Non-variant allowed asset replacement capex expenditure | G85: £m 09/10 prices | AH85: =('NGGT TO'!AH85) -> 86.8202567 | AI85: =('NGGT TO'!AI85) -> 100.2012626 | AJ85: =('NGGT TO'!AJ85) -> 107.8209037 | AK85: =('NGGT TO'!AK85) -> 117.8361291 | AL85: =('NGGT TO'!AL85) -> 132.705636 | AM85: =('NGGT TO'!AM85) -> 113.3127258 | AN85: =('NGGT TO'!AN85) -> 95.49069633 | AO85: =('NGGT TO'!AO85) -> 85.29208013
E86: Non-variant allowed other capex expenditure | G86: £m 09/10 prices | AH86: =('NGGT TO'!AH86) -> 0 | AI86: =('NGGT TO'!AI86) -> 0 | AJ86: =('NGGT TO'!AJ86) -> 0 | AK86: =('NGGT TO'!AK86) -> 0 | AL86: =('NGGT TO'!AL86) -> 0 | AM86: =('NGGT TO'!AM86) -> 0 | AN86: =('NGGT TO'!AN86) -> 0 | AO86: =('NGGT TO'!AO86) -> 0
E87: Non-variant allowed controllable opex | G87: £m 09/10 prices | AH87: =('NGGT TO'!AH87) -> 64.48267201 | AI87: =('NGGT TO'!AI87) -> 65.23787422 | AJ87: =('NGGT TO'!AJ87) -> 70.77289473 | AK87: =('NGGT TO'!AK87) -> 79.36833827 | AL87: =('NGGT TO'!AL87) -> 84.31747913 | AM87: =('NGGT TO'!AM87) -> 84.64134636 | AN87: =('NGGT TO'!AN87) -> 80.72801478 | AO87: =('NGGT TO'!AO87) -> 77.49007012
E88: Non-variant allowed non-operational capex | G88: £m 09/10 prices | AH88: =('NGGT TO'!AH88) -> 10.31226162 | AI88: =('NGGT TO'!AI88) -> 9.678449854 | AJ88: =('NGGT TO'!AJ88) -> 6.615822716 | AK88: =('NGGT TO'!AK88) -> 6.133648068 | AL88: =('NGGT TO'!AL88) -> 5.57274791 | AM88: =('NGGT TO'!AM88) -> 4.190695059 | AN88: =('NGGT TO'!AN88) -> 6.384863783 | AO88: =('NGGT TO'!AO88) -> 5.865895674
D90: Variant allowances
E92: =E18 -> Uncertain costs - Enhanced Physical Site Security | G92: £m 09/10 prices | AH92: =AH18 -> 26.86365189 | AI92: 18.17186419 | AJ92: 10.75105276 | AK92: 12.66199278 | AL92: 32.02539354 | AM92: 32.67953232 | AN92: 20.5043336 | AO92: 6.427666455
E93: Allocation to load related capex expenditure | G93: % | AH93: =('NGGT TO'!AH93) -> 0 | AI93: =('NGGT TO'!AI93) -> 0 | AJ93: =('NGGT TO'!AJ93) -> 0 | AK93: =('NGGT TO'!AK93) -> 0 | AL93: =('NGGT TO'!AL93) -> 0 | AM93: =('NGGT TO'!AM93) -> 0 | AN93: =('NGGT TO'!AN93) -> 0 | AO93: =('NGGT TO'!AO93) -> 0
E94: Allocation to asset replacement capex expenditure | G94: % | AH94: =('NGGT TO'!AH94) -> 0 | AI94: =('NGGT TO'!AI94) -> 0 | AJ94: =('NGGT TO'!AJ94) -> 0 | AK94: =('NGGT TO'!AK94) -> 0 | AL94: =('NGGT TO'!AL94) -> 0 | AM94: =('NGGT TO'!AM94) -> 0 | AN94: =('NGGT TO'!AN94) -> 0 | AO94: =('NGGT TO'!AO94) -> 0
E95: Allocation to other capex expenditure | G95: % | AH95: =('NGGT TO'!AH95) -> 1 | AI95: =('NGGT TO'!AI95) -> 1 | AJ95: =('NGGT TO'!AJ95) -> 1 | AK95: =('NGGT TO'!AK95) -> 1 | AL95: =('NGGT TO'!AL95) -> 1 | AM95: =('NGGT TO'!AM95) -> 1 | AN95: =('NGGT TO'!AN95) -> 1 | AO95: =('NGGT TO'!AO95) -> 1
E96: Allocation to controllable opex | G96: % | AH96: =('NGGT TO'!AH96) -> 0 | AI96: =('NGGT TO'!AI96) -> 0 | AJ96: =('NGGT TO'!AJ96) -> 0 | AK96: =('NGGT TO'!AK96) -> 0 | AL96: =('NGGT TO'!AL96) -> 0 | AM96: =('NGGT TO'!AM96) -> 0 | AN96: =('NGGT TO'!AN96) -> 0 | AO96: =('NGGT TO'!AO96) -> 0
E97: Allocation to non-operational capex | G97: % | AH97: =('NGGT TO'!AH97) -> 0 | AI97: =('NGGT TO'!AI97) -> 0 | AJ97: =('NGGT TO'!AJ97) -> 0 | AK97: =('NGGT TO'!AK97) -> 0 | AL97: =('NGGT TO'!AL97) -> 0 | AM97: =('NGGT TO'!AM97) -> 0 | AN97: =('NGGT TO'!AN97) -> 0 | AO97: =('NGGT TO'!AO97) -> 0
E99: =E19 -> Uncertain costs – Pipeline Diversion Costs | G99: £m 09/10 prices | AH99: =AH19 -> 0 | AI99: 0 | AJ99: 0 | AK99: 0 | AL99: 0 | AM99: 0 | AN99: 0 | AO99: 0
E100: Allocation to load related capex expenditure | G100: % | AH100: =('NGGT TO'!AH100) -> 1 | AI100: =('NGGT TO'!AI100) -> 1 | AJ100: =('NGGT TO'!AJ100) -> 1 | AK100: =('NGGT TO'!AK100) -> 1 | AL100: =('NGGT TO'!AL100) -> 1 | AM100: =('NGGT TO'!AM100) -> 1 | AN100: =('NGGT TO'!AN100) -> 1 | AO100: =('NGGT TO'!AO100) -> 1
E101: Allocation to asset replacement capex expenditure | G101: % | AH101: =('NGGT TO'!AH101) -> 0 | AI101: =('NGGT TO'!AI101) -> 0 | AJ101: =('NGGT TO'!AJ101) -> 0 | AK101: =('NGGT TO'!AK101) -> 0 | AL101: =('NGGT TO'!AL101) -> 0 | AM101: =('NGGT TO'!AM101) -> 0 | AN101: =('NGGT TO'!AN101) -> 0 | AO101: =('NGGT TO'!AO101) -> 0
E102: Allocation to other capex expenditure | G102: % | AH102: =('NGGT TO'!AH102) -> 0 | AI102: =('NGGT TO'!AI102) -> 0 | AJ102: =('NGGT TO'!AJ102) -> 0 | AK102: =('NGGT TO'!AK102) -> 0 | AL102: =('NGGT TO'!AL102) -> 0 | AM102: =('NGGT TO'!AM102) -> 0 | AN102: =('NGGT TO'!AN102) -> 0 | AO102: =('NGGT TO'!AO102) -> 0
E103: Allocation to controllable opex | G103: % | AH103: =('NGGT TO'!AH103) -> 0 | AI103: =('NGGT TO'!AI103) -> 0 | AJ103: =('NGGT TO'!AJ103) -> 0 | AK103: =('NGGT TO'!AK103) -> 0 | AL103: =('NGGT TO'!AL103) -> 0 | AM103: =('NGGT TO'!AM103) -> 0 | AN103: =('NGGT TO'!AN103) -> 0 | AO103: =('NGGT TO'!AO103) -> 0
E104: Allocation to non-operational capex | G104: % | AH104: =('NGGT TO'!AH104) -> 0 | AI104: =('NGGT TO'!AI104) -> 0 | AJ104: =('NGGT TO'!AJ104) -> 0 | AK104: =('NGGT TO'!AK104) -> 0 | AL104: =('NGGT TO'!AL104) -> 0 | AM104: =('NGGT TO'!AM104) -> 0 | AN104: =('NGGT TO'!AN104) -> 0 | AO104: =('NGGT TO'!AO104) -> 0
E106: =E20 -> Uncertain costs (Quarry & Loss Costs), uncertainty rate | G106: £m 09/10 prices | AH106: =AH20 -> 0 | AI106: 0 | AJ106: 0 | AK106: 0 | AL106: 0 | AM106: 0 | AN106: 0 | AO106: 0
E107: Allocation to load related capex expenditure | G107: % | AH107: =('NGGT TO'!AH107) -> 0 | AI107: =('NGGT TO'!AI107) -> 0 | AJ107: =('NGGT TO'!AJ107) -> 0 | AK107: =('NGGT TO'!AK107) -> 0 | AL107: =('NGGT TO'!AL107) -> 0 | AM107: =('NGGT TO'!AM107) -> 0 | AN107: =('NGGT TO'!AN107) -> 0 | AO107: =('NGGT TO'!AO107) -> 0
E108: Allocation to asset replacement capex expenditure | G108: % | AH108: =('NGGT TO'!AH108) -> 0 | AI108: =('NGGT TO'!AI108) -> 0 | AJ108: =('NGGT TO'!AJ108) -> 0 | AK108: =('NGGT TO'!AK108) -> 0 | AL108: =('NGGT TO'!AL108) -> 0 | AM108: =('NGGT TO'!AM108) -> 0 | AN108: =('NGGT TO'!AN108) -> 0 | AO108: =('NGGT TO'!AO108) -> 0
E109: Allocation to other capex expenditure | G109: % | AH109: =('NGGT TO'!AH109) -> 0 | AI109: =('NGGT TO'!AI109) -> 0 | AJ109: =('NGGT TO'!AJ109) -> 0 | AK109: =('NGGT TO'!AK109) -> 0 | AL109: =('NGGT TO'!AL109) -> 0 | AM109: =('NGGT TO'!AM109) -> 0 | AN109: =('NGGT TO'!AN109) -> 0 | AO109: =('NGGT TO'!AO109) -> 0
E110: Allocation to controllable opex | G110: % | AH110: =('NGGT TO'!AH110) -> 1 | AI110: =('NGGT TO'!AI110) -> 1 | AJ110: =('NGGT TO'!AJ110) -> 1 | AK110: =('NGGT TO'!AK110) -> 1 | AL110: =('NGGT TO'!AL110) -> 1 | AM110: =('NGGT TO'!AM110) -> 1 | AN110: =('NGGT TO'!AN110) -> 1 | AO110: =('NGGT TO'!AO110) -> 1
E111: Allocation to non-operational capex | G111: % | AH111: =('NGGT TO'!AH111) -> 0 | AI111: =('NGGT TO'!AI111) -> 0 | AJ111: =('NGGT TO'!AJ111) -> 0 | AK111: =('NGGT TO'!AK111) -> 0 | AL111: =('NGGT TO'!AL111) -> 0 | AM111: =('NGGT TO'!AM111) -> 0 | AN111: =('NGGT TO'!AN111) -> 0 | AO111: =('NGGT TO'!AO111) -> 0
E113: =E21 -> Innovation Roll out mechanism | G113: £m 09/10 prices | AH113: =AH21 -> 0 | AI113: 0 | AJ113: 0 | AK113: 0 | AL113: 0 | AM113: 0 | AN113: 0 | AO113: 0
E114: Allocation to load related capex expenditure | G114: % | AH114: =('NGGT TO'!AH114) -> 0.3 | AI114: =('NGGT TO'!AI114) -> 0.3 | AJ114: =('NGGT TO'!AJ114) -> 0.3 | AK114: =('NGGT TO'!AK114) -> 0.3 | AL114: =('NGGT TO'!AL114) -> 0.3 | AM114: =('NGGT TO'!AM114) -> 0.3 | AN114: =('NGGT TO'!AN114) -> 0.3 | AO114: =('NGGT TO'!AO114) -> 0.3
E115: Allocation to asset replacement capex expenditure | G115: % | AH115: =('NGGT TO'!AH115) -> 0.1 | AI115: =('NGGT TO'!AI115) -> 0.1 | AJ115: =('NGGT TO'!AJ115) -> 0.1 | AK115: =('NGGT TO'!AK115) -> 0.1 | AL115: =('NGGT TO'!AL115) -> 0.1 | AM115: =('NGGT TO'!AM115) -> 0.1 | AN115: =('NGGT TO'!AN115) -> 0.1 | AO115: =('NGGT TO'!AO115) -> 0.1
E116: Allocation to other capex expenditure | G116: % | AH116: =('NGGT TO'!AH116) -> 0.5 | AI116: =('NGGT TO'!AI116) -> 0.5 | AJ116: =('NGGT TO'!AJ116) -> 0.5 | AK116: =('NGGT TO'!AK116) -> 0.5 | AL116: =('NGGT TO'!AL116) -> 0.5 | AM116: =('NGGT TO'!AM116) -> 0.5 | AN116: =('NGGT TO'!AN116) -> 0.5 | AO116: =('NGGT TO'!AO116) -> 0.5
E117: Allocation to controllable opex | G117: % | AH117: =('NGGT TO'!AH117) -> 0.1 | AI117: =('NGGT TO'!AI117) -> 0.1 | AJ117: =('NGGT TO'!AJ117) -> 0.1 | AK117: =('NGGT TO'!AK117) -> 0.1 | AL117: =('NGGT TO'!AL117) -> 0.1 | AM117: =('NGGT TO'!AM117) -> 0.1 | AN117: =('NGGT TO'!AN117) -> 0.1 | AO117: =('NGGT TO'!AO117) -> 0.1
E118: Allocation to non-operational capex | G118: % | AH118: =('NGGT TO'!AH118) -> 0 | AI118: =('NGGT TO'!AI118) -> 0 | AJ118: =('NGGT TO'!AJ118) -> 0 | AK118: =('NGGT TO'!AK118) -> 0 | AL118: =('NGGT TO'!AL118) -> 0 | AM118: =('NGGT TO'!AM118) -> 0 | AN118: =('NGGT TO'!AN118) -> 0 | AO118: =('NGGT TO'!AO118) -> 0
E120: =E22&" and "&E23 -> Incremental Obligated entry capacity, uncertainty rate and Incremental Obligated exit capacity, uncertainty rate | G120: £m 09/10 prices | AH120: =SUM(AH22:AH23) -> 0 | AI120: 0 | AJ120: 0 | AK120: 0 | AL120: 0 | AM120: 0 | AN120: 0 | AO120: 0
E121: Allocation to load related capex expenditure | G121: % | AH121: =('NGGT TO'!AH121) -> 1 | AI121: =('NGGT TO'!AI121) -> 1 | AJ121: =('NGGT TO'!AJ121) -> 1 | AK121: =('NGGT TO'!AK121) -> 1 | AL121: =('NGGT TO'!AL121) -> 1 | AM121: =('NGGT TO'!AM121) -> 1 | AN121: =('NGGT TO'!AN121) -> 1 | AO121: =('NGGT TO'!AO121) -> 1
E122: Allocation to asset replacement capex expenditure | G122: % | AH122: =('NGGT TO'!AH122) -> 0 | AI122: =('NGGT TO'!AI122) -> 0 | AJ122: =('NGGT TO'!AJ122) -> 0 | AK122: =('NGGT TO'!AK122) -> 0 | AL122: =('NGGT TO'!AL122) -> 0 | AM122: =('NGGT TO'!AM122) -> 0 | AN122: =('NGGT TO'!AN122) -> 0 | AO122: =('NGGT TO'!AO122) -> 0
E123: Allocation to other capex expenditure | G123: % | AH123: =('NGGT TO'!AH123) -> 0 | AI123: =('NGGT TO'!AI123) -> 0 | AJ123: =('NGGT TO'!AJ123) -> 0 | AK123: =('NGGT TO'!AK123) -> 0 | AL123: =('NGGT TO'!AL123) -> 0 | AM123: =('NGGT TO'!AM123) -> 0 | AN123: =('NGGT TO'!AN123) -> 0 | AO123: =('NGGT TO'!AO123) -> 0
E124: Allocation to controllable opex | G124: % | AH124: =('NGGT TO'!AH124) -> 0 | AI124: =('NGGT TO'!AI124) -> 0 | AJ124: =('NGGT TO'!AJ124) -> 0 | AK124: =('NGGT TO'!AK124) -> 0 | AL124: =('NGGT TO'!AL124) -> 0 | AM124: =('NGGT TO'!AM124) -> 0 | AN124: =('NGGT TO'!AN124) -> 0 | AO124: =('NGGT TO'!AO124) -> 0
E125: Allocation to non-operational capex | G125: % | AH125: =('NGGT TO'!AH125) -> 0 | AI125: =('NGGT TO'!AI125) -> 0 | AJ125: =('NGGT TO'!AJ125) -> 0 | AK125: =('NGGT TO'!AK125) -> 0 | AL125: =('NGGT TO'!AL125) -> 0 | AM125: =('NGGT TO'!AM125) -> 0 | AN125: =('NGGT TO'!AN125) -> 0 | AO125: =('NGGT TO'!AO125) -> 0
E127: =E24 -> Uncertain costs – Network Flexibility Costs | G127: £m 09/10 prices | AH127: =AH24 -> 0 | AI127: 0 | AJ127: 0 | AK127: 0 | AL127: 0 | AM127: 0 | AN127: 0 | AO127: 0
E128: Allocation to load related capex expenditure | G128: % | AH128: =('NGGT TO'!AH128) -> 1 | AI128: =('NGGT TO'!AI128) -> 1 | AJ128: =('NGGT TO'!AJ128) -> 1 | AK128: =('NGGT TO'!AK128) -> 1 | AL128: =('NGGT TO'!AL128) -> 1 | AM128: =('NGGT TO'!AM128) -> 1 | AN128: =('NGGT TO'!AN128) -> 1 | AO128: =('NGGT TO'!AO128) -> 1
E129: Allocation to asset replacement capex expenditure | G129: % | AH129: =('NGGT TO'!AH129) -> 0 | AI129: =('NGGT TO'!AI129) -> 0 | AJ129: =('NGGT TO'!AJ129) -> 0 | AK129: =('NGGT TO'!AK129) -> 0 | AL129: =('NGGT TO'!AL129) -> 0 | AM129: =('NGGT TO'!AM129) -> 0 | AN129: =('NGGT TO'!AN129) -> 0 | AO129: =('NGGT TO'!AO129) -> 0
E130: Allocation to other capex expenditure | G130: % | AH130: =('NGGT TO'!AH130) -> 0 | AI130: =('NGGT TO'!AI130) -> 0 | AJ130: =('NGGT TO'!AJ130) -> 0 | AK130: =('NGGT TO'!AK130) -> 0 | AL130: =('NGGT TO'!AL130) -> 0 | AM130: =('NGGT TO'!AM130) -> 0 | AN130: =('NGGT TO'!AN130) -> 0 | AO130: =('NGGT TO'!AO130) -> 0
E131: Allocation to controllable opex | G131: % | AH131: =('NGGT TO'!AH131) -> 0 | AI131: =('NGGT TO'!AI131) -> 0 | AJ131: =('NGGT TO'!AJ131) -> 0 | AK131: =('NGGT TO'!AK131) -> 0 | AL131: =('NGGT TO'!AL131) -> 0 | AM131: =('NGGT TO'!AM131) -> 0 | AN131: =('NGGT TO'!AN131) -> 0 | AO131: =('NGGT TO'!AO131) -> 0
E132: Allocation to non-operational capex | G132: % | AH132: =('NGGT TO'!AH132) -> 0 | AI132: =('NGGT TO'!AI132) -> 0 | AJ132: =('NGGT TO'!AJ132) -> 0 | AK132: =('NGGT TO'!AK132) -> 0 | AL132: =('NGGT TO'!AL132) -> 0 | AM132: =('NGGT TO'!AM132) -> 0 | AN132: =('NGGT TO'!AN132) -> 0 | AO132: =('NGGT TO'!AO132) -> 0
E134: =E25 -> Uncertain costs – Industrial Emissions | G134: £m 09/10 prices | AH134: =AH25 -> 0 | AI134: 0 | AJ134: 0 | AK134: 0 | AL134: 0 | AM134: 0 | AN134: 0 | AO134: 0
E135: Allocation to load related capex expenditure | G135: % | AH135: =('NGGT TO'!AH135) -> 0 | AI135: =('NGGT TO'!AI135) -> 0 | AJ135: =('NGGT TO'!AJ135) -> 0 | AK135: =('NGGT TO'!AK135) -> 0 | AL135: =('NGGT TO'!AL135) -> 0 | AM135: =('NGGT TO'!AM135) -> 0 | AN135: =('NGGT TO'!AN135) -> 0 | AO135: =('NGGT TO'!AO135) -> 0
E136: Allocation to asset replacement capex expenditure | G136: % | AH136: =('NGGT TO'!AH136) -> 1 | AI136: =('NGGT TO'!AI136) -> 1 | AJ136: =('NGGT TO'!AJ136) -> 1 | AK136: =('NGGT TO'!AK136) -> 1 | AL136: =('NGGT TO'!AL136) -> 1 | AM136: =('NGGT TO'!AM136) -> 1 | AN136: =('NGGT TO'!AN136) -> 1 | AO136: =('NGGT TO'!AO136) -> 1
E137: Allocation to other capex expenditure | G137: % | AH137: =('NGGT TO'!AH137) -> 0 | AI137: =('NGGT TO'!AI137) -> 0 | AJ137: =('NGGT TO'!AJ137) -> 0 | AK137: =('NGGT TO'!AK137) -> 0 | AL137: =('NGGT TO'!AL137) -> 0 | AM137: =('NGGT TO'!AM137) -> 0 | AN137: =('NGGT TO'!AN137) -> 0 | AO137: =('NGGT TO'!AO137) -> 0
E138: Allocation to controllable opex | G138: % | AH138: =('NGGT TO'!AH138) -> 0 | AI138: =('NGGT TO'!AI138) -> 0 | AJ138: =('NGGT TO'!AJ138) -> 0 | AK138: =('NGGT TO'!AK138) -> 0 | AL138: =('NGGT TO'!AL138) -> 0 | AM138: =('NGGT TO'!AM138) -> 0 | AN138: =('NGGT TO'!AN138) -> 0 | AO138: =('NGGT TO'!AO138) -> 0
E139: Allocation to non-operational capex | G139: % | AH139: =('NGGT TO'!AH139) -> 0 | AI139: =('NGGT TO'!AI139) -> 0 | AJ139: =('NGGT TO'!AJ139) -> 0 | AK139: =('NGGT TO'!AK139) -> 0 | AL139: =('NGGT TO'!AL139) -> 0 | AM139: =('NGGT TO'!AM139) -> 0 | AN139: =('NGGT TO'!AN139) -> 0 | AO139: =('NGGT TO'!AO139) -> 0
E141: =E26 -> Uncertain costs – One Off Asset Health Costs | G141: £m 09/10 prices | AH141: =AH26 -> 0 | AI141: 0 | AJ141: 0 | AK141: 0 | AL141: 0 | AM141: 0 | AN141: 0 | AO141: 0
E142: Allocation to load related capex expenditure | G142: % | AH142: =('NGGT TO'!AH142) -> 0 | AI142: =('NGGT TO'!AI142) -> 0 | AJ142: =('NGGT TO'!AJ142) -> 0 | AK142: =('NGGT TO'!AK142) -> 0 | AL142: =('NGGT TO'!AL142) -> 0 | AM142: =('NGGT TO'!AM142) -> 0 | AN142: =('NGGT TO'!AN142) -> 0 | AO142: =('NGGT TO'!AO142) -> 0
E143: Allocation to asset replacement capex expenditure | G143: % | AH143: =('NGGT TO'!AH143) -> 1 | AI143: =('NGGT TO'!AI143) -> 1 | AJ143: =('NGGT TO'!AJ143) -> 1 | AK143: =('NGGT TO'!AK143) -> 1 | AL143: =('NGGT TO'!AL143) -> 1 | AM143: =('NGGT TO'!AM143) -> 1 | AN143: =('NGGT TO'!AN143) -> 1 | AO143: =('NGGT TO'!AO143) -> 1
E144: Allocation to other capex expenditure | G144: % | AH144: =('NGGT TO'!AH144) -> 0 | AI144: =('NGGT TO'!AI144) -> 0 | AJ144: =('NGGT TO'!AJ144) -> 0 | AK144: =('NGGT TO'!AK144) -> 0 | AL144: =('NGGT TO'!AL144) -> 0 | AM144: =('NGGT TO'!AM144) -> 0 | AN144: =('NGGT TO'!AN144) -> 0 | AO144: =('NGGT TO'!AO144) -> 0
E145: Allocation to controllable opex | G145: % | AH145: =('NGGT TO'!AH145) -> 0 | AI145: =('NGGT TO'!AI145) -> 0 | AJ145: =('NGGT TO'!AJ145) -> 0 | AK145: =('NGGT TO'!AK145) -> 0 | AL145: =('NGGT TO'!AL145) -> 0 | AM145: =('NGGT TO'!AM145) -> 0 | AN145: =('NGGT TO'!AN145) -> 0 | AO145: =('NGGT TO'!AO145) -> 0
E146: Allocation to non-operational capex | G146: % | AH146: =('NGGT TO'!AH146) -> 0 | AI146: =('NGGT TO'!AI146) -> 0 | AJ146: =('NGGT TO'!AJ146) -> 0 | AK146: =('NGGT TO'!AK146) -> 0 | AL146: =('NGGT TO'!AL146) -> 0 | AM146: =('NGGT TO'!AM146) -> 0 | AN146: =('NGGT TO'!AN146) -> 0 | AO146: =('NGGT TO'!AO146) -> 0
E148: Variant allowed load related capex expenditure | G148: £m 09/10 prices | AH148: =(AH$92*AH93) + (AH$99*AH100) + (AH$106*AH107) + (AH$113*AH114) + (AH$120*AH121) + (AH$127*AH128) + (AH$134*AH135) + (AH$141 * AH142) -> 0 | AI148: =(AI$92*AI93) + (AI$99*AI100) + (AI$106*AI107) + (AI$113*AI114) + (AI$120*AI121) + (AI$127*AI128) + (AI$134*AI135) + (AI$141 * AI142) -> 0 | AJ148: 0 | AK148: 0 | AL148: 0 | AM148: 0 | AN148: 0 | AO148: 0
E149: Variant allowed asset replacement capex expenditure | G149: £m 09/10 prices | AH149: =(AH$92*AH94) + (AH$99*AH101) + (AH$106*AH108) + (AH$113*AH115) + (AH$120*AH122) + (AH$127*AH129) + (AH$134*AH136) + (AH$141 * AH143) -> 0 | AI149: 0 | AJ149: 0 | AK149: 0 | AL149: 0 | AM149: 0 | AN149: 0 | AO149: 0
E150: Variant allowed other capex expenditure | G150: £m 09/10 prices | AH150: =(AH$92*AH95) + (AH$99*AH102) + (AH$106*AH109) + (AH$113*AH116) + (AH$120*AH123) + (AH$127*AH130) + (AH$134*AH137) + (AH$141 * AH144) -> 26.86365189 | AI150: 18.17186419 | AJ150: 10.75105276 | AK150: 12.66199278 | AL150: 32.02539354 | AM150: 32.67953232 | AN150: 20.5043336 | AO150: 6.427666455
E151: Variant allowed controllable opex | G151: £m 09/10 prices | AH151: =(AH$92*AH96) + (AH$99*AH103) + (AH$106*AH110) + (AH$113*AH117) + (AH$120*AH124) + (AH$127*AH131) + (AH$134*AH138) + (AH$141 * AH145) -> 0 | AI151: 0 | AJ151: 0 | AK151: 0 | AL151: 0 | AM151: 0 | AN151: 0 | AO151: 0
E152: Variant allowed non-operational capex | G152: £m 09/10 prices | AH152: =(AH$92*AH97) + (AH$99*AH104) + (AH$106*AH111) + (AH$113*AH118) + (AH$120*AH125) + (AH$127*AH132) + (AH$134*AH139) + (AH$141 * AH146) -> 0 | AI152: 0 | AJ152: 0 | AK152: 0 | AL152: 0 | AM152: 0 | AN152: 0 | AO152: 0
D154: Actual
E156: Actual load related capex expenditure | G156: £m 09/10 prices | AH156: =AH9+AH14 -> 2.94797639 | AI156: 1.224274215 | AJ156: 1.145956865 | AK156: 1.374498823 | AL156: 0 | AM156: 0 | AN156: 0 | AO156: 0
E157: Actual asset replacement capex expenditure | G157: £m 09/10 prices | AH157: 42.87923468 | AI157: 49.86516085 | AJ157: 60.50709835 | AK157: 100.5570911 | AL157: 0 | AM157: 0 | AN157: 0 | AO157: 0
E158: Actual other capex expenditure | G158: £m 09/10 prices | AH158: 61.59011995 | AI158: 48.34134401 | AJ158: 39.54833189 | AK158: 18.48290708 | AL158: 0 | AM158: 0 | AN158: 0 | AO158: 0
E159: Actual controllable opex | G159: £m 09/10 prices | AH159: 70.90965914 | AI159: 73.18675508 | AJ159: 74.92750645 | AK159: 85.27601685 | AL159: 0 | AM159: 0 | AN159: 0 | AO159: 0
E160: Actual non-operational capex | G160: £m 09/10 prices | AH160: =AH13 -> 10.53669269 | AI160: 9.962463692 | AJ160: 11.14324316 | AK160: 17.96495801 | AL160: 0 | AM160: 0 | AN160: 0 | AO160: 0
C162: Non-totex
E164: Non-controllable opex | G164: £m 09/10 prices | AH164: =('NGGT TO'!AH164) -> 110.1154462 | AI164: =('NGGT TO'!AI164) -> 110.2912183 | AJ164: =('NGGT TO'!AJ164) -> 110.3286017 | AK164: =('NGGT TO'!AK164) -> 110.3596634 | AL164: =('NGGT TO'!AL164) -> 110.2734384 | AM164: =('NGGT TO'!AM164) -> 110.2766259 | AN164: =('NGGT TO'!AN164) -> 110.304209 | AO164: =('NGGT TO'!AO164) -> 110.3106735
B166: Direct allowed revenue terms (DARTs)
E168: =E29 -> Pension Scheme Administration and Pension Protection Fund levy | G168: £m 09/10 prices | AH168: =AH29 -> 2.7 | AI168: 2.6 | AJ168: 2.6 | AK168: 2.7 | AL168: 2.6 | AM168: 1.503603057 | AN168: 1.503603057 | AO168: 1.503603057
E169: =E30 -> Pension Scheme Established Deficit | G169: £m 09/10 prices | AH169: 26.40985404 | AI169: 26.40985404 | AJ169: 49.37750304 | AK169: 49.37750304 | AL169: 49.37750304 | AM169: 25.65504169 | AN169: 25.65504169 | AO169: 25.65504169
E171: Pension true-up from previous price controls | G171: £m 09/10 prices | AH171: =('NGGT TO'!AH171) -> 11.6224453 | AI171: =('NGGT TO'!AI171) -> 12.11639923 | AJ171: =('NGGT TO'!AJ171) -> 12.61847252 | AK171: =('NGGT TO'!AK171) -> 13.12794335 | AL171: =('NGGT TO'!AL171) -> 13.64485612 | AM171: =('NGGT TO'!AM171) -> 14.16591906 | AN171: =('NGGT TO'!AN171) -> 14.7068801 | AO171: =('NGGT TO'!AO171) -> 15.26849908
E172: Milford Haven | G172: £m 09/10 prices | AH172: =('NGGT TO'!AH172) -> -17.8 | AI172: =('NGGT TO'!AI172) -> -18.2 | AJ172: =('NGGT TO'!AJ172) -> -18.4 | AK172: =('NGGT TO'!AK172) -> -18.5 | AL172: =('NGGT TO'!AL172) -> 0 | AM172: =('NGGT TO'!AM172) -> 0 | AN172: =('NGGT TO'!AN172) -> 0 | AO172: =('NGGT TO'!AO172) -> 0
E174: Revenue adjustment from previous controls (Base) | G174: £m 09/10 prices | AH174: =('NGGT TO'!AH174) -> 10.44809896 | AI174: =('NGGT TO'!AI174) -> 10.89214317 | AJ174: =('NGGT TO'!AJ174) -> 11.34348635 | AK174: =('NGGT TO'!AK174) -> 11.80147961 | AL174: =('NGGT TO'!AL174) -> 12.26616287 | AM174: =('NGGT TO'!AM174) -> 12.73457697 | AN174: =('NGGT TO'!AN174) -> 13.22087863 | AO174: =('NGGT TO'!AO174) -> 13.72575093
E175: =E31 -> Legacy price control adjustments to allowed revenue | G175: £m 09/10 prices | AH175: =($AH$31/8) -> 0.9887103377 | AI175: =($AH$31/8)*(1+$AI$42) -> 1.030730527 | AJ175: =($AH$31/8)*(1+$AI$42)*(1+$AJ$42) -> 1.073441423 | AK175: =($AH$31/8)*(1+$AI$42)*(1+$AJ$42)*(1+$AK$42) -> 1.116781621 | AL175: =($AH$31/8)*(1+$AI$42)*(1+$AJ$42)*(1+$AK$42)*(1+$AL$42) -> 1.160754897 | AM175: =($AH$31/8)*(1+$AI$42)*(1+$AJ$42)*(1+$AK$42)*(1+$AL$42)*(1+$AM$42) -> 1.205081225 | AN175: =($AH$31/8)*(1+$AI$42)*(1+$AJ$42)*(1+$AK$42)*(1+$AL$42)*(1+$AM$42)*(1+$AN$42) -> 1.251100264 | AO175: =($AH$31/8)*(1+$AI$42)*(1+$AJ$42)*(1+$AK$42)*(1+$AL$42)*(1+$AM$42)*(1+$AN$42)*(1+$AO$42) -> 1.298876655
E176: Revenue adjustment from previous controls | G176: £m 09/10 prices | AH176: =AH174+AH175 -> 11.4368093 | AI176: =AI174+AI175 -> 11.9228737 | AJ176: 12.41692778 | AK176: 12.91826123 | AL176: 13.42691777 | AM176: 13.93965819 | AN176: 14.47197889 | AO176: 15.02462758
E178: Excluded services revenue | G178: £m 09/10 prices | AH178: =('NGGT TO'!AH178) -> 3.5 | AI178: =('NGGT TO'!AI178) -> 2.9 | AJ178: =('NGGT TO'!AJ178) -> 3 | AK178: =('NGGT TO'!AK178) -> 3.1 | AL178: =('NGGT TO'!AL178) -> 3 | AM178: =('NGGT TO'!AM178) -> 3 | AN178: =('NGGT TO'!AN178) -> 3 | AO178: =('NGGT TO'!AO178) -> 3
E179: Identified excluded services costs | G179: £m 09/10 prices | AH179: =('NGGT TO'!AH179) -> 0 | AI179: =('NGGT TO'!AI179) -> 0 | AJ179: =('NGGT TO'!AJ179) -> 0 | AK179: =('NGGT TO'!AK179) -> 0 | AL179: =('NGGT TO'!AL179) -> 0 | AM179: =('NGGT TO'!AM179) -> 0 | AN179: =('NGGT TO'!AN179) -> 0 | AO179: =('NGGT TO'!AO179) -> 0
E180: Excluded services | G180: £m 09/10 prices | AH180: =SUM(AH178, -AH179) -> 3.5 | AI180: =SUM(AI178, -AI179) -> 2.9 | AJ180: 3 | AK180: 3.1 | AL180: 3 | AM180: 3 | AN180: 3 | AO180: 3
B182: RAV and assets
C184: Pre-vesting assets
E186: Pre-vesting RAV cost opening balance brought forward (before transfers) | G186: £m 09/10 prices | AH186: =('NGGT TO'!AH186) -> 2669.686081
E187: Pre-vesting RAV cumulative depreciation opening balance brought forward (before transfers) | G187: £m 09/10 prices | AH187: =('NGGT TO'!AH187) -> 938.4148523
E189: Pre-vesting asset life | G189: years | I189: =('NGGT TO'!I189) -> 56
E190: Pre-vesting RAV disposals | G190: £m 09/10 prices | AH190: =('NGGT TO'!AH190) -> 0 | AI190: =('NGGT TO'!AI190) -> 0 | AJ190: =('NGGT TO'!AJ190) -> 0 | AK190: =('NGGT TO'!AK190) -> 0 | AL190: =('NGGT TO'!AL190) -> 0 | AM190: =('NGGT TO'!AM190) -> 0 | AN190: =('NGGT TO'!AN190) -> 0 | AO190: =('NGGT TO'!AO190) -> 0
E191: Years of pre-vesting depreciation remaining | G191: years | AH191: =('NGGT TO'!AH191) -> 45 | AI191: =('NGGT TO'!AI191) -> 44 | AJ191: =('NGGT TO'!AJ191) -> 43 | AK191: =('NGGT TO'!AK191) -> 42 | AL191: =('NGGT TO'!AL191) -> 41 | AM191: =('NGGT TO'!AM191) -> 40 | AN191: =('NGGT TO'!AN191) -> 39 | AO191: =('NGGT TO'!AO191) -> 38
C193: Post-vesting assets
E195: Transmission
E196: Post-vesting asset life | G196: years | J196: > | K196: =('NGGT TO'!K196) -> 45 | L196: =('NGGT TO'!L196) -> 45 | M196: =('NGGT TO'!M196) -> 45 | N196: =('NGGT TO'!N196) -> 45 | O196: =('NGGT TO'!O196) -> 45 | P196: =('NGGT TO'!P196) -> 45 | Q196: =('NGGT TO'!Q196) -> 45 | R196: =('NGGT TO'!R196) -> 45 | S196: =('NGGT TO'!S196) -> 45 | T196: =('NGGT TO'!T196) -> 45 | U196: =('NGGT TO'!U196) -> 45 | V196: =('NGGT TO'!V196) -> 45 | W196: =('NGGT TO'!W196) -> 45 | X196: =('NGGT TO'!X196) -> 45 | Y196: =('NGGT TO'!Y196) -> 45 | Z196: =('NGGT TO'!Z196) -> 45 | AA196: =('NGGT TO'!AA196) -> 45 | AB196: =('NGGT TO'!AB196) -> 45 | AC196: =('NGGT TO'!AC196) -> 45 | AD196: =('NGGT TO'!AD196) -> 45 | AE196: =('NGGT TO'!AE196) -> 45 | AF196: =('NGGT TO'!AF196) -> 45 | AG196: =('NGGT TO'!AG196) -> 45 | AH196: =('NGGT TO'!AH196) -> 45 | AI196: =('NGGT TO'!AI196) -> 45 | AJ196: =('NGGT TO'!AJ196) -> 45 | AK196: =('NGGT TO'!AK196) -> 45 | AL196: =('NGGT TO'!AL196) -> 45 | AM196: =('NGGT TO'!AM196) -> 45 | AN196: =('NGGT TO'!AN196) -> 45 | AO196: =('NGGT TO'!AO196) -> 45
E197: Accelerated post-vesting asset life | G197: years | J197: > | K197: =('NGGT TO'!K197) -> 100 | L197: =('NGGT TO'!L197) -> 100 | M197: =('NGGT TO'!M197) -> 100 | N197: =('NGGT TO'!N197) -> 100 | O197: =('NGGT TO'!O197) -> 100 | P197: =('NGGT TO'!P197) -> 100 | Q197: =('NGGT TO'!Q197) -> 100 | R197: =('NGGT TO'!R197) -> 100 | S197: =('NGGT TO'!S197) -> 100 | T197: =('NGGT TO'!T197) -> 100 | U197: =('NGGT TO'!U197) -> 100 | V197: =('NGGT TO'!V197) -> 100 | W197: =('NGGT TO'!W197) -> 100 | X197: =('NGGT TO'!X197) -> 100 | Y197: =('NGGT TO'!Y197) -> 100 | Z197: =('NGGT TO'!Z197) -> 100 | AA197: =('NGGT TO'!AA197) -> 100 | AB197: =('NGGT TO'!AB197) -> 100 | AC197: =('NGGT TO'!AC197) -> 100 | AD197: =('NGGT TO'!AD197) -> 100 | AE197: =('NGGT TO'!AE197) -> 100 | AF197: =('NGGT TO'!AF197) -> 100 | AG197: =('NGGT TO'!AG197) -> 100 | AH197: =('NGGT TO'!AH197) -> 45 | AI197: =('NGGT TO'!AI197) -> 45 | AJ197: =('NGGT TO'!AJ197) -> 45 | AK197: =('NGGT TO'!AK197) -> 45 | AL197: =('NGGT TO'!AL197) -> 45 | AM197: =('NGGT TO'!AM197) -> 45 | AN197: =('NGGT TO'!AN197) -> 45 | AO197: =('NGGT TO'!AO197) -> 45
E198: Smoothing period following full depreciation of pre-vesting assets | G198: years | I198: =('NGGT TO'!I198) -> 0
E199: Start of smoothing period | G199: year ending | I199: =('NGGT TO'!I199) -> 1991-03-31
E200: Pre-RIIO net additions to RAV | G200: £m 09/10 prices | J200: > | K200: =('NGGT TO'!K200) -> 0 | L200: =('NGGT TO'!L200) -> 0 | M200: =('NGGT TO'!M200) -> 0 | N200: =('NGGT TO'!N200) -> 0 | O200: =('NGGT TO'!O200) -> 0 | P200: =('NGGT TO'!P200) -> 0 | Q200: =('NGGT TO'!Q200) -> 0 | R200: =('NGGT TO'!R200) -> 0 | S200: =('NGGT TO'!S200) -> 0 | T200: =('NGGT TO'!T200) -> 0 | U200: =('NGGT TO'!U200) -> 0 | V200: =('NGGT TO'!V200) -> 0 | W200: =('NGGT TO'!W200) -> 0 | X200: =('NGGT TO'!X200) -> 299.3439968 | Y200: =('NGGT TO'!Y200) -> 96.38168898 | Z200: =('NGGT TO'!Z200) -> 300.0086599 | AA200: =('NGGT TO'!AA200) -> 541.1112417 | AB200: =('NGGT TO'!AB200) -> 585.7885273 | AC200: =('NGGT TO'!AC200) -> 247.7735543 | AD200: =('NGGT TO'!AD200) -> 123.1950711 | AE200: =('NGGT TO'!AE200) -> 99.98357059 | AF200: =('NGGT TO'!AF200) -> 101.1196543 | AG200: =('NGGT TO'!AG200) -> -28.7623433
E201: LRAV | G201: £m 09/10 prices | AH201: =AH32 -> 68.08137458
E202: RIIO post-vesting RAV additions | G202: £m 09/10 prices | AH202: =('NGGT TO'!AH202) -> 0 | AI202: =('NGGT TO'!AI202) -> 0 | AJ202: =('NGGT TO'!AJ202) -> 0 | AK202: =('NGGT TO'!AK202) -> 0 | AL202: =('NGGT TO'!AL202) -> 0 | AM202: =('NGGT TO'!AM202) -> 0 | AN202: =('NGGT TO'!AN202) -> 0 | AO202: =('NGGT TO'!AO202) -> 0
E203: RIIO post-vesting RAV disposals | G203: £m 09/10 prices | AH203: =('NGGT TO'!AH203) -> -0.007757980105 | AI203: =('NGGT TO'!AI203) -> -0.007757980105 | AJ203: =('NGGT TO'!AJ203) -> -0.007757980105 | AK203: =('NGGT TO'!AK203) -> -0.007757980105 | AL203: =('NGGT TO'!AL203) -> -0.007757980105 | AM203: =('NGGT TO'!AM203) -> -0.007757980105 | AN203: =('NGGT TO'!AN203) -> -0.007757980105 | AO203: =('NGGT TO'!AO203) -> -0.007757980105
E204: Pre-RIIO transfers to depreciation | G204: £m 09/10 prices | J204: > | K204: =('NGGT TO'!K204) -> 0 | L204: =('NGGT TO'!L204) -> 0 | M204: =('NGGT TO'!M204) -> 0 | N204: =('NGGT TO'!N204) -> 0 | O204: =('NGGT TO'!O204) -> 0 | P204: =('NGGT TO'!P204) -> 0 | Q204: =('NGGT TO'!Q204) -> 0 | R204: =('NGGT TO'!R204) -> 0 | S204: =('NGGT TO'!S204) -> 0 | T204: =('NGGT TO'!T204) -> 0 | U204: =('NGGT TO'!U204) -> 0 | V204: =('NGGT TO'!V204) -> 0 | W204: =('NGGT TO'!W204) -> 0 | X204: =('NGGT TO'!X204) -> 3.410313723 | Y204: =('NGGT TO'!Y204) -> 0 | Z204: =('NGGT TO'!Z204) -> 0 | AA204: =('NGGT TO'!AA204) -> 0 | AB204: =('NGGT TO'!AB204) -> 0 | AC204: =('NGGT TO'!AC204) -> 0 | AD204: =('NGGT TO'!AD204) -> 0 | AE204: =('NGGT TO'!AE204) -> 0 | AF204: =('NGGT TO'!AF204) -> 0 | AG204: =('NGGT TO'!AG204) -> -8.311783379
E207: Logged-up items and security costs asset life | G207: years | I207: =('NGGT TO'!I207) -> 45
E209: Logged-up items net additions (after disposals) | G209: £m 09/10 prices | Y209: =('NGGT TO'!Y209) -> 0 | Z209: =('NGGT TO'!Z209) -> 0 | AA209: =('NGGT TO'!AA209) -> 0.1604920542 | AB209: =('NGGT TO'!AB209) -> 89.59889129 | AC209: =('NGGT TO'!AC209) -> 0 | AD209: =('NGGT TO'!AD209) -> 0.41261827 | AE209: =('NGGT TO'!AE209) -> 0.5450291628 | AF209: =('NGGT TO'!AF209) -> 1.66026374 | AG209: =('NGGT TO'!AG209) -> 0
E211: Security costs net additions (after disposals) | G211: £m 09/10 prices | Y211: =('NGGT TO'!Y211) -> 0 | Z211: =('NGGT TO'!Z211) -> 0 | AA211: =('NGGT TO'!AA211) -> 0 | AB211: =('NGGT TO'!AB211) -> 0 | AC211: =('NGGT TO'!AC211) -> 7.35040517 | AD211: =('NGGT TO'!AD211) -> 12.19052976 | AE211: =('NGGT TO'!AE211) -> 57.81292137 | AF211: =('NGGT TO'!AF211) -> 55.72567133 | AG211: =('NGGT TO'!AG211) -> 0
C213: Revenue drivers
E215: Pre-RIIO allocation to "General" pool | G215: % | J215: > | V215: =('NGGT TO'!V215) -> 0.019 | W215: =('NGGT TO'!W215) -> 0.019 | X215: =('NGGT TO'!X215) -> 0.019 | Y215: =('NGGT TO'!Y215) -> 0.019 | Z215: =('NGGT TO'!Z215) -> 0.019 | AA215: =('NGGT TO'!AA215) -> 0.019 | AB215: =('NGGT TO'!AB215) -> 0.019 | AC215: =('NGGT TO'!AC215) -> 0.019 | AD215: =('NGGT TO'!AD215) -> 0.019 | AE215: =('NGGT TO'!AE215) -> 0.019 | AF215: =('NGGT TO'!AF215) -> 0.019 | AG215: =('NGGT TO'!AG215) -> 0.019
E216: Pre-RIIO allocation to "Special Rate" pool | G216: % | J216: > | V216: =('NGGT TO'!V216) -> 0.964 | W216: =('NGGT TO'!W216) -> 0.964 | X216: =('NGGT TO'!X216) -> 0.964 | Y216: =('NGGT TO'!Y216) -> 0.964 | Z216: =('NGGT TO'!Z216) -> 0.964 | AA216: =('NGGT TO'!AA216) -> 0.964 | AB216: =('NGGT TO'!AB216) -> 0.964 | AC216: =('NGGT TO'!AC216) -> 0.964 | AD216: =('NGGT TO'!AD216) -> 0.964 | AE216: =('NGGT TO'!AE216) -> 0.964 | AF216: =('NGGT TO'!AF216) -> 0.964 | AG216: =('NGGT TO'!AG216) -> 0.964
E217: Pre-RIIO allocation to "Revenue" pool | G217: % | J217: > | V217: =('NGGT TO'!V217) -> 0.004 | W217: =('NGGT TO'!W217) -> 0.004 | X217: =('NGGT TO'!X217) -> 0.004 | Y217: =('NGGT TO'!Y217) -> 0.004 | Z217: =('NGGT TO'!Z217) -> 0.004 | AA217: =('NGGT TO'!AA217) -> 0.004 | AB217: =('NGGT TO'!AB217) -> 0.004 | AC217: =('NGGT TO'!AC217) -> 0.004 | AD217: =('NGGT TO'!AD217) -> 0.004 | AE217: =('NGGT TO'!AE217) -> 0.004 | AF217: =('NGGT TO'!AF217) -> 0.004 | AG217: =('NGGT TO'!AG217) -> 0.004
E218: Pre-RIIO allocation to "Non Qualifying" pool | G218: % | J218: > | V218: =('NGGT TO'!V218) -> 0.013 | W218: =('NGGT TO'!W218) -> 0.013 | X218: =('NGGT TO'!X218) -> 0.013 | Y218: =('NGGT TO'!Y218) -> 0.013 | Z218: =('NGGT TO'!Z218) -> 0.013 | AA218: =('NGGT TO'!AA218) -> 0.013 | AB218: =('NGGT TO'!AB218) -> 0.013 | AC218: =('NGGT TO'!AC218) -> 0.013 | AD218: =('NGGT TO'!AD218) -> 0.013 | AE218: =('NGGT TO'!AE218) -> 0.013 | AF218: =('NGGT TO'!AF218) -> 0.013 | AG218: =('NGGT TO'!AG218) -> 0.013
E220: Isle of Grain PH2 RAV transfer date | G220: year ending | I220: =('NGGT TO'!I220) -> 2018-03-31
E221: Easington RAV transfer date | G221: year ending | I221: =('NGGT TO'!I221) -> 2018-03-31
E222: Hornsea RAV transfer date | G222: year ending | I222: =('NGGT TO'!I222) -> 2018-03-31
E223: Fleetwood RAV transfer date | G223: year ending | I223: =('NGGT TO'!I223) -> 2018-03-31
E224: Cheshire RAV transfer date | G224: year ending | I224: =('NGGT TO'!I224) -> 2018-03-31
E225: Isle of Grain PH3 RAV transfer date | G225: year ending | I225: =('NGGT TO'!I225) -> 2016-03-31
E226: Caythorpe RAV transfer date | G226: year ending | I226: =('NGGT TO'!I226) -> 2017-03-31
E227: Langage RAV transfer date | G227: year ending | I227: =('NGGT TO'!I227) -> 2014-03-31
E228: Marchwood RAV transfer date | G228: year ending | I228: =('NGGT TO'!I228) -> 2014-03-31
E229: Pembroke RAV transfer date | G229: year ending | I229: =('NGGT TO'!I229) -> 2017-03-31
E230: Gilwern RAV transfer date | G230: year ending | I230: =('NGGT TO'!I230) -> 2016-03-31
E231: SW Quad 08/09 RAV transfer date | G231: year ending | I231: =('NGGT TO'!I231) -> 2014-03-31
E232: SW Quad 09/10 RAV transfer date | G232: year ending | I232: =('NGGT TO'!I232) -> 2015-03-31
E233: North West Entry / Hole House Farm Storage RAV transfer date | G233: year ending | I233: =('NGGT TO'!I233) -> 2017-03-31
E235: Isle of Grain PH2 deemed capex | G235: £m 09/10 prices | J235: > | V235: =('NGGT TO'!V235) -> 0 | W235: =('NGGT TO'!W235) -> 0 | X235: =('NGGT TO'!X235) -> 0 | Y235: =('NGGT TO'!Y235) -> 0 | Z235: =('NGGT TO'!Z235) -> 0 | AA235: =('NGGT TO'!AA235) -> 11.414 | AB235: =('NGGT TO'!AB235) -> 45.657 | AC235: =('NGGT TO'!AC235) -> 0 | AD235: =('NGGT TO'!AD235) -> 0 | AE235: =('NGGT TO'!AE235) -> 0 | AF235: =('NGGT TO'!AF235) -> 0 | AG235: =('NGGT TO'!AG235) -> 0
E236: Easington deemed capex | G236: £m 09/10 prices | J236: > | V236: =('NGGT TO'!V236) -> 0 | W236: =('NGGT TO'!W236) -> 0 | X236: =('NGGT TO'!X236) -> 0 | Y236: =('NGGT TO'!Y236) -> 0 | Z236: =('NGGT TO'!Z236) -> 0 | AA236: =('NGGT TO'!AA236) -> 0 | AB236: =('NGGT TO'!AB236) -> 3.058 | AC236: =('NGGT TO'!AC236) -> 12.232 | AD236: =('NGGT TO'!AD236) -> 0 | AE236: =('NGGT TO'!AE236) -> 0 | AF236: =('NGGT TO'!AF236) -> 0 | AG236: =('NGGT TO'!AG236) -> 0
E237: Hornsea deemed capex | G237: £m 09/10 prices | J237: > | V237: =('NGGT TO'!V237) -> 0 | W237: =('NGGT TO'!W237) -> 0 | X237: =('NGGT TO'!X237) -> 0 | Y237: =('NGGT TO'!Y237) -> 0 | Z237: =('NGGT TO'!Z237) -> 0 | AA237: =('NGGT TO'!AA237) -> 0 | AB237: =('NGGT TO'!AB237) -> 2.317 | AC237: =('NGGT TO'!AC237) -> 9.27 | AD237: =('NGGT TO'!AD237) -> 0 | AE237: =('NGGT TO'!AE237) -> 0 | AF237: =('NGGT TO'!AF237) -> 0 | AG237: =('NGGT TO'!AG237) -> 0
E238: Fleetwood deemed capex | G238: £m 09/10 prices | J238: > | V238: =('NGGT TO'!V238) -> 0 | W238: =('NGGT TO'!W238) -> 0 | X238: =('NGGT TO'!X238) -> 0 | Y238: =('NGGT TO'!Y238) -> 0 | Z238: =('NGGT TO'!Z238) -> 0 | AA238: =('NGGT TO'!AA238) -> 0 | AB238: =('NGGT TO'!AB238) -> 0 | AC238: =('NGGT TO'!AC238) -> 45.243 | AD238: =('NGGT TO'!AD238) -> 180.973 | AE238: =('NGGT TO'!AE238) -> 0 | AF238: =('NGGT TO'!AF238) -> 0 | AG238: =('NGGT TO'!AG238) -> 0
E239: Cheshire deemed capex | G239: £m 09/10 prices | J239: > | V239: =('NGGT TO'!V239) -> 0 | W239: =('NGGT TO'!W239) -> 0 | X239: =('NGGT TO'!X239) -> 0 | Y239: =('NGGT TO'!Y239) -> 0 | Z239: =('NGGT TO'!Z239) -> 0 | AA239: =('NGGT TO'!AA239) -> 0 | AB239: =('NGGT TO'!AB239) -> 0 | AC239: =('NGGT TO'!AC239) -> 0.05 | AD239: =('NGGT TO'!AD239) -> 0.352 | AE239: =('NGGT TO'!AE239) -> 0.603 | AF239: =('NGGT TO'!AF239) -> 0 | AG239: =('NGGT TO'!AG239) -> 0
E241: Isle of Grain PH2 pre-RIIO actual capex | G241: £m 09/10 prices | J241: > | V241: =('NGGT TO'!V241) -> 0 | W241: =('NGGT TO'!W241) -> 0 | X241: =('NGGT TO'!X241) -> 0 | Y241: =('NGGT TO'!Y241) -> 0 | Z241: =('NGGT TO'!Z241) -> 0.09457134286 | AA241: =('NGGT TO'!AA241) -> 5.208990432 | AB241: =('NGGT TO'!AB241) -> 17.59157981 | AC241: =('NGGT TO'!AC241) -> 41.36868476 | AD241: =('NGGT TO'!AD241) -> 6.27195172 | AE241: =('NGGT TO'!AE241) -> 0.4352958048 | AF241: =('NGGT TO'!AF241) -> 0 | AG241: =('NGGT TO'!AG241) -> 0
E242: Easington pre-RIIO actual capex | G242: £m 09/10 prices | J242: > | V242: =('NGGT TO'!V242) -> 0 | W242: =('NGGT TO'!W242) -> 0 | X242: =('NGGT TO'!X242) -> 0 | Y242: =('NGGT TO'!Y242) -> 0 | Z242: =('NGGT TO'!Z242) -> 0 | AA242: =('NGGT TO'!AA242) -> 0.1012500208 | AB242: =('NGGT TO'!AB242) -> 2.091058308 | AC242: =('NGGT TO'!AC242) -> 4.4124708 | AD242: =('NGGT TO'!AD242) -> 26.10009297 | AE242: =('NGGT TO'!AE242) -> 26.53357491 | AF242: =('NGGT TO'!AF242) -> 1.071825708 | AG242: =('NGGT TO'!AG242) -> 0
E243: Hornsea pre-RIIO actual capex | G243: £m 09/10 prices | J243: > | V243: =('NGGT TO'!V243) -> 0 | W243: =('NGGT TO'!W243) -> 0 | X243: =('NGGT TO'!X243) -> 0 | Y243: =('NGGT TO'!Y243) -> 0 | Z243: =('NGGT TO'!Z243) -> 0 | AA243: =('NGGT TO'!AA243) -> 0 | AB243: =('NGGT TO'!AB243) -> 0 | AC243: =('NGGT TO'!AC243) -> 0 | AD243: =('NGGT TO'!AD243) -> 0 | AE243: =('NGGT TO'!AE243) -> 0 | AF243: =('NGGT TO'!AF243) -> 0 | AG243: =('NGGT TO'!AG243) -> 0
E244: Fleetwood pre-RIIO actual capex | G244: £m 09/10 prices | J244: > | V244: =('NGGT TO'!V244) -> 0 | W244: =('NGGT TO'!W244) -> 0 | X244: =('NGGT TO'!X244) -> 0 | Y244: =('NGGT TO'!Y244) -> 0 | Z244: =('NGGT TO'!Z244) -> 0 | AA244: =('NGGT TO'!AA244) -> 0.306981446 | AB244: =('NGGT TO'!AB244) -> 7.594109377 | AC244: =('NGGT TO'!AC244) -> 0.7084298125 | AD244: =('NGGT TO'!AD244) -> 1.55723769 | AE244: =('NGGT TO'!AE244) -> -0.06573749862 | AF244: =('NGGT TO'!AF244) -> 0.004545486465 | AG244: =('NGGT TO'!AG244) -> 9.187086648
E245: Cheshire pre-RIIO actual capex | G245: £m 09/10 prices | J245: > | V245: =('NGGT TO'!V245) -> 0 | W245: =('NGGT TO'!W245) -> 0 | X245: =('NGGT TO'!X245) -> 0 | Y245: =('NGGT TO'!Y245) -> 0 | Z245: =('NGGT TO'!Z245) -> 0 | AA245: =('NGGT TO'!AA245) -> 0 | AB245: =('NGGT TO'!AB245) -> 0 | AC245: =('NGGT TO'!AC245) -> 0 | AD245: =('NGGT TO'!AD245) -> 0 | AE245: =('NGGT TO'!AE245) -> 0 | AF245: =('NGGT TO'!AF245) -> 0 | AG245: =('NGGT TO'!AG245) -> 0
E246: Isle of Grain PH3 pre-RIIO actual capex | G246: £m 09/10 prices | J246: > | V246: =('NGGT TO'!V246) -> 0 | W246: =('NGGT TO'!W246) -> 0 | X246: =('NGGT TO'!X246) -> 0 | Y246: =('NGGT TO'!Y246) -> 0 | Z246: =('NGGT TO'!Z246) -> 0 | AA246: =('NGGT TO'!AA246) -> 0 | AB246: =('NGGT TO'!AB246) -> 0 | AC246: =('NGGT TO'!AC246) -> 0 | AD246: =('NGGT TO'!AD246) -> 0 | AE246: =('NGGT TO'!AE246) -> 0 | AF246: =('NGGT TO'!AF246) -> 0 | AG246: =('NGGT TO'!AG246) -> 0
E247: Caythorpe pre-RIIO actual capex | G247: £m 09/10 prices | J247: > | V247: =('NGGT TO'!V247) -> 0 | W247: =('NGGT TO'!W247) -> 0 | X247: =('NGGT TO'!X247) -> 0 | Y247: =('NGGT TO'!Y247) -> 0 | Z247: =('NGGT TO'!Z247) -> 0 | AA247: =('NGGT TO'!AA247) -> 0 | AB247: =('NGGT TO'!AB247) -> 0 | AC247: =('NGGT TO'!AC247) -> 0 | AD247: =('NGGT TO'!AD247) -> 0 | AE247: =('NGGT TO'!AE247) -> 0 | AF247: =('NGGT TO'!AF247) -> 0 | AG247: =('NGGT TO'!AG247) -> 0
E248: Langage pre-RIIO actual capex | G248: £m 09/10 prices | J248: > | V248: =('NGGT TO'!V248) -> 4.824735011 | W248: =('NGGT TO'!W248) -> 0.1154699089 | X248: =('NGGT TO'!X248) -> 0.05202758369 | Y248: =('NGGT TO'!Y248) -> 0.4417368318 | Z248: =('NGGT TO'!Z248) -> 12.1113621 | AA248: =('NGGT TO'!AA248) -> 50.51083484 | AB248: =('NGGT TO'!AB248) -> 54.73795908 | AC248: =('NGGT TO'!AC248) -> 10.75349055 | AD248: =('NGGT TO'!AD248) -> -0.06804044 | AE248: =('NGGT TO'!AE248) -> -0.009154861292 | AF248: =('NGGT TO'!AF248) -> -0.02454562691 | AG248: =('NGGT TO'!AG248) -> 0
E249: Marchwood pre-RIIO actual capex | G249: £m 09/10 prices | J249: > | V249: =('NGGT TO'!V249) -> 0 | W249: =('NGGT TO'!W249) -> 0 | X249: =('NGGT TO'!X249) -> 0 | Y249: =('NGGT TO'!Y249) -> 0 | Z249: =('NGGT TO'!Z249) -> 0.07304137334 | AA249: =('NGGT TO'!AA249) -> 3.901357184 | AB249: =('NGGT TO'!AB249) -> 16.70518274 | AC249: =('NGGT TO'!AC249) -> 28.82313643 | AD249: =('NGGT TO'!AD249) -> 0.12989372 | AE249: =('NGGT TO'!AE249) -> 0.2664715999 | AF249: =('NGGT TO'!AF249) -> -0.1872740423 | AG249: =('NGGT TO'!AG249) -> 0
E250: Pembroke pre-RIIO actual capex | G250: £m 09/10 prices | J250: > | V250: =('NGGT TO'!V250) -> 0 | W250: =('NGGT TO'!W250) -> 0 | X250: =('NGGT TO'!X250) -> 0 | Y250: =('NGGT TO'!Y250) -> 0 | Z250: =('NGGT TO'!Z250) -> 0 | AA250: =('NGGT TO'!AA250) -> 0 | AB250: =('NGGT TO'!AB250) -> 0 | AC250: =('NGGT TO'!AC250) -> 0 | AD250: =('NGGT TO'!AD250) -> 0 | AE250: =('NGGT TO'!AE250) -> 0 | AF250: =('NGGT TO'!AF250) -> 0 | AG250: =('NGGT TO'!AG250) -> 0
E251: Gilwern pre-RIIO actual capex | G251: £m 09/10 prices | J251: > | V251: =('NGGT TO'!V251) -> 0 | W251: =('NGGT TO'!W251) -> 0 | X251: =('NGGT TO'!X251) -> 0 | Y251: =('NGGT TO'!Y251) -> 0 | Z251: =('NGGT TO'!Z251) -> 0 | AA251: =('NGGT TO'!AA251) -> 0 | AB251: =('NGGT TO'!AB251) -> 0 | AC251: =('NGGT TO'!AC251) -> 0 | AD251: =('NGGT TO'!AD251) -> 0 | AE251: =('NGGT TO'!AE251) -> 0 | AF251: =('NGGT TO'!AF251) -> 0 | AG251: =('NGGT TO'!AG251) -> 0
E252: SW Quad 08/09 pre-RIIO actual capex | G252: £m 09/10 prices | J252: > | V252: =('NGGT TO'!V252) -> 0.4901672658 | W252: =('NGGT TO'!W252) -> 0.0571272181 | X252: =('NGGT TO'!X252) -> 0.003547335251 | Y252: =('NGGT TO'!Y252) -> 0 | Z252: =('NGGT TO'!Z252) -> 0.2200982907 | AA252: =('NGGT TO'!AA252) -> 4.35590515 | AB252: =('NGGT TO'!AB252) -> 6.926565642 | AC252: =('NGGT TO'!AC252) -> 2.280127877 | AD252: =('NGGT TO'!AD252) -> 31.11818463 | AE252: =('NGGT TO'!AE252) -> 40.17960641 | AF252: =('NGGT TO'!AF252) -> -2.470926442 | AG252: =('NGGT TO'!AG252) -> 0.02753
E253: SW Quad 09/10 pre-RIIO actual capex | G253: £m 09/10 prices | J253: > | V253: =('NGGT TO'!V253) -> 0 | W253: =('NGGT TO'!W253) -> 0 | X253: =('NGGT TO'!X253) -> 0 | Y253: =('NGGT TO'!Y253) -> 0 | Z253: =('NGGT TO'!Z253) -> 0 | AA253: =('NGGT TO'!AA253) -> 0 | AB253: =('NGGT TO'!AB253) -> 0 | AC253: =('NGGT TO'!AC253) -> 0 | AD253: =('NGGT TO'!AD253) -> 0 | AE253: =('NGGT TO'!AE253) -> 0 | AF253: =('NGGT TO'!AF253) -> 0 | AG253: =('NGGT TO'!AG253) -> 0
E254: North West Entry / Hole House Farm Storage pre-RIIO actual capex | G254: £m 09/10 prices | J254: > | V254: =('NGGT TO'!V254) -> 0 | W254: =('NGGT TO'!W254) -> 0 | X254: =('NGGT TO'!X254) -> 0 | Y254: =('NGGT TO'!Y254) -> 0 | Z254: =('NGGT TO'!Z254) -> 0 | AA254: =('NGGT TO'!AA254) -> 0 | AB254: =('NGGT TO'!AB254) -> 0 | AC254: =('NGGT TO'!AC254) -> 0 | AD254: =('NGGT TO'!AD254) -> 0.61493277 | AE254: =('NGGT TO'!AE254) -> 6.126158315 | AF254: =('NGGT TO'!AF254) -> 7.377324532 | AG254: =('NGGT TO'!AG254) -> 0
E256: Fleetwood | G256: £m 09/10 prices | AH256: =('NGGT TO'!AH256) -> 12.57723427 | AI256: =('NGGT TO'!AI256) -> 24.07961809 | AJ256: =('NGGT TO'!AJ256) -> 67.51894883 | AK256: =('NGGT TO'!AK256) -> 106.4475745 | AL256: =('NGGT TO'!AL256) -> 55.41759442 | AM256: =('NGGT TO'!AM256) -> 2.302582427 | AN256: =('NGGT TO'!AN256) -> 0 | AO256: =('NGGT TO'!AO256) -> 0
E257: SW Quad 2008/09 post-RIIO capex | G257: £m 09/10 prices | AH257: =('NGGT TO'!AH257) -> 0.8210584457 | AI257: =('NGGT TO'!AI257) -> 0 | AJ257: =('NGGT TO'!AJ257) -> 0 | AK257: =('NGGT TO'!AK257) -> 0 | AL257: =('NGGT TO'!AL257) -> 0 | AM257: =('NGGT TO'!AM257) -> 0 | AN257: =('NGGT TO'!AN257) -> 0 | AO257: =('NGGT TO'!AO257) -> 0
... 58 more rows

Sheet Totex
A1: Totex
B2: =UserInterface!G17 -> NGGT TO
E3: Parameter | G3: Units | I3: Constant | AH3: Annual values
E4: PCFM year ending | F4: =Cover!C3 -> GT1 PCFM November 2017 DryRun3.xlsm | I4: =UserInterface!$G$10 -> 2019-03-31 | K4: 1991-03-31 | L4: 1992-03-31 | M4: 1993-03-31 | N4: 1994-03-31 | O4: 1995-03-31 | P4: 1996-03-31 | Q4: 1997-03-31 | R4: 1998-03-31 | S4: 1999-03-31 | T4: 2000-03-31 | U4: 2001-03-31 | V4: 2002-03-31 | W4: 2003-03-31 | X4: 2004-03-31 | Y4: 2005-03-31 | Z4: 2006-03-31 | AA4: 2007-03-31 | AB4: 2008-03-31 | AC4: 2009-03-31 | AD4: 2010-03-31 | AE4: 2011-03-31 | AF4: 2012-03-31 | AG4: 2013-03-31 | AH4: 2014-03-31 | AI4: 2015-03-31 | AJ4: 2016-03-31 | AK4: 2017-03-31 | AL4: 2018-03-31 | AM4: 2019-03-31 | AN4: 2020-03-31 | AO4: 2021-03-31
B6: Totex
C8: Allowed totex aggregated by sub-category
C9: Note: Totex is the sum of a number of cost categories, with all totex allowances falling under one (or more) of them. They have significance in the model as each sub-category can have its own set of tax pool allocation rules.
D11: Non-variant allowances
D12: Note: These values are set at final proposals and are not updated during the price control
E14: Non-variant allowed load related capex expenditure | G14: £m 09/10 prices | AH14: =Input!AH84 -> 15.11577741 | AI14: =Input!AI84 -> 6.158518319 | AJ14: =Input!AJ84 -> 1.227999244 | AK14: =Input!AK84 -> 1.058649464 | AL14: =Input!AL84 -> 5.94595639 | AM14: =Input!AM84 -> 5.059420016 | AN14: =Input!AN84 -> 0.2315287874 | AO14: =Input!AO84 -> 0
E15: Non-variant allowed asset replacement capex expenditure | G15: £m 09/10 prices | AH15: =Input!AH85 -> 86.8202567 | AI15: =Input!AI85 -> 100.2012626 | AJ15: =Input!AJ85 -> 107.8209037 | AK15: =Input!AK85 -> 117.8361291 | AL15: =Input!AL85 -> 132.705636 | AM15: =Input!AM85 -> 113.3127258 | AN15: =Input!AN85 -> 95.49069633 | AO15: =Input!AO85 -> 85.29208013
E16: Non-variant allowed other capex expenditure | G16: £m 09/10 prices | AH16: =Input!AH86 -> 0 | AI16: =Input!AI86 -> 0 | AJ16: =Input!AJ86 -> 0 | AK16: =Input!AK86 -> 0 | AL16: =Input!AL86 -> 0 | AM16: =Input!AM86 -> 0 | AN16: =Input!AN86 -> 0 | AO16: =Input!AO86 -> 0
E17: Non-variant allowed controllable opex | G17: £m 09/10 prices | AH17: =Input!AH87 -> 64.48267201 | AI17: =Input!AI87 -> 65.23787422 | AJ17: =Input!AJ87 -> 70.77289473 | AK17: =Input!AK87 -> 79.36833827 | AL17: =Input!AL87 -> 84.31747913 | AM17: =Input!AM87 -> 84.64134636 | AN17: =Input!AN87 -> 80.72801478 | AO17: =Input!AO87 -> 77.49007012
E18: Non-variant allowed non-operational capex | G18: £m 09/10 prices | AH18: =Input!AH88 -> 10.31226162 | AI18: =Input!AI88 -> 9.678449854 | AJ18: =Input!AJ88 -> 6.615822716 | AK18: =Input!AK88 -> 6.133648068 | AL18: =Input!AL88 -> 5.57274791 | AM18: =Input!AM88 -> 4.190695059 | AN18: =Input!AN88 -> 6.384863783 | AO18: =Input!AO88 -> 5.865895674
D20: Variant allowances
D21: Note: Licence conditions may allow for non-baseline allowances to be granted. These are added to the baseline to generate the allowed sub-categories and thereby the overall allowed totex.
E23: =Input!E148 -> Variant allowed load related capex expenditure | G23: =Input!G148 -> £m 09/10 prices | AH23: =Input!AH148 -> 0 | AI23: =Input!AI148 -> 0 | AJ23: =Input!AJ148 -> 0 | AK23: =Input!AK148 -> 0 | AL23: =Input!AL148 -> 0 | AM23: =Input!AM148 -> 0 | AN23: =Input!AN148 -> 0 | AO23: =Input!AO148 -> 0
E24: =Input!E149 -> Variant allowed asset replacement capex expenditure | G24: =Input!G149 -> £m 09/10 prices | AH24: =Input!AH149 -> 0 | AI24: =Input!AI149 -> 0 | AJ24: =Input!AJ149 -> 0 | AK24: =Input!AK149 -> 0 | AL24: =Input!AL149 -> 0 | AM24: =Input!AM149 -> 0 | AN24: =Input!AN149 -> 0 | AO24: =Input!AO149 -> 0
E25: =Input!E150 -> Variant allowed other capex expenditure | G25: =Input!G150 -> £m 09/10 prices | AH25: =Input!AH150 -> 26.86365189 | AI25: =Input!AI150 -> 18.17186419 | AJ25: =Input!AJ150 -> 10.75105276 | AK25: =Input!AK150 -> 12.66199278 | AL25: =Input!AL150 -> 32.02539354 | AM25: =Input!AM150 -> 32.67953232 | AN25: =Input!AN150 -> 20.5043336 | AO25: =Input!AO150 -> 6.427666455
E26: =Input!E151 -> Variant allowed controllable opex | G26: =Input!G151 -> £m 09/10 prices | AH26: =Input!AH151 -> 0 | AI26: =Input!AI151 -> 0 | AJ26: =Input!AJ151 -> 0 | AK26: =Input!AK151 -> 0 | AL26: =Input!AL151 -> 0 | AM26: =Input!AM151 -> 0 | AN26: =Input!AN151 -> 0 | AO26: =Input!AO151 -> 0
E27: =Input!E152 -> Variant allowed non-operational capex | G27: =Input!G152 -> £m 09/10 prices | AH27: =Input!AH152 -> 0 | AI27: =Input!AI152 -> 0 | AJ27: =Input!AJ152 -> 0 | AK27: =Input!AK152 -> 0 | AL27: =Input!AL152 -> 0 | AM27: =Input!AM152 -> 0 | AN27: =Input!AN152 -> 0 | AO27: =Input!AO152 -> 0
D29: Allowance
D30: Note: "Allowed totex" is exported to be used in the TIM calculation. The allowed totex sub-categories are used below to create forecast actuals for the tax calculation and the TIM calculation when actuals are not yet available.
E32: Allowed load related capex expenditure | G32: £m 09/10 prices | AH32: =AH14 + AH23 -> 15.11577741 | AI32: 6.158518319 | AJ32: 1.227999244 | AK32: 1.058649464 | AL32: 5.94595639 | AM32: 5.059420016 | AN32: 0.2315287874 | AO32: 0
E33: Allowed asset replacement capex expenditure | G33: £m 09/10 prices | AH33: 86.8202567 | AI33: 100.2012626 | AJ33: 107.8209037 | AK33: 117.8361291 | AL33: 132.705636 | AM33: 113.3127258 | AN33: 95.49069633 | AO33: 85.29208013
E34: Allowed other capex expenditure | G34: £m 09/10 prices | AH34: 26.86365189 | AI34: 18.17186419 | AJ34: 10.75105276 | AK34: 12.66199278 | AL34: 32.02539354 | AM34: 32.67953232 | AN34: 20.5043336 | AO34: 6.427666455
E35: Allowed controllable opex | G35: £m 09/10 prices | AH35: 64.48267201 | AI35: 65.23787422 | AJ35: 70.77289473 | AK35: 79.36833827 | AL35: 84.31747913 | AM35: 84.64134636 | AN35: 80.72801478 | AO35: 77.49007012
E36: Allowed non-operational capex | G36: £m 09/10 prices | AH36: 10.31226162 | AI36: 9.678449854 | AJ36: 6.615822716 | AK36: 6.133648068 | AL36: 5.57274791 | AM36: 4.190695059 | AN36: 6.384863783 | AO36: 5.865895674
E37: Allowed totex | G37: £m 09/10 prices | AH37: =SUM(AH32:AH36) -> 203.5946196 | AI37: 199.4479691 | AJ37: 197.1886731 | AK37: 217.0587577 | AL37: 260.567213 | AM37: 239.8837195 | AN37: 203.3394373 | AO37: 175.0757124
C39: Actual totex
D41: Source of actuals
D42: Note: The model assumes that there is a time lag from year t until actual expenditure data becomes available for the model. After the lag, actual expenditure inputs are used. Up to that point the model generates a forecast actual expenditure.
D43: When required in the model, forecasts assume that actuals are equal to their corresponding allowance.
D44: In a year where actual totex is assumed to be available, values must be inputted to the model as it will not generate a forecast and the empty input cell will be read as an actual spend of zero.
E46: Years from t until normal reporting of actual costs | G46: years | I46: =Input!I50 -> 2
E47: Input actuals used | G47: text | AH47: =YEAR($I$4) >= YEAR(AH$4) + $I46 -> TRUE | AI47: TRUE | AJ47: TRUE | AK47: TRUE | AL47: FALSE | AM47: FALSE | AN47: FALSE | AO47: FALSE
E48: Forecast actuals generated from allowances | G48: text | AH48: =YEAR($I$4) < YEAR(AH$4) + $I46 -> FALSE | AI48: FALSE | AJ48: FALSE | AK48: FALSE | AL48: TRUE | AM48: TRUE | AN48: TRUE | AO48: TRUE
D50: Actual totex from cost reporting processes and final proposals
E52: Actual load related capex expenditure | G52: £m 09/10 prices | AH52: =IF(AH$47, Input!AH156, 0) -> 2.94797639 | AI52: =IF(AI$47, Input!AI156, 0) -> 1.224274215 | AJ52: =IF(AJ$47, Input!AJ156, 0) -> 1.145956865 | AK52: =IF(AK$47, Input!AK156, 0) -> 1.374498823 | AL52: =IF(AL$47, Input!AL156, 0) -> 0 | AM52: =IF(AM$47, Input!AM156, 0) -> 0 | AN52: =IF(AN$47, Input!AN156, 0) -> 0 | AO52: =IF(AO$47, Input!AO156, 0) -> 0
E53: Actual asset replacement capex expenditure | G53: £m 09/10 prices | AH53: =IF(AH$47, Input!AH157, 0) -> 42.87923468 | AI53: =IF(AI$47, Input!AI157, 0) -> 49.86516085 | AJ53: =IF(AJ$47, Input!AJ157, 0) -> 60.50709835 | AK53: =IF(AK$47, Input!AK157, 0) -> 100.5570911 | AL53: =IF(AL$47, Input!AL157, 0) -> 0 | AM53: =IF(AM$47, Input!AM157, 0) -> 0 | AN53: =IF(AN$47, Input!AN157, 0) -> 0 | AO53: =IF(AO$47, Input!AO157, 0) -> 0
E54: Actual other capex expenditure | G54: £m 09/10 prices | AH54: =IF(AH$47, Input!AH158, 0) -> 61.59011995 | AI54: =IF(AI$47, Input!AI158, 0) -> 48.34134401 | AJ54: =IF(AJ$47, Input!AJ158, 0) -> 39.54833189 | AK54: =IF(AK$47, Input!AK158, 0) -> 18.48290708 | AL54: =IF(AL$47, Input!AL158, 0) -> 0 | AM54: =IF(AM$47, Input!AM158, 0) -> 0 | AN54: =IF(AN$47, Input!AN158, 0) -> 0 | AO54: =IF(AO$47, Input!AO158, 0) -> 0
E55: Actual controllable opex | G55: £m 09/10 prices | AH55: =IF(AH$47, Input!AH159, 0) -> 70.90965914 | AI55: =IF(AI$47, Input!AI159, 0) -> 73.18675508 | AJ55: =IF(AJ$47, Input!AJ159, 0) -> 74.92750645 | AK55: =IF(AK$47, Input!AK159, 0) -> 85.27601685 | AL55: =IF(AL$47, Input!AL159, 0) -> 0 | AM55: =IF(AM$47, Input!AM159, 0) -> 0 | AN55: =IF(AN$47, Input!AN159, 0) -> 0 | AO55: =IF(AO$47, Input!AO159, 0) -> 0
E56: Actual non-operational capex | G56: £m 09/10 prices | AH56: =IF(AH$47, Input!AH160, 0) -> 10.53669269 | AI56: =IF(AI$47, Input!AI160, 0) -> 9.962463692 | AJ56: =IF(AJ$47, Input!AJ160, 0) -> 11.14324316 | AK56: =IF(AK$47, Input!AK160, 0) -> 17.96495801 | AL56: =IF(AL$47, Input!AL160, 0) -> 0 | AM56: =IF(AM$47, Input!AM160, 0) -> 0 | AN56: =IF(AN$47, Input!AN160, 0) -> 0 | AO56: =IF(AO$47, Input!AO160, 0) -> 0
D58: Forecast totex from new allowances
E60: Forecast actual load related capex expenditure | G60: £m 09/10 prices | AH60: =IF(AH$48, AH32, 0) -> 0 | AI60: =IF(AI$48, AI32, 0) -> 0 | AJ60: 0 | AK60: 0 | AL60: 5.94595639 | AM60: 5.059420016 | AN60: 0.2315287874 | AO60: 0
E61: Forecast actual asset replacement capex expenditure | G61: £m 09/10 prices | AH61: 0 | AI61: 0 | AJ61: 0 | AK61: 0 | AL61: 132.705636 | AM61: 113.3127258 | AN61: 95.49069633 | AO61: 85.29208013
E62: Forecast actual other capex expenditure | G62: £m 09/10 prices | AH62: 0 | AI62: 0 | AJ62: 0 | AK62: 0 | AL62: 32.02539354 | AM62: 32.67953232 | AN62: 20.5043336 | AO62: 6.427666455
E63: Forecast actual controllable opex | G63: £m 09/10 prices | AH63: 0 | AI63: 0 | AJ63: 0 | AK63: 0 | AL63: 84.31747913 | AM63: 84.64134636 | AN63: 80.72801478 | AO63: 77.49007012
E64: Forecast actual non-operational capex | G64: £m 09/10 prices | AH64: 0 | AI64: 0 | AJ64: 0 | AK64: 0 | AL64: 5.57274791 | AM64: 4.190695059 | AN64: 6.384863783 | AO64: 5.865895674
D66: Totex applied
D67: Note: Actuals are exported both to identify performance against the allowance and to generate writing down allowances used in the tax calculation.
E69: Actual load related capex expenditure | G69: £m 09/10 prices | AH69: =AH52 + AH60 -> 2.94797639 | AI69: 1.224274215 | AJ69: 1.145956865 | AK69: 1.374498823 | AL69: 5.94595639 | AM69: 5.059420016 | AN69: 0.2315287874 | AO69: 0
E70: Actual asset replacement capex expenditure | G70: £m 09/10 prices | AH70: 42.87923468 | AI70: 49.86516085 | AJ70: 60.50709835 | AK70: 100.5570911 | AL70: 132.705636 | AM70: 113.3127258 | AN70: 95.49069633 | AO70: 85.29208013
E71: Actual other capex expenditure | G71: £m 09/10 prices | AH71: 61.59011995 | AI71: 48.34134401 | AJ71: 39.54833189 | AK71: 18.48290708 | AL71: 32.02539354 | AM71: 32.67953232 | AN71: 20.5043336 | AO71: 6.427666455
E72: Actual controllable opex | G72: £m 09/10 prices | AH72: 70.90965914 | AI72: 73.18675508 | AJ72: 74.92750645 | AK72: 85.27601685 | AL72: 84.31747913 | AM72: 84.64134636 | AN72: 80.72801478 | AO72: 77.49007012
E73: Actual non-operational capex | G73: £m 09/10 prices | AH73: 10.53669269 | AI73: 9.962463692 | AJ73: 11.14324316 | AK73: 17.96495801 | AL73: 5.57274791 | AM73: 4.190695059 | AN73: 6.384863783 | AO73: 5.865895674
E74: Actual totex | G74: £m 09/10 prices | AH74: =SUM(AH69:AH73) -> 188.8636828 | AI74: 182.5799978 | AJ74: 187.2721367 | AK74: 223.6554719 | AL74: 260.567213 | AM74: 239.8837195 | AN74: 203.3394373 | AO74: 175.0757124
B76: End of sheet

Sheet TIM
A1: Totex Incentive Mechanism (TIM)
B2: =UserInterface!G17 -> NGGT TO
E3: Parameter | G3: Units | I3: Constant | AH3: Annual values
E4: PCFM year ending | F4: =Cover!C3 -> GT1 PCFM November 2017 DryRun3.xlsm | I4: =UserInterface!$G$10 -> 2019-03-31 | K4: 1991-03-31 | L4: 1992-03-31 | M4: 1993-03-31 | N4: 1994-03-31 | O4: 1995-03-31 | P4: 1996-03-31 | Q4: 1997-03-31 | R4: 1998-03-31 | S4: 1999-03-31 | T4: 2000-03-31 | U4: 2001-03-31 | V4: 2002-03-31 | W4: 2003-03-31 | X4: 2004-03-31 | Y4: 2005-03-31 | Z4: 2006-03-31 | AA4: 2007-03-31 | AB4: 2008-03-31 | AC4: 2009-03-31 | AD4: 2010-03-31 | AE4: 2011-03-31 | AF4: 2012-03-31 | AG4: 2013-03-31 | AH4: 2014-03-31 | AI4: 2015-03-31 | AJ4: 2016-03-31 | AK4: 2017-03-31 | AL4: 2018-03-31 | AM4: 2019-03-31 | AN4: 2020-03-31 | AO4: 2021-03-31
B6: Efficiency incentive
C8: Incentive strength
E10: Incentive rate (slope) | G10: scalar | I10: =Input!I55 -> -0.0025
E11: Incentive rate (intercept) | G11: scalar | I11: =Input!I56 -> 0.75
E12: Group rate | G12: ratio | I12: =Input!I66 / Input!I65*100 -> 122.5584663
E14: Incentive strength | G14: % | I14: =ROUND(I11+I10*I12,4) -> 0.4436
C16: Additional income
E18: Ofgem view | G18: % | I18: =Input!I59 -> 0.75
E19: Operator view | G19: % | I19: =Input!I60 -> 0.25
E21: Ofgem view of group price control totex | G21: £m 09/10 prices | I21: =Input!I65 -> 2046.500703
E23: Additional income (intercept) | G23: scalar | I23: =Input!I57 -> 8.75
E24: First order parameter | G24: % | I24: =(-(I10 * I18*100) - (I11 * I19)) -> 0
E25: Second order parameter | G25: % | I25: =(0.5-I19) * I10 -> -0.000625
E26: Additional income scalar | G26: % | I26: =(I23+I24*(I12)+I25*(I12)^2) -> -0.6378610407
E28: Additional income at group level | G28: £m 09/10 prices | I28: =I21*I26/100 -> -13.05383068
E30: Forecast licensee totex | G30: £m 09/10 prices | I30: =Input!I62*Input!$I$59+Input!I63*Input!$I$60 -> 1704.845639
E31: Forecast group totex | G31: £m 09/10 prices | I31: =Input!I65*I18 + Input!I66*I19 -> 2161.915496
E32: Percentage of group totex at licensee level | G32: % | I32: =I30 / I31 -> 0.7885810717
B34: Efficiency incentive
C36: Post-TIM overspend (underspend)
C37: Note: Totex overspend (underspend) is identified and subject to the "Funding Adjustment Rate."
C38: - Non-'uncertainty rate' and 'uncertainty rate' totex are separated at this stage to allow for the application of their respective capitalisation rates to any overspend (underspend)
D40: Non-'uncertainty rate' totex
E42: Actual non-'uncertainty rate' totex | G42: £m 09/10 prices | AH42: =Totex!AH74 - IF(Totex!AH48, SUM(Input!AH18:AH26), SUM(Input!AH14:AH17)) -> 153.1286008 | AI42: =Totex!AI74 - IF(Totex!AI48, SUM(Input!AI18:AI26), SUM(Input!AI14:AI17)) -> 157.1592932 | AJ42: =Totex!AJ74 - IF(Totex!AJ48, SUM(Input!AJ18:AJ26), SUM(Input!AJ14:AJ17)) -> 168.0101524 | AK42: =Totex!AK74 - IF(Totex!AK48, SUM(Input!AK18:AK26), SUM(Input!AK14:AK17)) -> 188.9443046 | AL42: =Totex!AL74 - IF(Totex!AL48, SUM(Input!AL18:AL26), SUM(Input!AL14:AL17)) -> 228.5418195 | AM42: =Totex!AM74 - IF(Totex!AM48, SUM(Input!AM18:AM26), SUM(Input!AM14:AM17)) -> 207.2041872 | AN42: =Totex!AN74 - IF(Totex!AN48, SUM(Input!AN18:AN26), SUM(Input!AN14:AN17)) -> 182.8351037 | AO42: =Totex!AO74 - IF(Totex!AO48, SUM(Input!AO18:AO26), SUM(Input!AO14:AO17)) -> 168.6480459
E43: Less allowed non-'uncertainty rate' totex | G43: £m 09/10 prices | AH43: =-Totex!AH37 + SUM(Input!AH18:AH26) -> -176.7309677 | AI43: =-Totex!AI37 + SUM(Input!AI18:AI26) -> -181.2761049 | AJ43: =-Totex!AJ37 + SUM(Input!AJ18:AJ26) -> -186.4376203 | AK43: =-Totex!AK37 + SUM(Input!AK18:AK26) -> -204.3967649 | AL43: =-Totex!AL37 + SUM(Input!AL18:AL26) -> -228.5418195 | AM43: =-Totex!AM37 + SUM(Input!AM18:AM26) -> -207.2041872 | AN43: =-Totex!AN37 + SUM(Input!AN18:AN26) -> -182.8351037 | AO43: =-Totex!AO37 + SUM(Input!AO18:AO26) -> -168.6480459
E44: Pre-TIM non-'uncertainty rate' overspend (underspend) | G44: £m 09/10 prices | AH44: =SUM(AH42:AH43) -> -23.60236692 | AI44: -24.11681179 | AJ44: -18.42746793 | AK44: -15.45246035 | AL44: 0 | AM44: 0 | AN44: 0 | AO44: 0
E46: Funding Adjustment Rate (often referred to as 'sharing factor') | G46: % | AH46: =(1 - $I$14) -> 0.5564 | AI46: =(1 - $I$14) -> 0.5564 | AJ46: 0.5564 | AK46: 0.5564 | AL46: 0.5564 | AM46: 0.5564 | AN46: 0.5564 | AO46: 0.5564
E48: Post-TIM non-'uncertainty rate' overspend (underspend) | G48: £m 09/10 prices | AH48: =AH$46*AH44 -> -13.13235695 | AI48: =AI$46*AI44 -> -13.41859408 | AJ48: -10.25304316 | AK48: -8.59774894 | AL48: 0 | AM48: 0 | AN48: 0 | AO48: 0
D50: Uncertainty rate' totex
E52: Actual 'uncertainty rate' totex | G52: £m 09/10 prices | AH52: =IF(Totex!AH48,SUM(Input!AH18:AH26),SUM(Input!AH14:AH17)) -> 35.73508203 | AI52: =IF(Totex!AI48,SUM(Input!AI18:AI26),SUM(Input!AI14:AI17)) -> 25.42070469 | AJ52: =IF(Totex!AJ48,SUM(Input!AJ18:AJ26),SUM(Input!AJ14:AJ17)) -> 19.2619843 | AK52: =IF(Totex!AK48,SUM(Input!AK18:AK26),SUM(Input!AK14:AK17)) -> 34.7111673 | AL52: =IF(Totex!AL48,SUM(Input!AL18:AL26),SUM(Input!AL14:AL17)) -> 32.02539354 | AM52: =IF(Totex!AM48,SUM(Input!AM18:AM26),SUM(Input!AM14:AM17)) -> 32.67953232 | AN52: =IF(Totex!AN48,SUM(Input!AN18:AN26),SUM(Input!AN14:AN17)) -> 20.5043336 | AO52: =IF(Totex!AO48,SUM(Input!AO18:AO26),SUM(Input!AO14:AO17)) -> 6.427666455
E53: Less allowed 'uncertainty rate' totex | G53: £m 09/10 prices | AH53: =-SUM(Input!AH18:AH26) -> -26.86365189 | AI53: =-SUM(Input!AI18:AI26) -> -18.17186419 | AJ53: =-SUM(Input!AJ18:AJ26) -> -10.75105276 | AK53: =-SUM(Input!AK18:AK26) -> -12.66199278 | AL53: =-SUM(Input!AL18:AL26) -> -32.02539354 | AM53: =-SUM(Input!AM18:AM26) -> -32.67953232 | AN53: =-SUM(Input!AN18:AN26) -> -20.5043336 | AO53: =-SUM(Input!AO18:AO26) -> -6.427666455
E54: Pre-TIM 'uncertainty rate' overspend (underspend) | G54: £m 09/10 prices | AH54: =SUM(AH52:AH53) -> 8.87143014 | AI54: 7.248840505 | AJ54: 8.510931542 | AK54: 22.04917453 | AL54: 0 | AM54: 0 | AN54: 0 | AO54: 0
E56: Funding Adjustment Rate (often referred to as 'sharing factor') | G56: % | AH56: =(1 - $I$14) -> 0.5564 | AI56: =(1 - $I$14) -> 0.5564 | AJ56: 0.5564 | AK56: 0.5564 | AL56: 0.5564 | AM56: 0.5564 | AN56: 0.5564 | AO56: 0.5564
E58: Post-TIM 'uncertainty rate' overspend (underspend) | G58: £m 09/10 prices | AH58: =AH$56 * AH54 -> 4.93606373 | AI58: =AI$56 * AI54 -> 4.033254857 | AJ58: 4.73548231 | AK58: 12.26816071 | AL58: 0 | AM58: 0 | AN58: 0 | AO58: 0
C60: Post-TIM totex
C61: Note: "Post-TIM overspend (underspend)" is added to the allowed totex value to give the Post-TIM totex allowance to be split into fast and slow money.
D63: Non-'uncertainty rate' totex
E65: Allowed totex | G65: £m 09/10 prices | AH65: =-AH43 -> 176.7309677 | AI65: =-AI43 -> 181.2761049 | AJ65: 186.4376203 | AK65: 204.3967649 | AL65: 228.5418195 | AM65: 207.2041872 | AN65: 182.8351037 | AO65: 168.6480459
E66: Post-TIM overspend (underspend) | G66: £m 09/10 prices | AH66: =AH48 -> -13.13235695 | AI66: =AI48 -> -13.41859408 | AJ66: -10.25304316 | AK66: -8.59774894 | AL66: 0 | AM66: 0 | AN66: 0 | AO66: 0
E67: Post-TIM totex | G67: £m 09/10 prices | AH67: =SUM(AH65:AH66) -> 163.5986108 | AI67: 167.8575109 | AJ67: 176.1845772 | AK67: 195.799016 | AL67: 228.5418195 | AM67: 207.2041872 | AN67: 182.8351037 | AO67: 168.6480459
D69: Uncertainty rate' totex
E71: Allowed totex | G71: £m 09/10 prices | AH71: =-AH53 -> 26.86365189 | AI71: =-AI53 -> 18.17186419 | AJ71: 10.75105276 | AK71: 12.66199278 | AL71: 32.02539354 | AM71: 32.67953232 | AN71: 20.5043336 | AO71: 6.427666455
E72: Post-TIM overspend (underspend) | G72: £m 09/10 prices | AH72: =AH58 -> 4.93606373 | AI72: =AI58 -> 4.033254857 | AJ72: 4.73548231 | AK72: 12.26816071 | AL72: 0 | AM72: 0 | AN72: 0 | AO72: 0
E73: Post-TIM totex | G73: £m 09/10 prices | AH73: =SUM(AH71:AH72) -> 31.79971562 | AI73: 22.20511905 | AJ73: 15.48653507 | AK73: 24.93015348 | AL73: 32.02539354 | AM73: 32.67953232 | AN73: 20.5043336 | AO73: 6.427666455
B75: Capitalisation
B76: Note: Non-'uncertainty rate' totex and 'uncertainty rate' totex are capitalised separately. Post-TIM totex is allocated into "fast" and "slow" elements based on a pre-set percentage split:
B77: - "fast money " is exported to the "Revenue" sheet where it is included as an element of "recalculated base revenue;" and
B78: - "slow money " is exported to the "Depn" sheet where it is added to RAV. Slow money is recovered over the life of the RAV through regulatory depreciation and return allowances.
C80: Separate capitalisation
D82: Non-'uncertainty rate' totex
E84: Post-TIM totex | G84: £m 09/10 prices | AH84: =AH67 -> 163.5986108 | AI84: =AI67 -> 167.8575109 | AJ84: 176.1845772 | AK84: 195.799016 | AL84: 228.5418195 | AM84: 207.2041872 | AN84: 182.8351037 | AO84: 168.6480459
E85: Capitalised share of totex (non-'uncertainty rate') | G85: % | AH85: =Input!AH52 -> 0.644 | AI85: =Input!AI52 -> 0.644 | AJ85: =Input!AJ52 -> 0.644 | AK85: =Input!AK52 -> 0.644 | AL85: =Input!AL52 -> 0.644 | AM85: =Input!AM52 -> 0.644 | AN85: =Input!AN52 -> 0.644 | AO85: =Input!AO52 -> 0.644
E86: Fast pot expenditure | G86: £m 09/10 prices | AH86: =AH84-AH87 -> 58.24110544 | AI86: 59.75727387 | AJ86: 62.72170948 | AK86: 69.70444969 | AL86: 81.36088773 | AM86: 73.76469065 | AN86: 65.08929691 | AO86: 60.03870435
E87: Slow pot expenditure | G87: £m 09/10 prices | AH87: =AH84 * AH85 -> 105.3575053 | AI87: =AI84 * AI85 -> 108.100237 | AJ87: 113.4628677 | AK87: 126.0945663 | AL87: 147.1809317 | AM87: 133.4394966 | AN87: 117.7458068 | AO87: 108.6093416
D89: Uncertainty rate' totex
E91: Post-TIM totex | G91: £m 09/10 prices | AH91: =AH73 -> 31.79971562 | AI91: =AI73 -> 22.20511905 | AJ91: 15.48653507 | AK91: 24.93015348 | AL91: 32.02539354 | AM91: 32.67953232 | AN91: 20.5043336 | AO91: 6.427666455
E92: Capitalised share of 'uncertainty rate' | G92: % | AH92: =Input!AH53 -> 0.9 | AI92: =Input!AI53 -> 0.9 | AJ92: =Input!AJ53 -> 0.9 | AK92: =Input!AK53 -> 0.9 | AL92: =Input!AL53 -> 0.9 | AM92: =Input!AM53 -> 0.9 | AN92: =Input!AN53 -> 0.9 | AO92: =Input!AO53 -> 0.9
E93: Fast pot expenditure | G93: £m 09/10 prices | AH93: =AH91 - AH94 -> 3.179971562 | AI93: =AI91 - AI94 -> 2.220511905 | AJ93: 1.548653507 | AK93: 2.493015348 | AL93: 3.202539354 | AM93: 3.267953232 | AN93: 2.05043336 | AO93: 0.6427666455
E94: Slow pot expenditure | G94: £m 09/10 prices | AH94: =AH91 * AH92 -> 28.61974406 | AI94: =AI91 * AI92 -> 19.98460714 | AJ94: 13.93788156 | AK94: 22.43713813 | AL94: 28.82285418 | AM94: 29.41157909 | AN94: 18.45390024 | AO94: 5.784899809
C96: Totex
E98: Fast pot expenditure | G98: £m 09/10 prices | AH98: =AH86+AH93 -> 61.421077 | AI98: =AI86+AI93 -> 61.97778577 | AJ98: 64.27036298 | AK98: 72.19746504 | AL98: 84.56342709 | AM98: 77.03264388 | AN98: 67.13973027 | AO98: 60.68147099
E100: Slow pot expenditure | G100: £m 09/10 prices | AH100: =AH87+AH94 -> 133.9772494 | AI100: =AI87+AI94 -> 128.0848441 | AJ100: 127.4007493 | AK100: 148.5317044 | AL100: 176.0037859 | AM100: 162.8510757 | AN100: 136.199707 | AO100: 114.3942414
B102: Additional income
B103: Note: The additional income lump sum is recovered across the price control and is matched to the profile of allowed totex set at final proposals.
E105: Additional income | G105: £m 09/10 prices | I105: =I28*I32 -> -10.29400379
E107: Original allowed totex (set at final proposals) | G107: £m 09/10 prices | AH107: =Input!AH$340 -> 187.0744981 | AI107: =Input!AI$340 -> 189.5303941 | AJ107: =Input!AJ$340 -> 194.8269413 | AK107: =Input!AK$340 -> 263.784893 | AL107: =Input!AL$340 -> 307.4760616 | AM107: =Input!AM$340 -> 210.6697009 | AN107: =Input!AN$340 -> 182.8351037 | AO107: =Input!AO$340 -> 168.6480459
E108: Total allowed totex in price control (set at final proposals) | G108: £m 09/10 prices | I108: =Input!$I$341 -> 1704.845639
E110: Share of additional income allowed in year | G110: % | AH110: =AH107 / $I108 -> 0.1097310477 | AI110: 0.1111715864 | AJ110: 0.1142783469 | AK110: 0.1547265553 | AL110: 0.1803541943 | AM110: 0.1235711293 | AN110: 0.1072443742 | AO110: 0.09892276585
E112: Additional income | G112: £m 09/10 prices | AH112: =$I105 * AH110 -> -1.129571821 | AI112: =$I105 * AI110 -> -1.144400731 | AJ112: -1.176381736 | AK112: -1.592755746 | AL112: -1.85656676 | AM112: -1.272041674 | AN112: -1.103973995 | AO112: -1.018311327
B114: End of sheet

Sheet DARTs
A1: Direct Allowed Revenue Terms (DARTs)
B2: =UserInterface!G17 -> NGGT TO
E3: Parameter | G3: Units | I3: Constant | AH3: Annual values
E4: PCFM year ending | F4: =Cover!C3 -> GT1 PCFM November 2017 DryRun3.xlsm | I4: =UserInterface!$G$10 -> 2019-03-31 | K4: 1991-03-31 | L4: 1992-03-31 | M4: 1993-03-31 | N4: 1994-03-31 | O4: 1995-03-31 | P4: 1996-03-31 | Q4: 1997-03-31 | R4: 1998-03-31 | S4: 1999-03-31 | T4: 2000-03-31 | U4: 2001-03-31 | V4: 2002-03-31 | W4: 2003-03-31 | X4: 2004-03-31 | Y4: 2005-03-31 | Z4: 2006-03-31 | AA4: 2007-03-31 | AB4: 2008-03-31 | AC4: 2009-03-31 | AD4: 2010-03-31 | AE4: 2011-03-31 | AF4: 2012-03-31 | AG4: 2013-03-31 | AH4: 2014-03-31 | AI4: 2015-03-31 | AJ4: 2016-03-31 | AK4: 2017-03-31 | AL4: 2018-03-31 | AM4: 2019-03-31 | AN4: 2020-03-31 | AO4: 2021-03-31
B6: Direct Allowed Revenue Terms (DARTs)
B7: Note: DARTs are allowances with minimal processing required in the model as they flow directly from input to revenue.
B8: They do however have different indirect impacts on equity issuance and tax. They are grouped here by their treatment type to aid common treatment of DARTs through the rest of the model.
B9: "Post-tax" allowances can be included in the tax calculation but "Pre-tax" allowances cannot.
B10: "Passthrough-style" allowances are treated as an equal revenue and cost. Therefore they have no net cash flow impact. "Revenue" allowances are just set as a revenue amount with any costs relating to them are dealt with elsewhere.
C12: Base Revenue
D14: No impact on net debt or tax
E16: Pension admin and PPF levy | G16: £m 09/10 prices | AH16: =Input!AH168 -> 2.7 | AI16: =Input!AI168 -> 2.6 | AJ16: =Input!AJ168 -> 2.6 | AK16: =Input!AK168 -> 2.7 | AL16: =Input!AL168 -> 2.6 | AM16: =Input!AM168 -> 1.503603057 | AN16: =Input!AN168 -> 1.503603057 | AO16: =Input!AO168 -> 1.503603057
E17: Established pension deficit repair | G17: £m 09/10 prices | AH17: =Input!AH169 -> 26.40985404 | AI17: =Input!AI169 -> 26.40985404 | AJ17: =Input!AJ169 -> 49.37750304 | AK17: =Input!AK169 -> 49.37750304 | AL17: =Input!AL169 -> 49.37750304 | AM17: =Input!AM169 -> 25.65504169 | AN17: =Input!AN169 -> 25.65504169 | AO17: =Input!AO169 -> 25.65504169
E18: Base Revenue DARTs with no impact on net debt or tax | G18: £m 09/10 prices | AH18: =SUM(AH16:AH17) -> 29.10985404 | AI18: 29.00985404 | AJ18: 51.97750304 | AK18: 52.07750304 | AL18: 51.97750304 | AM18: 27.15864474 | AN18: 27.15864474 | AO18: 27.15864474
D20: Impact net debt and tax
E22: Pension true-up from previous price controls | G22: £m 09/10 prices | AH22: =Input!AH171 -> 11.6224453 | AI22: =Input!AI171 -> 12.11639923 | AJ22: =Input!AJ171 -> 12.61847252 | AK22: =Input!AK171 -> 13.12794335 | AL22: =Input!AL171 -> 13.64485612 | AM22: =Input!AM171 -> 14.16591906 | AN22: =Input!AN171 -> 14.7068801 | AO22: =Input!AO171 -> 15.26849908
E23: Milford Haven | G23: £m 09/10 prices | AH23: =Input!AH172 -> -17.8 | AI23: =Input!AI172 -> -18.2 | AJ23: =Input!AJ172 -> -18.4 | AK23: =Input!AK172 -> -18.5 | AL23: =Input!AL172 -> 0 | AM23: =Input!AM172 -> 0 | AN23: =Input!AN172 -> 0 | AO23: =Input!AO172 -> 0
E24: Base Revenue DARTs impacting both net debt and tax | G24: £m 09/10 prices | AH24: =SUM(AH22:AH23) -> -6.177554697 | AI24: -6.083600772 | AJ24: -5.781527479 | AK24: -5.372056651 | AL24: 13.64485612 | AM24: 14.16591906 | AN24: 14.7068801 | AO24: 15.26849908
D26: Impact net debt, no impact on tax
E28: Revenue adjustment from previous controls | G28: £m 09/10 prices | AH28: =Input!AH176 -> 11.4368093 | AI28: =Input!AI176 -> 11.9228737 | AJ28: =Input!AJ176 -> 12.41692778 | AK28: =Input!AK176 -> 12.91826123 | AL28: =Input!AL176 -> 13.42691777 | AM28: =Input!AM176 -> 13.93965819 | AN28: =Input!AN176 -> 14.47197889 | AO28: =Input!AO176 -> 15.02462758
E29: Base Revenue DARTs impacting net debt but not tax | G29: £m 09/10 prices | AH29: =SUM(AH28) -> 11.4368093 | AI29: =SUM(AI28) -> 11.9228737 | AJ29: 12.41692778 | AK29: 12.91826123 | AL29: 13.42691777 | AM29: 13.93965819 | AN29: 14.47197889 | AO29: 15.02462758
C32: Directly-charged
D34: No impact on debt or tax
E36: Excluded services net position | G36: £m 09/10 prices | AH36: =Input!AH180 -> 3.5 | AI36: =Input!AI180 -> 2.9 | AJ36: =Input!AJ180 -> 3 | AK36: =Input!AK180 -> 3.1 | AL36: =Input!AL180 -> 3 | AM36: =Input!AM180 -> 3 | AN36: =Input!AN180 -> 3 | AO36: =Input!AO180 -> 3
E37: Directly-charged post-tax passthrough-style allowance | G37: £m 09/10 prices | AH37: =SUM(AH36) -> 3.5 | AI37: =SUM(AI36) -> 2.9 | AJ37: 3 | AK37: 3.1 | AL37: 3 | AM37: 3 | AN37: 3 | AO37: 3
C39: DART groups
C40: Note: The following subtotals are exported to the rest of the model allowing common treatment of DARTs after this stage.
C41: Excluded services are directly charged to users. It is treated here as a negative Base Revenue DART and positive Non Base Revenue DART. It is tax and cash flow neutral.
C42: "Net impact of DARTs on core net debt" removes the passthrough-style allowances from the cash flow, netting off their impact after being added to revenue.
C43: "Net DART impact on core tax calculation" removes passthrough and pre-tax allowances from the tax base such that only post-tax revenue allowances have an impact.
E45: Base revenue DARTs | G45: £m 09/10 prices | AH45: =AH18 + AH24 + AH29 - AH37 -> 30.86910865 | AI45: 31.94912697 | AJ45: 55.61290334 | AK45: 56.52370762 | AL45: 76.04927693 | AM45: 52.264222 | AN45: 53.33750373 | AO45: 54.45177141
E47: Non Base Revenue DARTs | G47: £m 09/10 prices | AH47: =AH37 -> 3.5 | AI47: =AI37 -> 2.9 | AJ47: 3 | AK47: 3.1 | AL47: 3 | AM47: 3 | AN47: 3 | AO47: 3
E49: Net impact of DARTs on core net debt | G49: £m 09/10 prices | AH49: =- AH18 + AH37 -> -25.60985404 | AI49: -26.10985404 | AJ49: -48.97750304 | AK49: -48.97750304 | AL49: -48.97750304 | AM49: -24.15864474 | AN49: -24.15864474 | AO49: -24.15864474
E51: Net DART impact on core tax calculation | G51: £m 09/10 prices | AH51: =- AH18 - AH29 + AH37 -> -37.04666334 | AI51: -38.03272774 | AJ51: -61.39443082 | AK51: -61.89576427 | AL51: -62.40442081 | AM51: -38.09830294 | AN51: -38.63062363 | AO51: -39.18327233
B53: End of sheet

Sheet Depn
A1: Regulatory Depreciation
B2: =UserInterface!G17 -> NGGT TO
E3: Parameter | G3: Units | I3: Constant | AH3: Annual values
E4: PCFM year ending | F4: =Cover!C3 -> GT1 PCFM November 2017 DryRun3.xlsm | I4: =UserInterface!$G$10 -> 2019-03-31 | K4: 1991-03-31 | L4: 1992-03-31 | M4: 1993-03-31 | N4: 1994-03-31 | O4: 1995-03-31 | P4: 1996-03-31 | Q4: 1997-03-31 | R4: 1998-03-31 | S4: 1999-03-31 | T4: 2000-03-31 | U4: 2001-03-31 | V4: 2002-03-31 | W4: 2003-03-31 | X4: 2004-03-31 | Y4: 2005-03-31 | Z4: 2006-03-31 | AA4: 2007-03-31 | AB4: 2008-03-31 | AC4: 2009-03-31 | AD4: 2010-03-31 | AE4: 2011-03-31 | AF4: 2012-03-31 | AG4: 2013-03-31 | AH4: 2014-03-31 | AI4: 2015-03-31 | AJ4: 2016-03-31 | AK4: 2017-03-31 | AL4: 2018-03-31 | AM4: 2019-03-31 | AN4: 2020-03-31 | AO4: 2021-03-31
B6: Regulatory depreciation
C8: Net RAV additions (after disposals)
C9: Note: Additions to RAV are combined before feeding into the depreciation calculations. Disposals are treated as negative additions. Pre-RIIO values are used to build up the post-vesting RAV from vesting.
C10: Logged-up and security costs are retrospectively added to RAV to provide the updated opening RAV and align depreciation with expenditure.
E12: Slow money | G12: £m 09/10 prices | AH12: =TIM!AH100 -> 133.9772494 | AI12: =TIM!AI100 -> 128.0848441 | AJ12: =TIM!AJ100 -> 127.4007493 | AK12: =TIM!AK100 -> 148.5317044 | AL12: =TIM!AL100 -> 176.0037859 | AM12: =TIM!AM100 -> 162.8510757 | AN12: =TIM!AN100 -> 136.199707 | AO12: =TIM!AO100 -> 114.3942414
E13: Net adjustments | G13: £m 09/10 prices | AH13: =SUM(Input!AH201:AH203) -> 68.0736166 | AI13: =SUM(Input!AI200:AI203) -> -0.007757980105 | AJ13: =SUM(Input!AJ200:AJ203) -> -0.007757980105 | AK13: =SUM(Input!AK200:AK203) -> -0.007757980105 | AL13: =SUM(Input!AL200:AL203) -> -0.007757980105 | AM13: =SUM(Input!AM200:AM203) -> -0.007757980105 | AN13: =SUM(Input!AN200:AN203) -> -0.007757980105 | AO13: =SUM(Input!AO200:AO203) -> -0.007757980105
E14: Pre-RIIO net RAV additions (after disposals) | G14: £m 09/10 prices | J14: > | K14: =Input!K200 -> 0 | L14: =Input!L200 -> 0 | M14: =Input!M200 -> 0 | N14: =Input!N200 -> 0 | O14: =Input!O200 -> 0 | P14: =Input!P200 -> 0 | Q14: =Input!Q200 -> 0 | R14: =Input!R200 -> 0 | S14: =Input!S200 -> 0 | T14: =Input!T200 -> 0 | U14: =Input!U200 -> 0 | V14: =Input!V200 -> 0 | W14: =Input!W200 -> 0 | X14: =Input!X200 -> 299.3439968 | Y14: =Input!Y200 -> 96.38168898 | Z14: =Input!Z200 -> 300.0086599 | AA14: =Input!AA200 -> 541.1112417 | AB14: =Input!AB200 -> 585.7885273 | AC14: =Input!AC200 -> 247.7735543 | AD14: =Input!AD200 -> 123.1950711 | AE14: =Input!AE200 -> 99.98357059 | AF14: =Input!AF200 -> 101.1196543 | AG14: =Input!AG200 -> -28.7623433
E15: Net RAV additions (after disposals) | G15: £m 09/10 prices | J15: > | K15: =SUM(K12:K14) -> 0 | L15: 0 | M15: 0 | N15: 0 | O15: 0 | P15: 0 | Q15: 0 | R15: 0 | S15: 0 | T15: 0 | U15: 0 | V15: 0 | W15: 0 | X15: 299.3439968 | Y15: 96.38168898 | Z15: 300.0086599 | AA15: 541.1112417 | AB15: 585.7885273 | AC15: 247.7735543 | AD15: 123.1950711 | AE15: 99.98357059 | AF15: 101.1196543 | AG15: -28.7623433 | AH15: 202.050866 | AI15: 128.0770862 | AJ15: 127.3929913 | AK15: 148.5239464 | AL15: 175.9960279 | AM15: 162.8433177 | AN15: 136.191949 | AO15: 114.3864834
C17: Net depreciation additions (after disposals)
C18: Note:
E20: Pre-RIIO transfers to depreciation | G20: £m 09/10 prices | J20: > | K20: =Input!K204 -> 0 | L20: =Input!L204 -> 0 | M20: =Input!M204 -> 0 | N20: =Input!N204 -> 0 | O20: =Input!O204 -> 0 | P20: =Input!P204 -> 0 | Q20: =Input!Q204 -> 0 | R20: =Input!R204 -> 0 | S20: =Input!S204 -> 0 | T20: =Input!T204 -> 0 | U20: =Input!U204 -> 0 | V20: =Input!V204 -> 0 | W20: =Input!W204 -> 0 | X20: =Input!X204 -> 3.410313723 | Y20: =Input!Y204 -> 0 | Z20: =Input!Z204 -> 0 | AA20: =Input!AA204 -> 0 | AB20: =Input!AB204 -> 0 | AC20: =Input!AC204 -> 0 | AD20: =Input!AD204 -> 0 | AE20: =Input!AE204 -> 0 | AF20: =Input!AF204 -> 0 | AG20: =Input!AG204 -> -8.311783379
C22: Pre-vesting depreciation
C23: Note: The following depreciation factor is used to depreciate the pre-vesting balance on the "Return&RAV" sheet.
E25: Pre-vesting asset life | G25: years | I25: =Input!I189 -> 56
E26: Sum of digits | G26: integer | I26: =I25 * (1 + I25) / 2 -> 1596
E27: Years of pre-vesting depreciation remaining | G27: years | AH27: =Input!AH191 -> 45 | AI27: =Input!AI191 -> 44 | AJ27: =Input!AJ191 -> 43 | AK27: =Input!AK191 -> 42 | AL27: =Input!AL191 -> 41 | AM27: =Input!AM191 -> 40 | AN27: =Input!AN191 -> 39 | AO27: =Input!AO191 -> 38
E29: Pre-vesting straight line depreciation factor | G29: scalar | AH29: =AH27 / $I26 -> 0.02819548872 | AI29: =AI27 / $I26 -> 0.02756892231 | AJ29: 0.02694235589 | AK29: 0.02631578947 | AL29: 0.02568922306 | AM29: 0.02506265664 | AN29: 0.02443609023 | AO29: 0.02380952381
C31: Post-vesting depreciation
D33: Depreciation parameters
E35: Post-vesting asset life | G35: years | J35: > | K35: =Input!K196 -> 45 | L35: =Input!L196 -> 45 | M35: =Input!M196 -> 45 | N35: =Input!N196 -> 45 | O35: =Input!O196 -> 45 | P35: =Input!P196 -> 45 | Q35: =Input!Q196 -> 45 | R35: =Input!R196 -> 45 | S35: =Input!S196 -> 45 | T35: =Input!T196 -> 45 | U35: =Input!U196 -> 45 | V35: =Input!V196 -> 45 | W35: =Input!W196 -> 45 | X35: =Input!X196 -> 45 | Y35: =Input!Y196 -> 45 | Z35: =Input!Z196 -> 45 | AA35: =Input!AA196 -> 45 | AB35: =Input!AB196 -> 45 | AC35: =Input!AC196 -> 45 | AD35: =Input!AD196 -> 45 | AE35: =Input!AE196 -> 45 | AF35: =Input!AF196 -> 45 | AG35: =Input!AG196 -> 45 | AH35: =Input!AH196 -> 45 | AI35: =Input!AI196 -> 45 | AJ35: =Input!AJ196 -> 45 | AK35: =Input!AK196 -> 45 | AL35: =Input!AL196 -> 45 | AM35: =Input!AM196 -> 45 | AN35: =Input!AN196 -> 45 | AO35: =Input!AO196 -> 45
D37: Depreciation schedule
E39: Depreciation of additions from year ending | I39: Net additions
E40: 1991-03-31 | G40: £m 09/10 prices | I40: =TRANSPOSE(K15:AO15) -> 0 | J40: > | L40: =$I40/K$35 -> 0 | M40: =IF($I40 >0, MIN(L40,$I40-SUM($L40:L40)), MAX(L40,$I40-SUM($L40:L40))) -> 0 | N40: =IF($I40 >0, MIN(M40,$I40-SUM($L40:M40)), MAX(M40,$I40-SUM($L40:M40))) -> 0 | O40: =IF($I40 >0, MIN(N40,$I40-SUM($L40:N40)), MAX(N40,$I40-SUM($L40:N40))) -> 0 | P40: =IF($I40 >0, MIN(O40,$I40-SUM($L40:O40)), MAX(O40,$I40-SUM($L40:O40))) -> 0 | Q40: =IF($I40 >0, MIN(P40,$I40-SUM($L40:P40)), MAX(P40,$I40-SUM($L40:P40))) -> 0 | R40: =IF($I40 >0, MIN(Q40,$I40-SUM($L40:Q40)), MAX(Q40,$I40-SUM($L40:Q40))) -> 0 | S40: =IF($I40 >0, MIN(R40,$I40-SUM($L40:R40)), MAX(R40,$I40-SUM($L40:R40))) -> 0 | T40: =IF($I40 >0, MIN(S40,$I40-SUM($L40:S40)), MAX(S40,$I40-SUM($L40:S40))) -> 0 | U40: =IF($I40 >0, MIN(T40,$I40-SUM($L40:T40)), MAX(T40,$I40-SUM($L40:T40))) -> 0 | V40: =IF($I40 >0, MIN(U40,$I40-SUM($L40:U40)), MAX(U40,$I40-SUM($L40:U40))) -> 0 | W40: =IF($I40 >0, MIN(V40,$I40-SUM($L40:V40)), MAX(V40,$I40-SUM($L40:V40))) -> 0 | X40: =IF($I40 >0, MIN(W40,$I40-SUM($L40:W40)), MAX(W40,$I40-SUM($L40:W40))) -> 0 | Y40: =IF($I40 >0, MIN(X40,$I40-SUM($L40:X40)), MAX(X40,$I40-SUM($L40:X40))) -> 0 | Z40: =IF($I40 >0, MIN(Y40,$I40-SUM($L40:Y40)), MAX(Y40,$I40-SUM($L40:Y40))) -> 0 | AA40: =IF($I40 >0, MIN(Z40,$I40-SUM($L40:Z40)), MAX(Z40,$I40-SUM($L40:Z40))) -> 0 | AB40: =IF($I40 >0, MIN(AA40,$I40-SUM($L40:AA40)), MAX(AA40,$I40-SUM($L40:AA40))) -> 0 | AC40: =IF($I40 >0, MIN(AB40,$I40-SUM($L40:AB40)), MAX(AB40,$I40-SUM($L40:AB40))) -> 0 | AD40: =IF($I40 >0, MIN(AC40,$I40-SUM($L40:AC40)), MAX(AC40,$I40-SUM($L40:AC40))) -> 0 | AE40: =IF($I40 >0, MIN(AD40,$I40-SUM($L40:AD40)), MAX(AD40,$I40-SUM($L40:AD40))) -> 0 | AF40: =IF($I40 >0, MIN(AE40,$I40-SUM($L40:AE40)), MAX(AE40,$I40-SUM($L40:AE40))) -> 0 | AG40: =IF($I40 >0, MIN(AF40,$I40-SUM($L40:AF40)), MAX(AF40,$I40-SUM($L40:AF40))) -> 0 | AH40: =IF($I40 >0, MIN(AG40,$I40-SUM($L40:AG40)), MAX(AG40,$I40-SUM($L40:AG40))) -> 0 | AI40: =IF($I40 >0, MIN(AH40,$I40-SUM($L40:AH40)), MAX(AH40,$I40-SUM($L40:AH40))) -> 0 | AJ40: =IF($I40 >0, MIN(AI40,$I40-SUM($L40:AI40)), MAX(AI40,$I40-SUM($L40:AI40))) -> 0 | AK40: =IF($I40 >0, MIN(AJ40,$I40-SUM($L40:AJ40)), MAX(AJ40,$I40-SUM($L40:AJ40))) -> 0 | AL40: =IF($I40 >0, MIN(AK40,$I40-SUM($L40:AK40)), MAX(AK40,$I40-SUM($L40:AK40))) -> 0 | AM40: =IF($I40 >0, MIN(AL40,$I40-SUM($L40:AL40)), MAX(AL40,$I40-SUM($L40:AL40))) -> 0 | AN40: =IF($I40 >0, MIN(AM40,$I40-SUM($L40:AM40)), MAX(AM40,$I40-SUM($L40:AM40))) -> 0 | AO40: =IF($I40 >0, MIN(AN40,$I40-SUM($L40:AN40)), MAX(AN40,$I40-SUM($L40:AN40))) -> 0
E41: 1992-03-31 | G41: £m 09/10 prices | I41: 0 | J41: > | M41: =$I41/L$35 -> 0 | N41: =IF($I41 >0, MIN(M41,$I41-SUM($L41:M41)), MAX(M41,$I41-SUM($L41:M41))) -> 0 | O41: =IF($I41 >0, MIN(N41,$I41-SUM($L41:N41)), MAX(N41,$I41-SUM($L41:N41))) -> 0 | P41: =IF($I41 >0, MIN(O41,$I41-SUM($L41:O41)), MAX(O41,$I41-SUM($L41:O41))) -> 0 | Q41: =IF($I41 >0, MIN(P41,$I41-SUM($L41:P41)), MAX(P41,$I41-SUM($L41:P41))) -> 0 | R41: =IF($I41 >0, MIN(Q41,$I41-SUM($L41:Q41)), MAX(Q41,$I41-SUM($L41:Q41))) -> 0 | S41: =IF($I41 >0, MIN(R41,$I41-SUM($L41:R41)), MAX(R41,$I41-SUM($L41:R41))) -> 0 | T41: =IF($I41 >0, MIN(S41,$I41-SUM($L41:S41)), MAX(S41,$I41-SUM($L41:S41))) -> 0 | U41: =IF($I41 >0, MIN(T41,$I41-SUM($L41:T41)), MAX(T41,$I41-SUM($L41:T41))) -> 0 | V41: =IF($I41 >0, MIN(U41,$I41-SUM($L41:U41)), MAX(U41,$I41-SUM($L41:U41))) -> 0 | W41: =IF($I41 >0, MIN(V41,$I41-SUM($L41:V41)), MAX(V41,$I41-SUM($L41:V41))) -> 0 | X41: =IF($I41 >0, MIN(W41,$I41-SUM($L41:W41)), MAX(W41,$I41-SUM($L41:W41))) -> 0 | Y41: =IF($I41 >0, MIN(X41,$I41-SUM($L41:X41)), MAX(X41,$I41-SUM($L41:X41))) -> 0 | Z41: =IF($I41 >0, MIN(Y41,$I41-SUM($L41:Y41)), MAX(Y41,$I41-SUM($L41:Y41))) -> 0 | AA41: =IF($I41 >0, MIN(Z41,$I41-SUM($L41:Z41)), MAX(Z41,$I41-SUM($L41:Z41))) -> 0 | AB41: =IF($I41 >0, MIN(AA41,$I41-SUM($L41:AA41)), MAX(AA41,$I41-SUM($L41:AA41))) -> 0 | AC41: =IF($I41 >0, MIN(AB41,$I41-SUM($L41:AB41)), MAX(AB41,$I41-SUM($L41:AB41))) -> 0 | AD41: =IF($I41 >0, MIN(AC41,$I41-SUM($L41:AC41)), MAX(AC41,$I41-SUM($L41:AC41))) -> 0 | AE41: =IF($I41 >0, MIN(AD41,$I41-SUM($L41:AD41)), MAX(AD41,$I41-SUM($L41:AD41))) -> 0 | AF41: =IF($I41 >0, MIN(AE41,$I41-SUM($L41:AE41)), MAX(AE41,$I41-SUM($L41:AE41))) -> 0 | AG41: =IF($I41 >0, MIN(AF41,$I41-SUM($L41:AF41)), MAX(AF41,$I41-SUM($L41:AF41))) -> 0 | AH41: =IF($I41 >0, MIN(AG41,$I41-SUM($L41:AG41)), MAX(AG41,$I41-SUM($L41:AG41))) -> 0 | AI41: =IF($I41 >0, MIN(AH41,$I41-SUM($L41:AH41)), MAX(AH41,$I41-SUM($L41:AH41))) -> 0 | AJ41: =IF($I41 >0, MIN(AI41,$I41-SUM($L41:AI41)), MAX(AI41,$I41-SUM($L41:AI41))) -> 0 | AK41: =IF($I41 >0, MIN(AJ41,$I41-SUM($L41:AJ41)), MAX(AJ41,$I41-SUM($L41:AJ41))) -> 0 | AL41: =IF($I41 >0, MIN(AK41,$I41-SUM($L41:AK41)), MAX(AK41,$I41-SUM($L41:AK41))) -> 0 | AM41: =IF($I41 >0, MIN(AL41,$I41-SUM($L41:AL41)), MAX(AL41,$I41-SUM($L41:AL41))) -> 0 | AN41: =IF($I41 >0, MIN(AM41,$I41-SUM($L41:AM41)), MAX(AM41,$I41-SUM($L41:AM41))) -> 0 | AO41: =IF($I41 >0, MIN(AN41,$I41-SUM($L41:AN41)), MAX(AN41,$I41-SUM($L41:AN41))) -> 0
E42: 1993-03-31 | G42: £m 09/10 prices | I42: 0 | J42: > | N42: =$I42/M$35 -> 0 | O42: =IF($I42 >0, MIN(N42,$I42-SUM($L42:N42)), MAX(N42,$I42-SUM($L42:N42))) -> 0 | P42: =IF($I42 >0, MIN(O42,$I42-SUM($L42:O42)), MAX(O42,$I42-SUM($L42:O42))) -> 0 | Q42: =IF($I42 >0, MIN(P42,$I42-SUM($L42:P42)), MAX(P42,$I42-SUM($L42:P42))) -> 0 | R42: =IF($I42 >0, MIN(Q42,$I42-SUM($L42:Q42)), MAX(Q42,$I42-SUM($L42:Q42))) -> 0 | S42: =IF($I42 >0, MIN(R42,$I42-SUM($L42:R42)), MAX(R42,$I42-SUM($L42:R42))) -> 0 | T42: =IF($I42 >0, MIN(S42,$I42-SUM($L42:S42)), MAX(S42,$I42-SUM($L42:S42))) -> 0 | U42: =IF($I42 >0, MIN(T42,$I42-SUM($L42:T42)), MAX(T42,$I42-SUM($L42:T42))) -> 0 | V42: =IF($I42 >0, MIN(U42,$I42-SUM($L42:U42)), MAX(U42,$I42-SUM($L42:U42))) -> 0 | W42: =IF($I42 >0, MIN(V42,$I42-SUM($L42:V42)), MAX(V42,$I42-SUM($L42:V42))) -> 0 | X42: =IF($I42 >0, MIN(W42,$I42-SUM($L42:W42)), MAX(W42,$I42-SUM($L42:W42))) -> 0 | Y42: =IF($I42 >0, MIN(X42,$I42-SUM($L42:X42)), MAX(X42,$I42-SUM($L42:X42))) -> 0 | Z42: =IF($I42 >0, MIN(Y42,$I42-SUM($L42:Y42)), MAX(Y42,$I42-SUM($L42:Y42))) -> 0 | AA42: =IF($I42 >0, MIN(Z42,$I42-SUM($L42:Z42)), MAX(Z42,$I42-SUM($L42:Z42))) -> 0 | AB42: =IF($I42 >0, MIN(AA42,$I42-SUM($L42:AA42)), MAX(AA42,$I42-SUM($L42:AA42))) -> 0 | AC42: =IF($I42 >0, MIN(AB42,$I42-SUM($L42:AB42)), MAX(AB42,$I42-SUM($L42:AB42))) -> 0 | AD42: =IF($I42 >0, MIN(AC42,$I42-SUM($L42:AC42)), MAX(AC42,$I42-SUM($L42:AC42))) -> 0 | AE42: =IF($I42 >0, MIN(AD42,$I42-SUM($L42:AD42)), MAX(AD42,$I42-SUM($L42:AD42))) -> 0 | AF42: =IF($I42 >0, MIN(AE42,$I42-SUM($L42:AE42)), MAX(AE42,$I42-SUM($L42:AE42))) -> 0 | AG42: =IF($I42 >0, MIN(AF42,$I42-SUM($L42:AF42)), MAX(AF42,$I42-SUM($L42:AF42))) -> 0 | AH42: =IF($I42 >0, MIN(AG42,$I42-SUM($L42:AG42)), MAX(AG42,$I42-SUM($L42:AG42))) -> 0 | AI42: =IF($I42 >0, MIN(AH42,$I42-SUM($L42:AH42)), MAX(AH42,$I42-SUM($L42:AH42))) -> 0 | AJ42: =IF($I42 >0, MIN(AI42,$I42-SUM($L42:AI42)), MAX(AI42,$I42-SUM($L42:AI42))) -> 0 | AK42: =IF($I42 >0, MIN(AJ42,$I42-SUM($L42:AJ42)), MAX(AJ42,$I42-SUM($L42:AJ42))) -> 0 | AL42: =IF($I42 >0, MIN(AK42,$I42-SUM($L42:AK42)), MAX(AK42,$I42-SUM($L42:AK42))) -> 0 | AM42: =IF($I42 >0, MIN(AL42,$I42-SUM($L42:AL42)), MAX(AL42,$I42-SUM($L42:AL42))) -> 0 | AN42: =IF($I42 >0, MIN(AM42,$I42-SUM($L42:AM42)), MAX(AM42,$I42-SUM($L42:AM42))) -> 0 | AO42: =IF($I42 >0, MIN(AN42,$I42-SUM($L42:AN42)), MAX(AN42,$I42-SUM($L42:AN42))) -> 0
E43: 1994-03-31 | G43: £m 09/10 prices | I43: 0 | J43: > | O43: =$I43/N$35 -> 0 | P43: =IF($I43 >0, MIN(O43,$I43-SUM($L43:O43)), MAX(O43,$I43-SUM($L43:O43))) -> 0 | Q43: =IF($I43 >0, MIN(P43,$I43-SUM($L43:P43)), MAX(P43,$I43-SUM($L43:P43))) -> 0 | R43: =IF($I43 >0, MIN(Q43,$I43-SUM($L43:Q43)), MAX(Q43,$I43-SUM($L43:Q43))) -> 0 | S43: =IF($I43 >0, MIN(R43,$I43-SUM($L43:R43)), MAX(R43,$I43-SUM($L43:R43))) -> 0 | T43: =IF($I43 >0, MIN(S43,$I43-SUM($L43:S43)), MAX(S43,$I43-SUM($L43:S43))) -> 0 | U43: =IF($I43 >0, MIN(T43,$I43-SUM($L43:T43)), MAX(T43,$I43-SUM($L43:T43))) -> 0 | V43: =IF($I43 >0, MIN(U43,$I43-SUM($L43:U43)), MAX(U43,$I43-SUM($L43:U43))) -> 0 | W43: =IF($I43 >0, MIN(V43,$I43-SUM($L43:V43)), MAX(V43,$I43-SUM($L43:V43))) -> 0 | X43: =IF($I43 >0, MIN(W43,$I43-SUM($L43:W43)), MAX(W43,$I43-SUM($L43:W43))) -> 0 | Y43: =IF($I43 >0, MIN(X43,$I43-SUM($L43:X43)), MAX(X43,$I43-SUM($L43:X43))) -> 0 | Z43: =IF($I43 >0, MIN(Y43,$I43-SUM($L43:Y43)), MAX(Y43,$I43-SUM($L43:Y43))) -> 0 | AA43: =IF($I43 >0, MIN(Z43,$I43-SUM($L43:Z43)), MAX(Z43,$I43-SUM($L43:Z43))) -> 0 | AB43: =IF($I43 >0, MIN(AA43,$I43-SUM($L43:AA43)), MAX(AA43,$I43-SUM($L43:AA43))) -> 0 | AC43: =IF($I43 >0, MIN(AB43,$I43-SUM($L43:AB43)), MAX(AB43,$I43-SUM($L43:AB43))) -> 0 | AD43: =IF($I43 >0, MIN(AC43,$I43-SUM($L43:AC43)), MAX(AC43,$I43-SUM($L43:AC43))) -> 0 | AE43: =IF($I43 >0, MIN(AD43,$I43-SUM($L43:AD43)), MAX(AD43,$I43-SUM($L43:AD43))) -> 0 | AF43: =IF($I43 >0, MIN(AE43,$I43-SUM($L43:AE43)), MAX(AE43,$I43-SUM($L43:AE43))) -> 0 | AG43: =IF($I43 >0, MIN(AF43,$I43-SUM($L43:AF43)), MAX(AF43,$I43-SUM($L43:AF43))) -> 0 | AH43: =IF($I43 >0, MIN(AG43,$I43-SUM($L43:AG43)), MAX(AG43,$I43-SUM($L43:AG43))) -> 0 | AI43: =IF($I43 >0, MIN(AH43,$I43-SUM($L43:AH43)), MAX(AH43,$I43-SUM($L43:AH43))) -> 0 | AJ43: =IF($I43 >0, MIN(AI43,$I43-SUM($L43:AI43)), MAX(AI43,$I43-SUM($L43:AI43))) -> 0 | AK43: =IF($I43 >0, MIN(AJ43,$I43-SUM($L43:AJ43)), MAX(AJ43,$I43-SUM($L43:AJ43))) -> 0 | AL43: =IF($I43 >0, MIN(AK43,$I43-SUM($L43:AK43)), MAX(AK43,$I43-SUM($L43:AK43))) -> 0 | AM43: =IF($I43 >0, MIN(AL43,$I43-SUM($L43:AL43)), MAX(AL43,$I43-SUM($L43:AL43))) -> 0 | AN43: =IF($I43 >0, MIN(AM43,$I43-SUM($L43:AM43)), MAX(AM43,$I43-SUM($L43:AM43))) -> 0 | AO43: =IF($I43 >0, MIN(AN43,$I43-SUM($L43:AN43)), MAX(AN43,$I43-SUM($L43:AN43))) -> 0
E44: 1995-03-31 | G44: £m 09/10 prices | I44: 0 | J44: > | P44: =$I44/O$35 -> 0 | Q44: =IF($I44 >0, MIN(P44,$I44-SUM($L44:P44)), MAX(P44,$I44-SUM($L44:P44))) -> 0 | R44: =IF($I44 >0, MIN(Q44,$I44-SUM($L44:Q44)), MAX(Q44,$I44-SUM($L44:Q44))) -> 0 | S44: =IF($I44 >0, MIN(R44,$I44-SUM($L44:R44)), MAX(R44,$I44-SUM($L44:R44))) -> 0 | T44: =IF($I44 >0, MIN(S44,$I44-SUM($L44:S44)), MAX(S44,$I44-SUM($L44:S44))) -> 0 | U44: =IF($I44 >0, MIN(T44,$I44-SUM($L44:T44)), MAX(T44,$I44-SUM($L44:T44))) -> 0 | V44: =IF($I44 >0, MIN(U44,$I44-SUM($L44:U44)), MAX(U44,$I44-SUM($L44:U44))) -> 0 | W44: =IF($I44 >0, MIN(V44,$I44-SUM($L44:V44)), MAX(V44,$I44-SUM($L44:V44))) -> 0 | X44: =IF($I44 >0, MIN(W44,$I44-SUM($L44:W44)), MAX(W44,$I44-SUM($L44:W44))) -> 0 | Y44: =IF($I44 >0, MIN(X44,$I44-SUM($L44:X44)), MAX(X44,$I44-SUM($L44:X44))) -> 0 | Z44: =IF($I44 >0, MIN(Y44,$I44-SUM($L44:Y44)), MAX(Y44,$I44-SUM($L44:Y44))) -> 0 | AA44: =IF($I44 >0, MIN(Z44,$I44-SUM($L44:Z44)), MAX(Z44,$I44-SUM($L44:Z44))) -> 0 | AB44: =IF($I44 >0, MIN(AA44,$I44-SUM($L44:AA44)), MAX(AA44,$I44-SUM($L44:AA44))) -> 0 | AC44: =IF($I44 >0, MIN(AB44,$I44-SUM($L44:AB44)), MAX(AB44,$I44-SUM($L44:AB44))) -> 0 | AD44: =IF($I44 >0, MIN(AC44,$I44-SUM($L44:AC44)), MAX(AC44,$I44-SUM($L44:AC44))) -> 0 | AE44: =IF($I44 >0, MIN(AD44,$I44-SUM($L44:AD44)), MAX(AD44,$I44-SUM($L44:AD44))) -> 0 | AF44: =IF($I44 >0, MIN(AE44,$I44-SUM($L44:AE44)), MAX(AE44,$I44-SUM($L44:AE44))) -> 0 | AG44: =IF($I44 >0, MIN(AF44,$I44-SUM($L44:AF44)), MAX(AF44,$I44-SUM($L44:AF44))) -> 0 | AH44: =IF($I44 >0, MIN(AG44,$I44-SUM($L44:AG44)), MAX(AG44,$I44-SUM($L44:AG44))) -> 0 | AI44: =IF($I44 >0, MIN(AH44,$I44-SUM($L44:AH44)), MAX(AH44,$I44-SUM($L44:AH44))) -> 0 | AJ44: =IF($I44 >0, MIN(AI44,$I44-SUM($L44:AI44)), MAX(AI44,$I44-SUM($L44:AI44))) -> 0 | AK44: =IF($I44 >0, MIN(AJ44,$I44-SUM($L44:AJ44)), MAX(AJ44,$I44-SUM($L44:AJ44))) -> 0 | AL44: =IF($I44 >0, MIN(AK44,$I44-SUM($L44:AK44)), MAX(AK44,$I44-SUM($L44:AK44))) -> 0 | AM44: =IF($I44 >0, MIN(AL44,$I44-SUM($L44:AL44)), MAX(AL44,$I44-SUM($L44:AL44))) -> 0 | AN44: =IF($I44 >0, MIN(AM44,$I44-SUM($L44:AM44)), MAX(AM44,$I44-SUM($L44:AM44))) -> 0 | AO44: =IF($I44 >0, MIN(AN44,$I44-SUM($L44:AN44)), MAX(AN44,$I44-SUM($L44:AN44))) -> 0
E45: 1996-03-31 | G45: £m 09/10 prices | I45: 0 | J45: > | Q45: =$I45/P$35 -> 0 | R45: =IF($I45 >0, MIN(Q45,$I45-SUM($L45:Q45)), MAX(Q45,$I45-SUM($L45:Q45))) -> 0 | S45: =IF($I45 >0, MIN(R45,$I45-SUM($L45:R45)), MAX(R45,$I45-SUM($L45:R45))) -> 0 | T45: =IF($I45 >0, MIN(S45,$I45-SUM($L45:S45)), MAX(S45,$I45-SUM($L45:S45))) -> 0 | U45: =IF($I45 >0, MIN(T45,$I45-SUM($L45:T45)), MAX(T45,$I45-SUM($L45:T45))) -> 0 | V45: =IF($I45 >0, MIN(U45,$I45-SUM($L45:U45)), MAX(U45,$I45-SUM($L45:U45))) -> 0 | W45: =IF($I45 >0, MIN(V45,$I45-SUM($L45:V45)), MAX(V45,$I45-SUM($L45:V45))) -> 0 | X45: =IF($I45 >0, MIN(W45,$I45-SUM($L45:W45)), MAX(W45,$I45-SUM($L45:W45))) -> 0 | Y45: =IF($I45 >0, MIN(X45,$I45-SUM($L45:X45)), MAX(X45,$I45-SUM($L45:X45))) -> 0 | Z45: =IF($I45 >0, MIN(Y45,$I45-SUM($L45:Y45)), MAX(Y45,$I45-SUM($L45:Y45))) -> 0 | AA45: =IF($I45 >0, MIN(Z45,$I45-SUM($L45:Z45)), MAX(Z45,$I45-SUM($L45:Z45))) -> 0 | AB45: =IF($I45 >0, MIN(AA45,$I45-SUM($L45:AA45)), MAX(AA45,$I45-SUM($L45:AA45))) -> 0 | AC45: =IF($I45 >0, MIN(AB45,$I45-SUM($L45:AB45)), MAX(AB45,$I45-SUM($L45:AB45))) -> 0 | AD45: =IF($I45 >0, MIN(AC45,$I45-SUM($L45:AC45)), MAX(AC45,$I45-SUM($L45:AC45))) -> 0 | AE45: =IF($I45 >0, MIN(AD45,$I45-SUM($L45:AD45)), MAX(AD45,$I45-SUM($L45:AD45))) -> 0 | AF45: =IF($I45 >0, MIN(AE45,$I45-SUM($L45:AE45)), MAX(AE45,$I45-SUM($L45:AE45))) -> 0 | AG45: =IF($I45 >0, MIN(AF45,$I45-SUM($L45:AF45)), MAX(AF45,$I45-SUM($L45:AF45))) -> 0 | AH45: =IF($I45 >0, MIN(AG45,$I45-SUM($L45:AG45)), MAX(AG45,$I45-SUM($L45:AG45))) -> 0 | AI45: =IF($I45 >0, MIN(AH45,$I45-SUM($L45:AH45)), MAX(AH45,$I45-SUM($L45:AH45))) -> 0 | AJ45: =IF($I45 >0, MIN(AI45,$I45-SUM($L45:AI45)), MAX(AI45,$I45-SUM($L45:AI45))) -> 0 | AK45: =IF($I45 >0, MIN(AJ45,$I45-SUM($L45:AJ45)), MAX(AJ45,$I45-SUM($L45:AJ45))) -> 0 | AL45: =IF($I45 >0, MIN(AK45,$I45-SUM($L45:AK45)), MAX(AK45,$I45-SUM($L45:AK45))) -> 0 | AM45: =IF($I45 >0, MIN(AL45,$I45-SUM($L45:AL45)), MAX(AL45,$I45-SUM($L45:AL45))) -> 0 | AN45: =IF($I45 >0, MIN(AM45,$I45-SUM($L45:AM45)), MAX(AM45,$I45-SUM($L45:AM45))) -> 0 | AO45: =IF($I45 >0, MIN(AN45,$I45-SUM($L45:AN45)), MAX(AN45,$I45-SUM($L45:AN45))) -> 0
E46: 1997-03-31 | G46: £m 09/10 prices | I46: 0 | J46: > | R46: =$I46/Q$35 -> 0 | S46: =IF($I46 >0, MIN(R46,$I46-SUM($L46:R46)), MAX(R46,$I46-SUM($L46:R46))) -> 0 | T46: =IF($I46 >0, MIN(S46,$I46-SUM($L46:S46)), MAX(S46,$I46-SUM($L46:S46))) -> 0 | U46: =IF($I46 >0, MIN(T46,$I46-SUM($L46:T46)), MAX(T46,$I46-SUM($L46:T46))) -> 0 | V46: =IF($I46 >0, MIN(U46,$I46-SUM($L46:U46)), MAX(U46,$I46-SUM($L46:U46))) -> 0 | W46: =IF($I46 >0, MIN(V46,$I46-SUM($L46:V46)), MAX(V46,$I46-SUM($L46:V46))) -> 0 | X46: =IF($I46 >0, MIN(W46,$I46-SUM($L46:W46)), MAX(W46,$I46-SUM($L46:W46))) -> 0 | Y46: =IF($I46 >0, MIN(X46,$I46-SUM($L46:X46)), MAX(X46,$I46-SUM($L46:X46))) -> 0 | Z46: =IF($I46 >0, MIN(Y46,$I46-SUM($L46:Y46)), MAX(Y46,$I46-SUM($L46:Y46))) -> 0 | AA46: =IF($I46 >0, MIN(Z46,$I46-SUM($L46:Z46)), MAX(Z46,$I46-SUM($L46:Z46))) -> 0 | AB46: =IF($I46 >0, MIN(AA46,$I46-SUM($L46:AA46)), MAX(AA46,$I46-SUM($L46:AA46))) -> 0 | AC46: =IF($I46 >0, MIN(AB46,$I46-SUM($L46:AB46)), MAX(AB46,$I46-SUM($L46:AB46))) -> 0 | AD46: =IF($I46 >0, MIN(AC46,$I46-SUM($L46:AC46)), MAX(AC46,$I46-SUM($L46:AC46))) -> 0 | AE46: =IF($I46 >0, MIN(AD46,$I46-SUM($L46:AD46)), MAX(AD46,$I46-SUM($L46:AD46))) -> 0 | AF46: =IF($I46 >0, MIN(AE46,$I46-SUM($L46:AE46)), MAX(AE46,$I46-SUM($L46:AE46))) -> 0 | AG46: =IF($I46 >0, MIN(AF46,$I46-SUM($L46:AF46)), MAX(AF46,$I46-SUM($L46:AF46))) -> 0 | AH46: =IF($I46 >0, MIN(AG46,$I46-SUM($L46:AG46)), MAX(AG46,$I46-SUM($L46:AG46))) -> 0 | AI46: =IF($I46 >0, MIN(AH46,$I46-SUM($L46:AH46)), MAX(AH46,$I46-SUM($L46:AH46))) -> 0 | AJ46: =IF($I46 >0, MIN(AI46,$I46-SUM($L46:AI46)), MAX(AI46,$I46-SUM($L46:AI46))) -> 0 | AK46: =IF($I46 >0, MIN(AJ46,$I46-SUM($L46:AJ46)), MAX(AJ46,$I46-SUM($L46:AJ46))) -> 0 | AL46: =IF($I46 >0, MIN(AK46,$I46-SUM($L46:AK46)), MAX(AK46,$I46-SUM($L46:AK46))) -> 0 | AM46: =IF($I46 >0, MIN(AL46,$I46-SUM($L46:AL46)), MAX(AL46,$I46-SUM($L46:AL46))) -> 0 | AN46: =IF($I46 >0, MIN(AM46,$I46-SUM($L46:AM46)), MAX(AM46,$I46-SUM($L46:AM46))) -> 0 | AO46: =IF($I46 >0, MIN(AN46,$I46-SUM($L46:AN46)), MAX(AN46,$I46-SUM($L46:AN46))) -> 0
E47: 1998-03-31 | G47: £m 09/10 prices | I47: 0 | J47: > | S47: =$I47/R$35 -> 0 | T47: =IF($I47 >0, MIN(S47,$I47-SUM($L47:S47)), MAX(S47,$I47-SUM($L47:S47))) -> 0 | U47: =IF($I47 >0, MIN(T47,$I47-SUM($L47:T47)), MAX(T47,$I47-SUM($L47:T47))) -> 0 | V47: =IF($I47 >0, MIN(U47,$I47-SUM($L47:U47)), MAX(U47,$I47-SUM($L47:U47))) -> 0 | W47: =IF($I47 >0, MIN(V47,$I47-SUM($L47:V47)), MAX(V47,$I47-SUM($L47:V47))) -> 0 | X47: =IF($I47 >0, MIN(W47,$I47-SUM($L47:W47)), MAX(W47,$I47-SUM($L47:W47))) -> 0 | Y47: =IF($I47 >0, MIN(X47,$I47-SUM($L47:X47)), MAX(X47,$I47-SUM($L47:X47))) -> 0 | Z47: =IF($I47 >0, MIN(Y47,$I47-SUM($L47:Y47)), MAX(Y47,$I47-SUM($L47:Y47))) -> 0 | AA47: =IF($I47 >0, MIN(Z47,$I47-SUM($L47:Z47)), MAX(Z47,$I47-SUM($L47:Z47))) -> 0 | AB47: =IF($I47 >0, MIN(AA47,$I47-SUM($L47:AA47)), MAX(AA47,$I47-SUM($L47:AA47))) -> 0 | AC47: =IF($I47 >0, MIN(AB47,$I47-SUM($L47:AB47)), MAX(AB47,$I47-SUM($L47:AB47))) -> 0 | AD47: =IF($I47 >0, MIN(AC47,$I47-SUM($L47:AC47)), MAX(AC47,$I47-SUM($L47:AC47))) -> 0 | AE47: =IF($I47 >0, MIN(AD47,$I47-SUM($L47:AD47)), MAX(AD47,$I47-SUM($L47:AD47))) -> 0 | AF47: =IF($I47 >0, MIN(AE47,$I47-SUM($L47:AE47)), MAX(AE47,$I47-SUM($L47:AE47))) -> 0 | AG47: =IF($I47 >0, MIN(AF47,$I47-SUM($L47:AF47)), MAX(AF47,$I47-SUM($L47:AF47))) -> 0 | AH47: =IF($I47 >0, MIN(AG47,$I47-SUM($L47:AG47)), MAX(AG47,$I47-SUM($L47:AG47))) -> 0 | AI47: =IF($I47 >0, MIN(AH47,$I47-SUM($L47:AH47)), MAX(AH47,$I47-SUM($L47:AH47))) -> 0 | AJ47: =IF($I47 >0, MIN(AI47,$I47-SUM($L47:AI47)), MAX(AI47,$I47-SUM($L47:AI47))) -> 0 | AK47: =IF($I47 >0, MIN(AJ47,$I47-SUM($L47:AJ47)), MAX(AJ47,$I47-SUM($L47:AJ47))) -> 0 | AL47: =IF($I47 >0, MIN(AK47,$I47-SUM($L47:AK47)), MAX(AK47,$I47-SUM($L47:AK47))) -> 0 | AM47: =IF($I47 >0, MIN(AL47,$I47-SUM($L47:AL47)), MAX(AL47,$I47-SUM($L47:AL47))) -> 0 | AN47: =IF($I47 >0, MIN(AM47,$I47-SUM($L47:AM47)), MAX(AM47,$I47-SUM($L47:AM47))) -> 0 | AO47: =IF($I47 >0, MIN(AN47,$I47-SUM($L47:AN47)), MAX(AN47,$I47-SUM($L47:AN47))) -> 0
E48: 1999-03-31 | G48: £m 09/10 prices | I48: 0 | J48: > | T48: =$I48/S$35 -> 0 | U48: =IF($I48 >0, MIN(T48,$I48-SUM($L48:T48)), MAX(T48,$I48-SUM($L48:T48))) -> 0 | V48: =IF($I48 >0, MIN(U48,$I48-SUM($L48:U48)), MAX(U48,$I48-SUM($L48:U48))) -> 0 | W48: =IF($I48 >0, MIN(V48,$I48-SUM($L48:V48)), MAX(V48,$I48-SUM($L48:V48))) -> 0 | X48: =IF($I48 >0, MIN(W48,$I48-SUM($L48:W48)), MAX(W48,$I48-SUM($L48:W48))) -> 0 | Y48: =IF($I48 >0, MIN(X48,$I48-SUM($L48:X48)), MAX(X48,$I48-SUM($L48:X48))) -> 0 | Z48: =IF($I48 >0, MIN(Y48,$I48-SUM($L48:Y48)), MAX(Y48,$I48-SUM($L48:Y48))) -> 0 | AA48: =IF($I48 >0, MIN(Z48,$I48-SUM($L48:Z48)), MAX(Z48,$I48-SUM($L48:Z48))) -> 0 | AB48: =IF($I48 >0, MIN(AA48,$I48-SUM($L48:AA48)), MAX(AA48,$I48-SUM($L48:AA48))) -> 0 | AC48: =IF($I48 >0, MIN(AB48,$I48-SUM($L48:AB48)), MAX(AB48,$I48-SUM($L48:AB48))) -> 0 | AD48: =IF($I48 >0, MIN(AC48,$I48-SUM($L48:AC48)), MAX(AC48,$I48-SUM($L48:AC48))) -> 0 | AE48: =IF($I48 >0, MIN(AD48,$I48-SUM($L48:AD48)), MAX(AD48,$I48-SUM($L48:AD48))) -> 0 | AF48: =IF($I48 >0, MIN(AE48,$I48-SUM($L48:AE48)), MAX(AE48,$I48-SUM($L48:AE48))) -> 0 | AG48: =IF($I48 >0, MIN(AF48,$I48-SUM($L48:AF48)), MAX(AF48,$I48-SUM($L48:AF48))) -> 0 | AH48: =IF($I48 >0, MIN(AG48,$I48-SUM($L48:AG48)), MAX(AG48,$I48-SUM($L48:AG48))) -> 0 | AI48: =IF($I48 >0, MIN(AH48,$I48-SUM($L48:AH48)), MAX(AH48,$I48-SUM($L48:AH48))) -> 0 | AJ48: =IF($I48 >0, MIN(AI48,$I48-SUM($L48:AI48)), MAX(AI48,$I48-SUM($L48:AI48))) -> 0 | AK48: =IF($I48 >0, MIN(AJ48,$I48-SUM($L48:AJ48)), MAX(AJ48,$I48-SUM($L48:AJ48))) -> 0 | AL48: =IF($I48 >0, MIN(AK48,$I48-SUM($L48:AK48)), MAX(AK48,$I48-SUM($L48:AK48))) -> 0 | AM48: =IF($I48 >0, MIN(AL48,$I48-SUM($L48:AL48)), MAX(AL48,$I48-SUM($L48:AL48))) -> 0 | AN48: =IF($I48 >0, MIN(AM48,$I48-SUM($L48:AM48)), MAX(AM48,$I48-SUM($L48:AM48))) -> 0 | AO48: =IF($I48 >0, MIN(AN48,$I48-SUM($L48:AN48)), MAX(AN48,$I48-SUM($L48:AN48))) -> 0
E49: 2000-03-31 | G49: £m 09/10 prices | I49: 0 | J49: > | U49: =$I49/T$35 -> 0 | V49: =IF($I49 >0, MIN(U49,$I49-SUM($L49:U49)), MAX(U49,$I49-SUM($L49:U49))) -> 0 | W49: =IF($I49 >0, MIN(V49,$I49-SUM($L49:V49)), MAX(V49,$I49-SUM($L49:V49))) -> 0 | X49: =IF($I49 >0, MIN(W49,$I49-SUM($L49:W49)), MAX(W49,$I49-SUM($L49:W49))) -> 0 | Y49: =IF($I49 >0, MIN(X49,$I49-SUM($L49:X49)), MAX(X49,$I49-SUM($L49:X49))) -> 0 | Z49: =IF($I49 >0, MIN(Y49,$I49-SUM($L49:Y49)), MAX(Y49,$I49-SUM($L49:Y49))) -> 0 | AA49: =IF($I49 >0, MIN(Z49,$I49-SUM($L49:Z49)), MAX(Z49,$I49-SUM($L49:Z49))) -> 0 | AB49: =IF($I49 >0, MIN(AA49,$I49-SUM($L49:AA49)), MAX(AA49,$I49-SUM($L49:AA49))) -> 0 | AC49: =IF($I49 >0, MIN(AB49,$I49-SUM($L49:AB49)), MAX(AB49,$I49-SUM($L49:AB49))) -> 0 | AD49: =IF($I49 >0, MIN(AC49,$I49-SUM($L49:AC49)), MAX(AC49,$I49-SUM($L49:AC49))) -> 0 | AE49: =IF($I49 >0, MIN(AD49,$I49-SUM($L49:AD49)), MAX(AD49,$I49-SUM($L49:AD49))) -> 0 | AF49: =IF($I49 >0, MIN(AE49,$I49-SUM($L49:AE49)), MAX(AE49,$I49-SUM($L49:AE49))) -> 0 | AG49: =IF($I49 >0, MIN(AF49,$I49-SUM($L49:AF49)), MAX(AF49,$I49-SUM($L49:AF49))) -> 0 | AH49: =IF($I49 >0, MIN(AG49,$I49-SUM($L49:AG49)), MAX(AG49,$I49-SUM($L49:AG49))) -> 0 | AI49: =IF($I49 >0, MIN(AH49,$I49-SUM($L49:AH49)), MAX(AH49,$I49-SUM($L49:AH49))) -> 0 | AJ49: =IF($I49 >0, MIN(AI49,$I49-SUM($L49:AI49)), MAX(AI49,$I49-SUM($L49:AI49))) -> 0 | AK49: =IF($I49 >0, MIN(AJ49,$I49-SUM($L49:AJ49)), MAX(AJ49,$I49-SUM($L49:AJ49))) -> 0 | AL49: =IF($I49 >0, MIN(AK49,$I49-SUM($L49:AK49)), MAX(AK49,$I49-SUM($L49:AK49))) -> 0 | AM49: =IF($I49 >0, MIN(AL49,$I49-SUM($L49:AL49)), MAX(AL49,$I49-SUM($L49:AL49))) -> 0 | AN49: =IF($I49 >0, MIN(AM49,$I49-SUM($L49:AM49)), MAX(AM49,$I49-SUM($L49:AM49))) -> 0 | AO49: =IF($I49 >0, MIN(AN49,$I49-SUM($L49:AN49)), MAX(AN49,$I49-SUM($L49:AN49))) -> 0
E50: 2001-03-31 | G50: £m 09/10 prices | I50: 0 | J50: > | V50: =$I50/U$35 -> 0 | W50: =IF($I50 >0, MIN(V50,$I50-SUM($L50:V50)), MAX(V50,$I50-SUM($L50:V50))) -> 0 | X50: =IF($I50 >0, MIN(W50,$I50-SUM($L50:W50)), MAX(W50,$I50-SUM($L50:W50))) -> 0 | Y50: =IF($I50 >0, MIN(X50,$I50-SUM($L50:X50)), MAX(X50,$I50-SUM($L50:X50))) -> 0 | Z50: =IF($I50 >0, MIN(Y50,$I50-SUM($L50:Y50)), MAX(Y50,$I50-SUM($L50:Y50))) -> 0 | AA50: =IF($I50 >0, MIN(Z50,$I50-SUM($L50:Z50)), MAX(Z50,$I50-SUM($L50:Z50))) -> 0 | AB50: =IF($I50 >0, MIN(AA50,$I50-SUM($L50:AA50)), MAX(AA50,$I50-SUM($L50:AA50))) -> 0 | AC50: =IF($I50 >0, MIN(AB50,$I50-SUM($L50:AB50)), MAX(AB50,$I50-SUM($L50:AB50))) -> 0 | AD50: =IF($I50 >0, MIN(AC50,$I50-SUM($L50:AC50)), MAX(AC50,$I50-SUM($L50:AC50))) -> 0 | AE50: =IF($I50 >0, MIN(AD50,$I50-SUM($L50:AD50)), MAX(AD50,$I50-SUM($L50:AD50))) -> 0 | AF50: =IF($I50 >0, MIN(AE50,$I50-SUM($L50:AE50)), MAX(AE50,$I50-SUM($L50:AE50))) -> 0 | AG50: =IF($I50 >0, MIN(AF50,$I50-SUM($L50:AF50)), MAX(AF50,$I50-SUM($L50:AF50))) -> 0 | AH50: =IF($I50 >0, MIN(AG50,$I50-SUM($L50:AG50)), MAX(AG50,$I50-SUM($L50:AG50))) -> 0 | AI50: =IF($I50 >0, MIN(AH50,$I50-SUM($L50:AH50)), MAX(AH50,$I50-SUM($L50:AH50))) -> 0 | AJ50: =IF($I50 >0, MIN(AI50,$I50-SUM($L50:AI50)), MAX(AI50,$I50-SUM($L50:AI50))) -> 0 | AK50: =IF($I50 >0, MIN(AJ50,$I50-SUM($L50:AJ50)), MAX(AJ50,$I50-SUM($L50:AJ50))) -> 0 | AL50: =IF($I50 >0, MIN(AK50,$I50-SUM($L50:AK50)), MAX(AK50,$I50-SUM($L50:AK50))) -> 0 | AM50: =IF($I50 >0, MIN(AL50,$I50-SUM($L50:AL50)), MAX(AL50,$I50-SUM($L50:AL50))) -> 0 | AN50: =IF($I50 >0, MIN(AM50,$I50-SUM($L50:AM50)), MAX(AM50,$I50-SUM($L50:AM50))) -> 0 | AO50: =IF($I50 >0, MIN(AN50,$I50-SUM($L50:AN50)), MAX(AN50,$I50-SUM($L50:AN50))) -> 0
E51: 2002-03-31 | G51: £m 09/10 prices | I51: 0 | J51: > | W51: =$I51/V$35 -> 0 | X51: =IF($I51 >0, MIN(W51,$I51-SUM($L51:W51)), MAX(W51,$I51-SUM($L51:W51))) -> 0 | Y51: =IF($I51 >0, MIN(X51,$I51-SUM($L51:X51)), MAX(X51,$I51-SUM($L51:X51))) -> 0 | Z51: =IF($I51 >0, MIN(Y51,$I51-SUM($L51:Y51)), MAX(Y51,$I51-SUM($L51:Y51))) -> 0 | AA51: =IF($I51 >0, MIN(Z51,$I51-SUM($L51:Z51)), MAX(Z51,$I51-SUM($L51:Z51))) -> 0 | AB51: =IF($I51 >0, MIN(AA51,$I51-SUM($L51:AA51)), MAX(AA51,$I51-SUM($L51:AA51))) -> 0 | AC51: =IF($I51 >0, MIN(AB51,$I51-SUM($L51:AB51)), MAX(AB51,$I51-SUM($L51:AB51))) -> 0 | AD51: =IF($I51 >0, MIN(AC51,$I51-SUM($L51:AC51)), MAX(AC51,$I51-SUM($L51:AC51))) -> 0 | AE51: =IF($I51 >0, MIN(AD51,$I51-SUM($L51:AD51)), MAX(AD51,$I51-SUM($L51:AD51))) -> 0 | AF51: =IF($I51 >0, MIN(AE51,$I51-SUM($L51:AE51)), MAX(AE51,$I51-SUM($L51:AE51))) -> 0 | AG51: =IF($I51 >0, MIN(AF51,$I51-SUM($L51:AF51)), MAX(AF51,$I51-SUM($L51:AF51))) -> 0 | AH51: =IF($I51 >0, MIN(AG51,$I51-SUM($L51:AG51)), MAX(AG51,$I51-SUM($L51:AG51))) -> 0 | AI51: =IF($I51 >0, MIN(AH51,$I51-SUM($L51:AH51)), MAX(AH51,$I51-SUM($L51:AH51))) -> 0 | AJ51: =IF($I51 >0, MIN(AI51,$I51-SUM($L51:AI51)), MAX(AI51,$I51-SUM($L51:AI51))) -> 0 | AK51: =IF($I51 >0, MIN(AJ51,$I51-SUM($L51:AJ51)), MAX(AJ51,$I51-SUM($L51:AJ51))) -> 0 | AL51: =IF($I51 >0, MIN(AK51,$I51-SUM($L51:AK51)), MAX(AK51,$I51-SUM($L51:AK51))) -> 0 | AM51: =IF($I51 >0, MIN(AL51,$I51-SUM($L51:AL51)), MAX(AL51,$I51-SUM($L51:AL51))) -> 0 | AN51: =IF($I51 >0, MIN(AM51,$I51-SUM($L51:AM51)), MAX(AM51,$I51-SUM($L51:AM51))) -> 0 | AO51: =IF($I51 >0, MIN(AN51,$I51-SUM($L51:AN51)), MAX(AN51,$I51-SUM($L51:AN51))) -> 0
E52: 2003-03-31 | G52: £m 09/10 prices | I52: 0 | J52: > | X52: =$I52/W$35 -> 0 | Y52: =IF($I52 >0, MIN(X52,$I52-SUM($L52:X52)), MAX(X52,$I52-SUM($L52:X52))) -> 0 | Z52: =IF($I52 >0, MIN(Y52,$I52-SUM($L52:Y52)), MAX(Y52,$I52-SUM($L52:Y52))) -> 0 | AA52: =IF($I52 >0, MIN(Z52,$I52-SUM($L52:Z52)), MAX(Z52,$I52-SUM($L52:Z52))) -> 0 | AB52: =IF($I52 >0, MIN(AA52,$I52-SUM($L52:AA52)), MAX(AA52,$I52-SUM($L52:AA52))) -> 0 | AC52: =IF($I52 >0, MIN(AB52,$I52-SUM($L52:AB52)), MAX(AB52,$I52-SUM($L52:AB52))) -> 0 | AD52: =IF($I52 >0, MIN(AC52,$I52-SUM($L52:AC52)), MAX(AC52,$I52-SUM($L52:AC52))) -> 0 | AE52: =IF($I52 >0, MIN(AD52,$I52-SUM($L52:AD52)), MAX(AD52,$I52-SUM($L52:AD52))) -> 0 | AF52: =IF($I52 >0, MIN(AE52,$I52-SUM($L52:AE52)), MAX(AE52,$I52-SUM($L52:AE52))) -> 0 | AG52: =IF($I52 >0, MIN(AF52,$I52-SUM($L52:AF52)), MAX(AF52,$I52-SUM($L52:AF52))) -> 0 | AH52: =IF($I52 >0, MIN(AG52,$I52-SUM($L52:AG52)), MAX(AG52,$I52-SUM($L52:AG52))) -> 0 | AI52: =IF($I52 >0, MIN(AH52,$I52-SUM($L52:AH52)), MAX(AH52,$I52-SUM($L52:AH52))) -> 0 | AJ52: =IF($I52 >0, MIN(AI52,$I52-SUM($L52:AI52)), MAX(AI52,$I52-SUM($L52:AI52))) -> 0 | AK52: =IF($I52 >0, MIN(AJ52,$I52-SUM($L52:AJ52)), MAX(AJ52,$I52-SUM($L52:AJ52))) -> 0 | AL52: =IF($I52 >0, MIN(AK52,$I52-SUM($L52:AK52)), MAX(AK52,$I52-SUM($L52:AK52))) -> 0 | AM52: =IF($I52 >0, MIN(AL52,$I52-SUM($L52:AL52)), MAX(AL52,$I52-SUM($L52:AL52))) -> 0 | AN52: =IF($I52 >0, MIN(AM52,$I52-SUM($L52:AM52)), MAX(AM52,$I52-SUM($L52:AM52))) -> 0 | AO52: =IF($I52 >0, MIN(AN52,$I52-SUM($L52:AN52)), MAX(AN52,$I52-SUM($L52:AN52))) -> 0
E53: 2004-03-31 | G53: £m 09/10 prices | I53: 299.3439968 | J53: > | Y53: =$I53/X$35 -> 6.652088818 | Z53: =IF($I53 >0, MIN(Y53,$I53-SUM($L53:Y53)), MAX(Y53,$I53-SUM($L53:Y53))) -> 6.652088818 | AA53: =IF($I53 >0, MIN(Z53,$I53-SUM($L53:Z53)), MAX(Z53,$I53-SUM($L53:Z53))) -> 6.652088818 | AB53: =IF($I53 >0, MIN(AA53,$I53-SUM($L53:AA53)), MAX(AA53,$I53-SUM($L53:AA53))) -> 6.652088818 | AC53: =IF($I53 >0, MIN(AB53,$I53-SUM($L53:AB53)), MAX(AB53,$I53-SUM($L53:AB53))) -> 6.652088818 | AD53: =IF($I53 >0, MIN(AC53,$I53-SUM($L53:AC53)), MAX(AC53,$I53-SUM($L53:AC53))) -> 6.652088818 | AE53: =IF($I53 >0, MIN(AD53,$I53-SUM($L53:AD53)), MAX(AD53,$I53-SUM($L53:AD53))) -> 6.652088818 | AF53: =IF($I53 >0, MIN(AE53,$I53-SUM($L53:AE53)), MAX(AE53,$I53-SUM($L53:AE53))) -> 6.652088818 | AG53: =IF($I53 >0, MIN(AF53,$I53-SUM($L53:AF53)), MAX(AF53,$I53-SUM($L53:AF53))) -> 6.652088818 | AH53: =IF($I53 >0, MIN(AG53,$I53-SUM($L53:AG53)), MAX(AG53,$I53-SUM($L53:AG53))) -> 6.652088818 | AI53: =IF($I53 >0, MIN(AH53,$I53-SUM($L53:AH53)), MAX(AH53,$I53-SUM($L53:AH53))) -> 6.652088818 | AJ53: =IF($I53 >0, MIN(AI53,$I53-SUM($L53:AI53)), MAX(AI53,$I53-SUM($L53:AI53))) -> 6.652088818 | AK53: =IF($I53 >0, MIN(AJ53,$I53-SUM($L53:AJ53)), MAX(AJ53,$I53-SUM($L53:AJ53))) -> 6.652088818 | AL53: =IF($I53 >0, MIN(AK53,$I53-SUM($L53:AK53)), MAX(AK53,$I53-SUM($L53:AK53))) -> 6.652088818 | AM53: =IF($I53 >0, MIN(AL53,$I53-SUM($L53:AL53)), MAX(AL53,$I53-SUM($L53:AL53))) -> 6.652088818 | AN53: =IF($I53 >0, MIN(AM53,$I53-SUM($L53:AM53)), MAX(AM53,$I53-SUM($L53:AM53))) -> 6.652088818 | AO53: =IF($I53 >0, MIN(AN53,$I53-SUM($L53:AN53)), MAX(AN53,$I53-SUM($L53:AN53))) -> 6.652088818
E54: 2005-03-31 | G54: £m 09/10 prices | I54: 96.38168898 | J54: > | Z54: =$I54/Y$35 -> 2.141815311 | AA54: =IF($I54 >0, MIN(Z54,$I54-SUM($L54:Z54)), MAX(Z54,$I54-SUM($L54:Z54))) -> 2.141815311 | AB54: =IF($I54 >0, MIN(AA54,$I54-SUM($L54:AA54)), MAX(AA54,$I54-SUM($L54:AA54))) -> 2.141815311 | AC54: =IF($I54 >0, MIN(AB54,$I54-SUM($L54:AB54)), MAX(AB54,$I54-SUM($L54:AB54))) -> 2.141815311 | AD54: =IF($I54 >0, MIN(AC54,$I54-SUM($L54:AC54)), MAX(AC54,$I54-SUM($L54:AC54))) -> 2.141815311 | AE54: =IF($I54 >0, MIN(AD54,$I54-SUM($L54:AD54)), MAX(AD54,$I54-SUM($L54:AD54))) -> 2.141815311 | AF54: =IF($I54 >0, MIN(AE54,$I54-SUM($L54:AE54)), MAX(AE54,$I54-SUM($L54:AE54))) -> 2.141815311 | AG54: =IF($I54 >0, MIN(AF54,$I54-SUM($L54:AF54)), MAX(AF54,$I54-SUM($L54:AF54))) -> 2.141815311 | AH54: =IF($I54 >0, MIN(AG54,$I54-SUM($L54:AG54)), MAX(AG54,$I54-SUM($L54:AG54))) -> 2.141815311 | AI54: =IF($I54 >0, MIN(AH54,$I54-SUM($L54:AH54)), MAX(AH54,$I54-SUM($L54:AH54))) -> 2.141815311 | AJ54: =IF($I54 >0, MIN(AI54,$I54-SUM($L54:AI54)), MAX(AI54,$I54-SUM($L54:AI54))) -> 2.141815311 | AK54: =IF($I54 >0, MIN(AJ54,$I54-SUM($L54:AJ54)), MAX(AJ54,$I54-SUM($L54:AJ54))) -> 2.141815311 | AL54: =IF($I54 >0, MIN(AK54,$I54-SUM($L54:AK54)), MAX(AK54,$I54-SUM($L54:AK54))) -> 2.141815311 | AM54: =IF($I54 >0, MIN(AL54,$I54-SUM($L54:AL54)), MAX(AL54,$I54-SUM($L54:AL54))) -> 2.141815311 | AN54: =IF($I54 >0, MIN(AM54,$I54-SUM($L54:AM54)), MAX(AM54,$I54-SUM($L54:AM54))) -> 2.141815311 | AO54: =IF($I54 >0, MIN(AN54,$I54-SUM($L54:AN54)), MAX(AN54,$I54-SUM($L54:AN54))) -> 2.141815311
E55: 2006-03-31 | G55: £m 09/10 prices | I55: 300.0086599 | J55: > | AA55: =$I55/Z$35 -> 6.666859108 | AB55: =IF($I55 >0, MIN(AA55,$I55-SUM($L55:AA55)), MAX(AA55,$I55-SUM($L55:AA55))) -> 6.666859108 | AC55: =IF($I55 >0, MIN(AB55,$I55-SUM($L55:AB55)), MAX(AB55,$I55-SUM($L55:AB55))) -> 6.666859108 | AD55: =IF($I55 >0, MIN(AC55,$I55-SUM($L55:AC55)), MAX(AC55,$I55-SUM($L55:AC55))) -> 6.666859108 | AE55: =IF($I55 >0, MIN(AD55,$I55-SUM($L55:AD55)), MAX(AD55,$I55-SUM($L55:AD55))) -> 6.666859108 | AF55: =IF($I55 >0, MIN(AE55,$I55-SUM($L55:AE55)), MAX(AE55,$I55-SUM($L55:AE55))) -> 6.666859108 | AG55: =IF($I55 >0, MIN(AF55,$I55-SUM($L55:AF55)), MAX(AF55,$I55-SUM($L55:AF55))) -> 6.666859108 | AH55: =IF($I55 >0, MIN(AG55,$I55-SUM($L55:AG55)), MAX(AG55,$I55-SUM($L55:AG55))) -> 6.666859108 | AI55: =IF($I55 >0, MIN(AH55,$I55-SUM($L55:AH55)), MAX(AH55,$I55-SUM($L55:AH55))) -> 6.666859108 | AJ55: =IF($I55 >0, MIN(AI55,$I55-SUM($L55:AI55)), MAX(AI55,$I55-SUM($L55:AI55))) -> 6.666859108 | AK55: =IF($I55 >0, MIN(AJ55,$I55-SUM($L55:AJ55)), MAX(AJ55,$I55-SUM($L55:AJ55))) -> 6.666859108 | AL55: =IF($I55 >0, MIN(AK55,$I55-SUM($L55:AK55)), MAX(AK55,$I55-SUM($L55:AK55))) -> 6.666859108 | AM55: =IF($I55 >0, MIN(AL55,$I55-SUM($L55:AL55)), MAX(AL55,$I55-SUM($L55:AL55))) -> 6.666859108 | AN55: =IF($I55 >0, MIN(AM55,$I55-SUM($L55:AM55)), MAX(AM55,$I55-SUM($L55:AM55))) -> 6.666859108 | AO55: =IF($I55 >0, MIN(AN55,$I55-SUM($L55:AN55)), MAX(AN55,$I55-SUM($L55:AN55))) -> 6.666859108
E56: 2007-03-31 | G56: £m 09/10 prices | I56: 541.1112417 | J56: > | AB56: =$I56/AA$35 -> 12.02469426 | AC56: =IF($I56 >0, MIN(AB56,$I56-SUM($L56:AB56)), MAX(AB56,$I56-SUM($L56:AB56))) -> 12.02469426 | AD56: =IF($I56 >0, MIN(AC56,$I56-SUM($L56:AC56)), MAX(AC56,$I56-SUM($L56:AC56))) -> 12.02469426 | AE56: =IF($I56 >0, MIN(AD56,$I56-SUM($L56:AD56)), MAX(AD56,$I56-SUM($L56:AD56))) -> 12.02469426 | AF56: =IF($I56 >0, MIN(AE56,$I56-SUM($L56:AE56)), MAX(AE56,$I56-SUM($L56:AE56))) -> 12.02469426 | AG56: =IF($I56 >0, MIN(AF56,$I56-SUM($L56:AF56)), MAX(AF56,$I56-SUM($L56:AF56))) -> 12.02469426 | AH56: =IF($I56 >0, MIN(AG56,$I56-SUM($L56:AG56)), MAX(AG56,$I56-SUM($L56:AG56))) -> 12.02469426 | AI56: =IF($I56 >0, MIN(AH56,$I56-SUM($L56:AH56)), MAX(AH56,$I56-SUM($L56:AH56))) -> 12.02469426 | AJ56: =IF($I56 >0, MIN(AI56,$I56-SUM($L56:AI56)), MAX(AI56,$I56-SUM($L56:AI56))) -> 12.02469426 | AK56: =IF($I56 >0, MIN(AJ56,$I56-SUM($L56:AJ56)), MAX(AJ56,$I56-SUM($L56:AJ56))) -> 12.02469426 | AL56: =IF($I56 >0, MIN(AK56,$I56-SUM($L56:AK56)), MAX(AK56,$I56-SUM($L56:AK56))) -> 12.02469426 | AM56: =IF($I56 >0, MIN(AL56,$I56-SUM($L56:AL56)), MAX(AL56,$I56-SUM($L56:AL56))) -> 12.02469426 | AN56: =IF($I56 >0, MIN(AM56,$I56-SUM($L56:AM56)), MAX(AM56,$I56-SUM($L56:AM56))) -> 12.02469426 | AO56: =IF($I56 >0, MIN(AN56,$I56-SUM($L56:AN56)), MAX(AN56,$I56-SUM($L56:AN56))) -> 12.02469426
E57: 2008-03-31 | G57: £m 09/10 prices | I57: 585.7885273 | J57: > | AC57: =$I57/AB$35 -> 13.01752283 | AD57: =IF($I57 >0, MIN(AC57,$I57-SUM($L57:AC57)), MAX(AC57,$I57-SUM($L57:AC57))) -> 13.01752283 | AE57: =IF($I57 >0, MIN(AD57,$I57-SUM($L57:AD57)), MAX(AD57,$I57-SUM($L57:AD57))) -> 13.01752283 | AF57: =IF($I57 >0, MIN(AE57,$I57-SUM($L57:AE57)), MAX(AE57,$I57-SUM($L57:AE57))) -> 13.01752283 | AG57: =IF($I57 >0, MIN(AF57,$I57-SUM($L57:AF57)), MAX(AF57,$I57-SUM($L57:AF57))) -> 13.01752283 | AH57: =IF($I57 >0, MIN(AG57,$I57-SUM($L57:AG57)), MAX(AG57,$I57-SUM($L57:AG57))) -> 13.01752283 | AI57: =IF($I57 >0, MIN(AH57,$I57-SUM($L57:AH57)), MAX(AH57,$I57-SUM($L57:AH57))) -> 13.01752283 | AJ57: =IF($I57 >0, MIN(AI57,$I57-SUM($L57:AI57)), MAX(AI57,$I57-SUM($L57:AI57))) -> 13.01752283 | AK57: =IF($I57 >0, MIN(AJ57,$I57-SUM($L57:AJ57)), MAX(AJ57,$I57-SUM($L57:AJ57))) -> 13.01752283 | AL57: =IF($I57 >0, MIN(AK57,$I57-SUM($L57:AK57)), MAX(AK57,$I57-SUM($L57:AK57))) -> 13.01752283 | AM57: =IF($I57 >0, MIN(AL57,$I57-SUM($L57:AL57)), MAX(AL57,$I57-SUM($L57:AL57))) -> 13.01752283 | AN57: =IF($I57 >0, MIN(AM57,$I57-SUM($L57:AM57)), MAX(AM57,$I57-SUM($L57:AM57))) -> 13.01752283 | AO57: =IF($I57 >0, MIN(AN57,$I57-SUM($L57:AN57)), MAX(AN57,$I57-SUM($L57:AN57))) -> 13.01752283
E58: 2009-03-31 | G58: £m 09/10 prices | I58: 247.7735543 | J58: > | AD58: =$I58/AC$35 -> 5.506078985 | AE58: =IF($I58 >0, MIN(AD58,$I58-SUM($L58:AD58)), MAX(AD58,$I58-SUM($L58:AD58))) -> 5.506078985 | AF58: =IF($I58 >0, MIN(AE58,$I58-SUM($L58:AE58)), MAX(AE58,$I58-SUM($L58:AE58))) -> 5.506078985 | AG58: =IF($I58 >0, MIN(AF58,$I58-SUM($L58:AF58)), MAX(AF58,$I58-SUM($L58:AF58))) -> 5.506078985 | AH58: =IF($I58 >0, MIN(AG58,$I58-SUM($L58:AG58)), MAX(AG58,$I58-SUM($L58:AG58))) -> 5.506078985 | AI58: =IF($I58 >0, MIN(AH58,$I58-SUM($L58:AH58)), MAX(AH58,$I58-SUM($L58:AH58))) -> 5.506078985 | AJ58: =IF($I58 >0, MIN(AI58,$I58-SUM($L58:AI58)), MAX(AI58,$I58-SUM($L58:AI58))) -> 5.506078985 | AK58: =IF($I58 >0, MIN(AJ58,$I58-SUM($L58:AJ58)), MAX(AJ58,$I58-SUM($L58:AJ58))) -> 5.506078985 | AL58: =IF($I58 >0, MIN(AK58,$I58-SUM($L58:AK58)), MAX(AK58,$I58-SUM($L58:AK58))) -> 5.506078985 | AM58: =IF($I58 >0, MIN(AL58,$I58-SUM($L58:AL58)), MAX(AL58,$I58-SUM($L58:AL58))) -> 5.506078985 | AN58: =IF($I58 >0, MIN(AM58,$I58-SUM($L58:AM58)), MAX(AM58,$I58-SUM($L58:AM58))) -> 5.506078985 | AO58: =IF($I58 >0, MIN(AN58,$I58-SUM($L58:AN58)), MAX(AN58,$I58-SUM($L58:AN58))) -> 5.506078985
E59: 2010-03-31 | G59: £m 09/10 prices | I59: 123.1950711 | J59: > | AE59: =$I59/AD$35 -> 2.737668246 | AF59: =IF($I59 >0, MIN(AE59,$I59-SUM($L59:AE59)), MAX(AE59,$I59-SUM($L59:AE59))) -> 2.737668246 | AG59: =IF($I59 >0, MIN(AF59,$I59-SUM($L59:AF59)), MAX(AF59,$I59-SUM($L59:AF59))) -> 2.737668246 | AH59: =IF($I59 >0, MIN(AG59,$I59-SUM($L59:AG59)), MAX(AG59,$I59-SUM($L59:AG59))) -> 2.737668246 | AI59: =IF($I59 >0, MIN(AH59,$I59-SUM($L59:AH59)), MAX(AH59,$I59-SUM($L59:AH59))) -> 2.737668246 | AJ59: =IF($I59 >0, MIN(AI59,$I59-SUM($L59:AI59)), MAX(AI59,$I59-SUM($L59:AI59))) -> 2.737668246 | AK59: =IF($I59 >0, MIN(AJ59,$I59-SUM($L59:AJ59)), MAX(AJ59,$I59-SUM($L59:AJ59))) -> 2.737668246 | AL59: =IF($I59 >0, MIN(AK59,$I59-SUM($L59:AK59)), MAX(AK59,$I59-SUM($L59:AK59))) -> 2.737668246 | AM59: =IF($I59 >0, MIN(AL59,$I59-SUM($L59:AL59)), MAX(AL59,$I59-SUM($L59:AL59))) -> 2.737668246 | AN59: =IF($I59 >0, MIN(AM59,$I59-SUM($L59:AM59)), MAX(AM59,$I59-SUM($L59:AM59))) -> 2.737668246 | AO59: =IF($I59 >0, MIN(AN59,$I59-SUM($L59:AN59)), MAX(AN59,$I59-SUM($L59:AN59))) -> 2.737668246
E60: 2011-03-31 | G60: £m 09/10 prices | I60: 99.98357059 | J60: > | AF60: =$I60/AE$35 -> 2.221857124 | AG60: =IF($I60 >0, MIN(AF60,$I60-SUM($L60:AF60)), MAX(AF60,$I60-SUM($L60:AF60))) -> 2.221857124 | AH60: =IF($I60 >0, MIN(AG60,$I60-SUM($L60:AG60)), MAX(AG60,$I60-SUM($L60:AG60))) -> 2.221857124 | AI60: =IF($I60 >0, MIN(AH60,$I60-SUM($L60:AH60)), MAX(AH60,$I60-SUM($L60:AH60))) -> 2.221857124 | AJ60: =IF($I60 >0, MIN(AI60,$I60-SUM($L60:AI60)), MAX(AI60,$I60-SUM($L60:AI60))) -> 2.221857124 | AK60: =IF($I60 >0, MIN(AJ60,$I60-SUM($L60:AJ60)), MAX(AJ60,$I60-SUM($L60:AJ60))) -> 2.221857124 | AL60: =IF($I60 >0, MIN(AK60,$I60-SUM($L60:AK60)), MAX(AK60,$I60-SUM($L60:AK60))) -> 2.221857124 | AM60: =IF($I60 >0, MIN(AL60,$I60-SUM($L60:AL60)), MAX(AL60,$I60-SUM($L60:AL60))) -> 2.221857124 | AN60: =IF($I60 >0, MIN(AM60,$I60-SUM($L60:AM60)), MAX(AM60,$I60-SUM($L60:AM60))) -> 2.221857124 | AO60: =IF($I60 >0, MIN(AN60,$I60-SUM($L60:AN60)), MAX(AN60,$I60-SUM($L60:AN60))) -> 2.221857124
E61: 2012-03-31 | G61: £m 09/10 prices | I61: 101.1196543 | J61: > | AG61: =$I61/AF$35 -> 2.247103429 | AH61: =IF($I61 >0, MIN(AG61,$I61-SUM($L61:AG61)), MAX(AG61,$I61-SUM($L61:AG61))) -> 2.247103429 | AI61: =IF($I61 >0, MIN(AH61,$I61-SUM($L61:AH61)), MAX(AH61,$I61-SUM($L61:AH61))) -> 2.247103429 | AJ61: =IF($I61 >0, MIN(AI61,$I61-SUM($L61:AI61)), MAX(AI61,$I61-SUM($L61:AI61))) -> 2.247103429 | AK61: =IF($I61 >0, MIN(AJ61,$I61-SUM($L61:AJ61)), MAX(AJ61,$I61-SUM($L61:AJ61))) -> 2.247103429 | AL61: =IF($I61 >0, MIN(AK61,$I61-SUM($L61:AK61)), MAX(AK61,$I61-SUM($L61:AK61))) -> 2.247103429 | AM61: =IF($I61 >0, MIN(AL61,$I61-SUM($L61:AL61)), MAX(AL61,$I61-SUM($L61:AL61))) -> 2.247103429 | AN61: =IF($I61 >0, MIN(AM61,$I61-SUM($L61:AM61)), MAX(AM61,$I61-SUM($L61:AM61))) -> 2.247103429 | AO61: =IF($I61 >0, MIN(AN61,$I61-SUM($L61:AN61)), MAX(AN61,$I61-SUM($L61:AN61))) -> 2.247103429
E62: 2013-03-31 | G62: £m 09/10 prices | I62: -28.7623433 | AH62: =$I62/AG$35 -> -0.6391631844 | AI62: =IF($I62 >0, MIN(AH62,$I62-SUM($L62:AH62)), MAX(AH62,$I62-SUM($L62:AH62))) -> -0.6391631844 | AJ62: =IF($I62 >0, MIN(AI62,$I62-SUM($L62:AI62)), MAX(AI62,$I62-SUM($L62:AI62))) -> -0.6391631844 | AK62: =IF($I62 >0, MIN(AJ62,$I62-SUM($L62:AJ62)), MAX(AJ62,$I62-SUM($L62:AJ62))) -> -0.6391631844 | AL62: =IF($I62 >0, MIN(AK62,$I62-SUM($L62:AK62)), MAX(AK62,$I62-SUM($L62:AK62))) -> -0.6391631844 | AM62: =IF($I62 >0, MIN(AL62,$I62-SUM($L62:AL62)), MAX(AL62,$I62-SUM($L62:AL62))) -> -0.6391631844 | AN62: =IF($I62 >0, MIN(AM62,$I62-SUM($L62:AM62)), MAX(AM62,$I62-SUM($L62:AM62))) -> -0.6391631844 | AO62: =IF($I62 >0, MIN(AN62,$I62-SUM($L62:AN62)), MAX(AN62,$I62-SUM($L62:AN62))) -> -0.6391631844
E63: 2014-03-31 | G63: £m 09/10 prices | I63: 202.050866 | AI63: =$I63/AH$35 -> 4.490019245 | AJ63: =IF($I63 >0, MIN(AI63,$I63-SUM($L63:AI63)), MAX(AI63,$I63-SUM($L63:AI63))) -> 4.490019245 | AK63: =IF($I63 >0, MIN(AJ63,$I63-SUM($L63:AJ63)), MAX(AJ63,$I63-SUM($L63:AJ63))) -> 4.490019245 | AL63: =IF($I63 >0, MIN(AK63,$I63-SUM($L63:AK63)), MAX(AK63,$I63-SUM($L63:AK63))) -> 4.490019245 | AM63: =IF($I63 >0, MIN(AL63,$I63-SUM($L63:AL63)), MAX(AL63,$I63-SUM($L63:AL63))) -> 4.490019245 | AN63: =IF($I63 >0, MIN(AM63,$I63-SUM($L63:AM63)), MAX(AM63,$I63-SUM($L63:AM63))) -> 4.490019245 | AO63: =IF($I63 >0, MIN(AN63,$I63-SUM($L63:AN63)), MAX(AN63,$I63-SUM($L63:AN63))) -> 4.490019245
E64: 2015-03-31 | G64: £m 09/10 prices | I64: 128.0770862 | AJ64: =$I64/AI$35 -> 2.84615747 | AK64: =IF($I64 >0, MIN(AJ64,$I64-SUM($L64:AJ64)), MAX(AJ64,$I64-SUM($L64:AJ64))) -> 2.84615747 | AL64: =IF($I64 >0, MIN(AK64,$I64-SUM($L64:AK64)), MAX(AK64,$I64-SUM($L64:AK64))) -> 2.84615747 | AM64: =IF($I64 >0, MIN(AL64,$I64-SUM($L64:AL64)), MAX(AL64,$I64-SUM($L64:AL64))) -> 2.84615747 | AN64: =IF($I64 >0, MIN(AM64,$I64-SUM($L64:AM64)), MAX(AM64,$I64-SUM($L64:AM64))) -> 2.84615747 | AO64: =IF($I64 >0, MIN(AN64,$I64-SUM($L64:AN64)), MAX(AN64,$I64-SUM($L64:AN64))) -> 2.84615747
E65: 2016-03-31 | G65: £m 09/10 prices | I65: 127.3929913 | AK65: =$I65/AJ$35 -> 2.830955362 | AL65: =IF($I65 >0, MIN(AK65,$I65-SUM($L65:AK65)), MAX(AK65,$I65-SUM($L65:AK65))) -> 2.830955362 | AM65: =IF($I65 >0, MIN(AL65,$I65-SUM($L65:AL65)), MAX(AL65,$I65-SUM($L65:AL65))) -> 2.830955362 | AN65: =IF($I65 >0, MIN(AM65,$I65-SUM($L65:AM65)), MAX(AM65,$I65-SUM($L65:AM65))) -> 2.830955362 | AO65: =IF($I65 >0, MIN(AN65,$I65-SUM($L65:AN65)), MAX(AN65,$I65-SUM($L65:AN65))) -> 2.830955362
E66: 2017-03-31 | G66: £m 09/10 prices | I66: 148.5239464 | AL66: =$I66/AK$35 -> 3.300532143 | AM66: =IF($I66 >0, MIN(AL66,$I66-SUM($L66:AL66)), MAX(AL66,$I66-SUM($L66:AL66))) -> 3.300532143 | AN66: =IF($I66 >0, MIN(AM66,$I66-SUM($L66:AM66)), MAX(AM66,$I66-SUM($L66:AM66))) -> 3.300532143 | AO66: =IF($I66 >0, MIN(AN66,$I66-SUM($L66:AN66)), MAX(AN66,$I66-SUM($L66:AN66))) -> 3.300532143
E67: 2018-03-31 | G67: £m 09/10 prices | I67: 175.9960279 | AM67: =$I67/AL$35 -> 3.911022843 | AN67: =IF($I67 >0, MIN(AM67,$I67-SUM($L67:AM67)), MAX(AM67,$I67-SUM($L67:AM67))) -> 3.911022843 | AO67: =IF($I67 >0, MIN(AN67,$I67-SUM($L67:AN67)), MAX(AN67,$I67-SUM($L67:AN67))) -> 3.911022843
E68: 2019-03-31 | G68: £m 09/10 prices | I68: 162.8433177 | AN68: =$I68/AM$35 -> 3.618740393 | AO68: =IF($I68 >0, MIN(AN68,$I68-SUM($L68:AN68)), MAX(AN68,$I68-SUM($L68:AN68))) -> 3.618740393
E69: 2020-03-31 | G69: £m 09/10 prices | I69: 136.191949 | AO69: =$I69/AN$35 -> 3.026487756
E70: 2021-03-31 | G70: £m 09/10 prices | I70: 114.3864834
E71: Total | G71: £m 09/10 prices | L71: =SUM(L40:L70) -> 0 | M71: =SUM(M40:M70) -> 0 | N71: 0 | O71: 0 | P71: 0 | Q71: 0 | R71: 0 | S71: 0 | T71: 0 | U71: 0 | V71: 0 | W71: 0 | X71: 0 | Y71: 6.652088818 | Z71: 8.793904129 | AA71: 15.46076324 | AB71: 27.4854575 | AC71: 40.50298033 | AD71: 46.00905931 | AE71: 48.74672756 | AF71: 50.96858468 | AG71: 53.21568811 | AH71: 52.57652493 | AI71: 57.06654417 | AJ71: 59.91270164 | AK71: 62.743657 | AL71: 66.04418915 | AM71: 69.95521199 | AN71: 73.57395238 | AO71: 76.60044014
C73: Removal of fully depreciated items
E75: Removal of additions from year ending
E76: 1991-03-31 | G76: £m 09/10 prices | J76: > | L76: =IF(AND($I40 = SUM($K40:L40), SUM($K76:K76) = 0), $I40, 0) -> 0 | M76: =IF(AND($I40 = SUM($K40:M40), SUM($K76:L76) = 0), $I40, 0) -> 0 | N76: =IF(AND($I40 = SUM($K40:N40), SUM($K76:M76) = 0), $I40, 0) -> 0 | O76: =IF(AND($I40 = SUM($K40:O40), SUM($K76:N76) = 0), $I40, 0) -> 0 | P76: =IF(AND($I40 = SUM($K40:P40), SUM($K76:O76) = 0), $I40, 0) -> 0 | Q76: =IF(AND($I40 = SUM($K40:Q40), SUM($K76:P76) = 0), $I40, 0) -> 0 | R76: =IF(AND($I40 = SUM($K40:R40), SUM($K76:Q76) = 0), $I40, 0) -> 0 | S76: =IF(AND($I40 = SUM($K40:S40), SUM($K76:R76) = 0), $I40, 0) -> 0 | T76: =IF(AND($I40 = SUM($K40:T40), SUM($K76:S76) = 0), $I40, 0) -> 0 | U76: =IF(AND($I40 = SUM($K40:U40), SUM($K76:T76) = 0), $I40, 0) -> 0 | V76: =IF(AND($I40 = SUM($K40:V40), SUM($K76:U76) = 0), $I40, 0) -> 0 | W76: =IF(AND($I40 = SUM($K40:W40), SUM($K76:V76) = 0), $I40, 0) -> 0 | X76: =IF(AND($I40 = SUM($K40:X40), SUM($K76:W76) = 0), $I40, 0) -> 0 | Y76: =IF(AND($I40 = SUM($K40:Y40), SUM($K76:X76) = 0), $I40, 0) -> 0 | Z76: =IF(AND($I40 = SUM($K40:Z40), SUM($K76:Y76) = 0), $I40, 0) -> 0 | AA76: =IF(AND($I40 = SUM($K40:AA40), SUM($K76:Z76) = 0), $I40, 0) -> 0 | AB76: =IF(AND($I40 = SUM($K40:AB40), SUM($K76:AA76) = 0), $I40, 0) -> 0 | AC76: =IF(AND($I40 = SUM($K40:AC40), SUM($K76:AB76) = 0), $I40, 0) -> 0 | AD76: =IF(AND($I40 = SUM($K40:AD40), SUM($K76:AC76) = 0), $I40, 0) -> 0 | AE76: =IF(AND($I40 = SUM($K40:AE40), SUM($K76:AD76) = 0), $I40, 0) -> 0 | AF76: =IF(AND($I40 = SUM($K40:AF40), SUM($K76:AE76) = 0), $I40, 0) -> 0 | AG76: =IF(AND($I40 = SUM($K40:AG40), SUM($K76:AF76) = 0), $I40, 0) -> 0 | AH76: =IF(AND($I40 = SUM($K40:AH40), SUM($K76:AG76) = 0), $I40, 0) -> 0 | AI76: =IF(AND($I40 = SUM($K40:AI40), SUM($K76:AH76) = 0), $I40, 0) -> 0 | AJ76: =IF(AND($I40 = SUM($K40:AJ40), SUM($K76:AI76) = 0), $I40, 0) -> 0 | AK76: =IF(AND($I40 = SUM($K40:AK40), SUM($K76:AJ76) = 0), $I40, 0) -> 0 | AL76: =IF(AND($I40 = SUM($K40:AL40), SUM($K76:AK76) = 0), $I40, 0) -> 0 | AM76: =IF(AND($I40 = SUM($K40:AM40), SUM($K76:AL76) = 0), $I40, 0) -> 0 | AN76: =IF(AND($I40 = SUM($K40:AN40), SUM($K76:AM76) = 0), $I40, 0) -> 0 | AO76: =IF(AND($I40 = SUM($K40:AO40), SUM($K76:AN76) = 0), $I40, 0) -> 0
E77: 1992-03-31 | G77: £m 09/10 prices | J77: > | L77: =IF(AND($I41 = SUM($K41:L41), SUM($K77:K77) = 0), $I41, 0) -> 0 | M77: =IF(AND($I41 = SUM($K41:M41), SUM($K77:L77) = 0), $I41, 0) -> 0 | N77: =IF(AND($I41 = SUM($K41:N41), SUM($K77:M77) = 0), $I41, 0) -> 0 | O77: =IF(AND($I41 = SUM($K41:O41), SUM($K77:N77) = 0), $I41, 0) -> 0 | P77: =IF(AND($I41 = SUM($K41:P41), SUM($K77:O77) = 0), $I41, 0) -> 0 | Q77: =IF(AND($I41 = SUM($K41:Q41), SUM($K77:P77) = 0), $I41, 0) -> 0 | R77: =IF(AND($I41 = SUM($K41:R41), SUM($K77:Q77) = 0), $I41, 0) -> 0 | S77: =IF(AND($I41 = SUM($K41:S41), SUM($K77:R77) = 0), $I41, 0) -> 0 | T77: =IF(AND($I41 = SUM($K41:T41), SUM($K77:S77) = 0), $I41, 0) -> 0 | U77: =IF(AND($I41 = SUM($K41:U41), SUM($K77:T77) = 0), $I41, 0) -> 0 | V77: =IF(AND($I41 = SUM($K41:V41), SUM($K77:U77) = 0), $I41, 0) -> 0 | W77: =IF(AND($I41 = SUM($K41:W41), SUM($K77:V77) = 0), $I41, 0) -> 0 | X77: =IF(AND($I41 = SUM($K41:X41), SUM($K77:W77) = 0), $I41, 0) -> 0 | Y77: =IF(AND($I41 = SUM($K41:Y41), SUM($K77:X77) = 0), $I41, 0) -> 0 | Z77: =IF(AND($I41 = SUM($K41:Z41), SUM($K77:Y77) = 0), $I41, 0) -> 0 | AA77: =IF(AND($I41 = SUM($K41:AA41), SUM($K77:Z77) = 0), $I41, 0) -> 0 | AB77: =IF(AND($I41 = SUM($K41:AB41), SUM($K77:AA77) = 0), $I41, 0) -> 0 | AC77: =IF(AND($I41 = SUM($K41:AC41), SUM($K77:AB77) = 0), $I41, 0) -> 0 | AD77: =IF(AND($I41 = SUM($K41:AD41), SUM($K77:AC77) = 0), $I41, 0) -> 0 | AE77: =IF(AND($I41 = SUM($K41:AE41), SUM($K77:AD77) = 0), $I41, 0) -> 0 | AF77: =IF(AND($I41 = SUM($K41:AF41), SUM($K77:AE77) = 0), $I41, 0) -> 0 | AG77: =IF(AND($I41 = SUM($K41:AG41), SUM($K77:AF77) = 0), $I41, 0) -> 0 | AH77: =IF(AND($I41 = SUM($K41:AH41), SUM($K77:AG77) = 0), $I41, 0) -> 0 | AI77: =IF(AND($I41 = SUM($K41:AI41), SUM($K77:AH77) = 0), $I41, 0) -> 0 | AJ77: =IF(AND($I41 = SUM($K41:AJ41), SUM($K77:AI77) = 0), $I41, 0) -> 0 | AK77: =IF(AND($I41 = SUM($K41:AK41), SUM($K77:AJ77) = 0), $I41, 0) -> 0 | AL77: =IF(AND($I41 = SUM($K41:AL41), SUM($K77:AK77) = 0), $I41, 0) -> 0 | AM77: =IF(AND($I41 = SUM($K41:AM41), SUM($K77:AL77) = 0), $I41, 0) -> 0 | AN77: =IF(AND($I41 = SUM($K41:AN41), SUM($K77:AM77) = 0), $I41, 0) -> 0 | AO77: =IF(AND($I41 = SUM($K41:AO41), SUM($K77:AN77) = 0), $I41, 0) -> 0
E78: 1993-03-31 | G78: £m 09/10 prices | J78: > | L78: =IF(AND($I42 = SUM($K42:L42), SUM($K78:K78) = 0), $I42, 0) -> 0 | M78: =IF(AND($I42 = SUM($K42:M42), SUM($K78:L78) = 0), $I42, 0) -> 0 | N78: =IF(AND($I42 = SUM($K42:N42), SUM($K78:M78) = 0), $I42, 0) -> 0 | O78: =IF(AND($I42 = SUM($K42:O42), SUM($K78:N78) = 0), $I42, 0) -> 0 | P78: =IF(AND($I42 = SUM($K42:P42), SUM($K78:O78) = 0), $I42, 0) -> 0 | Q78: =IF(AND($I42 = SUM($K42:Q42), SUM($K78:P78) = 0), $I42, 0) -> 0 | R78: =IF(AND($I42 = SUM($K42:R42), SUM($K78:Q78) = 0), $I42, 0) -> 0 | S78: =IF(AND($I42 = SUM($K42:S42), SUM($K78:R78) = 0), $I42, 0) -> 0 | T78: =IF(AND($I42 = SUM($K42:T42), SUM($K78:S78) = 0), $I42, 0) -> 0 | U78: =IF(AND($I42 = SUM($K42:U42), SUM($K78:T78) = 0), $I42, 0) -> 0 | V78: =IF(AND($I42 = SUM($K42:V42), SUM($K78:U78) = 0), $I42, 0) -> 0 | W78: =IF(AND($I42 = SUM($K42:W42), SUM($K78:V78) = 0), $I42, 0) -> 0 | X78: =IF(AND($I42 = SUM($K42:X42), SUM($K78:W78) = 0), $I42, 0) -> 0 | Y78: =IF(AND($I42 = SUM($K42:Y42), SUM($K78:X78) = 0), $I42, 0) -> 0 | Z78: =IF(AND($I42 = SUM($K42:Z42), SUM($K78:Y78) = 0), $I42, 0) -> 0 | AA78: =IF(AND($I42 = SUM($K42:AA42), SUM($K78:Z78) = 0), $I42, 0) -> 0 | AB78: =IF(AND($I42 = SUM($K42:AB42), SUM($K78:AA78) = 0), $I42, 0) -> 0 | AC78: =IF(AND($I42 = SUM($K42:AC42), SUM($K78:AB78) = 0), $I42, 0) -> 0 | AD78: =IF(AND($I42 = SUM($K42:AD42), SUM($K78:AC78) = 0), $I42, 0) -> 0 | AE78: =IF(AND($I42 = SUM($K42:AE42), SUM($K78:AD78) = 0), $I42, 0) -> 0 | AF78: =IF(AND($I42 = SUM($K42:AF42), SUM($K78:AE78) = 0), $I42, 0) -> 0 | AG78: =IF(AND($I42 = SUM($K42:AG42), SUM($K78:AF78) = 0), $I42, 0) -> 0 | AH78: =IF(AND($I42 = SUM($K42:AH42), SUM($K78:AG78) = 0), $I42, 0) -> 0 | AI78: =IF(AND($I42 = SUM($K42:AI42), SUM($K78:AH78) = 0), $I42, 0) -> 0 | AJ78: =IF(AND($I42 = SUM($K42:AJ42), SUM($K78:AI78) = 0), $I42, 0) -> 0 | AK78: =IF(AND($I42 = SUM($K42:AK42), SUM($K78:AJ78) = 0), $I42, 0) -> 0 | AL78: =IF(AND($I42 = SUM($K42:AL42), SUM($K78:AK78) = 0), $I42, 0) -> 0 | AM78: =IF(AND($I42 = SUM($K42:AM42), SUM($K78:AL78) = 0), $I42, 0) -> 0 | AN78: =IF(AND($I42 = SUM($K42:AN42), SUM($K78:AM78) = 0), $I42, 0) -> 0 | AO78: =IF(AND($I42 = SUM($K42:AO42), SUM($K78:AN78) = 0), $I42, 0) -> 0
E79: 1994-03-31 | G79: £m 09/10 prices | J79: > | L79: =IF(AND($I43 = SUM($K43:L43), SUM($K79:K79) = 0), $I43, 0) -> 0 | M79: =IF(AND($I43 = SUM($K43:M43), SUM($K79:L79) = 0), $I43, 0) -> 0 | N79: =IF(AND($I43 = SUM($K43:N43), SUM($K79:M79) = 0), $I43, 0) -> 0 | O79: =IF(AND($I43 = SUM($K43:O43), SUM($K79:N79) = 0), $I43, 0) -> 0 | P79: =IF(AND($I43 = SUM($K43:P43), SUM($K79:O79) = 0), $I43, 0) -> 0 | Q79: =IF(AND($I43 = SUM($K43:Q43), SUM($K79:P79) = 0), $I43, 0) -> 0 | R79: =IF(AND($I43 = SUM($K43:R43), SUM($K79:Q79) = 0), $I43, 0) -> 0 | S79: =IF(AND($I43 = SUM($K43:S43), SUM($K79:R79) = 0), $I43, 0) -> 0 | T79: =IF(AND($I43 = SUM($K43:T43), SUM($K79:S79) = 0), $I43, 0) -> 0 | U79: =IF(AND($I43 = SUM($K43:U43), SUM($K79:T79) = 0), $I43, 0) -> 0 | V79: =IF(AND($I43 = SUM($K43:V43), SUM($K79:U79) = 0), $I43, 0) -> 0 | W79: =IF(AND($I43 = SUM($K43:W43), SUM($K79:V79) = 0), $I43, 0) -> 0 | X79: =IF(AND($I43 = SUM($K43:X43), SUM($K79:W79) = 0), $I43, 0) -> 0 | Y79: =IF(AND($I43 = SUM($K43:Y43), SUM($K79:X79) = 0), $I43, 0) -> 0 | Z79: =IF(AND($I43 = SUM($K43:Z43), SUM($K79:Y79) = 0), $I43, 0) -> 0 | AA79: =IF(AND($I43 = SUM($K43:AA43), SUM($K79:Z79) = 0), $I43, 0) -> 0 | AB79: =IF(AND($I43 = SUM($K43:AB43), SUM($K79:AA79) = 0), $I43, 0) -> 0 | AC79: =IF(AND($I43 = SUM($K43:AC43), SUM($K79:AB79) = 0), $I43, 0) -> 0 | AD79: =IF(AND($I43 = SUM($K43:AD43), SUM($K79:AC79) = 0), $I43, 0) -> 0 | AE79: =IF(AND($I43 = SUM($K43:AE43), SUM($K79:AD79) = 0), $I43, 0) -> 0 | AF79: =IF(AND($I43 = SUM($K43:AF43), SUM($K79:AE79) = 0), $I43, 0) -> 0 | AG79: =IF(AND($I43 = SUM($K43:AG43), SUM($K79:AF79) = 0), $I43, 0) -> 0 | AH79: =IF(AND($I43 = SUM($K43:AH43), SUM($K79:AG79) = 0), $I43, 0) -> 0 | AI79: =IF(AND($I43 = SUM($K43:AI43), SUM($K79:AH79) = 0), $I43, 0) -> 0 | AJ79: =IF(AND($I43 = SUM($K43:AJ43), SUM($K79:AI79) = 0), $I43, 0) -> 0 | AK79: =IF(AND($I43 = SUM($K43:AK43), SUM($K79:AJ79) = 0), $I43, 0) -> 0 | AL79: =IF(AND($I43 = SUM($K43:AL43), SUM($K79:AK79) = 0), $I43, 0) -> 0 | AM79: =IF(AND($I43 = SUM($K43:AM43), SUM($K79:AL79) = 0), $I43, 0) -> 0 | AN79: =IF(AND($I43 = SUM($K43:AN43), SUM($K79:AM79) = 0), $I43, 0) -> 0 | AO79: =IF(AND($I43 = SUM($K43:AO43), SUM($K79:AN79) = 0), $I43, 0) -> 0
E80: 1995-03-31 | G80: £m 09/10 prices | J80: > | L80: =IF(AND($I44 = SUM($K44:L44), SUM($K80:K80) = 0), $I44, 0) -> 0 | M80: =IF(AND($I44 = SUM($K44:M44), SUM($K80:L80) = 0), $I44, 0) -> 0 | N80: =IF(AND($I44 = SUM($K44:N44), SUM($K80:M80) = 0), $I44, 0) -> 0 | O80: =IF(AND($I44 = SUM($K44:O44), SUM($K80:N80) = 0), $I44, 0) -> 0 | P80: =IF(AND($I44 = SUM($K44:P44), SUM($K80:O80) = 0), $I44, 0) -> 0 | Q80: =IF(AND($I44 = SUM($K44:Q44), SUM($K80:P80) = 0), $I44, 0) -> 0 | R80: =IF(AND($I44 = SUM($K44:R44), SUM($K80:Q80) = 0), $I44, 0) -> 0 | S80: =IF(AND($I44 = SUM($K44:S44), SUM($K80:R80) = 0), $I44, 0) -> 0 | T80: =IF(AND($I44 = SUM($K44:T44), SUM($K80:S80) = 0), $I44, 0) -> 0 | U80: =IF(AND($I44 = SUM($K44:U44), SUM($K80:T80) = 0), $I44, 0) -> 0 | V80: =IF(AND($I44 = SUM($K44:V44), SUM($K80:U80) = 0), $I44, 0) -> 0 | W80: =IF(AND($I44 = SUM($K44:W44), SUM($K80:V80) = 0), $I44, 0) -> 0 | X80: =IF(AND($I44 = SUM($K44:X44), SUM($K80:W80) = 0), $I44, 0) -> 0 | Y80: =IF(AND($I44 = SUM($K44:Y44), SUM($K80:X80) = 0), $I44, 0) -> 0 | Z80: =IF(AND($I44 = SUM($K44:Z44), SUM($K80:Y80) = 0), $I44, 0) -> 0 | AA80: =IF(AND($I44 = SUM($K44:AA44), SUM($K80:Z80) = 0), $I44, 0) -> 0 | AB80: =IF(AND($I44 = SUM($K44:AB44), SUM($K80:AA80) = 0), $I44, 0) -> 0 | AC80: =IF(AND($I44 = SUM($K44:AC44), SUM($K80:AB80) = 0), $I44, 0) -> 0 | AD80: =IF(AND($I44 = SUM($K44:AD44), SUM($K80:AC80) = 0), $I44, 0) -> 0 | AE80: =IF(AND($I44 = SUM($K44:AE44), SUM($K80:AD80) = 0), $I44, 0) -> 0 | AF80: =IF(AND($I44 = SUM($K44:AF44), SUM($K80:AE80) = 0), $I44, 0) -> 0 | AG80: =IF(AND($I44 = SUM($K44:AG44), SUM($K80:AF80) = 0), $I44, 0) -> 0 | AH80: =IF(AND($I44 = SUM($K44:AH44), SUM($K80:AG80) = 0), $I44, 0) -> 0 | AI80: =IF(AND($I44 = SUM($K44:AI44), SUM($K80:AH80) = 0), $I44, 0) -> 0 | AJ80: =IF(AND($I44 = SUM($K44:AJ44), SUM($K80:AI80) = 0), $I44, 0) -> 0 | AK80: =IF(AND($I44 = SUM($K44:AK44), SUM($K80:AJ80) = 0), $I44, 0) -> 0 | AL80: =IF(AND($I44 = SUM($K44:AL44), SUM($K80:AK80) = 0), $I44, 0) -> 0 | AM80: =IF(AND($I44 = SUM($K44:AM44), SUM($K80:AL80) = 0), $I44, 0) -> 0 | AN80: =IF(AND($I44 = SUM($K44:AN44), SUM($K80:AM80) = 0), $I44, 0) -> 0 | AO80: =IF(AND($I44 = SUM($K44:AO44), SUM($K80:AN80) = 0), $I44, 0) -> 0
E81: 1996-03-31 | G81: £m 09/10 prices | J81: > | L81: =IF(AND($I45 = SUM($K45:L45), SUM($K81:K81) = 0), $I45, 0) -> 0 | M81: =IF(AND($I45 = SUM($K45:M45), SUM($K81:L81) = 0), $I45, 0) -> 0 | N81: =IF(AND($I45 = SUM($K45:N45), SUM($K81:M81) = 0), $I45, 0) -> 0 | O81: =IF(AND($I45 = SUM($K45:O45), SUM($K81:N81) = 0), $I45, 0) -> 0 | P81: =IF(AND($I45 = SUM($K45:P45), SUM($K81:O81) = 0), $I45, 0) -> 0 | Q81: =IF(AND($I45 = SUM($K45:Q45), SUM($K81:P81) = 0), $I45, 0) -> 0 | R81: =IF(AND($I45 = SUM($K45:R45), SUM($K81:Q81) = 0), $I45, 0) -> 0 | S81: =IF(AND($I45 = SUM($K45:S45), SUM($K81:R81) = 0), $I45, 0) -> 0 | T81: =IF(AND($I45 = SUM($K45:T45), SUM($K81:S81) = 0), $I45, 0) -> 0 | U81: =IF(AND($I45 = SUM($K45:U45), SUM($K81:T81) = 0), $I45, 0) -> 0 | V81: =IF(AND($I45 = SUM($K45:V45), SUM($K81:U81) = 0), $I45, 0) -> 0 | W81: =IF(AND($I45 = SUM($K45:W45), SUM($K81:V81) = 0), $I45, 0) -> 0 | X81: =IF(AND($I45 = SUM($K45:X45), SUM($K81:W81) = 0), $I45, 0) -> 0 | Y81: =IF(AND($I45 = SUM($K45:Y45), SUM($K81:X81) = 0), $I45, 0) -> 0 | Z81: =IF(AND($I45 = SUM($K45:Z45), SUM($K81:Y81) = 0), $I45, 0) -> 0 | AA81: =IF(AND($I45 = SUM($K45:AA45), SUM($K81:Z81) = 0), $I45, 0) -> 0 | AB81: =IF(AND($I45 = SUM($K45:AB45), SUM($K81:AA81) = 0), $I45, 0) -> 0 | AC81: =IF(AND($I45 = SUM($K45:AC45), SUM($K81:AB81) = 0), $I45, 0) -> 0 | AD81: =IF(AND($I45 = SUM($K45:AD45), SUM($K81:AC81) = 0), $I45, 0) -> 0 | AE81: =IF(AND($I45 = SUM($K45:AE45), SUM($K81:AD81) = 0), $I45, 0) -> 0 | AF81: =IF(AND($I45 = SUM($K45:AF45), SUM($K81:AE81) = 0), $I45, 0) -> 0 | AG81: =IF(AND($I45 = SUM($K45:AG45), SUM($K81:AF81) = 0), $I45, 0) -> 0 | AH81: =IF(AND($I45 = SUM($K45:AH45), SUM($K81:AG81) = 0), $I45, 0) -> 0 | AI81: =IF(AND($I45 = SUM($K45:AI45), SUM($K81:AH81) = 0), $I45, 0) -> 0 | AJ81: =IF(AND($I45 = SUM($K45:AJ45), SUM($K81:AI81) = 0), $I45, 0) -> 0 | AK81: =IF(AND($I45 = SUM($K45:AK45), SUM($K81:AJ81) = 0), $I45, 0) -> 0 | AL81: =IF(AND($I45 = SUM($K45:AL45), SUM($K81:AK81) = 0), $I45, 0) -> 0 | AM81: =IF(AND($I45 = SUM($K45:AM45), SUM($K81:AL81) = 0), $I45, 0) -> 0 | AN81: =IF(AND($I45 = SUM($K45:AN45), SUM($K81:AM81) = 0), $I45, 0) -> 0 | AO81: =IF(AND($I45 = SUM($K45:AO45), SUM($K81:AN81) = 0), $I45, 0) -> 0
E82: 1997-03-31 | G82: £m 09/10 prices | J82: > | L82: =IF(AND($I46 = SUM($K46:L46), SUM($K82:K82) = 0), $I46, 0) -> 0 | M82: =IF(AND($I46 = SUM($K46:M46), SUM($K82:L82) = 0), $I46, 0) -> 0 | N82: =IF(AND($I46 = SUM($K46:N46), SUM($K82:M82) = 0), $I46, 0) -> 0 | O82: =IF(AND($I46 = SUM($K46:O46), SUM($K82:N82) = 0), $I46, 0) -> 0 | P82: =IF(AND($I46 = SUM($K46:P46), SUM($K82:O82) = 0), $I46, 0) -> 0 | Q82: =IF(AND($I46 = SUM($K46:Q46), SUM($K82:P82) = 0), $I46, 0) -> 0 | R82: =IF(AND($I46 = SUM($K46:R46), SUM($K82:Q82) = 0), $I46, 0) -> 0 | S82: =IF(AND($I46 = SUM($K46:S46), SUM($K82:R82) = 0), $I46, 0) -> 0 | T82: =IF(AND($I46 = SUM($K46:T46), SUM($K82:S82) = 0), $I46, 0) -> 0 | U82: =IF(AND($I46 = SUM($K46:U46), SUM($K82:T82) = 0), $I46, 0) -> 0 | V82: =IF(AND($I46 = SUM($K46:V46), SUM($K82:U82) = 0), $I46, 0) -> 0 | W82: =IF(AND($I46 = SUM($K46:W46), SUM($K82:V82) = 0), $I46, 0) -> 0 | X82: =IF(AND($I46 = SUM($K46:X46), SUM($K82:W82) = 0), $I46, 0) -> 0 | Y82: =IF(AND($I46 = SUM($K46:Y46), SUM($K82:X82) = 0), $I46, 0) -> 0 | Z82: =IF(AND($I46 = SUM($K46:Z46), SUM($K82:Y82) = 0), $I46, 0) -> 0 | AA82: =IF(AND($I46 = SUM($K46:AA46), SUM($K82:Z82) = 0), $I46, 0) -> 0 | AB82: =IF(AND($I46 = SUM($K46:AB46), SUM($K82:AA82) = 0), $I46, 0) -> 0 | AC82: =IF(AND($I46 = SUM($K46:AC46), SUM($K82:AB82) = 0), $I46, 0) -> 0 | AD82: =IF(AND($I46 = SUM($K46:AD46), SUM($K82:AC82) = 0), $I46, 0) -> 0 | AE82: =IF(AND($I46 = SUM($K46:AE46), SUM($K82:AD82) = 0), $I46, 0) -> 0 | AF82: =IF(AND($I46 = SUM($K46:AF46), SUM($K82:AE82) = 0), $I46, 0) -> 0 | AG82: =IF(AND($I46 = SUM($K46:AG46), SUM($K82:AF82) = 0), $I46, 0) -> 0 | AH82: =IF(AND($I46 = SUM($K46:AH46), SUM($K82:AG82) = 0), $I46, 0) -> 0 | AI82: =IF(AND($I46 = SUM($K46:AI46), SUM($K82:AH82) = 0), $I46, 0) -> 0 | AJ82: =IF(AND($I46 = SUM($K46:AJ46), SUM($K82:AI82) = 0), $I46, 0) -> 0 | AK82: =IF(AND($I46 = SUM($K46:AK46), SUM($K82:AJ82) = 0), $I46, 0) -> 0 | AL82: =IF(AND($I46 = SUM($K46:AL46), SUM($K82:AK82) = 0), $I46, 0) -> 0 | AM82: =IF(AND($I46 = SUM($K46:AM46), SUM($K82:AL82) = 0), $I46, 0) -> 0 | AN82: =IF(AND($I46 = SUM($K46:AN46), SUM($K82:AM82) = 0), $I46, 0) -> 0 | AO82: =IF(AND($I46 = SUM($K46:AO46), SUM($K82:AN82) = 0), $I46, 0) -> 0
E83: 1998-03-31 | G83: £m 09/10 prices | J83: > | L83: =IF(AND($I47 = SUM($K47:L47), SUM($K83:K83) = 0), $I47, 0) -> 0 | M83: =IF(AND($I47 = SUM($K47:M47), SUM($K83:L83) = 0), $I47, 0) -> 0 | N83: =IF(AND($I47 = SUM($K47:N47), SUM($K83:M83) = 0), $I47, 0) -> 0 | O83: =IF(AND($I47 = SUM($K47:O47), SUM($K83:N83) = 0), $I47, 0) -> 0 | P83: =IF(AND($I47 = SUM($K47:P47), SUM($K83:O83) = 0), $I47, 0) -> 0 | Q83: =IF(AND($I47 = SUM($K47:Q47), SUM($K83:P83) = 0), $I47, 0) -> 0 | R83: =IF(AND($I47 = SUM($K47:R47), SUM($K83:Q83) = 0), $I47, 0) -> 0 | S83: =IF(AND($I47 = SUM($K47:S47), SUM($K83:R83) = 0), $I47, 0) -> 0 | T83: =IF(AND($I47 = SUM($K47:T47), SUM($K83:S83) = 0), $I47, 0) -> 0 | U83: =IF(AND($I47 = SUM($K47:U47), SUM($K83:T83) = 0), $I47, 0) -> 0 | V83: =IF(AND($I47 = SUM($K47:V47), SUM($K83:U83) = 0), $I47, 0) -> 0 | W83: =IF(AND($I47 = SUM($K47:W47), SUM($K83:V83) = 0), $I47, 0) -> 0 | X83: =IF(AND($I47 = SUM($K47:X47), SUM($K83:W83) = 0), $I47, 0) -> 0 | Y83: =IF(AND($I47 = SUM($K47:Y47), SUM($K83:X83) = 0), $I47, 0) -> 0 | Z83: =IF(AND($I47 = SUM($K47:Z47), SUM($K83:Y83) = 0), $I47, 0) -> 0 | AA83: =IF(AND($I47 = SUM($K47:AA47), SUM($K83:Z83) = 0), $I47, 0) -> 0 | AB83: =IF(AND($I47 = SUM($K47:AB47), SUM($K83:AA83) = 0), $I47, 0) -> 0 | AC83: =IF(AND($I47 = SUM($K47:AC47), SUM($K83:AB83) = 0), $I47, 0) -> 0 | AD83: =IF(AND($I47 = SUM($K47:AD47), SUM($K83:AC83) = 0), $I47, 0) -> 0 | AE83: =IF(AND($I47 = SUM($K47:AE47), SUM($K83:AD83) = 0), $I47, 0) -> 0 | AF83: =IF(AND($I47 = SUM($K47:AF47), SUM($K83:AE83) = 0), $I47, 0) -> 0 | AG83: =IF(AND($I47 = SUM($K47:AG47), SUM($K83:AF83) = 0), $I47, 0) -> 0 | AH83: =IF(AND($I47 = SUM($K47:AH47), SUM($K83:AG83) = 0), $I47, 0) -> 0 | AI83: =IF(AND($I47 = SUM($K47:AI47), SUM($K83:AH83) = 0), $I47, 0) -> 0 | AJ83: =IF(AND($I47 = SUM($K47:AJ47), SUM($K83:AI83) = 0), $I47, 0) -> 0 | AK83: =IF(AND($I47 = SUM($K47:AK47), SUM($K83:AJ83) = 0), $I47, 0) -> 0 | AL83: =IF(AND($I47 = SUM($K47:AL47), SUM($K83:AK83) = 0), $I47, 0) -> 0 | AM83: =IF(AND($I47 = SUM($K47:AM47), SUM($K83:AL83) = 0), $I47, 0) -> 0 | AN83: =IF(AND($I47 = SUM($K47:AN47), SUM($K83:AM83) = 0), $I47, 0) -> 0 | AO83: =IF(AND($I47 = SUM($K47:AO47), SUM($K83:AN83) = 0), $I47, 0) -> 0
E84: 1999-03-31 | G84: £m 09/10 prices | J84: > | L84: =IF(AND($I48 = SUM($K48:L48), SUM($K84:K84) = 0), $I48, 0) -> 0 | M84: =IF(AND($I48 = SUM($K48:M48), SUM($K84:L84) = 0), $I48, 0) -> 0 | N84: =IF(AND($I48 = SUM($K48:N48), SUM($K84:M84) = 0), $I48, 0) -> 0 | O84: =IF(AND($I48 = SUM($K48:O48), SUM($K84:N84) = 0), $I48, 0) -> 0 | P84: =IF(AND($I48 = SUM($K48:P48), SUM($K84:O84) = 0), $I48, 0) -> 0 | Q84: =IF(AND($I48 = SUM($K48:Q48), SUM($K84:P84) = 0), $I48, 0) -> 0 | R84: =IF(AND($I48 = SUM($K48:R48), SUM($K84:Q84) = 0), $I48, 0) -> 0 | S84: =IF(AND($I48 = SUM($K48:S48), SUM($K84:R84) = 0), $I48, 0) -> 0 | T84: =IF(AND($I48 = SUM($K48:T48), SUM($K84:S84) = 0), $I48, 0) -> 0 | U84: =IF(AND($I48 = SUM($K48:U48), SUM($K84:T84) = 0), $I48, 0) -> 0 | V84: =IF(AND($I48 = SUM($K48:V48), SUM($K84:U84) = 0), $I48, 0) -> 0 | W84: =IF(AND($I48 = SUM($K48:W48), SUM($K84:V84) = 0), $I48, 0) -> 0 | X84: =IF(AND($I48 = SUM($K48:X48), SUM($K84:W84) = 0), $I48, 0) -> 0 | Y84: =IF(AND($I48 = SUM($K48:Y48), SUM($K84:X84) = 0), $I48, 0) -> 0 | Z84: =IF(AND($I48 = SUM($K48:Z48), SUM($K84:Y84) = 0), $I48, 0) -> 0 | AA84: =IF(AND($I48 = SUM($K48:AA48), SUM($K84:Z84) = 0), $I48, 0) -> 0 | AB84: =IF(AND($I48 = SUM($K48:AB48), SUM($K84:AA84) = 0), $I48, 0) -> 0 | AC84: =IF(AND($I48 = SUM($K48:AC48), SUM($K84:AB84) = 0), $I48, 0) -> 0 | AD84: =IF(AND($I48 = SUM($K48:AD48), SUM($K84:AC84) = 0), $I48, 0) -> 0 | AE84: =IF(AND($I48 = SUM($K48:AE48), SUM($K84:AD84) = 0), $I48, 0) -> 0 | AF84: =IF(AND($I48 = SUM($K48:AF48), SUM($K84:AE84) = 0), $I48, 0) -> 0 | AG84: =IF(AND($I48 = SUM($K48:AG48), SUM($K84:AF84) = 0), $I48, 0) -> 0 | AH84: =IF(AND($I48 = SUM($K48:AH48), SUM($K84:AG84) = 0), $I48, 0) -> 0 | AI84: =IF(AND($I48 = SUM($K48:AI48), SUM($K84:AH84) = 0), $I48, 0) -> 0 | AJ84: =IF(AND($I48 = SUM($K48:AJ48), SUM($K84:AI84) = 0), $I48, 0) -> 0 | AK84: =IF(AND($I48 = SUM($K48:AK48), SUM($K84:AJ84) = 0), $I48, 0) -> 0 | AL84: =IF(AND($I48 = SUM($K48:AL48), SUM($K84:AK84) = 0), $I48, 0) -> 0 | AM84: =IF(AND($I48 = SUM($K48:AM48), SUM($K84:AL84) = 0), $I48, 0) -> 0 | AN84: =IF(AND($I48 = SUM($K48:AN48), SUM($K84:AM84) = 0), $I48, 0) -> 0 | AO84: =IF(AND($I48 = SUM($K48:AO48), SUM($K84:AN84) = 0), $I48, 0) -> 0
E85: 2000-03-31 | G85: £m 09/10 prices | J85: > | L85: =IF(AND($I49 = SUM($K49:L49), SUM($K85:K85) = 0), $I49, 0) -> 0 | M85: =IF(AND($I49 = SUM($K49:M49), SUM($K85:L85) = 0), $I49, 0) -> 0 | N85: =IF(AND($I49 = SUM($K49:N49), SUM($K85:M85) = 0), $I49, 0) -> 0 | O85: =IF(AND($I49 = SUM($K49:O49), SUM($K85:N85) = 0), $I49, 0) -> 0 | P85: =IF(AND($I49 = SUM($K49:P49), SUM($K85:O85) = 0), $I49, 0) -> 0 | Q85: =IF(AND($I49 = SUM($K49:Q49), SUM($K85:P85) = 0), $I49, 0) -> 0 | R85: =IF(AND($I49 = SUM($K49:R49), SUM($K85:Q85) = 0), $I49, 0) -> 0 | S85: =IF(AND($I49 = SUM($K49:S49), SUM($K85:R85) = 0), $I49, 0) -> 0 | T85: =IF(AND($I49 = SUM($K49:T49), SUM($K85:S85) = 0), $I49, 0) -> 0 | U85: =IF(AND($I49 = SUM($K49:U49), SUM($K85:T85) = 0), $I49, 0) -> 0 | V85: =IF(AND($I49 = SUM($K49:V49), SUM($K85:U85) = 0), $I49, 0) -> 0 | W85: =IF(AND($I49 = SUM($K49:W49), SUM($K85:V85) = 0), $I49, 0) -> 0 | X85: =IF(AND($I49 = SUM($K49:X49), SUM($K85:W85) = 0), $I49, 0) -> 0 | Y85: =IF(AND($I49 = SUM($K49:Y49), SUM($K85:X85) = 0), $I49, 0) -> 0 | Z85: =IF(AND($I49 = SUM($K49:Z49), SUM($K85:Y85) = 0), $I49, 0) -> 0 | AA85: =IF(AND($I49 = SUM($K49:AA49), SUM($K85:Z85) = 0), $I49, 0) -> 0 | AB85: =IF(AND($I49 = SUM($K49:AB49), SUM($K85:AA85) = 0), $I49, 0) -> 0 | AC85: =IF(AND($I49 = SUM($K49:AC49), SUM($K85:AB85) = 0), $I49, 0) -> 0 | AD85: =IF(AND($I49 = SUM($K49:AD49), SUM($K85:AC85) = 0), $I49, 0) -> 0 | AE85: =IF(AND($I49 = SUM($K49:AE49), SUM($K85:AD85) = 0), $I49, 0) -> 0 | AF85: =IF(AND($I49 = SUM($K49:AF49), SUM($K85:AE85) = 0), $I49, 0) -> 0 | AG85: =IF(AND($I49 = SUM($K49:AG49), SUM($K85:AF85) = 0), $I49, 0) -> 0 | AH85: =IF(AND($I49 = SUM($K49:AH49), SUM($K85:AG85) = 0), $I49, 0) -> 0 | AI85: =IF(AND($I49 = SUM($K49:AI49), SUM($K85:AH85) = 0), $I49, 0) -> 0 | AJ85: =IF(AND($I49 = SUM($K49:AJ49), SUM($K85:AI85) = 0), $I49, 0) -> 0 | AK85: =IF(AND($I49 = SUM($K49:AK49), SUM($K85:AJ85) = 0), $I49, 0) -> 0 | AL85: =IF(AND($I49 = SUM($K49:AL49), SUM($K85:AK85) = 0), $I49, 0) -> 0 | AM85: =IF(AND($I49 = SUM($K49:AM49), SUM($K85:AL85) = 0), $I49, 0) -> 0 | AN85: =IF(AND($I49 = SUM($K49:AN49), SUM($K85:AM85) = 0), $I49, 0) -> 0 | AO85: =IF(AND($I49 = SUM($K49:AO49), SUM($K85:AN85) = 0), $I49, 0) -> 0
E86: 2001-03-31 | G86: £m 09/10 prices | J86: > | L86: =IF(AND($I50 = SUM($K50:L50), SUM($K86:K86) = 0), $I50, 0) -> 0 | M86: =IF(AND($I50 = SUM($K50:M50), SUM($K86:L86) = 0), $I50, 0) -> 0 | N86: =IF(AND($I50 = SUM($K50:N50), SUM($K86:M86) = 0), $I50, 0) -> 0 | O86: =IF(AND($I50 = SUM($K50:O50), SUM($K86:N86) = 0), $I50, 0) -> 0 | P86: =IF(AND($I50 = SUM($K50:P50), SUM($K86:O86) = 0), $I50, 0) -> 0 | Q86: =IF(AND($I50 = SUM($K50:Q50), SUM($K86:P86) = 0), $I50, 0) -> 0 | R86: =IF(AND($I50 = SUM($K50:R50), SUM($K86:Q86) = 0), $I50, 0) -> 0 | S86: =IF(AND($I50 = SUM($K50:S50), SUM($K86:R86) = 0), $I50, 0) -> 0 | T86: =IF(AND($I50 = SUM($K50:T50), SUM($K86:S86) = 0), $I50, 0) -> 0 | U86: =IF(AND($I50 = SUM($K50:U50), SUM($K86:T86) = 0), $I50, 0) -> 0 | V86: =IF(AND($I50 = SUM($K50:V50), SUM($K86:U86) = 0), $I50, 0) -> 0 | W86: =IF(AND($I50 = SUM($K50:W50), SUM($K86:V86) = 0), $I50, 0) -> 0 | X86: =IF(AND($I50 = SUM($K50:X50), SUM($K86:W86) = 0), $I50, 0) -> 0 | Y86: =IF(AND($I50 = SUM($K50:Y50), SUM($K86:X86) = 0), $I50, 0) -> 0 | Z86: =IF(AND($I50 = SUM($K50:Z50), SUM($K86:Y86) = 0), $I50, 0) -> 0 | AA86: =IF(AND($I50 = SUM($K50:AA50), SUM($K86:Z86) = 0), $I50, 0) -> 0 | AB86: =IF(AND($I50 = SUM($K50:AB50), SUM($K86:AA86) = 0), $I50, 0) -> 0 | AC86: =IF(AND($I50 = SUM($K50:AC50), SUM($K86:AB86) = 0), $I50, 0) -> 0 | AD86: =IF(AND($I50 = SUM($K50:AD50), SUM($K86:AC86) = 0), $I50, 0) -> 0 | AE86: =IF(AND($I50 = SUM($K50:AE50), SUM($K86:AD86) = 0), $I50, 0) -> 0 | AF86: =IF(AND($I50 = SUM($K50:AF50), SUM($K86:AE86) = 0), $I50, 0) -> 0 | AG86: =IF(AND($I50 = SUM($K50:AG50), SUM($K86:AF86) = 0), $I50, 0) -> 0 | AH86: =IF(AND($I50 = SUM($K50:AH50), SUM($K86:AG86) = 0), $I50, 0) -> 0 | AI86: =IF(AND($I50 = SUM($K50:AI50), SUM($K86:AH86) = 0), $I50, 0) -> 0 | AJ86: =IF(AND($I50 = SUM($K50:AJ50), SUM($K86:AI86) = 0), $I50, 0) -> 0 | AK86: =IF(AND($I50 = SUM($K50:AK50), SUM($K86:AJ86) = 0), $I50, 0) -> 0 | AL86: =IF(AND($I50 = SUM($K50:AL50), SUM($K86:AK86) = 0), $I50, 0) -> 0 | AM86: =IF(AND($I50 = SUM($K50:AM50), SUM($K86:AL86) = 0), $I50, 0) -> 0 | AN86: =IF(AND($I50 = SUM($K50:AN50), SUM($K86:AM86) = 0), $I50, 0) -> 0 | AO86: =IF(AND($I50 = SUM($K50:AO50), SUM($K86:AN86) = 0), $I50, 0) -> 0
E87: 2002-03-31 | G87: £m 09/10 prices | J87: > | L87: =IF(AND($I51 = SUM($K51:L51), SUM($K87:K87) = 0), $I51, 0) -> 0 | M87: =IF(AND($I51 = SUM($K51:M51), SUM($K87:L87) = 0), $I51, 0) -> 0 | N87: =IF(AND($I51 = SUM($K51:N51), SUM($K87:M87) = 0), $I51, 0) -> 0 | O87: =IF(AND($I51 = SUM($K51:O51), SUM($K87:N87) = 0), $I51, 0) -> 0 | P87: =IF(AND($I51 = SUM($K51:P51), SUM($K87:O87) = 0), $I51, 0) -> 0 | Q87: =IF(AND($I51 = SUM($K51:Q51), SUM($K87:P87) = 0), $I51, 0) -> 0 | R87: =IF(AND($I51 = SUM($K51:R51), SUM($K87:Q87) = 0), $I51, 0) -> 0 | S87: =IF(AND($I51 = SUM($K51:S51), SUM($K87:R87) = 0), $I51, 0) -> 0 | T87: =IF(AND($I51 = SUM($K51:T51), SUM($K87:S87) = 0), $I51, 0) -> 0 | U87: =IF(AND($I51 = SUM($K51:U51), SUM($K87:T87) = 0), $I51, 0) -> 0 | V87: =IF(AND($I51 = SUM($K51:V51), SUM($K87:U87) = 0), $I51, 0) -> 0 | W87: =IF(AND($I51 = SUM($K51:W51), SUM($K87:V87) = 0), $I51, 0) -> 0 | X87: =IF(AND($I51 = SUM($K51:X51), SUM($K87:W87) = 0), $I51, 0) -> 0 | Y87: =IF(AND($I51 = SUM($K51:Y51), SUM($K87:X87) = 0), $I51, 0) -> 0 | Z87: =IF(AND($I51 = SUM($K51:Z51), SUM($K87:Y87) = 0), $I51, 0) -> 0 | AA87: =IF(AND($I51 = SUM($K51:AA51), SUM($K87:Z87) = 0), $I51, 0) -> 0 | AB87: =IF(AND($I51 = SUM($K51:AB51), SUM($K87:AA87) = 0), $I51, 0) -> 0 | AC87: =IF(AND($I51 = SUM($K51:AC51), SUM($K87:AB87) = 0), $I51, 0) -> 0 | AD87: =IF(AND($I51 = SUM($K51:AD51), SUM($K87:AC87) = 0), $I51, 0) -> 0 | AE87: =IF(AND($I51 = SUM($K51:AE51), SUM($K87:AD87) = 0), $I51, 0) -> 0 | AF87: =IF(AND($I51 = SUM($K51:AF51), SUM($K87:AE87) = 0), $I51, 0) -> 0 | AG87: =IF(AND($I51 = SUM($K51:AG51), SUM($K87:AF87) = 0), $I51, 0) -> 0 | AH87: =IF(AND($I51 = SUM($K51:AH51), SUM($K87:AG87) = 0), $I51, 0) -> 0 | AI87: =IF(AND($I51 = SUM($K51:AI51), SUM($K87:AH87) = 0), $I51, 0) -> 0 | AJ87: =IF(AND($I51 = SUM($K51:AJ51), SUM($K87:AI87) = 0), $I51, 0) -> 0 | AK87: =IF(AND($I51 = SUM($K51:AK51), SUM($K87:AJ87) = 0), $I51, 0) -> 0 | AL87: =IF(AND($I51 = SUM($K51:AL51), SUM($K87:AK87) = 0), $I51, 0) -> 0 | AM87: =IF(AND($I51 = SUM($K51:AM51), SUM($K87:AL87) = 0), $I51, 0) -> 0 | AN87: =IF(AND($I51 = SUM($K51:AN51), SUM($K87:AM87) = 0), $I51, 0) -> 0 | AO87: =IF(AND($I51 = SUM($K51:AO51), SUM($K87:AN87) = 0), $I51, 0) -> 0
E88: 2003-03-31 | G88: £m 09/10 prices | J88: > | L88: =IF(AND($I52 = SUM($K52:L52), SUM($K88:K88) = 0), $I52, 0) -> 0 | M88: =IF(AND($I52 = SUM($K52:M52), SUM($K88:L88) = 0), $I52, 0) -> 0 | N88: =IF(AND($I52 = SUM($K52:N52), SUM($K88:M88) = 0), $I52, 0) -> 0 | O88: =IF(AND($I52 = SUM($K52:O52), SUM($K88:N88) = 0), $I52, 0) -> 0 | P88: =IF(AND($I52 = SUM($K52:P52), SUM($K88:O88) = 0), $I52, 0) -> 0 | Q88: =IF(AND($I52 = SUM($K52:Q52), SUM($K88:P88) = 0), $I52, 0) -> 0 | R88: =IF(AND($I52 = SUM($K52:R52), SUM($K88:Q88) = 0), $I52, 0) -> 0 | S88: =IF(AND($I52 = SUM($K52:S52), SUM($K88:R88) = 0), $I52, 0) -> 0 | T88: =IF(AND($I52 = SUM($K52:T52), SUM($K88:S88) = 0), $I52, 0) -> 0 | U88: =IF(AND($I52 = SUM($K52:U52), SUM($K88:T88) = 0), $I52, 0) -> 0 | V88: =IF(AND($I52 = SUM($K52:V52), SUM($K88:U88) = 0), $I52, 0) -> 0 | W88: =IF(AND($I52 = SUM($K52:W52), SUM($K88:V88) = 0), $I52, 0) -> 0 | X88: =IF(AND($I52 = SUM($K52:X52), SUM($K88:W88) = 0), $I52, 0) -> 0 | Y88: =IF(AND($I52 = SUM($K52:Y52), SUM($K88:X88) = 0), $I52, 0) -> 0 | Z88: =IF(AND($I52 = SUM($K52:Z52), SUM($K88:Y88) = 0), $I52, 0) -> 0 | AA88: =IF(AND($I52 = SUM($K52:AA52), SUM($K88:Z88) = 0), $I52, 0) -> 0 | AB88: =IF(AND($I52 = SUM($K52:AB52), SUM($K88:AA88) = 0), $I52, 0) -> 0 | AC88: =IF(AND($I52 = SUM($K52:AC52), SUM($K88:AB88) = 0), $I52, 0) -> 0 | AD88: =IF(AND($I52 = SUM($K52:AD52), SUM($K88:AC88) = 0), $I52, 0) -> 0 | AE88: =IF(AND($I52 = SUM($K52:AE52), SUM($K88:AD88) = 0), $I52, 0) -> 0 | AF88: =IF(AND($I52 = SUM($K52:AF52), SUM($K88:AE88) = 0), $I52, 0) -> 0 | AG88: =IF(AND($I52 = SUM($K52:AG52), SUM($K88:AF88) = 0), $I52, 0) -> 0 | AH88: =IF(AND($I52 = SUM($K52:AH52), SUM($K88:AG88) = 0), $I52, 0) -> 0 | AI88: =IF(AND($I52 = SUM($K52:AI52), SUM($K88:AH88) = 0), $I52, 0) -> 0 | AJ88: =IF(AND($I52 = SUM($K52:AJ52), SUM($K88:AI88) = 0), $I52, 0) -> 0 | AK88: =IF(AND($I52 = SUM($K52:AK52), SUM($K88:AJ88) = 0), $I52, 0) -> 0 | AL88: =IF(AND($I52 = SUM($K52:AL52), SUM($K88:AK88) = 0), $I52, 0) -> 0 | AM88: =IF(AND($I52 = SUM($K52:AM52), SUM($K88:AL88) = 0), $I52, 0) -> 0 | AN88: =IF(AND($I52 = SUM($K52:AN52), SUM($K88:AM88) = 0), $I52, 0) -> 0 | AO88: =IF(AND($I52 = SUM($K52:AO52), SUM($K88:AN88) = 0), $I52, 0) -> 0
E89: 2004-03-31 | G89: £m 09/10 prices | J89: > | L89: =IF(AND($I53 = SUM($K53:L53), SUM($K89:K89) = 0), $I53, 0) -> 0 | M89: =IF(AND($I53 = SUM($K53:M53), SUM($K89:L89) = 0), $I53, 0) -> 0 | N89: =IF(AND($I53 = SUM($K53:N53), SUM($K89:M89) = 0), $I53, 0) -> 0 | O89: =IF(AND($I53 = SUM($K53:O53), SUM($K89:N89) = 0), $I53, 0) -> 0 | P89: =IF(AND($I53 = SUM($K53:P53), SUM($K89:O89) = 0), $I53, 0) -> 0 | Q89: =IF(AND($I53 = SUM($K53:Q53), SUM($K89:P89) = 0), $I53, 0) -> 0 | R89: =IF(AND($I53 = SUM($K53:R53), SUM($K89:Q89) = 0), $I53, 0) -> 0 | S89: =IF(AND($I53 = SUM($K53:S53), SUM($K89:R89) = 0), $I53, 0) -> 0 | T89: =IF(AND($I53 = SUM($K53:T53), SUM($K89:S89) = 0), $I53, 0) -> 0 | U89: =IF(AND($I53 = SUM($K53:U53), SUM($K89:T89) = 0), $I53, 0) -> 0 | V89: =IF(AND($I53 = SUM($K53:V53), SUM($K89:U89) = 0), $I53, 0) -> 0 | W89: =IF(AND($I53 = SUM($K53:W53), SUM($K89:V89) = 0), $I53, 0) -> 0 | X89: =IF(AND($I53 = SUM($K53:X53), SUM($K89:W89) = 0), $I53, 0) -> 0 | Y89: =IF(AND($I53 = SUM($K53:Y53), SUM($K89:X89) = 0), $I53, 0) -> 0 | Z89: =IF(AND($I53 = SUM($K53:Z53), SUM($K89:Y89) = 0), $I53, 0) -> 0 | AA89: =IF(AND($I53 = SUM($K53:AA53), SUM($K89:Z89) = 0), $I53, 0) -> 0 | AB89: =IF(AND($I53 = SUM($K53:AB53), SUM($K89:AA89) = 0), $I53, 0) -> 0 | AC89: =IF(AND($I53 = SUM($K53:AC53), SUM($K89:AB89) = 0), $I53, 0) -> 0 | AD89: =IF(AND($I53 = SUM($K53:AD53), SUM($K89:AC89) = 0), $I53, 0) -> 0 | AE89: =IF(AND($I53 = SUM($K53:AE53), SUM($K89:AD89) = 0), $I53, 0) -> 0 | AF89: =IF(AND($I53 = SUM($K53:AF53), SUM($K89:AE89) = 0), $I53, 0) -> 0 | AG89: =IF(AND($I53 = SUM($K53:AG53), SUM($K89:AF89) = 0), $I53, 0) -> 0 | AH89: =IF(AND($I53 = SUM($K53:AH53), SUM($K89:AG89) = 0), $I53, 0) -> 0 | AI89: =IF(AND($I53 = SUM($K53:AI53), SUM($K89:AH89) = 0), $I53, 0) -> 0 | AJ89: =IF(AND($I53 = SUM($K53:AJ53), SUM($K89:AI89) = 0), $I53, 0) -> 0 | AK89: =IF(AND($I53 = SUM($K53:AK53), SUM($K89:AJ89) = 0), $I53, 0) -> 0 | AL89: =IF(AND($I53 = SUM($K53:AL53), SUM($K89:AK89) = 0), $I53, 0) -> 0 | AM89: =IF(AND($I53 = SUM($K53:AM53), SUM($K89:AL89) = 0), $I53, 0) -> 0 | AN89: =IF(AND($I53 = SUM($K53:AN53), SUM($K89:AM89) = 0), $I53, 0) -> 0 | AO89: =IF(AND($I53 = SUM($K53:AO53), SUM($K89:AN89) = 0), $I53, 0) -> 0
E90: 2005-03-31 | G90: £m 09/10 prices | J90: > | L90: =IF(AND($I54 = SUM($K54:L54), SUM($K90:K90) = 0), $I54, 0) -> 0 | M90: =IF(AND($I54 = SUM($K54:M54), SUM($K90:L90) = 0), $I54, 0) -> 0 | N90: =IF(AND($I54 = SUM($K54:N54), SUM($K90:M90) = 0), $I54, 0) -> 0 | O90: =IF(AND($I54 = SUM($K54:O54), SUM($K90:N90) = 0), $I54, 0) -> 0 | P90: =IF(AND($I54 = SUM($K54:P54), SUM($K90:O90) = 0), $I54, 0) -> 0 | Q90: =IF(AND($I54 = SUM($K54:Q54), SUM($K90:P90) = 0), $I54, 0) -> 0 | R90: =IF(AND($I54 = SUM($K54:R54), SUM($K90:Q90) = 0), $I54, 0) -> 0 | S90: =IF(AND($I54 = SUM($K54:S54), SUM($K90:R90) = 0), $I54, 0) -> 0 | T90: =IF(AND($I54 = SUM($K54:T54), SUM($K90:S90) = 0), $I54, 0) -> 0 | U90: =IF(AND($I54 = SUM($K54:U54), SUM($K90:T90) = 0), $I54, 0) -> 0 | V90: =IF(AND($I54 = SUM($K54:V54), SUM($K90:U90) = 0), $I54, 0) -> 0 | W90: =IF(AND($I54 = SUM($K54:W54), SUM($K90:V90) = 0), $I54, 0) -> 0 | X90: =IF(AND($I54 = SUM($K54:X54), SUM($K90:W90) = 0), $I54, 0) -> 0 | Y90: =IF(AND($I54 = SUM($K54:Y54), SUM($K90:X90) = 0), $I54, 0) -> 0 | Z90: =IF(AND($I54 = SUM($K54:Z54), SUM($K90:Y90) = 0), $I54, 0) -> 0 | AA90: =IF(AND($I54 = SUM($K54:AA54), SUM($K90:Z90) = 0), $I54, 0) -> 0 | AB90: =IF(AND($I54 = SUM($K54:AB54), SUM($K90:AA90) = 0), $I54, 0) -> 0 | AC90: =IF(AND($I54 = SUM($K54:AC54), SUM($K90:AB90) = 0), $I54, 0) -> 0 | AD90: =IF(AND($I54 = SUM($K54:AD54), SUM($K90:AC90) = 0), $I54, 0) -> 0 | AE90: =IF(AND($I54 = SUM($K54:AE54), SUM($K90:AD90) = 0), $I54, 0) -> 0 | AF90: =IF(AND($I54 = SUM($K54:AF54), SUM($K90:AE90) = 0), $I54, 0) -> 0 | AG90: =IF(AND($I54 = SUM($K54:AG54), SUM($K90:AF90) = 0), $I54, 0) -> 0 | AH90: =IF(AND($I54 = SUM($K54:AH54), SUM($K90:AG90) = 0), $I54, 0) -> 0 | AI90: =IF(AND($I54 = SUM($K54:AI54), SUM($K90:AH90) = 0), $I54, 0) -> 0 | AJ90: =IF(AND($I54 = SUM($K54:AJ54), SUM($K90:AI90) = 0), $I54, 0) -> 0 | AK90: =IF(AND($I54 = SUM($K54:AK54), SUM($K90:AJ90) = 0), $I54, 0) -> 0 | AL90: =IF(AND($I54 = SUM($K54:AL54), SUM($K90:AK90) = 0), $I54, 0) -> 0 | AM90: =IF(AND($I54 = SUM($K54:AM54), SUM($K90:AL90) = 0), $I54, 0) -> 0 | AN90: =IF(AND($I54 = SUM($K54:AN54), SUM($K90:AM90) = 0), $I54, 0) -> 0 | AO90: =IF(AND($I54 = SUM($K54:AO54), SUM($K90:AN90) = 0), $I54, 0) -> 0
E91: 2006-03-31 | G91: £m 09/10 prices | J91: > | L91: =IF(AND($I55 = SUM($K55:L55), SUM($K91:K91) = 0), $I55, 0) -> 0 | M91: =IF(AND($I55 = SUM($K55:M55), SUM($K91:L91) = 0), $I55, 0) -> 0 | N91: =IF(AND($I55 = SUM($K55:N55), SUM($K91:M91) = 0), $I55, 0) -> 0 | O91: =IF(AND($I55 = SUM($K55:O55), SUM($K91:N91) = 0), $I55, 0) -> 0 | P91: =IF(AND($I55 = SUM($K55:P55), SUM($K91:O91) = 0), $I55, 0) -> 0 | Q91: =IF(AND($I55 = SUM($K55:Q55), SUM($K91:P91) = 0), $I55, 0) -> 0 | R91: =IF(AND($I55 = SUM($K55:R55), SUM($K91:Q91) = 0), $I55, 0) -> 0 | S91: =IF(AND($I55 = SUM($K55:S55), SUM($K91:R91) = 0), $I55, 0) -> 0 | T91: =IF(AND($I55 = SUM($K55:T55), SUM($K91:S91) = 0), $I55, 0) -> 0 | U91: =IF(AND($I55 = SUM($K55:U55), SUM($K91:T91) = 0), $I55, 0) -> 0 | V91: =IF(AND($I55 = SUM($K55:V55), SUM($K91:U91) = 0), $I55, 0) -> 0 | W91: =IF(AND($I55 = SUM($K55:W55), SUM($K91:V91) = 0), $I55, 0) -> 0 | X91: =IF(AND($I55 = SUM($K55:X55), SUM($K91:W91) = 0), $I55, 0) -> 0 | Y91: =IF(AND($I55 = SUM($K55:Y55), SUM($K91:X91) = 0), $I55, 0) -> 0 | Z91: =IF(AND($I55 = SUM($K55:Z55), SUM($K91:Y91) = 0), $I55, 0) -> 0 | AA91: =IF(AND($I55 = SUM($K55:AA55), SUM($K91:Z91) = 0), $I55, 0) -> 0 | AB91: =IF(AND($I55 = SUM($K55:AB55), SUM($K91:AA91) = 0), $I55, 0) -> 0 | AC91: =IF(AND($I55 = SUM($K55:AC55), SUM($K91:AB91) = 0), $I55, 0) -> 0 | AD91: =IF(AND($I55 = SUM($K55:AD55), SUM($K91:AC91) = 0), $I55, 0) -> 0 | AE91: =IF(AND($I55 = SUM($K55:AE55), SUM($K91:AD91) = 0), $I55, 0) -> 0 | AF91: =IF(AND($I55 = SUM($K55:AF55), SUM($K91:AE91) = 0), $I55, 0) -> 0 | AG91: =IF(AND($I55 = SUM($K55:AG55), SUM($K91:AF91) = 0), $I55, 0) -> 0 | AH91: =IF(AND($I55 = SUM($K55:AH55), SUM($K91:AG91) = 0), $I55, 0) -> 0 | AI91: =IF(AND($I55 = SUM($K55:AI55), SUM($K91:AH91) = 0), $I55, 0) -> 0 | AJ91: =IF(AND($I55 = SUM($K55:AJ55), SUM($K91:AI91) = 0), $I55, 0) -> 0 | AK91: =IF(AND($I55 = SUM($K55:AK55), SUM($K91:AJ91) = 0), $I55, 0) -> 0 | AL91: =IF(AND($I55 = SUM($K55:AL55), SUM($K91:AK91) = 0), $I55, 0) -> 0 | AM91: =IF(AND($I55 = SUM($K55:AM55), SUM($K91:AL91) = 0), $I55, 0) -> 0 | AN91: =IF(AND($I55 = SUM($K55:AN55), SUM($K91:AM91) = 0), $I55, 0) -> 0 | AO91: =IF(AND($I55 = SUM($K55:AO55), SUM($K91:AN91) = 0), $I55, 0) -> 0
E92: 2007-03-31 | G92: £m 09/10 prices | J92: > | L92: =IF(AND($I56 = SUM($K56:L56), SUM($K92:K92) = 0), $I56, 0) -> 0 | M92: =IF(AND($I56 = SUM($K56:M56), SUM($K92:L92) = 0), $I56, 0) -> 0 | N92: =IF(AND($I56 = SUM($K56:N56), SUM($K92:M92) = 0), $I56, 0) -> 0 | O92: =IF(AND($I56 = SUM($K56:O56), SUM($K92:N92) = 0), $I56, 0) -> 0 | P92: =IF(AND($I56 = SUM($K56:P56), SUM($K92:O92) = 0), $I56, 0) -> 0 | Q92: =IF(AND($I56 = SUM($K56:Q56), SUM($K92:P92) = 0), $I56, 0) -> 0 | R92: =IF(AND($I56 = SUM($K56:R56), SUM($K92:Q92) = 0), $I56, 0) -> 0 | S92: =IF(AND($I56 = SUM($K56:S56), SUM($K92:R92) = 0), $I56, 0) -> 0 | T92: =IF(AND($I56 = SUM($K56:T56), SUM($K92:S92) = 0), $I56, 0) -> 0 | U92: =IF(AND($I56 = SUM($K56:U56), SUM($K92:T92) = 0), $I56, 0) -> 0 | V92: =IF(AND($I56 = SUM($K56:V56), SUM($K92:U92) = 0), $I56, 0) -> 0 | W92: =IF(AND($I56 = SUM($K56:W56), SUM($K92:V92) = 0), $I56, 0) -> 0 | X92: =IF(AND($I56 = SUM($K56:X56), SUM($K92:W92) = 0), $I56, 0) -> 0 | Y92: =IF(AND($I56 = SUM($K56:Y56), SUM($K92:X92) = 0), $I56, 0) -> 0 | Z92: =IF(AND($I56 = SUM($K56:Z56), SUM($K92:Y92) = 0), $I56, 0) -> 0 | AA92: =IF(AND($I56 = SUM($K56:AA56), SUM($K92:Z92) = 0), $I56, 0) -> 0 | AB92: =IF(AND($I56 = SUM($K56:AB56), SUM($K92:AA92) = 0), $I56, 0) -> 0 | AC92: =IF(AND($I56 = SUM($K56:AC56), SUM($K92:AB92) = 0), $I56, 0) -> 0 | AD92: =IF(AND($I56 = SUM($K56:AD56), SUM($K92:AC92) = 0), $I56, 0) -> 0 | AE92: =IF(AND($I56 = SUM($K56:AE56), SUM($K92:AD92) = 0), $I56, 0) -> 0 | AF92: =IF(AND($I56 = SUM($K56:AF56), SUM($K92:AE92) = 0), $I56, 0) -> 0 | AG92: =IF(AND($I56 = SUM($K56:AG56), SUM($K92:AF92) = 0), $I56, 0) -> 0 | AH92: =IF(AND($I56 = SUM($K56:AH56), SUM($K92:AG92) = 0), $I56, 0) -> 0 | AI92: =IF(AND($I56 = SUM($K56:AI56), SUM($K92:AH92) = 0), $I56, 0) -> 0 | AJ92: =IF(AND($I56 = SUM($K56:AJ56), SUM($K92:AI92) = 0), $I56, 0) -> 0 | AK92: =IF(AND($I56 = SUM($K56:AK56), SUM($K92:AJ92) = 0), $I56, 0) -> 0 | AL92: =IF(AND($I56 = SUM($K56:AL56), SUM($K92:AK92) = 0), $I56, 0) -> 0 | AM92: =IF(AND($I56 = SUM($K56:AM56), SUM($K92:AL92) = 0), $I56, 0) -> 0 | AN92: =IF(AND($I56 = SUM($K56:AN56), SUM($K92:AM92) = 0), $I56, 0) -> 0 | AO92: =IF(AND($I56 = SUM($K56:AO56), SUM($K92:AN92) = 0), $I56, 0) -> 0
E93: 2008-03-31 | G93: £m 09/10 prices | J93: > | L93: =IF(AND($I57 = SUM($K57:L57), SUM($K93:K93) = 0), $I57, 0) -> 0 | M93: =IF(AND($I57 = SUM($K57:M57), SUM($K93:L93) = 0), $I57, 0) -> 0 | N93: =IF(AND($I57 = SUM($K57:N57), SUM($K93:M93) = 0), $I57, 0) -> 0 | O93: =IF(AND($I57 = SUM($K57:O57), SUM($K93:N93) = 0), $I57, 0) -> 0 | P93: =IF(AND($I57 = SUM($K57:P57), SUM($K93:O93) = 0), $I57, 0) -> 0 | Q93: =IF(AND($I57 = SUM($K57:Q57), SUM($K93:P93) = 0), $I57, 0) -> 0 | R93: =IF(AND($I57 = SUM($K57:R57), SUM($K93:Q93) = 0), $I57, 0) -> 0 | S93: =IF(AND($I57 = SUM($K57:S57), SUM($K93:R93) = 0), $I57, 0) -> 0 | T93: =IF(AND($I57 = SUM($K57:T57), SUM($K93:S93) = 0), $I57, 0) -> 0 | U93: =IF(AND($I57 = SUM($K57:U57), SUM($K93:T93) = 0), $I57, 0) -> 0 | V93: =IF(AND($I57 = SUM($K57:V57), SUM($K93:U93) = 0), $I57, 0) -> 0 | W93: =IF(AND($I57 = SUM($K57:W57), SUM($K93:V93) = 0), $I57, 0) -> 0 | X93: =IF(AND($I57 = SUM($K57:X57), SUM($K93:W93) = 0), $I57, 0) -> 0 | Y93: =IF(AND($I57 = SUM($K57:Y57), SUM($K93:X93) = 0), $I57, 0) -> 0 | Z93: =IF(AND($I57 = SUM($K57:Z57), SUM($K93:Y93) = 0), $I57, 0) -> 0 | AA93: =IF(AND($I57 = SUM($K57:AA57), SUM($K93:Z93) = 0), $I57, 0) -> 0 | AB93: =IF(AND($I57 = SUM($K57:AB57), SUM($K93:AA93) = 0), $I57, 0) -> 0 | AC93: =IF(AND($I57 = SUM($K57:AC57), SUM($K93:AB93) = 0), $I57, 0) -> 0 | AD93: =IF(AND($I57 = SUM($K57:AD57), SUM($K93:AC93) = 0), $I57, 0) -> 0 | AE93: =IF(AND($I57 = SUM($K57:AE57), SUM($K93:AD93) = 0), $I57, 0) -> 0 | AF93: =IF(AND($I57 = SUM($K57:AF57), SUM($K93:AE93) = 0), $I57, 0) -> 0 | AG93: =IF(AND($I57 = SUM($K57:AG57), SUM($K93:AF93) = 0), $I57, 0) -> 0 | AH93: =IF(AND($I57 = SUM($K57:AH57), SUM($K93:AG93) = 0), $I57, 0) -> 0 | AI93: =IF(AND($I57 = SUM($K57:AI57), SUM($K93:AH93) = 0), $I57, 0) -> 0 | AJ93: =IF(AND($I57 = SUM($K57:AJ57), SUM($K93:AI93) = 0), $I57, 0) -> 0 | AK93: =IF(AND($I57 = SUM($K57:AK57), SUM($K93:AJ93) = 0), $I57, 0) -> 0 | AL93: =IF(AND($I57 = SUM($K57:AL57), SUM($K93:AK93) = 0), $I57, 0) -> 0 | AM93: =IF(AND($I57 = SUM($K57:AM57), SUM($K93:AL93) = 0), $I57, 0) -> 0 | AN93: =IF(AND($I57 = SUM($K57:AN57), SUM($K93:AM93) = 0), $I57, 0) -> 0 | AO93: =IF(AND($I57 = SUM($K57:AO57), SUM($K93:AN93) = 0), $I57, 0) -> 0
E94: 2009-03-31 | G94: £m 09/10 prices | J94: > | L94: =IF(AND($I58 = SUM($K58:L58), SUM($K94:K94) = 0), $I58, 0) -> 0 | M94: =IF(AND($I58 = SUM($K58:M58), SUM($K94:L94) = 0), $I58, 0) -> 0 | N94: =IF(AND($I58 = SUM($K58:N58), SUM($K94:M94) = 0), $I58, 0) -> 0 | O94: =IF(AND($I58 = SUM($K58:O58), SUM($K94:N94) = 0), $I58, 0) -> 0 | P94: =IF(AND($I58 = SUM($K58:P58), SUM($K94:O94) = 0), $I58, 0) -> 0 | Q94: =IF(AND($I58 = SUM($K58:Q58), SUM($K94:P94) = 0), $I58, 0) -> 0 | R94: =IF(AND($I58 = SUM($K58:R58), SUM($K94:Q94) = 0), $I58, 0) -> 0 | S94: =IF(AND($I58 = SUM($K58:S58), SUM($K94:R94) = 0), $I58, 0) -> 0 | T94: =IF(AND($I58 = SUM($K58:T58), SUM($K94:S94) = 0), $I58, 0) -> 0 | U94: =IF(AND($I58 = SUM($K58:U58), SUM($K94:T94) = 0), $I58, 0) -> 0 | V94: =IF(AND($I58 = SUM($K58:V58), SUM($K94:U94) = 0), $I58, 0) -> 0 | W94: =IF(AND($I58 = SUM($K58:W58), SUM($K94:V94) = 0), $I58, 0) -> 0 | X94: =IF(AND($I58 = SUM($K58:X58), SUM($K94:W94) = 0), $I58, 0) -> 0 | Y94: =IF(AND($I58 = SUM($K58:Y58), SUM($K94:X94) = 0), $I58, 0) -> 0 | Z94: =IF(AND($I58 = SUM($K58:Z58), SUM($K94:Y94) = 0), $I58, 0) -> 0 | AA94: =IF(AND($I58 = SUM($K58:AA58), SUM($K94:Z94) = 0), $I58, 0) -> 0 | AB94: =IF(AND($I58 = SUM($K58:AB58), SUM($K94:AA94) = 0), $I58, 0) -> 0 | AC94: =IF(AND($I58 = SUM($K58:AC58), SUM($K94:AB94) = 0), $I58, 0) -> 0 | AD94: =IF(AND($I58 = SUM($K58:AD58), SUM($K94:AC94) = 0), $I58, 0) -> 0 | AE94: =IF(AND($I58 = SUM($K58:AE58), SUM($K94:AD94) = 0), $I58, 0) -> 0 | AF94: =IF(AND($I58 = SUM($K58:AF58), SUM($K94:AE94) = 0), $I58, 0) -> 0 | AG94: =IF(AND($I58 = SUM($K58:AG58), SUM($K94:AF94) = 0), $I58, 0) -> 0 | AH94: =IF(AND($I58 = SUM($K58:AH58), SUM($K94:AG94) = 0), $I58, 0) -> 0 | AI94: =IF(AND($I58 = SUM($K58:AI58), SUM($K94:AH94) = 0), $I58, 0) -> 0 | AJ94: =IF(AND($I58 = SUM($K58:AJ58), SUM($K94:AI94) = 0), $I58, 0) -> 0 | AK94: =IF(AND($I58 = SUM($K58:AK58), SUM($K94:AJ94) = 0), $I58, 0) -> 0 | AL94: =IF(AND($I58 = SUM($K58:AL58), SUM($K94:AK94) = 0), $I58, 0) -> 0 | AM94: =IF(AND($I58 = SUM($K58:AM58), SUM($K94:AL94) = 0), $I58, 0) -> 0 | AN94: =IF(AND($I58 = SUM($K58:AN58), SUM($K94:AM94) = 0), $I58, 0) -> 0 | AO94: =IF(AND($I58 = SUM($K58:AO58), SUM($K94:AN94) = 0), $I58, 0) -> 0
E95: 2010-03-31 | G95: £m 09/10 prices | J95: > | L95: =IF(AND($I59 = SUM($K59:L59), SUM($K95:K95) = 0), $I59, 0) -> 0 | M95: =IF(AND($I59 = SUM($K59:M59), SUM($K95:L95) = 0), $I59, 0) -> 0 | N95: =IF(AND($I59 = SUM($K59:N59), SUM($K95:M95) = 0), $I59, 0) -> 0 | O95: =IF(AND($I59 = SUM($K59:O59), SUM($K95:N95) = 0), $I59, 0) -> 0 | P95: =IF(AND($I59 = SUM($K59:P59), SUM($K95:O95) = 0), $I59, 0) -> 0 | Q95: =IF(AND($I59 = SUM($K59:Q59), SUM($K95:P95) = 0), $I59, 0) -> 0 | R95: =IF(AND($I59 = SUM($K59:R59), SUM($K95:Q95) = 0), $I59, 0) -> 0 | S95: =IF(AND($I59 = SUM($K59:S59), SUM($K95:R95) = 0), $I59, 0) -> 0 | T95: =IF(AND($I59 = SUM($K59:T59), SUM($K95:S95) = 0), $I59, 0) -> 0 | U95: =IF(AND($I59 = SUM($K59:U59), SUM($K95:T95) = 0), $I59, 0) -> 0 | V95: =IF(AND($I59 = SUM($K59:V59), SUM($K95:U95) = 0), $I59, 0) -> 0 | W95: =IF(AND($I59 = SUM($K59:W59), SUM($K95:V95) = 0), $I59, 0) -> 0 | X95: =IF(AND($I59 = SUM($K59:X59), SUM($K95:W95) = 0), $I59, 0) -> 0 | Y95: =IF(AND($I59 = SUM($K59:Y59), SUM($K95:X95) = 0), $I59, 0) -> 0 | Z95: =IF(AND($I59 = SUM($K59:Z59), SUM($K95:Y95) = 0), $I59, 0) -> 0 | AA95: =IF(AND($I59 = SUM($K59:AA59), SUM($K95:Z95) = 0), $I59, 0) -> 0 | AB95: =IF(AND($I59 = SUM($K59:AB59), SUM($K95:AA95) = 0), $I59, 0) -> 0 | AC95: =IF(AND($I59 = SUM($K59:AC59), SUM($K95:AB95) = 0), $I59, 0) -> 0 | AD95: =IF(AND($I59 = SUM($K59:AD59), SUM($K95:AC95) = 0), $I59, 0) -> 0 | AE95: =IF(AND($I59 = SUM($K59:AE59), SUM($K95:AD95) = 0), $I59, 0) -> 0 | AF95: =IF(AND($I59 = SUM($K59:AF59), SUM($K95:AE95) = 0), $I59, 0) -> 0 | AG95: =IF(AND($I59 = SUM($K59:AG59), SUM($K95:AF95) = 0), $I59, 0) -> 0 | AH95: =IF(AND($I59 = SUM($K59:AH59), SUM($K95:AG95) = 0), $I59, 0) -> 0 | AI95: =IF(AND($I59 = SUM($K59:AI59), SUM($K95:AH95) = 0), $I59, 0) -> 0 | AJ95: =IF(AND($I59 = SUM($K59:AJ59), SUM($K95:AI95) = 0), $I59, 0) -> 0 | AK95: =IF(AND($I59 = SUM($K59:AK59), SUM($K95:AJ95) = 0), $I59, 0) -> 0 | AL95: =IF(AND($I59 = SUM($K59:AL59), SUM($K95:AK95) = 0), $I59, 0) -> 0 | AM95: =IF(AND($I59 = SUM($K59:AM59), SUM($K95:AL95) = 0), $I59, 0) -> 0 | AN95: =IF(AND($I59 = SUM($K59:AN59), SUM($K95:AM95) = 0), $I59, 0) -> 0 | AO95: =IF(AND($I59 = SUM($K59:AO59), SUM($K95:AN95) = 0), $I59, 0) -> 0
E96: 2011-03-31 | G96: £m 09/10 prices | J96: > | L96: =IF(AND($I60 = SUM($K60:L60), SUM($K96:K96) = 0), $I60, 0) -> 0 | M96: =IF(AND($I60 = SUM($K60:M60), SUM($K96:L96) = 0), $I60, 0) -> 0 | N96: =IF(AND($I60 = SUM($K60:N60), SUM($K96:M96) = 0), $I60, 0) -> 0 | O96: =IF(AND($I60 = SUM($K60:O60), SUM($K96:N96) = 0), $I60, 0) -> 0 | P96: =IF(AND($I60 = SUM($K60:P60), SUM($K96:O96) = 0), $I60, 0) -> 0 | Q96: =IF(AND($I60 = SUM($K60:Q60), SUM($K96:P96) = 0), $I60, 0) -> 0 | R96: =IF(AND($I60 = SUM($K60:R60), SUM($K96:Q96) = 0), $I60, 0) -> 0 | S96: =IF(AND($I60 = SUM($K60:S60), SUM($K96:R96) = 0), $I60, 0) -> 0 | T96: =IF(AND($I60 = SUM($K60:T60), SUM($K96:S96) = 0), $I60, 0) -> 0 | U96: =IF(AND($I60 = SUM($K60:U60), SUM($K96:T96) = 0), $I60, 0) -> 0 | V96: =IF(AND($I60 = SUM($K60:V60), SUM($K96:U96) = 0), $I60, 0) -> 0 | W96: =IF(AND($I60 = SUM($K60:W60), SUM($K96:V96) = 0), $I60, 0) -> 0 | X96: =IF(AND($I60 = SUM($K60:X60), SUM($K96:W96) = 0), $I60, 0) -> 0 | Y96: =IF(AND($I60 = SUM($K60:Y60), SUM($K96:X96) = 0), $I60, 0) -> 0 | Z96: =IF(AND($I60 = SUM($K60:Z60), SUM($K96:Y96) = 0), $I60, 0) -> 0 | AA96: =IF(AND($I60 = SUM($K60:AA60), SUM($K96:Z96) = 0), $I60, 0) -> 0 | AB96: =IF(AND($I60 = SUM($K60:AB60), SUM($K96:AA96) = 0), $I60, 0) -> 0 | AC96: =IF(AND($I60 = SUM($K60:AC60), SUM($K96:AB96) = 0), $I60, 0) -> 0 | AD96: =IF(AND($I60 = SUM($K60:AD60), SUM($K96:AC96) = 0), $I60, 0) -> 0 | AE96: =IF(AND($I60 = SUM($K60:AE60), SUM($K96:AD96) = 0), $I60, 0) -> 0 | AF96: =IF(AND($I60 = SUM($K60:AF60), SUM($K96:AE96) = 0), $I60, 0) -> 0 | AG96: =IF(AND($I60 = SUM($K60:AG60), SUM($K96:AF96) = 0), $I60, 0) -> 0 | AH96: =IF(AND($I60 = SUM($K60:AH60), SUM($K96:AG96) = 0), $I60, 0) -> 0 | AI96: =IF(AND($I60 = SUM($K60:AI60), SUM($K96:AH96) = 0), $I60, 0) -> 0 | AJ96: =IF(AND($I60 = SUM($K60:AJ60), SUM($K96:AI96) = 0), $I60, 0) -> 0 | AK96: =IF(AND($I60 = SUM($K60:AK60), SUM($K96:AJ96) = 0), $I60, 0) -> 0 | AL96: =IF(AND($I60 = SUM($K60:AL60), SUM($K96:AK96) = 0), $I60, 0) -> 0 | AM96: =IF(AND($I60 = SUM($K60:AM60), SUM($K96:AL96) = 0), $I60, 0) -> 0 | AN96: =IF(AND($I60 = SUM($K60:AN60), SUM($K96:AM96) = 0), $I60, 0) -> 0 | AO96: =IF(AND($I60 = SUM($K60:AO60), SUM($K96:AN96) = 0), $I60, 0) -> 0
E97: 2012-03-31 | G97: £m 09/10 prices | J97: > | L97: =IF(AND($I61 = SUM($K61:L61), SUM($K97:K97) = 0), $I61, 0) -> 0 | M97: =IF(AND($I61 = SUM($K61:M61), SUM($K97:L97) = 0), $I61, 0) -> 0 | N97: =IF(AND($I61 = SUM($K61:N61), SUM($K97:M97) = 0), $I61, 0) -> 0 | O97: =IF(AND($I61 = SUM($K61:O61), SUM($K97:N97) = 0), $I61, 0) -> 0 | P97: =IF(AND($I61 = SUM($K61:P61), SUM($K97:O97) = 0), $I61, 0) -> 0 | Q97: =IF(AND($I61 = SUM($K61:Q61), SUM($K97:P97) = 0), $I61, 0) -> 0 | R97: =IF(AND($I61 = SUM($K61:R61), SUM($K97:Q97) = 0), $I61, 0) -> 0 | S97: =IF(AND($I61 = SUM($K61:S61), SUM($K97:R97) = 0), $I61, 0) -> 0 | T97: =IF(AND($I61 = SUM($K61:T61), SUM($K97:S97) = 0), $I61, 0) -> 0 | U97: =IF(AND($I61 = SUM($K61:U61), SUM($K97:T97) = 0), $I61, 0) -> 0 | V97: =IF(AND($I61 = SUM($K61:V61), SUM($K97:U97) = 0), $I61, 0) -> 0 | W97: =IF(AND($I61 = SUM($K61:W61), SUM($K97:V97) = 0), $I61, 0) -> 0 | X97: =IF(AND($I61 = SUM($K61:X61), SUM($K97:W97) = 0), $I61, 0) -> 0 | Y97: =IF(AND($I61 = SUM($K61:Y61), SUM($K97:X97) = 0), $I61, 0) -> 0 | Z97: =IF(AND($I61 = SUM($K61:Z61), SUM($K97:Y97) = 0), $I61, 0) -> 0 | AA97: =IF(AND($I61 = SUM($K61:AA61), SUM($K97:Z97) = 0), $I61, 0) -> 0 | AB97: =IF(AND($I61 = SUM($K61:AB61), SUM($K97:AA97) = 0), $I61, 0) -> 0 | AC97: =IF(AND($I61 = SUM($K61:AC61), SUM($K97:AB97) = 0), $I61, 0) -> 0 | AD97: =IF(AND($I61 = SUM($K61:AD61), SUM($K97:AC97) = 0), $I61, 0) -> 0 | AE97: =IF(AND($I61 = SUM($K61:AE61), SUM($K97:AD97) = 0), $I61, 0) -> 0 | AF97: =IF(AND($I61 = SUM($K61:AF61), SUM($K97:AE97) = 0), $I61, 0) -> 0 | AG97: =IF(AND($I61 = SUM($K61:AG61), SUM($K97:AF97) = 0), $I61, 0) -> 0 | AH97: =IF(AND($I61 = SUM($K61:AH61), SUM($K97:AG97) = 0), $I61, 0) -> 0 | AI97: =IF(AND($I61 = SUM($K61:AI61), SUM($K97:AH97) = 0), $I61, 0) -> 0 | AJ97: =IF(AND($I61 = SUM($K61:AJ61), SUM($K97:AI97) = 0), $I61, 0) -> 0 | AK97: =IF(AND($I61 = SUM($K61:AK61), SUM($K97:AJ97) = 0), $I61, 0) -> 0 | AL97: =IF(AND($I61 = SUM($K61:AL61), SUM($K97:AK97) = 0), $I61, 0) -> 0 | AM97: =IF(AND($I61 = SUM($K61:AM61), SUM($K97:AL97) = 0), $I61, 0) -> 0 | AN97: =IF(AND($I61 = SUM($K61:AN61), SUM($K97:AM97) = 0), $I61, 0) -> 0 | AO97: =IF(AND($I61 = SUM($K61:AO61), SUM($K97:AN97) = 0), $I61, 0) -> 0
E98: 2013-03-31 | G98: £m 09/10 prices | J98: > | L98: =IF(AND($I62 = SUM($K62:L62), SUM($K98:K98) = 0), $I62, 0) -> 0 | M98: =IF(AND($I62 = SUM($K62:M62), SUM($K98:L98) = 0), $I62, 0) -> 0 | N98: =IF(AND($I62 = SUM($K62:N62), SUM($K98:M98) = 0), $I62, 0) -> 0 | O98: =IF(AND($I62 = SUM($K62:O62), SUM($K98:N98) = 0), $I62, 0) -> 0 | P98: =IF(AND($I62 = SUM($K62:P62), SUM($K98:O98) = 0), $I62, 0) -> 0 | Q98: =IF(AND($I62 = SUM($K62:Q62), SUM($K98:P98) = 0), $I62, 0) -> 0 | R98: =IF(AND($I62 = SUM($K62:R62), SUM($K98:Q98) = 0), $I62, 0) -> 0 | S98: =IF(AND($I62 = SUM($K62:S62), SUM($K98:R98) = 0), $I62, 0) -> 0 | T98: =IF(AND($I62 = SUM($K62:T62), SUM($K98:S98) = 0), $I62, 0) -> 0 | U98: =IF(AND($I62 = SUM($K62:U62), SUM($K98:T98) = 0), $I62, 0) -> 0 | V98: =IF(AND($I62 = SUM($K62:V62), SUM($K98:U98) = 0), $I62, 0) -> 0 | W98: =IF(AND($I62 = SUM($K62:W62), SUM($K98:V98) = 0), $I62, 0) -> 0 | X98: =IF(AND($I62 = SUM($K62:X62), SUM($K98:W98) = 0), $I62, 0) -> 0 | Y98: =IF(AND($I62 = SUM($K62:Y62), SUM($K98:X98) = 0), $I62, 0) -> 0 | Z98: =IF(AND($I62 = SUM($K62:Z62), SUM($K98:Y98) = 0), $I62, 0) -> 0 | AA98: =IF(AND($I62 = SUM($K62:AA62), SUM($K98:Z98) = 0), $I62, 0) -> 0 | AB98: =IF(AND($I62 = SUM($K62:AB62), SUM($K98:AA98) = 0), $I62, 0) -> 0 | AC98: =IF(AND($I62 = SUM($K62:AC62), SUM($K98:AB98) = 0), $I62, 0) -> 0 | AD98: =IF(AND($I62 = SUM($K62:AD62), SUM($K98:AC98) = 0), $I62, 0) -> 0 | AE98: =IF(AND($I62 = SUM($K62:AE62), SUM($K98:AD98) = 0), $I62, 0) -> 0 | AF98: =IF(AND($I62 = SUM($K62:AF62), SUM($K98:AE98) = 0), $I62, 0) -> 0 | AG98: =IF(AND($I62 = SUM($K62:AG62), SUM($K98:AF98) = 0), $I62, 0) -> 0 | AH98: =IF(AND($I62 = SUM($K62:AH62), SUM($K98:AG98) = 0), $I62, 0) -> 0 | AI98: =IF(AND($I62 = SUM($K62:AI62), SUM($K98:AH98) = 0), $I62, 0) -> 0 | AJ98: =IF(AND($I62 = SUM($K62:AJ62), SUM($K98:AI98) = 0), $I62, 0) -> 0 | AK98: =IF(AND($I62 = SUM($K62:AK62), SUM($K98:AJ98) = 0), $I62, 0) -> 0 | AL98: =IF(AND($I62 = SUM($K62:AL62), SUM($K98:AK98) = 0), $I62, 0) -> 0 | AM98: =IF(AND($I62 = SUM($K62:AM62), SUM($K98:AL98) = 0), $I62, 0) -> 0 | AN98: =IF(AND($I62 = SUM($K62:AN62), SUM($K98:AM98) = 0), $I62, 0) -> 0 | AO98: =IF(AND($I62 = SUM($K62:AO62), SUM($K98:AN98) = 0), $I62, 0) -> 0
E99: 2014-03-31 | G99: £m 09/10 prices | J99: > | L99: =IF(AND($I63 = SUM($K63:L63), SUM($K99:K99) = 0), $I63, 0) -> 0 | M99: =IF(AND($I63 = SUM($K63:M63), SUM($K99:L99) = 0), $I63, 0) -> 0 | N99: =IF(AND($I63 = SUM($K63:N63), SUM($K99:M99) = 0), $I63, 0) -> 0 | O99: =IF(AND($I63 = SUM($K63:O63), SUM($K99:N99) = 0), $I63, 0) -> 0 | P99: =IF(AND($I63 = SUM($K63:P63), SUM($K99:O99) = 0), $I63, 0) -> 0 | Q99: =IF(AND($I63 = SUM($K63:Q63), SUM($K99:P99) = 0), $I63, 0) -> 0 | R99: =IF(AND($I63 = SUM($K63:R63), SUM($K99:Q99) = 0), $I63, 0) -> 0 | S99: =IF(AND($I63 = SUM($K63:S63), SUM($K99:R99) = 0), $I63, 0) -> 0 | T99: =IF(AND($I63 = SUM($K63:T63), SUM($K99:S99) = 0), $I63, 0) -> 0 | U99: =IF(AND($I63 = SUM($K63:U63), SUM($K99:T99) = 0), $I63, 0) -> 0 | V99: =IF(AND($I63 = SUM($K63:V63), SUM($K99:U99) = 0), $I63, 0) -> 0 | W99: =IF(AND($I63 = SUM($K63:W63), SUM($K99:V99) = 0), $I63, 0) -> 0 | X99: =IF(AND($I63 = SUM($K63:X63), SUM($K99:W99) = 0), $I63, 0) -> 0 | Y99: =IF(AND($I63 = SUM($K63:Y63), SUM($K99:X99) = 0), $I63, 0) -> 0 | Z99: =IF(AND($I63 = SUM($K63:Z63), SUM($K99:Y99) = 0), $I63, 0) -> 0 | AA99: =IF(AND($I63 = SUM($K63:AA63), SUM($K99:Z99) = 0), $I63, 0) -> 0 | AB99: =IF(AND($I63 = SUM($K63:AB63), SUM($K99:AA99) = 0), $I63, 0) -> 0 | AC99: =IF(AND($I63 = SUM($K63:AC63), SUM($K99:AB99) = 0), $I63, 0) -> 0 | AD99: =IF(AND($I63 = SUM($K63:AD63), SUM($K99:AC99) = 0), $I63, 0) -> 0 | AE99: =IF(AND($I63 = SUM($K63:AE63), SUM($K99:AD99) = 0), $I63, 0) -> 0 | AF99: =IF(AND($I63 = SUM($K63:AF63), SUM($K99:AE99) = 0), $I63, 0) -> 0 | AG99: =IF(AND($I63 = SUM($K63:AG63), SUM($K99:AF99) = 0), $I63, 0) -> 0 | AH99: =IF(AND($I63 = SUM($K63:AH63), SUM($K99:AG99) = 0), $I63, 0) -> 0 | AI99: =IF(AND($I63 = SUM($K63:AI63), SUM($K99:AH99) = 0), $I63, 0) -> 0 | AJ99: =IF(AND($I63 = SUM($K63:AJ63), SUM($K99:AI99) = 0), $I63, 0) -> 0 | AK99: =IF(AND($I63 = SUM($K63:AK63), SUM($K99:AJ99) = 0), $I63, 0) -> 0 | AL99: =IF(AND($I63 = SUM($K63:AL63), SUM($K99:AK99) = 0), $I63, 0) -> 0 | AM99: =IF(AND($I63 = SUM($K63:AM63), SUM($K99:AL99) = 0), $I63, 0) -> 0 | AN99: =IF(AND($I63 = SUM($K63:AN63), SUM($K99:AM99) = 0), $I63, 0) -> 0 | AO99: =IF(AND($I63 = SUM($K63:AO63), SUM($K99:AN99) = 0), $I63, 0) -> 0
E100: 2015-03-31 | G100: £m 09/10 prices | J100: > | L100: =IF(AND($I64 = SUM($K64:L64), SUM($K100:K100) = 0), $I64, 0) -> 0 | M100: =IF(AND($I64 = SUM($K64:M64), SUM($K100:L100) = 0), $I64, 0) -> 0 | N100: =IF(AND($I64 = SUM($K64:N64), SUM($K100:M100) = 0), $I64, 0) -> 0 | O100: =IF(AND($I64 = SUM($K64:O64), SUM($K100:N100) = 0), $I64, 0) -> 0 | P100: =IF(AND($I64 = SUM($K64:P64), SUM($K100:O100) = 0), $I64, 0) -> 0 | Q100: =IF(AND($I64 = SUM($K64:Q64), SUM($K100:P100) = 0), $I64, 0) -> 0 | R100: =IF(AND($I64 = SUM($K64:R64), SUM($K100:Q100) = 0), $I64, 0) -> 0 | S100: =IF(AND($I64 = SUM($K64:S64), SUM($K100:R100) = 0), $I64, 0) -> 0 | T100: =IF(AND($I64 = SUM($K64:T64), SUM($K100:S100) = 0), $I64, 0) -> 0 | U100: =IF(AND($I64 = SUM($K64:U64), SUM($K100:T100) = 0), $I64, 0) -> 0 | V100: =IF(AND($I64 = SUM($K64:V64), SUM($K100:U100) = 0), $I64, 0) -> 0 | W100: =IF(AND($I64 = SUM($K64:W64), SUM($K100:V100) = 0), $I64, 0) -> 0 | X100: =IF(AND($I64 = SUM($K64:X64), SUM($K100:W100) = 0), $I64, 0) -> 0 | Y100: =IF(AND($I64 = SUM($K64:Y64), SUM($K100:X100) = 0), $I64, 0) -> 0 | Z100: =IF(AND($I64 = SUM($K64:Z64), SUM($K100:Y100) = 0), $I64, 0) -> 0 | AA100: =IF(AND($I64 = SUM($K64:AA64), SUM($K100:Z100) = 0), $I64, 0) -> 0 | AB100: =IF(AND($I64 = SUM($K64:AB64), SUM($K100:AA100) = 0), $I64, 0) -> 0 | AC100: =IF(AND($I64 = SUM($K64:AC64), SUM($K100:AB100) = 0), $I64, 0) -> 0 | AD100: =IF(AND($I64 = SUM($K64:AD64), SUM($K100:AC100) = 0), $I64, 0) -> 0 | AE100: =IF(AND($I64 = SUM($K64:AE64), SUM($K100:AD100) = 0), $I64, 0) -> 0 | AF100: =IF(AND($I64 = SUM($K64:AF64), SUM($K100:AE100) = 0), $I64, 0) -> 0 | AG100: =IF(AND($I64 = SUM($K64:AG64), SUM($K100:AF100) = 0), $I64, 0) -> 0 | AH100: =IF(AND($I64 = SUM($K64:AH64), SUM($K100:AG100) = 0), $I64, 0) -> 0 | AI100: =IF(AND($I64 = SUM($K64:AI64), SUM($K100:AH100) = 0), $I64, 0) -> 0 | AJ100: =IF(AND($I64 = SUM($K64:AJ64), SUM($K100:AI100) = 0), $I64, 0) -> 0 | AK100: =IF(AND($I64 = SUM($K64:AK64), SUM($K100:AJ100) = 0), $I64, 0) -> 0 | AL100: =IF(AND($I64 = SUM($K64:AL64), SUM($K100:AK100) = 0), $I64, 0) -> 0 | AM100: =IF(AND($I64 = SUM($K64:AM64), SUM($K100:AL100) = 0), $I64, 0) -> 0 | AN100: =IF(AND($I64 = SUM($K64:AN64), SUM($K100:AM100) = 0), $I64, 0) -> 0 | AO100: =IF(AND($I64 = SUM($K64:AO64), SUM($K100:AN100) = 0), $I64, 0) -> 0
E101: 2016-03-31 | G101: £m 09/10 prices | J101: > | L101: =IF(AND($I65 = SUM($K65:L65), SUM($K101:K101) = 0), $I65, 0) -> 0 | M101: =IF(AND($I65 = SUM($K65:M65), SUM($K101:L101) = 0), $I65, 0) -> 0 | N101: =IF(AND($I65 = SUM($K65:N65), SUM($K101:M101) = 0), $I65, 0) -> 0 | O101: =IF(AND($I65 = SUM($K65:O65), SUM($K101:N101) = 0), $I65, 0) -> 0 | P101: =IF(AND($I65 = SUM($K65:P65), SUM($K101:O101) = 0), $I65, 0) -> 0 | Q101: =IF(AND($I65 = SUM($K65:Q65), SUM($K101:P101) = 0), $I65, 0) -> 0 | R101: =IF(AND($I65 = SUM($K65:R65), SUM($K101:Q101) = 0), $I65, 0) -> 0 | S101: =IF(AND($I65 = SUM($K65:S65), SUM($K101:R101) = 0), $I65, 0) -> 0 | T101: =IF(AND($I65 = SUM($K65:T65), SUM($K101:S101) = 0), $I65, 0) -> 0 | U101: =IF(AND($I65 = SUM($K65:U65), SUM($K101:T101) = 0), $I65, 0) -> 0 | V101: =IF(AND($I65 = SUM($K65:V65), SUM($K101:U101) = 0), $I65, 0) -> 0 | W101: =IF(AND($I65 = SUM($K65:W65), SUM($K101:V101) = 0), $I65, 0) -> 0 | X101: =IF(AND($I65 = SUM($K65:X65), SUM($K101:W101) = 0), $I65, 0) -> 0 | Y101: =IF(AND($I65 = SUM($K65:Y65), SUM($K101:X101) = 0), $I65, 0) -> 0 | Z101: =IF(AND($I65 = SUM($K65:Z65), SUM($K101:Y101) = 0), $I65, 0) -> 0 | AA101: =IF(AND($I65 = SUM($K65:AA65), SUM($K101:Z101) = 0), $I65, 0) -> 0 | AB101: =IF(AND($I65 = SUM($K65:AB65), SUM($K101:AA101) = 0), $I65, 0) -> 0 | AC101: =IF(AND($I65 = SUM($K65:AC65), SUM($K101:AB101) = 0), $I65, 0) -> 0 | AD101: =IF(AND($I65 = SUM($K65:AD65), SUM($K101:AC101) = 0), $I65, 0) -> 0 | AE101: =IF(AND($I65 = SUM($K65:AE65), SUM($K101:AD101) = 0), $I65, 0) -> 0 | AF101: =IF(AND($I65 = SUM($K65:AF65), SUM($K101:AE101) = 0), $I65, 0) -> 0 | AG101: =IF(AND($I65 = SUM($K65:AG65), SUM($K101:AF101) = 0), $I65, 0) -> 0 | AH101: =IF(AND($I65 = SUM($K65:AH65), SUM($K101:AG101) = 0), $I65, 0) -> 0 | AI101: =IF(AND($I65 = SUM($K65:AI65), SUM($K101:AH101) = 0), $I65, 0) -> 0 | AJ101: =IF(AND($I65 = SUM($K65:AJ65), SUM($K101:AI101) = 0), $I65, 0) -> 0 | AK101: =IF(AND($I65 = SUM($K65:AK65), SUM($K101:AJ101) = 0), $I65, 0) -> 0 | AL101: =IF(AND($I65 = SUM($K65:AL65), SUM($K101:AK101) = 0), $I65, 0) -> 0 | AM101: =IF(AND($I65 = SUM($K65:AM65), SUM($K101:AL101) = 0), $I65, 0) -> 0 | AN101: =IF(AND($I65 = SUM($K65:AN65), SUM($K101:AM101) = 0), $I65, 0) -> 0 | AO101: =IF(AND($I65 = SUM($K65:AO65), SUM($K101:AN101) = 0), $I65, 0) -> 0
E102: 2017-03-31 | G102: £m 09/10 prices | J102: > | L102: =IF(AND($I66 = SUM($K66:L66), SUM($K102:K102) = 0), $I66, 0) -> 0 | M102: =IF(AND($I66 = SUM($K66:M66), SUM($K102:L102) = 0), $I66, 0) -> 0 | N102: =IF(AND($I66 = SUM($K66:N66), SUM($K102:M102) = 0), $I66, 0) -> 0 | O102: =IF(AND($I66 = SUM($K66:O66), SUM($K102:N102) = 0), $I66, 0) -> 0 | P102: =IF(AND($I66 = SUM($K66:P66), SUM($K102:O102) = 0), $I66, 0) -> 0 | Q102: =IF(AND($I66 = SUM($K66:Q66), SUM($K102:P102) = 0), $I66, 0) -> 0 | R102: =IF(AND($I66 = SUM($K66:R66), SUM($K102:Q102) = 0), $I66, 0) -> 0 | S102: =IF(AND($I66 = SUM($K66:S66), SUM($K102:R102) = 0), $I66, 0) -> 0 | T102: =IF(AND($I66 = SUM($K66:T66), SUM($K102:S102) = 0), $I66, 0) -> 0 | U102: =IF(AND($I66 = SUM($K66:U66), SUM($K102:T102) = 0), $I66, 0) -> 0 | V102: =IF(AND($I66 = SUM($K66:V66), SUM($K102:U102) = 0), $I66, 0) -> 0 | W102: =IF(AND($I66 = SUM($K66:W66), SUM($K102:V102) = 0), $I66, 0) -> 0 | X102: =IF(AND($I66 = SUM($K66:X66), SUM($K102:W102) = 0), $I66, 0) -> 0 | Y102: =IF(AND($I66 = SUM($K66:Y66), SUM($K102:X102) = 0), $I66, 0) -> 0 | Z102: =IF(AND($I66 = SUM($K66:Z66), SUM($K102:Y102) = 0), $I66, 0) -> 0 | AA102: =IF(AND($I66 = SUM($K66:AA66), SUM($K102:Z102) = 0), $I66, 0) -> 0 | AB102: =IF(AND($I66 = SUM($K66:AB66), SUM($K102:AA102) = 0), $I66, 0) -> 0 | AC102: =IF(AND($I66 = SUM($K66:AC66), SUM($K102:AB102) = 0), $I66, 0) -> 0 | AD102: =IF(AND($I66 = SUM($K66:AD66), SUM($K102:AC102) = 0), $I66, 0) -> 0 | AE102: =IF(AND($I66 = SUM($K66:AE66), SUM($K102:AD102) = 0), $I66, 0) -> 0 | AF102: =IF(AND($I66 = SUM($K66:AF66), SUM($K102:AE102) = 0), $I66, 0) -> 0 | AG102: =IF(AND($I66 = SUM($K66:AG66), SUM($K102:AF102) = 0), $I66, 0) -> 0 | AH102: =IF(AND($I66 = SUM($K66:AH66), SUM($K102:AG102) = 0), $I66, 0) -> 0 | AI102: =IF(AND($I66 = SUM($K66:AI66), SUM($K102:AH102) = 0), $I66, 0) -> 0 | AJ102: =IF(AND($I66 = SUM($K66:AJ66), SUM($K102:AI102) = 0), $I66, 0) -> 0 | AK102: =IF(AND($I66 = SUM($K66:AK66), SUM($K102:AJ102) = 0), $I66, 0) -> 0 | AL102: =IF(AND($I66 = SUM($K66:AL66), SUM($K102:AK102) = 0), $I66, 0) -> 0 | AM102: =IF(AND($I66 = SUM($K66:AM66), SUM($K102:AL102) = 0), $I66, 0) -> 0 | AN102: =IF(AND($I66 = SUM($K66:AN66), SUM($K102:AM102) = 0), $I66, 0) -> 0 | AO102: =IF(AND($I66 = SUM($K66:AO66), SUM($K102:AN102) = 0), $I66, 0) -> 0
E103: 2018-03-31 | G103: £m 09/10 prices | J103: > | L103: =IF(AND($I67 = SUM($K67:L67), SUM($K103:K103) = 0), $I67, 0) -> 0 | M103: =IF(AND($I67 = SUM($K67:M67), SUM($K103:L103) = 0), $I67, 0) -> 0 | N103: =IF(AND($I67 = SUM($K67:N67), SUM($K103:M103) = 0), $I67, 0) -> 0 | O103: =IF(AND($I67 = SUM($K67:O67), SUM($K103:N103) = 0), $I67, 0) -> 0 | P103: =IF(AND($I67 = SUM($K67:P67), SUM($K103:O103) = 0), $I67, 0) -> 0 | Q103: =IF(AND($I67 = SUM($K67:Q67), SUM($K103:P103) = 0), $I67, 0) -> 0 | R103: =IF(AND($I67 = SUM($K67:R67), SUM($K103:Q103) = 0), $I67, 0) -> 0 | S103: =IF(AND($I67 = SUM($K67:S67), SUM($K103:R103) = 0), $I67, 0) -> 0 | T103: =IF(AND($I67 = SUM($K67:T67), SUM($K103:S103) = 0), $I67, 0) -> 0 | U103: =IF(AND($I67 = SUM($K67:U67), SUM($K103:T103) = 0), $I67, 0) -> 0 | V103: =IF(AND($I67 = SUM($K67:V67), SUM($K103:U103) = 0), $I67, 0) -> 0 | W103: =IF(AND($I67 = SUM($K67:W67), SUM($K103:V103) = 0), $I67, 0) -> 0 | X103: =IF(AND($I67 = SUM($K67:X67), SUM($K103:W103) = 0), $I67, 0) -> 0 | Y103: =IF(AND($I67 = SUM($K67:Y67), SUM($K103:X103) = 0), $I67, 0) -> 0 | Z103: =IF(AND($I67 = SUM($K67:Z67), SUM($K103:Y103) = 0), $I67, 0) -> 0 | AA103: =IF(AND($I67 = SUM($K67:AA67), SUM($K103:Z103) = 0), $I67, 0) -> 0 | AB103: =IF(AND($I67 = SUM($K67:AB67), SUM($K103:AA103) = 0), $I67, 0) -> 0 | AC103: =IF(AND($I67 = SUM($K67:AC67), SUM($K103:AB103) = 0), $I67, 0) -> 0 | AD103: =IF(AND($I67 = SUM($K67:AD67), SUM($K103:AC103) = 0), $I67, 0) -> 0 | AE103: =IF(AND($I67 = SUM($K67:AE67), SUM($K103:AD103) = 0), $I67, 0) -> 0 | AF103: =IF(AND($I67 = SUM($K67:AF67), SUM($K103:AE103) = 0), $I67, 0) -> 0 | AG103: =IF(AND($I67 = SUM($K67:AG67), SUM($K103:AF103) = 0), $I67, 0) -> 0 | AH103: =IF(AND($I67 = SUM($K67:AH67), SUM($K103:AG103) = 0), $I67, 0) -> 0 | AI103: =IF(AND($I67 = SUM($K67:AI67), SUM($K103:AH103) = 0), $I67, 0) -> 0 | AJ103: =IF(AND($I67 = SUM($K67:AJ67), SUM($K103:AI103) = 0), $I67, 0) -> 0 | AK103: =IF(AND($I67 = SUM($K67:AK67), SUM($K103:AJ103) = 0), $I67, 0) -> 0 | AL103: =IF(AND($I67 = SUM($K67:AL67), SUM($K103:AK103) = 0), $I67, 0) -> 0 | AM103: =IF(AND($I67 = SUM($K67:AM67), SUM($K103:AL103) = 0), $I67, 0) -> 0 | AN103: =IF(AND($I67 = SUM($K67:AN67), SUM($K103:AM103) = 0), $I67, 0) -> 0 | AO103: =IF(AND($I67 = SUM($K67:AO67), SUM($K103:AN103) = 0), $I67, 0) -> 0
E104: 2019-03-31 | G104: £m 09/10 prices | J104: > | L104: =IF(AND($I68 = SUM($K68:L68), SUM($K104:K104) = 0), $I68, 0) -> 0 | M104: =IF(AND($I68 = SUM($K68:M68), SUM($K104:L104) = 0), $I68, 0) -> 0 | N104: =IF(AND($I68 = SUM($K68:N68), SUM($K104:M104) = 0), $I68, 0) -> 0 | O104: =IF(AND($I68 = SUM($K68:O68), SUM($K104:N104) = 0), $I68, 0) -> 0 | P104: =IF(AND($I68 = SUM($K68:P68), SUM($K104:O104) = 0), $I68, 0) -> 0 | Q104: =IF(AND($I68 = SUM($K68:Q68), SUM($K104:P104) = 0), $I68, 0) -> 0 | R104: =IF(AND($I68 = SUM($K68:R68), SUM($K104:Q104) = 0), $I68, 0) -> 0 | S104: =IF(AND($I68 = SUM($K68:S68), SUM($K104:R104) = 0), $I68, 0) -> 0 | T104: =IF(AND($I68 = SUM($K68:T68), SUM($K104:S104) = 0), $I68, 0) -> 0 | U104: =IF(AND($I68 = SUM($K68:U68), SUM($K104:T104) = 0), $I68, 0) -> 0 | V104: =IF(AND($I68 = SUM($K68:V68), SUM($K104:U104) = 0), $I68, 0) -> 0 | W104: =IF(AND($I68 = SUM($K68:W68), SUM($K104:V104) = 0), $I68, 0) -> 0 | X104: =IF(AND($I68 = SUM($K68:X68), SUM($K104:W104) = 0), $I68, 0) -> 0 | Y104: =IF(AND($I68 = SUM($K68:Y68), SUM($K104:X104) = 0), $I68, 0) -> 0 | Z104: =IF(AND($I68 = SUM($K68:Z68), SUM($K104:Y104) = 0), $I68, 0) -> 0 | AA104: =IF(AND($I68 = SUM($K68:AA68), SUM($K104:Z104) = 0), $I68, 0) -> 0 | AB104: =IF(AND($I68 = SUM($K68:AB68), SUM($K104:AA104) = 0), $I68, 0) -> 0 | AC104: =IF(AND($I68 = SUM($K68:AC68), SUM($K104:AB104) = 0), $I68, 0) -> 0 | AD104: =IF(AND($I68 = SUM($K68:AD68), SUM($K104:AC104) = 0), $I68, 0) -> 0 | AE104: =IF(AND($I68 = SUM($K68:AE68), SUM($K104:AD104) = 0), $I68, 0) -> 0 | AF104: =IF(AND($I68 = SUM($K68:AF68), SUM($K104:AE104) = 0), $I68, 0) -> 0 | AG104: =IF(AND($I68 = SUM($K68:AG68), SUM($K104:AF104) = 0), $I68, 0) -> 0 | AH104: =IF(AND($I68 = SUM($K68:AH68), SUM($K104:AG104) = 0), $I68, 0) -> 0 | AI104: =IF(AND($I68 = SUM($K68:AI68), SUM($K104:AH104) = 0), $I68, 0) -> 0 | AJ104: =IF(AND($I68 = SUM($K68:AJ68), SUM($K104:AI104) = 0), $I68, 0) -> 0 | AK104: =IF(AND($I68 = SUM($K68:AK68), SUM($K104:AJ104) = 0), $I68, 0) -> 0 | AL104: =IF(AND($I68 = SUM($K68:AL68), SUM($K104:AK104) = 0), $I68, 0) -> 0 | AM104: =IF(AND($I68 = SUM($K68:AM68), SUM($K104:AL104) = 0), $I68, 0) -> 0 | AN104: =IF(AND($I68 = SUM($K68:AN68), SUM($K104:AM104) = 0), $I68, 0) -> 0 | AO104: =IF(AND($I68 = SUM($K68:AO68), SUM($K104:AN104) = 0), $I68, 0) -> 0
E105: 2020-03-31 | G105: £m 09/10 prices | J105: > | L105: =IF(AND($I69 = SUM($K69:L69), SUM($K105:K105) = 0), $I69, 0) -> 0 | M105: =IF(AND($I69 = SUM($K69:M69), SUM($K105:L105) = 0), $I69, 0) -> 0 | N105: =IF(AND($I69 = SUM($K69:N69), SUM($K105:M105) = 0), $I69, 0) -> 0 | O105: =IF(AND($I69 = SUM($K69:O69), SUM($K105:N105) = 0), $I69, 0) -> 0 | P105: =IF(AND($I69 = SUM($K69:P69), SUM($K105:O105) = 0), $I69, 0) -> 0 | Q105: =IF(AND($I69 = SUM($K69:Q69), SUM($K105:P105) = 0), $I69, 0) -> 0 | R105: =IF(AND($I69 = SUM($K69:R69), SUM($K105:Q105) = 0), $I69, 0) -> 0 | S105: =IF(AND($I69 = SUM($K69:S69), SUM($K105:R105) = 0), $I69, 0) -> 0 | T105: =IF(AND($I69 = SUM($K69:T69), SUM($K105:S105) = 0), $I69, 0) -> 0 | U105: =IF(AND($I69 = SUM($K69:U69), SUM($K105:T105) = 0), $I69, 0) -> 0 | V105: =IF(AND($I69 = SUM($K69:V69), SUM($K105:U105) = 0), $I69, 0) -> 0 | W105: =IF(AND($I69 = SUM($K69:W69), SUM($K105:V105) = 0), $I69, 0) -> 0 | X105: =IF(AND($I69 = SUM($K69:X69), SUM($K105:W105) = 0), $I69, 0) -> 0 | Y105: =IF(AND($I69 = SUM($K69:Y69), SUM($K105:X105) = 0), $I69, 0) -> 0 | Z105: =IF(AND($I69 = SUM($K69:Z69), SUM($K105:Y105) = 0), $I69, 0) -> 0 | AA105: =IF(AND($I69 = SUM($K69:AA69), SUM($K105:Z105) = 0), $I69, 0) -> 0 | AB105: =IF(AND($I69 = SUM($K69:AB69), SUM($K105:AA105) = 0), $I69, 0) -> 0 | AC105: =IF(AND($I69 = SUM($K69:AC69), SUM($K105:AB105) = 0), $I69, 0) -> 0 | AD105: =IF(AND($I69 = SUM($K69:AD69), SUM($K105:AC105) = 0), $I69, 0) -> 0 | AE105: =IF(AND($I69 = SUM($K69:AE69), SUM($K105:AD105) = 0), $I69, 0) -> 0 | AF105: =IF(AND($I69 = SUM($K69:AF69), SUM($K105:AE105) = 0), $I69, 0) -> 0 | AG105: =IF(AND($I69 = SUM($K69:AG69), SUM($K105:AF105) = 0), $I69, 0) -> 0 | AH105: =IF(AND($I69 = SUM($K69:AH69), SUM($K105:AG105) = 0), $I69, 0) -> 0 | AI105: =IF(AND($I69 = SUM($K69:AI69), SUM($K105:AH105) = 0), $I69, 0) -> 0 | AJ105: =IF(AND($I69 = SUM($K69:AJ69), SUM($K105:AI105) = 0), $I69, 0) -> 0 | AK105: =IF(AND($I69 = SUM($K69:AK69), SUM($K105:AJ105) = 0), $I69, 0) -> 0 | AL105: =IF(AND($I69 = SUM($K69:AL69), SUM($K105:AK105) = 0), $I69, 0) -> 0 | AM105: =IF(AND($I69 = SUM($K69:AM69), SUM($K105:AL105) = 0), $I69, 0) -> 0 | AN105: =IF(AND($I69 = SUM($K69:AN69), SUM($K105:AM105) = 0), $I69, 0) -> 0 | AO105: =IF(AND($I69 = SUM($K69:AO69), SUM($K105:AN105) = 0), $I69, 0) -> 0
E106: 2021-03-31 | G106: £m 09/10 prices | J106: > | L106: =IF(AND($I70 = SUM($K70:L70), SUM($K106:K106) = 0), $I70, 0) -> 0 | M106: =IF(AND($I70 = SUM($K70:M70), SUM($K106:L106) = 0), $I70, 0) -> 0 | N106: =IF(AND($I70 = SUM($K70:N70), SUM($K106:M106) = 0), $I70, 0) -> 0 | O106: =IF(AND($I70 = SUM($K70:O70), SUM($K106:N106) = 0), $I70, 0) -> 0 | P106: =IF(AND($I70 = SUM($K70:P70), SUM($K106:O106) = 0), $I70, 0) -> 0 | Q106: =IF(AND($I70 = SUM($K70:Q70), SUM($K106:P106) = 0), $I70, 0) -> 0 | R106: =IF(AND($I70 = SUM($K70:R70), SUM($K106:Q106) = 0), $I70, 0) -> 0 | S106: =IF(AND($I70 = SUM($K70:S70), SUM($K106:R106) = 0), $I70, 0) -> 0 | T106: =IF(AND($I70 = SUM($K70:T70), SUM($K106:S106) = 0), $I70, 0) -> 0 | U106: =IF(AND($I70 = SUM($K70:U70), SUM($K106:T106) = 0), $I70, 0) -> 0 | V106: =IF(AND($I70 = SUM($K70:V70), SUM($K106:U106) = 0), $I70, 0) -> 0 | W106: =IF(AND($I70 = SUM($K70:W70), SUM($K106:V106) = 0), $I70, 0) -> 0 | X106: =IF(AND($I70 = SUM($K70:X70), SUM($K106:W106) = 0), $I70, 0) -> 0 | Y106: =IF(AND($I70 = SUM($K70:Y70), SUM($K106:X106) = 0), $I70, 0) -> 0 | Z106: =IF(AND($I70 = SUM($K70:Z70), SUM($K106:Y106) = 0), $I70, 0) -> 0 | AA106: =IF(AND($I70 = SUM($K70:AA70), SUM($K106:Z106) = 0), $I70, 0) -> 0 | AB106: =IF(AND($I70 = SUM($K70:AB70), SUM($K106:AA106) = 0), $I70, 0) -> 0 | AC106: =IF(AND($I70 = SUM($K70:AC70), SUM($K106:AB106) = 0), $I70, 0) -> 0 | AD106: =IF(AND($I70 = SUM($K70:AD70), SUM($K106:AC106) = 0), $I70, 0) -> 0 | AE106: =IF(AND($I70 = SUM($K70:AE70), SUM($K106:AD106) = 0), $I70, 0) -> 0 | AF106: =IF(AND($I70 = SUM($K70:AF70), SUM($K106:AE106) = 0), $I70, 0) -> 0 | AG106: =IF(AND($I70 = SUM($K70:AG70), SUM($K106:AF106) = 0), $I70, 0) -> 0 | AH106: =IF(AND($I70 = SUM($K70:AH70), SUM($K106:AG106) = 0), $I70, 0) -> 0 | AI106: =IF(AND($I70 = SUM($K70:AI70), SUM($K106:AH106) = 0), $I70, 0) -> 0 | AJ106: =IF(AND($I70 = SUM($K70:AJ70), SUM($K106:AI106) = 0), $I70, 0) -> 0 | AK106: =IF(AND($I70 = SUM($K70:AK70), SUM($K106:AJ106) = 0), $I70, 0) -> 0 | AL106: =IF(AND($I70 = SUM($K70:AL70), SUM($K106:AK106) = 0), $I70, 0) -> 0 | AM106: =IF(AND($I70 = SUM($K70:AM70), SUM($K106:AL106) = 0), $I70, 0) -> 0 | AN106: =IF(AND($I70 = SUM($K70:AN70), SUM($K106:AM106) = 0), $I70, 0) -> 0 | AO106: =IF(AND($I70 = SUM($K70:AO70), SUM($K106:AN106) = 0), $I70, 0) -> 0
E107: Total | G107: £m 09/10 prices | L107: =SUM(L76:L106) -> 0 | M107: 0 | N107: 0 | O107: 0 | P107: 0 | Q107: 0 | R107: 0 | S107: 0 | T107: 0 | U107: 0 | V107: 0 | W107: 0 | X107: 0 | Y107: 0 | Z107: 0 | AA107: 0 | AB107: 0 | AC107: 0 | AD107: 0 | AE107: 0 | AF107: 0 | AG107: 0 | AH107: =SUM(AH76:AH106) -> 0 | AI107: 0 | AJ107: 0 | AK107: 0 | AL107: 0 | AM107: 0 | AN107: 0 | AO107: 0
C109: RIIO opening value
C110: Note: Cumulative values provide the opening values for the following year.
E112: Cumulative net additions | G112: £m 09/10 prices | J112: > | AG112: =SUM($K15:AG15) -> 2365.943622
E113: Cumulative depreciation | G113: £m 09/10 prices | J113: > | AG113: =SUM($K$20:AG20) +SUM($K71:AG71) -> 292.933784
E114: Cumulative removals | G114: £m 09/10 prices | J114: > | AG114: =SUM($K107:AG107) -> 0
E116: Opening post-vesting RAV cost contribution | G116: £m 09/10 prices | AH116: =AG112 - AG114 -> 2365.943622
E117: Opening post-vesting RAV accumulated depreciation contribution | G117: £m 09/10 prices | AH117: =AG113 - AG114 -> 292.933784
B119: End of sheet

Sheet SystemOperator
A1: SystemOperator
B2: =UserInterface!G17 -> NGGT TO
E3: Parameter | F3: Licence condition | G3: Units | H3: Term | I3: Constant | AH3: Annual values
E4: PCFM year ending | F4: =Cover!C3 -> GT1 PCFM November 2017 DryRun3.xlsm | I4: =UserInterface!$G$10 -> 2019-03-31 | K4: 1991-03-31 | L4: 1992-03-31 | M4: 1993-03-31 | N4: 1994-03-31 | O4: 1995-03-31 | P4: 1996-03-31 | Q4: 1997-03-31 | R4: 1998-03-31 | S4: 1999-03-31 | T4: 2000-03-31 | U4: 2001-03-31 | V4: 2002-03-31 | W4: 2003-03-31 | X4: 2004-03-31 | Y4: 2005-03-31 | Z4: 2006-03-31 | AA4: 2007-03-31 | AB4: 2008-03-31 | AC4: 2009-03-31 | AD4: 2010-03-31 | AE4: 2011-03-31 | AF4: 2012-03-31 | AG4: 2013-03-31 | AH4: 2014-03-31 | AI4: 2015-03-31 | AJ4: 2016-03-31 | AK4: 2017-03-31 | AL4: 2018-03-31 | AM4: 2019-03-31 | AN4: 2020-03-31 | AO4: 2021-03-31
B6: PCFM Variable Values Table
E8: Actual non-operational capex | F8: 6B | G8: £m 09/10 prices | H8: SOANC | AH8: =('NGGT SO'!AH8) -> 17.73174459 | AI8: =('NGGT SO'!AI8) -> 27.26801547 | AJ8: =('NGGT SO'!AJ8) -> 35.75153184 | AK8: =('NGGT SO'!AK8) -> 26.81244227 | AL8: =('NGGT SO'!AL8) -> 0 | AM8: =('NGGT SO'!AM8) -> 0 | AN8: =('NGGT SO'!AN8) -> 0 | AO8: =('NGGT SO'!AO8) -> 0
E9: Actual controllable opex | F9: 6B | G9: £m 09/10 prices | H9: SOACO | AH9: =('NGGT SO'!AH9) -> 41.7005332 | AI9: =('NGGT SO'!AI9) -> 46.5193684 | AJ9: =('NGGT SO'!AJ9) -> 47.63727041 | AK9: =('NGGT SO'!AK9) -> 48.00099059 | AL9: =('NGGT SO'!AL9) -> 0 | AM9: =('NGGT SO'!AM9) -> 0 | AN9: =('NGGT SO'!AN9) -> 0 | AO9: =('NGGT SO'!AO9) -> 0
E10: Uncertain costs - Enhanced Physical Site Security | F10: 6D | G10: £m 09/10 prices | H10: SOIAEEPS | AH10: =('NGGT SO'!AH10) -> 12.6 | AI10: =('NGGT SO'!AI10) -> 0 | AJ10: =('NGGT SO'!AJ10) -> 0 | AK10: =('NGGT SO'!AK10) -> 0 | AL10: =('NGGT SO'!AL10) -> 0 | AM10: =('NGGT SO'!AM10) -> 0 | AN10: =('NGGT SO'!AN10) -> 0 | AO10: =('NGGT SO'!AO10) -> 0
E11: Uncertain costs – Central Agency Costs | F11: 6D | G11: £m 09/10 prices | H11: SOIAECA | AH11: =('NGGT SO'!AH11) -> 13.47232591 | AI11: =('NGGT SO'!AI11) -> 12.47684142 | AJ11: =('NGGT SO'!AJ11) -> 18.33157713 | AK11: =('NGGT SO'!AK11) -> 23.90893797 | AL11: =('NGGT SO'!AL11) -> 15.97551158 | AM11: =('NGGT SO'!AM11) -> 17.68276803 | AN11: =('NGGT SO'!AN11) -> 17.60322783 | AO11: =('NGGT SO'!AO11) -> 15.28411725
E12: Tax liability - gearing/interest costs | F12: 6C | G12: £m nominal | H12: SOTGIE | AH12: =('NGGT SO'!AH12) -> 0 | AI12: =('NGGT SO'!AI12) -> 0 | AJ12: =('NGGT SO'!AJ12) -> 0 | AK12: =('NGGT SO'!AK12) -> 0 | AL12: =('NGGT SO'!AL12) -> 0 | AM12: =('NGGT SO'!AM12) -> 0 | AN12: =('NGGT SO'!AN12) -> 0 | AO12: =('NGGT SO'!AO12) -> 0
E13: Tax liability - tax trigger events | F13: 6C | G13: £m 09/10 prices | H13: SOTTE | AH13: =('NGGT SO'!AH13) -> 0 | AI13: =('NGGT SO'!AI13) -> 0 | AJ13: =('NGGT SO'!AJ13) -> 0 | AK13: =('NGGT SO'!AK13) -> 0 | AL13: =('NGGT SO'!AL13) -> 0 | AM13: =('NGGT SO'!AM13) -> 0 | AN13: =('NGGT SO'!AN13) -> 0 | AO13: =('NGGT SO'!AO13) -> 0
E14: Pension scheme administration and Pension Protection Fund Levy | F14: 6C | G14: £m 09/10 prices | H14: SOAPFE | AH14: =('NGGT SO'!AH14) -> 0 | AI14: =('NGGT SO'!AI14) -> 0 | AJ14: =('NGGT SO'!AJ14) -> 0 | AK14: =('NGGT SO'!AK14) -> 0 | AL14: =('NGGT SO'!AL14) -> 0 | AM14: =('NGGT SO'!AM14) -> 0.07328244291 | AN14: =('NGGT SO'!AN14) -> 0.07328244291 | AO14: =('NGGT SO'!AO14) -> 0.07328244291
E15: Pension Scheme Established Deficit | F15: 6C | G15: £m 09/10 prices | H15: SOEDE | AH15: =('NGGT SO'!AH15) -> 0.1610489786 | AI15: =('NGGT SO'!AI15) -> 0.1610489786 | AJ15: =('NGGT SO'!AJ15) -> 0.8373095812 | AK15: =('NGGT SO'!AK15) -> 0.8373095812 | AL15: =('NGGT SO'!AL15) -> 0.8373095812 | AM15: =('NGGT SO'!AM15) -> 1.350698313 | AN15: =('NGGT SO'!AN15) -> 1.350698313 | AO15: =('NGGT SO'!AO15) -> 1.350698313
E16: Legacy price control adjustments to allowed revenue | F16: 6A | G16: £m 09/10 prices | H16: SOLAR | AH16: =('NGGT SO'!AH16) -> 0.25854539
E17: Legacy price control adjustments to RAV | F17: 6A | G17: £m 09/10 prices | H17: SOLRAV | AH17: =('NGGT SO'!AH17) -> -2.95505504
B19: Expenditure
C21: Totex
D23: Non-variant allowances
E25: Non-variant allowed non-operational capex | G25: £m 09/10 prices | AH25: =('NGGT SO'!AH25) -> 33.73406432 | AI25: =('NGGT SO'!AI25) -> 27.39346022 | AJ25: =('NGGT SO'!AJ25) -> 18.58964638 | AK25: =('NGGT SO'!AK25) -> 15.69005368 | AL25: =('NGGT SO'!AL25) -> 14.11733182 | AM25: =('NGGT SO'!AM25) -> 12.84244653 | AN25: =('NGGT SO'!AN25) -> 15.12070869 | AO25: =('NGGT SO'!AO25) -> 12.83733567
E26: Non-variant allowed controllable opex | G26: £m 09/10 prices | AH26: =('NGGT SO'!AH26) -> 37.78058173 | AI26: =('NGGT SO'!AI26) -> 38.76525145 | AJ26: =('NGGT SO'!AJ26) -> 38.93573454 | AK26: =('NGGT SO'!AK26) -> 37.1943665 | AL26: =('NGGT SO'!AL26) -> 37.66336374 | AM26: =('NGGT SO'!AM26) -> 38.16607227 | AN26: =('NGGT SO'!AN26) -> 38.82175823 | AO26: =('NGGT SO'!AO26) -> 39.41768132
D28: Variant allowances
E30: =E10 -> Uncertain costs - Enhanced Physical Site Security | G30: £m 09/10 prices | AH30: =AH10 -> 12.6 | AI30: =AI10 -> 0 | AJ30: 0 | AK30: 0 | AL30: 0 | AM30: 0 | AN30: 0 | AO30: 0
E31: Allocation to non-operational capex | G31: % | AH31: =('NGGT SO'!AH31) -> 1 | AI31: =('NGGT SO'!AI31) -> 1 | AJ31: =('NGGT SO'!AJ31) -> 1 | AK31: =('NGGT SO'!AK31) -> 1 | AL31: =('NGGT SO'!AL31) -> 1 | AM31: =('NGGT SO'!AM31) -> 1 | AN31: =('NGGT SO'!AN31) -> 1 | AO31: =('NGGT SO'!AO31) -> 1
E32: Allocation to controllable opex | G32: % | AH32: =('NGGT SO'!AH32) -> 0 | AI32: =('NGGT SO'!AI32) -> 0 | AJ32: =('NGGT SO'!AJ32) -> 0 | AK32: =('NGGT SO'!AK32) -> 0 | AL32: =('NGGT SO'!AL32) -> 0 | AM32: =('NGGT SO'!AM32) -> 0 | AN32: =('NGGT SO'!AN32) -> 0 | AO32: =('NGGT SO'!AO32) -> 0
E34: =E11 -> Uncertain costs – Central Agency Costs | G34: £m 09/10 prices | AH34: =AH11 -> 13.47232591 | AI34: =AI11 -> 12.47684142 | AJ34: 18.33157713 | AK34: 23.90893797 | AL34: 15.97551158 | AM34: 17.68276803 | AN34: 17.60322783 | AO34: 15.28411725
E35: Allocation to non-operational capex | G35: % | AH35: =('NGGT SO'!AH35) -> 0.5311596684 | AI35: =('NGGT SO'!AI35) -> 0.3978615179 | AJ35: =('NGGT SO'!AJ35) -> 0.3587446907 | AK35: =('NGGT SO'!AK35) -> 0.3785532434 | AL35: =('NGGT SO'!AL35) -> 0.3744461579 | AM35: =('NGGT SO'!AM35) -> 0.3125985496 | AN35: =('NGGT SO'!AN35) -> 0.2956482906 | AO35: =('NGGT SO'!AO35) -> 0.2680014224
E36: Allocation to controllable opex | G36: % | AH36: =('NGGT SO'!AH36) -> 0.4688403316 | AI36: =('NGGT SO'!AI36) -> 0.6021384821 | AJ36: =('NGGT SO'!AJ36) -> 0.6412553093 | AK36: =('NGGT SO'!AK36) -> 0.6214467566 | AL36: =('NGGT SO'!AL36) -> 0.6255538421 | AM36: =('NGGT SO'!AM36) -> 0.6874014504 | AN36: =('NGGT SO'!AN36) -> 0.7043517094 | AO36: =('NGGT SO'!AO36) -> 0.7319985776
D38: Variant
D39: Note: Licence conditions may allow for non-baseline allowances to be granted. These are added to the baseline to generate the allowed sub-categories and thereby the overall allowed totex.
E41: Non-operational capex | G41: £m 09/10 prices | AH41: =AH$30*AH31 + AH$34*AH35 -> 19.75595616 | AI41: 4.964055068 | AJ41: 6.576355969 | AK41: 9.050806017 | AL41: 5.981968931 | AM41: 5.527607638 | AN41: 5.204364218 | AO41: 4.096165164
E42: Controllable opex | G42: £m 09/10 prices | AH42: 6.316369746 | AI42: 7.512786357 | AJ42: 11.75522117 | AK42: 14.85813196 | AL42: 9.993542648 | AM42: 12.15516039 | AN42: 12.39886361 | AO42: 11.18795209
B44: Direct allowed revenue terms (DARTs)
C46: Base Revenue
D48: No impact on net debt or tax
E50: =E14 -> Pension scheme administration and Pension Protection Fund Levy | G50: £m 09/10 prices | AH50: =AH14 -> 0 | AI50: =AI14 -> 0 | AJ50: 0 | AK50: 0 | AL50: 0 | AM50: 0.07328244291 | AN50: 0.07328244291 | AO50: 0.07328244291
E51: =E15 -> Pension Scheme Established Deficit | G51: £m 09/10 prices | AH51: =AH15 -> 0.1610489786 | AI51: =AI15 -> 0.1610489786 | AJ51: 0.8373095812 | AK51: 0.8373095812 | AL51: 0.8373095812 | AM51: 1.350698313 | AN51: 1.350698313 | AO51: 1.350698313
D53: Impact net debt and tax
E55: Pension true-up from previous price controls | G55: £m 09/10 prices | AH55: =('NGGT SO'!AH55) -> -0.1102843564 | AI55: =('NGGT SO'!AI55) -> -0.1149714415 | AJ55: =('NGGT SO'!AJ55) -> -0.1197355707 | AK55: =('NGGT SO'!AK55) -> -0.1245698943 | AL55: =('NGGT SO'!AL55) -> -0.1294748339 | AM55: =('NGGT SO'!AM55) -> -0.1344191541 | AN55: =('NGGT SO'!AN55) -> -0.1395522856 | AO55: =('NGGT SO'!AO55) -> -0.1448814385
D57: Impact net debt, no impact on tax
E59: =E16 -> Legacy price control adjustments to allowed revenue | G59: £m 09/10 prices | AH59: =($AH$16/8) -> 0.03231817375 | AI59: =($AH$16/8)*(1+SystemOperator!$AI$295) -> 0.03369169613 | AJ59: =($AH$16/8)*(1+SystemOperator!$AI$295)*(1+SystemOperator!$AJ$295) -> 0.03508779579 | AK59: =($AH$16/8)*(1+SystemOperator!$AI$295)*(1+SystemOperator!$AJ$295)*(1+SystemOperator!$AK$295) -> 0.03650446555 | AL59: =($AH$16/8)*(1+SystemOperator!$AI$295)*(1+SystemOperator!$AJ$295)*(1+SystemOperator!$AK$295)*(1+SystemOperator!$AL$295) -> 0.03794182888 | AM59: =($AH$16/8)*(1+SystemOperator!$AI$295)*(1+SystemOperator!$AJ$295)*(1+SystemOperator!$AK$295)*(1+SystemOperator!$AL$295)*(1+SystemOperator!$AM$295) -> 0.03939073247 | AN59: =($AH$16/8)*(1+SystemOperator!$AI$295)*(1+SystemOperator!$AJ$295)*(1+SystemOperator!$AK$295)*(1+SystemOperator!$AL$295)*(1+SystemOperator!$AM$295)*(1+SystemOperator!$AN$295) -> 0.04089496606 | AO59: =($AH$16/8)*(1+SystemOperator!$AI$295)*(1+SystemOperator!$AJ$295)*(1+SystemOperator!$AK$295)*(1+SystemOperator!$AL$295)*(1+SystemOperator!$AM$295)*(1+SystemOperator!$AN$295)*(1+SystemOperator!$AO$295) -> 0.04245664258
C61: Allowed Revenue (non Base Revenue)
D63: No impact on debt or tax
E65: NGGT SO Revenue Driver Income | G65: £m 09/10 prices | AH65: =('NGGT SO'!AH65) -> 94.225 | AI65: =('NGGT SO'!AI65) -> 87.485 | AJ65: =('NGGT SO'!AJ65) -> 79.323 | AK65: =('NGGT SO'!AK65) -> 58.723 | AL65: =('NGGT SO'!AL65) -> 0.033 | AM65: =('NGGT SO'!AM65) -> 0.033 | AN65: =('NGGT SO'!AN65) -> 0 | AO65: =('NGGT SO'!AO65) -> 0
B67: Efficiency incentive
C69: TIM and capitalisation
E71: Capitalised share of totex | G71: % | AH71: =('NGGT SO'!AH71) -> 0.374 | AI71: =('NGGT SO'!AI71) -> 0.374 | AJ71: =('NGGT SO'!AJ71) -> 0.374 | AK71: =('NGGT SO'!AK71) -> 0.374 | AL71: =('NGGT SO'!AL71) -> 0.374 | AM71: =('NGGT SO'!AM71) -> 0.374 | AN71: =('NGGT SO'!AN71) -> 0.374 | AO71: =('NGGT SO'!AO71) -> 0.374
B73: RAV and assets
C75: Post-vesting assets
E77: Post-vesting asset life | G77: years | I77: =('NGGT SO'!I77) -> 7
E78: Pre-RIIO net additions to RAV | G78: £m 09/10 prices | J78: > | W78: =('NGGT SO'!W78) -> 0 | X78: =('NGGT SO'!X78) -> 0 | Y78: =('NGGT SO'!Y78) -> 0 | Z78: =('NGGT SO'!Z78) -> 0 | AA78: =('NGGT SO'!AA78) -> 0 | AB78: =('NGGT SO'!AB78) -> 10.98219664 | AC78: =('NGGT SO'!AC78) -> 7.606666563 | AD78: =('NGGT SO'!AD78) -> 10.128 | AE78: =('NGGT SO'!AE78) -> 9.20420132 | AF78: =('NGGT SO'!AF78) -> 11.57275315 | AG78: =('NGGT SO'!AG78) -> 24.32142377
E79: =E17 -> Legacy price control adjustments to RAV | AH79: =AH17 -> -2.95505504
C81: Tax pool allocation
D83: Allocation to "General" pool
E85: Non-operational capex | G85: % | AH85: =('NGGT SO'!AH85) -> 1 | AI85: =('NGGT SO'!AI85) -> 1 | AJ85: =('NGGT SO'!AJ85) -> 1 | AK85: =('NGGT SO'!AK85) -> 1 | AL85: =('NGGT SO'!AL85) -> 1 | AM85: =('NGGT SO'!AM85) -> 1 | AN85: =('NGGT SO'!AN85) -> 1 | AO85: =('NGGT SO'!AO85) -> 1
E86: Controllable opex | G86: % | AH86: =('NGGT SO'!AH86) -> 0 | AI86: =('NGGT SO'!AI86) -> 0 | AJ86: =('NGGT SO'!AJ86) -> 0 | AK86: =('NGGT SO'!AK86) -> 0 | AL86: =('NGGT SO'!AL86) -> 0 | AM86: =('NGGT SO'!AM86) -> 0 | AN86: =('NGGT SO'!AN86) -> 0 | AO86: =('NGGT SO'!AO86) -> 0
D88: Allocation to "Revenue" pool
E90: Non-operational capex | G90: % | AH90: =('NGGT SO'!AH90) -> 0 | AI90: =('NGGT SO'!AI90) -> 0 | AJ90: =('NGGT SO'!AJ90) -> 0 | AK90: =('NGGT SO'!AK90) -> 0 | AL90: =('NGGT SO'!AL90) -> 0 | AM90: =('NGGT SO'!AM90) -> 0 | AN90: =('NGGT SO'!AN90) -> 0 | AO90: =('NGGT SO'!AO90) -> 0
E91: Controllable opex | G91: % | AH91: =('NGGT SO'!AH91) -> 1 | AI91: =('NGGT SO'!AI91) -> 1 | AJ91: =('NGGT SO'!AJ91) -> 1 | AK91: =('NGGT SO'!AK91) -> 1 | AL91: =('NGGT SO'!AL91) -> 1 | AM91: =('NGGT SO'!AM91) -> 1 | AN91: =('NGGT SO'!AN91) -> 1 | AO91: =('NGGT SO'!AO91) -> 1
D93: Allocation to "Non Qualifying" pool
E95: Non-operational capex | G95: % | AH95: =('NGGT SO'!AH95) -> 0 | AI95: =('NGGT SO'!AI95) -> 0 | AJ95: =('NGGT SO'!AJ95) -> 0 | AK95: =('NGGT SO'!AK95) -> 0 | AL95: =('NGGT SO'!AL95) -> 0 | AM95: =('NGGT SO'!AM95) -> 0 | AN95: =('NGGT SO'!AN95) -> 0 | AO95: =('NGGT SO'!AO95) -> 0
E96: Controllable opex | G96: % | AH96: =('NGGT SO'!AH96) -> 0 | AI96: =('NGGT SO'!AI96) -> 0 | AJ96: =('NGGT SO'!AJ96) -> 0 | AK96: =('NGGT SO'!AK96) -> 0 | AL96: =('NGGT SO'!AL96) -> 0 | AM96: =('NGGT SO'!AM96) -> 0 | AN96: =('NGGT SO'!AN96) -> 0 | AO96: =('NGGT SO'!AO96) -> 0
B98: Tax
C100: Tax policy
E102: Opening balance brought forward | G102: £m nominal | AH102: =('NGGT SO'!AH102) -> 68.8
E103: General pool allowance rate | G103: % | AH103: =('NGGT SO'!AH103) -> 0.18 | AI103: =('NGGT SO'!AI103) -> 0.18 | AJ103: =('NGGT SO'!AJ103) -> 0.18 | AK103: =('NGGT SO'!AK103) -> 0.18 | AL103: =('NGGT SO'!AL103) -> 0.18 | AM103: =('NGGT SO'!AM103) -> 0.18 | AN103: =('NGGT SO'!AN103) -> 0.18 | AO103: =('NGGT SO'!AO103) -> 0.18
E105: Special Rate capital allowance opening balance brought forward | G105: £m nominal | AH105: =('NGGT SO'!AH105) -> 0
E106: Special Rate allowance rate | G106: % | AH106: =('NGGT SO'!AH106) -> 0.08 | AI106: =('NGGT SO'!AI106) -> 0.08 | AJ106: =('NGGT SO'!AJ106) -> 0.08 | AK106: =('NGGT SO'!AK106) -> 0.08 | AL106: =('NGGT SO'!AL106) -> 0.08 | AM106: =('NGGT SO'!AM106) -> 0.08 | AN106: =('NGGT SO'!AN106) -> 0.08 | AO106: =('NGGT SO'!AO106) -> 0.08
E108: Deferred revenue expenditure opening balance brought forward | G108: £m nominal | AH108: =('NGGT SO'!AH108) -> 0
E109: Deferred revenue expenditure allowance rate | G109: % | AH109: =('NGGT SO'!AH109) -> 0.0222 | AI109: =('NGGT SO'!AI109) -> 0.0222 | AJ109: =('NGGT SO'!AJ109) -> 0.0222 | AK109: =('NGGT SO'!AK109) -> 0.0222 | AL109: =('NGGT SO'!AL109) -> 0.0222 | AM109: =('NGGT SO'!AM109) -> 0.0222 | AN109: =('NGGT SO'!AN109) -> 0.0222 | AO109: =('NGGT SO'!AO109) -> 0.0222
B111: Totex
C113: Actual totex
D115: Source of actuals
D116: Note: The model assumes that there is a time lag from year t until actual expenditure data becomes available for the model. After the lag, actual expenditure inputs are used. Up to that point the model generates a forecast actual expenditure.
D117: When required in the model, forecasts assume that actuals are equal to their corresponding allowance.
D118: In a year where actual totex is assumed to be available, values must be inputted to the model as it will not generate a forecast and the empty input cell will be read as an actual spend of zero.
E120: Years from t until normal reporting of actual costs | G120: years | I120: =Input!I50 -> 2
E121: Input actuals used | G121: text | AH121: =YEAR($I$4) >= YEAR(AH$4) + $I120 -> TRUE | AI121: =YEAR($I$4) >= YEAR(AI$4) + $I120 -> TRUE | AJ121: TRUE | AK121: TRUE | AL121: FALSE | AM121: FALSE | AN121: FALSE | AO121: FALSE
E122: Forecast actuals generated from allowances | G122: text | AH122: =YEAR($I$4) < YEAR(AH$4) + $I120 -> FALSE | AI122: FALSE | AJ122: FALSE | AK122: FALSE | AL122: TRUE | AM122: TRUE | AN122: TRUE | AO122: TRUE
D124: Totex applied
D125: Note: Actuals are exported both to identify performance against the allowance and to generate writing down allowances used in the tax calculation.
E127: Actual non-operational capex | G127: £m 09/10 prices | AH127: =IF(AH121, AH8, AH25 + AH41) -> 17.73174459 | AI127: 27.26801547 | AJ127: 35.75153184 | AK127: 26.81244227 | AL127: 20.09930075 | AM127: 18.37005417 | AN127: 20.32507291 | AO127: 16.93350083
E128: Actual controllable opex | G128: £m 09/10 prices | AH128: =IF(AH121, AH9, AH26 + AH42) -> 41.7005332 | AI128: 46.5193684 | AJ128: 47.63727041 | AK128: 48.00099059 | AL128: 47.65690639 | AM128: 50.32123265 | AN128: 51.22062184 | AO128: 50.60563341
E129: Actual totex | G129: £m 09/10 prices | AH129: =SUM(AH127:AH128) -> 59.43227779 | AI129: 73.78738387 | AJ129: 83.38880225 | AK129: 74.81343286 | AL129: 67.75620714 | AM129: 68.69128682 | AN129: 71.54569475 | AO129: 67.53913424
B131: TIM
C133: Post-TIM overspend (underspend)
C134: Note: Totex overspend (underspend) is identified and subject to the "efficiency incentive rate."
E136: Actual totex | G136: £m 09/10 prices | AH136: =AH129 -> 59.43227779 | AI136: =AI129 -> 73.78738387 | AJ136: 83.38880225 | AK136: 74.81343286 | AL136: 67.75620714 | AM136: 68.69128682 | AN136: 71.54569475 | AO136: 67.53913424
E137: Less allowed totex | G137: £m 09/10 prices | AH137: =-SUM(AH25:AH26, AH41:AH42) -> -97.58697197 | AI137: -78.6355531 | AJ137: -75.85695806 | AK137: -76.79335815 | AL137: -67.75620714 | AM137: -68.69128682 | AN137: -71.54569475 | AO137: -67.53913424
E138: Pre-TIM overspend (underspend) | G138: £m 09/10 prices | AH138: =SUM(AH136:AH137) -> -38.15469417 | AI138: -4.84816923 | AJ138: 7.53184419 | AK138: -1.979925294 | AL138: 0 | AM138: 0 | AN138: 0 | AO138: 0
E140: Funding Adjustment Rate (often referred to as 'sharing factor') | G140: % | AH140: =(1 - TIM!$I$14) -> 0.5564 | AI140: =(1 - TIM!$I$14) -> 0.5564 | AJ140: =(1 - TIM!$I$14) -> 0.5564 | AK140: =(1 - TIM!$I$14) -> 0.5564 | AL140: =(1 - TIM!$I$14) -> 0.5564 | AM140: =(1 - TIM!$I$14) -> 0.5564 | AN140: =(1 - TIM!$I$14) -> 0.5564 | AO140: =(1 - TIM!$I$14) -> 0.5564
E142: Post-TIM overspend (underspend) | G142: £m 09/10 prices | AH142: =AH$140 * AH138 -> -21.22927184 | AI142: =AI$140 * AI138 -> -2.697521359 | AJ142: 4.190718108 | AK142: -1.101630434 | AL142: 0 | AM142: 0 | AN142: 0 | AO142: 0
C144: Post-TIM totex
C145: Note: "Post-TIM overspend (underspend)" is added to the allowed totex value to give the Post-TIM totex allowance to be split into fast and slow money.
E147: Allowed totex | G147: £m 09/10 prices | AH147: =-AH137 -> 97.58697197 | AI147: =-AI137 -> 78.6355531 | AJ147: 75.85695806 | AK147: 76.79335815 | AL147: 67.75620714 | AM147: 68.69128682 | AN147: 71.54569475 | AO147: 67.53913424
E148: Post-TIM overspend (underspend) | G148: £m 09/10 prices | AH148: =AH142 -> -21.22927184 | AI148: -2.697521359 | AJ148: 4.190718108 | AK148: -1.101630434 | AL148: 0 | AM148: 0 | AN148: 0 | AO148: 0
E149: Post-TIM totex | G149: £m 09/10 prices | AH149: =SUM(AH147:AH148) -> 76.35770013 | AI149: 75.93803174 | AJ149: 80.04767617 | AK149: 75.69172772 | AL149: 67.75620714 | AM149: 68.69128682 | AN149: 71.54569475 | AO149: 67.53913424
B151: Capitalisation
B152: Note: The weighted capitalised share of totex the Transmission operators is weighted based on the relative share of allowance to totex, wider works and enter & exit.
B153: Post-TIM totex is allocated into "fast" and "slow" elements based on a pre-set percentage split:
B154: - "fast money " is exported to the "Revenue" sheet where it is included as an element of "recalculated base revenue;" and
B155: - "slow money " is exported to the "Depn" sheet where it is added to RAV. Slow money is recovered over the life of the RAV through regulatory depreciation and return allowances.
E157: Post-TIM totex | G157: £m 09/10 prices | AH157: =AH149 -> 76.35770013 | AI157: 75.93803174 | AJ157: 80.04767617 | AK157: 75.69172772 | AL157: 67.75620714 | AM157: 68.69128682 | AN157: 71.54569475 | AO157: 67.53913424
E158: Capitalised share of totex | G158: % | AH158: =AH71 -> 0.374 | AI158: 0.374 | AJ158: 0.374 | AK158: 0.374 | AL158: 0.374 | AM158: 0.374 | AN158: 0.374 | AO158: 0.374
E160: Fast pot expenditure | G160: £m 09/10 prices | AH160: =AH$157 * (1 - AH158) -> 47.79992028 | AI160: =AI$157 * (1 - AI158) -> 47.53720787 | AJ160: 50.10984528 | AK160: 47.38302155 | AL160: 42.41538567 | AM160: 43.00074555 | AN160: 44.78760491 | AO160: 42.27949804
E162: Slow pot expenditure | G162: £m 09/10 prices | AH162: =AH$157 * AH158 -> 28.55777985 | AI162: =AI$157 * AI158 -> 28.40082387 | AJ162: 29.93783089 | AK162: 28.30870617 | AL162: 25.34082147 | AM162: 25.69054127 | AN162: 26.75808984 | AO162: 25.25963621
B164: Additional income
B165: Note: The additional income lump sum is recovered across the price control and is matched to the profile of allowed totex set at final proposals.
E167: Additional income | G167: £m 09/10 prices | I167: =TIM!I28*(1-TIM!I32) -> -2.759826892
E169: Original allowed totex (set at final proposals) | G169: £m 09/10 prices | AH169: =('NGGT SO'!AH117) -> 71.51464606 | AI169: =('NGGT SO'!AI117) -> 66.15871168 | AJ169: =('NGGT SO'!AJ117) -> 57.52538092 | AK169: =('NGGT SO'!AK117) -> 52.88442018 | AL169: =('NGGT SO'!AL117) -> 51.78069556 | AM169: =('NGGT SO'!AM117) -> 51.0085188 | AN169: =('NGGT SO'!AN117) -> 53.94246692 | AO169: =('NGGT SO'!AO117) -> 52.25501699
E170: Total allowed totex in price control (set at final proposals) | G170: £m 09/10 prices | I170: =('NGGT SO'!I118) -> 457.0698571
E172: Share of additional income allowed in year | G172: % | AH172: =IFERROR(AH169 / $I170, 0) -> 0.1564632735 | AI172: =IFERROR(AI169 / $I170, 0) -> 0.1447452958 | AJ172: 0.1258568686 | AK172: 0.1157031455 | AL172: 0.1132883623 | AM172: 0.1115989558 | AN172: 0.1180179924 | AO172: 0.1143261061
E174: Additional income | G174: £m 09/10 prices | AH174: =$I167 * AH172 -> -0.4318115499 | AI174: =$I167 * AI172 -> -0.39947196 | AJ174: -0.3473431704 | AK174: -0.3193206525 | AL174: -0.3126562688 | AM174: -0.3079937995 | AN174: -0.3257092292 | AO174: -0.3155202622
B176: Tax pool additions
B177: Note: Actual totex is combined with other expenditure and allocated to tax pools. Each cost sub-category can have its own percentage split between each pool.
C179: Tax pool allocation
D181: General pool
E183: Non-operational capex | G183: % | AH183: =AH85 -> 1 | AI183: 1 | AJ183: 1 | AK183: 1 | AL183: 1 | AM183: 1 | AN183: 1 | AO183: 1
E184: Controllable opex | G184: % | AH184: 0 | AI184: 0 | AJ184: 0 | AK184: 0 | AL184: 0 | AM184: 0 | AN184: 0 | AO184: 0
E186: General pool additions | G186: £m 09/10 prices | AH186: =SUMPRODUCT(AH127:AH128,AH183:AH184) -> 17.73174459 | AI186: =SUMPRODUCT(AI127:AI128,AI183:AI184) -> 27.26801547 | AJ186: 35.75153184 | AK186: 26.81244227 | AL186: 20.09930075 | AM186: 18.37005417 | AN186: 20.32507291 | AO186: 16.93350083
D188: Revenue pool
E190: Non-operational capex | G190: % | AH190: =AH90 -> 0 | AI190: 0 | AJ190: 0 | AK190: 0 | AL190: 0 | AM190: 0 | AN190: 0 | AO190: 0
E191: Controllable opex | G191: % | AH191: 1 | AI191: 1 | AJ191: 1 | AK191: 1 | AL191: 1 | AM191: 1 | AN191: 1 | AO191: 1
E193: Revenue pool additions | G193: £m 09/10 prices | AH193: =SUMPRODUCT(AH127:AH128,AH190:AH191) -> 41.7005332 | AI193: =SUMPRODUCT(AI127:AI128,AI190:AI191) -> 46.5193684 | AJ193: 47.63727041 | AK193: 48.00099059 | AL193: 47.65690639 | AM193: 50.32123265 | AN193: 51.22062184 | AO193: 50.60563341
D195: Non-qualifying expenditure
E197: Non-operational capex | G197: % | AH197: =AH95 -> 0 | AI197: 0 | AJ197: 0 | AK197: 0 | AL197: 0 | AM197: 0 | AN197: 0 | AO197: 0
E198: Controllable opex | G198: % | AH198: 0 | AI198: 0 | AJ198: 0 | AK198: 0 | AL198: 0 | AM198: 0 | AN198: 0 | AO198: 0
E200: Non-qualifying expenditure additions | G200: £m 09/10 prices | AH200: =SUMPRODUCT(AH127:AH128,AH197:AH198) -> 0 | AI200: 0 | AJ200: 0 | AK200: 0 | AL200: 0 | AM200: 0 | AN200: 0 | AO200: 0
B202: Capital allowances
B203: Note: Note: Special, General and deferred revenue capital allowances are calculated for the tax allowance calculation.
C205: General pool
E207: Capital allowance rate | G207: % | AH207: =AH103 -> 0.18 | AI207: 0.18 | AJ207: 0.18 | AK207: 0.18 | AL207: 0.18 | AM207: 0.18 | AN207: 0.18 | AO207: 0.18
E209: Opening balance brought forward | G209: £m nominal | AH209: =AH102 -> 68.8 | AI209: =AH214 -> 73.31816978 | AJ209: 86.84097628 | AK209: 107.2237028 | AL209: 115.6890836 | AM209: 116.2617163 | AN209: 115.4379565 | AO209: 117.5247697
E210: Revisions | G210: £m nominal
E211: Capex additions | G211: £m nominal | AH211: =AH186 * Input!AH$46 / Input!$AD$46 -> 20.61240216 | AI211: =AI186 * Input!AI$46 / Input!$AD$46 -> 32.58545984 | AJ211: =AJ186 * Input!AJ$46 / Input!$AD$46 -> 43.91963685 | AK211: =AK186 * Input!AK$46 / Input!$AD$46 -> 33.86054555 | AL211: =AL186 * Input!AL$46 / Input!$AD$46 -> 26.09349729 | AM211: =AM186 * Input!AM$46 / Input!$AD$46 -> 24.5162794 | AN211: =AN186 * Input!AN$46 / Input!$AD$46 -> 27.88493332 | AO211: =AO186 * Input!AO$46 / Input!$AD$46 -> 23.88239925
E212: Tax book value pre-depreciation | G212: £m nominal | AH212: =SUM(AH209:AH211) -> 89.41240216 | AI212: 105.9036296 | AJ212: 130.7606131 | AK212: 141.0842483 | AL212: 141.7825809 | AM212: 140.7779957 | AN212: 143.3228898 | AO212: 141.4071689
E213: General pool capital allowance | G213: £m nominal | AH213: =-AH212*AH207 -> -16.09423239 | AI213: -19.06265333 | AJ213: -23.53691036 | AK213: -25.3951647 | AL213: -25.52086456 | AM213: -25.34003923 | AN213: -25.79812017 | AO213: -25.4532904
E214: Closing balance carried forward | G214: £m nominal | AH214: =AH212 + AH213 -> 73.31816978 | AI214: 86.84097628 | AJ214: 107.2237028 | AK214: 115.6890836 | AL214: 116.2617163 | AM214: 115.4379565 | AN214: 117.5247697 | AO214: 115.9538785
C216: Special Rate pool
E218: Capital allowance rate | G218: % | AH218: =AH106 -> 0.08 | AI218: 0.08 | AJ218: 0.08 | AK218: 0.08 | AL218: 0.08 | AM218: 0.08 | AN218: 0.08 | AO218: 0.08
E220: Opening balance brought forward | G220: £m nominal | AH220: =AH105 -> 0 | AI220: =AH225 -> 0 | AJ220: 0 | AK220: 0 | AL220: 0 | AM220: 0 | AN220: 0 | AO220: 0
E221: Revisions | G221: £m nominal
E222: Capex additions | G222: £m nominal
E223: Tax book value pre-depreciation | G223: £m nominal | AH223: =SUM(AH220:AH222) -> 0 | AI223: 0 | AJ223: 0 | AK223: 0 | AL223: 0 | AM223: 0 | AN223: 0 | AO223: 0
E224: General pool capital allowance | G224: £m nominal | AH224: =-AH223*AH218 -> 0 | AI224: 0 | AJ224: 0 | AK224: 0 | AL224: 0 | AM224: 0 | AN224: 0 | AO224: 0
E225: Closing balance carried forward | G225: £m nominal | AH225: =AH223 + AH224 -> 0 | AI225: 0 | AJ225: 0 | AK225: 0 | AL225: 0 | AM225: 0 | AN225: 0 | AO225: 0
C227: Deferred revenue expenditure
E229: Capital allowance rate | G229: % | AH229: =AH109 -> 0.0222 | AI229: 0.0222 | AJ229: 0.0222 | AK229: 0.0222 | AL229: 0.0222 | AM229: 0.0222 | AN229: 0.0222 | AO229: 0.0222
E231: Opening balance brought forward | G231: £m nominal | AH231: =AH108 -> 0 | AI231: =AH236 -> 0 | AJ231: =AI236 -> 0 | AK231: 0 | AL231: 0 | AM231: 0 | AN231: 0 | AO231: 0
E232: Revisions | G232: £m nominal
E233: Capex additions | G233: £m nominal
E234: Tax book value pre-depreciation | G234: £m nominal | AH234: =SUM(AH231:AH233) -> 0 | AI234: 0 | AJ234: 0 | AK234: 0 | AL234: 0 | AM234: 0 | AN234: 0 | AO234: 0
E235: General pool capital allowance | G235: £m nominal | AH235: =-(AH231 + SUM($AH233:AH233))*AH229 -> 0 | AI235: =-(AI231 + SUM($AH233:AI233))*AI229 -> 0 | AJ235: =-(AJ231 + SUM($AH233:AJ233))*AJ229 -> 0 | AK235: =-(AK231 + SUM($AH233:AK233))*AK229 -> 0 | AL235: =-(AL231 + SUM($AH233:AL233))*AL229 -> 0 | AM235: =-(AM231 + SUM($AH233:AM233))*AM229 -> 0 | AN235: =-(AN231 + SUM($AH233:AN233))*AN229 -> 0 | AO235: =-(AO231 + SUM($AH233:AO233))*AO229 -> 0
E236: Closing balance carried forward | G236: £m nominal | AH236: =AH234 + AH235 -> 0 | AI236: 0 | AJ236: 0 | AK236: 0 | AL236: 0 | AM236: 0 | AN236: 0 | AO236: 0
B238: Regulatory depreciation
C240: Depreciation
D242: Depreciation parameters
E244: Asset life | G244: years | I244: =I77 -> 7 | J244: >
E246: Slow money | AH246: =AH162 -> 28.55777985 | AI246: =AI162 -> 28.40082387 | AJ246: 29.93783089 | AK246: 28.30870617 | AL246: 25.34082147 | AM246: 25.69054127 | AN246: 26.75808984 | AO246: 25.25963621
E247: =E79 -> Legacy price control adjustments to RAV | AH247: =AH79 -> -2.95505504 | AI247: 0 | AJ247: 0 | AK247: 0 | AL247: 0 | AM247: 0 | AN247: 0 | AO247: 0
E248: Pre-RIIO net RAV additions | W248: =W78 -> 0 | X248: 0 | Y248: 0 | Z248: 0 | AA248: 0 | AB248: 10.98219664 | AC248: 7.606666563 | AD248: 10.128 | AE248: 9.20420132 | AF248: 11.57275315 | AG248: 24.32142377
E249: Total Net RAV additions | W249: =SUM(W246:W248) -> 0 | X249: =SUM(X246:X248) -> 0 | Y249: 0 | Z249: 0 | AA249: 0 | AB249: 10.98219664 | AC249: 7.606666563 | AD249: 10.128 | AE249: 9.20420132 | AF249: 11.57275315 | AG249: 24.32142377 | AH249: 25.60272481 | AI249: 28.40082387 | AJ249: 29.93783089 | AK249: 28.30870617 | AL249: 25.34082147 | AM249: 25.69054127 | AN249: 26.75808984 | AO249: 25.25963621
D251: Depreciation schedule
E253: Depreciation of additions from year ending | I253: Net additions
E255: 2003-03-31 | G255: £m 09/10 prices | I255: =INDEX($W$249:$AO$249,1,MATCH(E255,$W$4:$AO$4,0)) -> 0 | J255: > | X255: =$I255/$I$244 -> 0 | Y255: =IF($I255 >0, MIN(X255,$I255-SUM($L255:X255)), MAX(X255,$I255-SUM($L255:X255))) -> 0 | Z255: =IF($I255 >0, MIN(Y255,$I255-SUM($L255:Y255)), MAX(Y255,$I255-SUM($L255:Y255))) -> 0 | AA255: =IF($I255 >0, MIN(Z255,$I255-SUM($L255:Z255)), MAX(Z255,$I255-SUM($L255:Z255))) -> 0 | AB255: =IF($I255 >0, MIN(AA255,$I255-SUM($L255:AA255)), MAX(AA255,$I255-SUM($L255:AA255))) -> 0 | AC255: =IF($I255 >0, MIN(AB255,$I255-SUM($L255:AB255)), MAX(AB255,$I255-SUM($L255:AB255))) -> 0 | AD255: =IF($I255 >0, MIN(AC255,$I255-SUM($L255:AC255)), MAX(AC255,$I255-SUM($L255:AC255))) -> 0 | AE255: =IF($I255 >0, MIN(AD255,$I255-SUM($L255:AD255)), MAX(AD255,$I255-SUM($L255:AD255))) -> 0 | AF255: =IF($I255 >0, MIN(AE255,$I255-SUM($L255:AE255)), MAX(AE255,$I255-SUM($L255:AE255))) -> 0 | AG255: =IF($I255 >0, MIN(AF255,$I255-SUM($L255:AF255)), MAX(AF255,$I255-SUM($L255:AF255))) -> 0 | AH255: =IF($I255 >0, MIN(AG255,$I255-SUM($L255:AG255)), MAX(AG255,$I255-SUM($L255:AG255))) -> 0 | AI255: =IF($I255 >0, MIN(AH255,$I255-SUM($L255:AH255)), MAX(AH255,$I255-SUM($L255:AH255))) -> 0 | AJ255: =IF($I255 >0, MIN(AI255,$I255-SUM($L255:AI255)), MAX(AI255,$I255-SUM($L255:AI255))) -> 0 | AK255: =IF($I255 >0, MIN(AJ255,$I255-SUM($L255:AJ255)), MAX(AJ255,$I255-SUM($L255:AJ255))) -> 0 | AL255: =IF($I255 >0, MIN(AK255,$I255-SUM($L255:AK255)), MAX(AK255,$I255-SUM($L255:AK255))) -> 0 | AM255: =IF($I255 >0, MIN(AL255,$I255-SUM($L255:AL255)), MAX(AL255,$I255-SUM($L255:AL255))) -> 0 | AN255: =IF($I255 >0, MIN(AM255,$I255-SUM($L255:AM255)), MAX(AM255,$I255-SUM($L255:AM255))) -> 0 | AO255: =IF($I255 >0, MIN(AN255,$I255-SUM($L255:AN255)), MAX(AN255,$I255-SUM($L255:AN255))) -> 0
E256: 2004-03-31 | G256: £m 09/10 prices | I256: 0 | J256: > | Y256: =$I256/$I$244 -> 0 | Z256: =IF($I256 >0, MIN(Y256,$I256-SUM($L256:Y256)), MAX(Y256,$I256-SUM($L256:Y256))) -> 0 | AA256: =IF($I256 >0, MIN(Z256,$I256-SUM($L256:Z256)), MAX(Z256,$I256-SUM($L256:Z256))) -> 0 | AB256: =IF($I256 >0, MIN(AA256,$I256-SUM($L256:AA256)), MAX(AA256,$I256-SUM($L256:AA256))) -> 0 | AC256: =IF($I256 >0, MIN(AB256,$I256-SUM($L256:AB256)), MAX(AB256,$I256-SUM($L256:AB256))) -> 0 | AD256: =IF($I256 >0, MIN(AC256,$I256-SUM($L256:AC256)), MAX(AC256,$I256-SUM($L256:AC256))) -> 0 | AE256: =IF($I256 >0, MIN(AD256,$I256-SUM($L256:AD256)), MAX(AD256,$I256-SUM($L256:AD256))) -> 0 | AF256: =IF($I256 >0, MIN(AE256,$I256-SUM($L256:AE256)), MAX(AE256,$I256-SUM($L256:AE256))) -> 0 | AG256: =IF($I256 >0, MIN(AF256,$I256-SUM($L256:AF256)), MAX(AF256,$I256-SUM($L256:AF256))) -> 0 | AH256: =IF($I256 >0, MIN(AG256,$I256-SUM($L256:AG256)), MAX(AG256,$I256-SUM($L256:AG256))) -> 0 | AI256: =IF($I256 >0, MIN(AH256,$I256-SUM($L256:AH256)), MAX(AH256,$I256-SUM($L256:AH256))) -> 0 | AJ256: =IF($I256 >0, MIN(AI256,$I256-SUM($L256:AI256)), MAX(AI256,$I256-SUM($L256:AI256))) -> 0 | AK256: =IF($I256 >0, MIN(AJ256,$I256-SUM($L256:AJ256)), MAX(AJ256,$I256-SUM($L256:AJ256))) -> 0 | AL256: =IF($I256 >0, MIN(AK256,$I256-SUM($L256:AK256)), MAX(AK256,$I256-SUM($L256:AK256))) -> 0 | AM256: =IF($I256 >0, MIN(AL256,$I256-SUM($L256:AL256)), MAX(AL256,$I256-SUM($L256:AL256))) -> 0 | AN256: =IF($I256 >0, MIN(AM256,$I256-SUM($L256:AM256)), MAX(AM256,$I256-SUM($L256:AM256))) -> 0 | AO256: =IF($I256 >0, MIN(AN256,$I256-SUM($L256:AN256)), MAX(AN256,$I256-SUM($L256:AN256))) -> 0
E257: 2005-03-31 | G257: £m 09/10 prices | I257: 0 | J257: > | Z257: =$I257/$I$244 -> 0 | AA257: =IF($I257 >0, MIN(Z257,$I257-SUM($L257:Z257)), MAX(Z257,$I257-SUM($L257:Z257))) -> 0 | AB257: =IF($I257 >0, MIN(AA257,$I257-SUM($L257:AA257)), MAX(AA257,$I257-SUM($L257:AA257))) -> 0 | AC257: =IF($I257 >0, MIN(AB257,$I257-SUM($L257:AB257)), MAX(AB257,$I257-SUM($L257:AB257))) -> 0 | AD257: =IF($I257 >0, MIN(AC257,$I257-SUM($L257:AC257)), MAX(AC257,$I257-SUM($L257:AC257))) -> 0 | AE257: =IF($I257 >0, MIN(AD257,$I257-SUM($L257:AD257)), MAX(AD257,$I257-SUM($L257:AD257))) -> 0 | AF257: =IF($I257 >0, MIN(AE257,$I257-SUM($L257:AE257)), MAX(AE257,$I257-SUM($L257:AE257))) -> 0 | AG257: =IF($I257 >0, MIN(AF257,$I257-SUM($L257:AF257)), MAX(AF257,$I257-SUM($L257:AF257))) -> 0 | AH257: =IF($I257 >0, MIN(AG257,$I257-SUM($L257:AG257)), MAX(AG257,$I257-SUM($L257:AG257))) -> 0 | AI257: =IF($I257 >0, MIN(AH257,$I257-SUM($L257:AH257)), MAX(AH257,$I257-SUM($L257:AH257))) -> 0 | AJ257: =IF($I257 >0, MIN(AI257,$I257-SUM($L257:AI257)), MAX(AI257,$I257-SUM($L257:AI257))) -> 0 | AK257: =IF($I257 >0, MIN(AJ257,$I257-SUM($L257:AJ257)), MAX(AJ257,$I257-SUM($L257:AJ257))) -> 0 | AL257: =IF($I257 >0, MIN(AK257,$I257-SUM($L257:AK257)), MAX(AK257,$I257-SUM($L257:AK257))) -> 0 | AM257: =IF($I257 >0, MIN(AL257,$I257-SUM($L257:AL257)), MAX(AL257,$I257-SUM($L257:AL257))) -> 0 | AN257: =IF($I257 >0, MIN(AM257,$I257-SUM($L257:AM257)), MAX(AM257,$I257-SUM($L257:AM257))) -> 0 | AO257: =IF($I257 >0, MIN(AN257,$I257-SUM($L257:AN257)), MAX(AN257,$I257-SUM($L257:AN257))) -> 0
E258: 2006-03-31 | G258: £m 09/10 prices | I258: 0 | J258: > | AA258: =$I258/$I$244 -> 0 | AB258: =IF($I258 >0, MIN(AA258,$I258-SUM($L258:AA258)), MAX(AA258,$I258-SUM($L258:AA258))) -> 0 | AC258: =IF($I258 >0, MIN(AB258,$I258-SUM($L258:AB258)), MAX(AB258,$I258-SUM($L258:AB258))) -> 0 | AD258: =IF($I258 >0, MIN(AC258,$I258-SUM($L258:AC258)), MAX(AC258,$I258-SUM($L258:AC258))) -> 0 | AE258: =IF($I258 >0, MIN(AD258,$I258-SUM($L258:AD258)), MAX(AD258,$I258-SUM($L258:AD258))) -> 0 | AF258: =IF($I258 >0, MIN(AE258,$I258-SUM($L258:AE258)), MAX(AE258,$I258-SUM($L258:AE258))) -> 0 | AG258: =IF($I258 >0, MIN(AF258,$I258-SUM($L258:AF258)), MAX(AF258,$I258-SUM($L258:AF258))) -> 0 | AH258: =IF($I258 >0, MIN(AG258,$I258-SUM($L258:AG258)), MAX(AG258,$I258-SUM($L258:AG258))) -> 0 | AI258: =IF($I258 >0, MIN(AH258,$I258-SUM($L258:AH258)), MAX(AH258,$I258-SUM($L258:AH258))) -> 0 | AJ258: =IF($I258 >0, MIN(AI258,$I258-SUM($L258:AI258)), MAX(AI258,$I258-SUM($L258:AI258))) -> 0 | AK258: =IF($I258 >0, MIN(AJ258,$I258-SUM($L258:AJ258)), MAX(AJ258,$I258-SUM($L258:AJ258))) -> 0 | AL258: =IF($I258 >0, MIN(AK258,$I258-SUM($L258:AK258)), MAX(AK258,$I258-SUM($L258:AK258))) -> 0 | AM258: =IF($I258 >0, MIN(AL258,$I258-SUM($L258:AL258)), MAX(AL258,$I258-SUM($L258:AL258))) -> 0 | AN258: =IF($I258 >0, MIN(AM258,$I258-SUM($L258:AM258)), MAX(AM258,$I258-SUM($L258:AM258))) -> 0 | AO258: =IF($I258 >0, MIN(AN258,$I258-SUM($L258:AN258)), MAX(AN258,$I258-SUM($L258:AN258))) -> 0
E259: 2007-03-31 | G259: £m 09/10 prices | I259: 0 | J259: > | AB259: =$I259/$I$244 -> 0 | AC259: =IF($I259 >0, MIN(AB259,$I259-SUM($L259:AB259)), MAX(AB259,$I259-SUM($L259:AB259))) -> 0 | AD259: =IF($I259 >0, MIN(AC259,$I259-SUM($L259:AC259)), MAX(AC259,$I259-SUM($L259:AC259))) -> 0 | AE259: =IF($I259 >0, MIN(AD259,$I259-SUM($L259:AD259)), MAX(AD259,$I259-SUM($L259:AD259))) -> 0 | AF259: =IF($I259 >0, MIN(AE259,$I259-SUM($L259:AE259)), MAX(AE259,$I259-SUM($L259:AE259))) -> 0 | AG259: =IF($I259 >0, MIN(AF259,$I259-SUM($L259:AF259)), MAX(AF259,$I259-SUM($L259:AF259))) -> 0 | AH259: =IF($I259 >0, MIN(AG259,$I259-SUM($L259:AG259)), MAX(AG259,$I259-SUM($L259:AG259))) -> 0 | AI259: =IF($I259 >0, MIN(AH259,$I259-SUM($L259:AH259)), MAX(AH259,$I259-SUM($L259:AH259))) -> 0 | AJ259: =IF($I259 >0, MIN(AI259,$I259-SUM($L259:AI259)), MAX(AI259,$I259-SUM($L259:AI259))) -> 0 | AK259: =IF($I259 >0, MIN(AJ259,$I259-SUM($L259:AJ259)), MAX(AJ259,$I259-SUM($L259:AJ259))) -> 0 | AL259: =IF($I259 >0, MIN(AK259,$I259-SUM($L259:AK259)), MAX(AK259,$I259-SUM($L259:AK259))) -> 0 | AM259: =IF($I259 >0, MIN(AL259,$I259-SUM($L259:AL259)), MAX(AL259,$I259-SUM($L259:AL259))) -> 0 | AN259: =IF($I259 >0, MIN(AM259,$I259-SUM($L259:AM259)), MAX(AM259,$I259-SUM($L259:AM259))) -> 0 | AO259: =IF($I259 >0, MIN(AN259,$I259-SUM($L259:AN259)), MAX(AN259,$I259-SUM($L259:AN259))) -> 0
E260: 2008-03-31 | G260: £m 09/10 prices | I260: 10.98219664 | J260: > | AC260: =$I260/$I$244 -> 1.568885234 | AD260: =IF($I260 >0, MIN(AC260,$I260-SUM($L260:AC260)), MAX(AC260,$I260-SUM($L260:AC260))) -> 1.568885234 | AE260: =IF($I260 >0, MIN(AD260,$I260-SUM($L260:AD260)), MAX(AD260,$I260-SUM($L260:AD260))) -> 1.568885234 | AF260: =IF($I260 >0, MIN(AE260,$I260-SUM($L260:AE260)), MAX(AE260,$I260-SUM($L260:AE260))) -> 1.568885234 | AG260: =IF($I260 >0, MIN(AF260,$I260-SUM($L260:AF260)), MAX(AF260,$I260-SUM($L260:AF260))) -> 1.568885234 | AH260: =IF($I260 >0, MIN(AG260,$I260-SUM($L260:AG260)), MAX(AG260,$I260-SUM($L260:AG260))) -> 1.568885234 | AI260: =IF($I260 >0, MIN(AH260,$I260-SUM($L260:AH260)), MAX(AH260,$I260-SUM($L260:AH260))) -> 1.568885234 | AJ260: =IF($I260 >0, MIN(AI260,$I260-SUM($L260:AI260)), MAX(AI260,$I260-SUM($L260:AI260))) -> 0 | AK260: =IF($I260 >0, MIN(AJ260,$I260-SUM($L260:AJ260)), MAX(AJ260,$I260-SUM($L260:AJ260))) -> 0 | AL260: =IF($I260 >0, MIN(AK260,$I260-SUM($L260:AK260)), MAX(AK260,$I260-SUM($L260:AK260))) -> 0 | AM260: =IF($I260 >0, MIN(AL260,$I260-SUM($L260:AL260)), MAX(AL260,$I260-SUM($L260:AL260))) -> 0 | AN260: =IF($I260 >0, MIN(AM260,$I260-SUM($L260:AM260)), MAX(AM260,$I260-SUM($L260:AM260))) -> 0 | AO260: =IF($I260 >0, MIN(AN260,$I260-SUM($L260:AN260)), MAX(AN260,$I260-SUM($L260:AN260))) -> 0
E261: 2009-03-31 | G261: £m 09/10 prices | I261: 7.606666563 | J261: > | AD261: =$I261/$I$244 -> 1.086666652 | AE261: =IF($I261 >0, MIN(AD261,$I261-SUM($L261:AD261)), MAX(AD261,$I261-SUM($L261:AD261))) -> 1.086666652 | AF261: =IF($I261 >0, MIN(AE261,$I261-SUM($L261:AE261)), MAX(AE261,$I261-SUM($L261:AE261))) -> 1.086666652 | AG261: =IF($I261 >0, MIN(AF261,$I261-SUM($L261:AF261)), MAX(AF261,$I261-SUM($L261:AF261))) -> 1.086666652 | AH261: =IF($I261 >0, MIN(AG261,$I261-SUM($L261:AG261)), MAX(AG261,$I261-SUM($L261:AG261))) -> 1.086666652 | AI261: =IF($I261 >0, MIN(AH261,$I261-SUM($L261:AH261)), MAX(AH261,$I261-SUM($L261:AH261))) -> 1.086666652 | AJ261: =IF($I261 >0, MIN(AI261,$I261-SUM($L261:AI261)), MAX(AI261,$I261-SUM($L261:AI261))) -> 1.086666652 | AK261: =IF($I261 >0, MIN(AJ261,$I261-SUM($L261:AJ261)), MAX(AJ261,$I261-SUM($L261:AJ261))) -> 8.881784197e-16 | AL261: =IF($I261 >0, MIN(AK261,$I261-SUM($L261:AK261)), MAX(AK261,$I261-SUM($L261:AK261))) -> 0 | AM261: =IF($I261 >0, MIN(AL261,$I261-SUM($L261:AL261)), MAX(AL261,$I261-SUM($L261:AL261))) -> 0 | AN261: =IF($I261 >0, MIN(AM261,$I261-SUM($L261:AM261)), MAX(AM261,$I261-SUM($L261:AM261))) -> 0 | AO261: =IF($I261 >0, MIN(AN261,$I261-SUM($L261:AN261)), MAX(AN261,$I261-SUM($L261:AN261))) -> 0
E262: 2010-03-31 | G262: £m 09/10 prices | I262: 10.128 | J262: > | AE262: =$I262/$I$244 -> 1.446857143 | AF262: =IF($I262 >0, MIN(AE262,$I262-SUM($L262:AE262)), MAX(AE262,$I262-SUM($L262:AE262))) -> 1.446857143 | AG262: =IF($I262 >0, MIN(AF262,$I262-SUM($L262:AF262)), MAX(AF262,$I262-SUM($L262:AF262))) -> 1.446857143 | AH262: =IF($I262 >0, MIN(AG262,$I262-SUM($L262:AG262)), MAX(AG262,$I262-SUM($L262:AG262))) -> 1.446857143 | AI262: =IF($I262 >0, MIN(AH262,$I262-SUM($L262:AH262)), MAX(AH262,$I262-SUM($L262:AH262))) -> 1.446857143 | AJ262: =IF($I262 >0, MIN(AI262,$I262-SUM($L262:AI262)), MAX(AI262,$I262-SUM($L262:AI262))) -> 1.446857143 | AK262: =IF($I262 >0, MIN(AJ262,$I262-SUM($L262:AJ262)), MAX(AJ262,$I262-SUM($L262:AJ262))) -> 1.446857143 | AL262: =IF($I262 >0, MIN(AK262,$I262-SUM($L262:AK262)), MAX(AK262,$I262-SUM($L262:AK262))) -> 0 | AM262: =IF($I262 >0, MIN(AL262,$I262-SUM($L262:AL262)), MAX(AL262,$I262-SUM($L262:AL262))) -> 0 | AN262: =IF($I262 >0, MIN(AM262,$I262-SUM($L262:AM262)), MAX(AM262,$I262-SUM($L262:AM262))) -> 0 | AO262: =IF($I262 >0, MIN(AN262,$I262-SUM($L262:AN262)), MAX(AN262,$I262-SUM($L262:AN262))) -> 0
E263: 2011-03-31 | G263: £m 09/10 prices | I263: 9.20420132 | J263: > | AF263: =$I263/$I$244 -> 1.314885903 | AG263: =IF($I263 >0, MIN(AF263,$I263-SUM($L263:AF263)), MAX(AF263,$I263-SUM($L263:AF263))) -> 1.314885903 | AH263: =IF($I263 >0, MIN(AG263,$I263-SUM($L263:AG263)), MAX(AG263,$I263-SUM($L263:AG263))) -> 1.314885903 | AI263: =IF($I263 >0, MIN(AH263,$I263-SUM($L263:AH263)), MAX(AH263,$I263-SUM($L263:AH263))) -> 1.314885903 | AJ263: =IF($I263 >0, MIN(AI263,$I263-SUM($L263:AI263)), MAX(AI263,$I263-SUM($L263:AI263))) -> 1.314885903 | AK263: =IF($I263 >0, MIN(AJ263,$I263-SUM($L263:AJ263)), MAX(AJ263,$I263-SUM($L263:AJ263))) -> 1.314885903 | AL263: =IF($I263 >0, MIN(AK263,$I263-SUM($L263:AK263)), MAX(AK263,$I263-SUM($L263:AK263))) -> 1.314885903 | AM263: =IF($I263 >0, MIN(AL263,$I263-SUM($L263:AL263)), MAX(AL263,$I263-SUM($L263:AL263))) -> 0 | AN263: =IF($I263 >0, MIN(AM263,$I263-SUM($L263:AM263)), MAX(AM263,$I263-SUM($L263:AM263))) -> 0 | AO263: =IF($I263 >0, MIN(AN263,$I263-SUM($L263:AN263)), MAX(AN263,$I263-SUM($L263:AN263))) -> 0
E264: 2012-03-31 | G264: £m 09/10 prices | I264: 11.57275315 | J264: > | AG264: =$I264/$I$244 -> 1.65325045 | AH264: =IF($I264 >0, MIN(AG264,$I264-SUM($L264:AG264)), MAX(AG264,$I264-SUM($L264:AG264))) -> 1.65325045 | AI264: =IF($I264 >0, MIN(AH264,$I264-SUM($L264:AH264)), MAX(AH264,$I264-SUM($L264:AH264))) -> 1.65325045 | AJ264: =IF($I264 >0, MIN(AI264,$I264-SUM($L264:AI264)), MAX(AI264,$I264-SUM($L264:AI264))) -> 1.65325045 | AK264: =IF($I264 >0, MIN(AJ264,$I264-SUM($L264:AJ264)), MAX(AJ264,$I264-SUM($L264:AJ264))) -> 1.65325045 | AL264: =IF($I264 >0, MIN(AK264,$I264-SUM($L264:AK264)), MAX(AK264,$I264-SUM($L264:AK264))) -> 1.65325045 | AM264: =IF($I264 >0, MIN(AL264,$I264-SUM($L264:AL264)), MAX(AL264,$I264-SUM($L264:AL264))) -> 1.65325045 | AN264: =IF($I264 >0, MIN(AM264,$I264-SUM($L264:AM264)), MAX(AM264,$I264-SUM($L264:AM264))) -> 0 | AO264: =IF($I264 >0, MIN(AN264,$I264-SUM($L264:AN264)), MAX(AN264,$I264-SUM($L264:AN264))) -> 0
E265: 2013-03-31 | G265: £m 09/10 prices | I265: 24.32142377 | J265: > | AH265: =$I265/$I$244 -> 3.474489109 | AI265: =IF($I265 >0, MIN(AH265,$I265-SUM($L265:AH265)), MAX(AH265,$I265-SUM($L265:AH265))) -> 3.474489109 | AJ265: =IF($I265 >0, MIN(AI265,$I265-SUM($L265:AI265)), MAX(AI265,$I265-SUM($L265:AI265))) -> 3.474489109 | AK265: =IF($I265 >0, MIN(AJ265,$I265-SUM($L265:AJ265)), MAX(AJ265,$I265-SUM($L265:AJ265))) -> 3.474489109 | AL265: =IF($I265 >0, MIN(AK265,$I265-SUM($L265:AK265)), MAX(AK265,$I265-SUM($L265:AK265))) -> 3.474489109 | AM265: =IF($I265 >0, MIN(AL265,$I265-SUM($L265:AL265)), MAX(AL265,$I265-SUM($L265:AL265))) -> 3.474489109 | AN265: =IF($I265 >0, MIN(AM265,$I265-SUM($L265:AM265)), MAX(AM265,$I265-SUM($L265:AM265))) -> 3.474489109 | AO265: =IF($I265 >0, MIN(AN265,$I265-SUM($L265:AN265)), MAX(AN265,$I265-SUM($L265:AN265))) -> 0
E266: 2014-03-31 | G266: £m 09/10 prices | I266: 25.60272481 | J266: > | AI266: =$I266/$I$244 -> 3.657532115 | AJ266: =IF($I266 >0, MIN(AI266,$I266-SUM($L266:AI266)), MAX(AI266,$I266-SUM($L266:AI266))) -> 3.657532115 | AK266: =IF($I266 >0, MIN(AJ266,$I266-SUM($L266:AJ266)), MAX(AJ266,$I266-SUM($L266:AJ266))) -> 3.657532115 | AL266: =IF($I266 >0, MIN(AK266,$I266-SUM($L266:AK266)), MAX(AK266,$I266-SUM($L266:AK266))) -> 3.657532115 | AM266: =IF($I266 >0, MIN(AL266,$I266-SUM($L266:AL266)), MAX(AL266,$I266-SUM($L266:AL266))) -> 3.657532115 | AN266: =IF($I266 >0, MIN(AM266,$I266-SUM($L266:AM266)), MAX(AM266,$I266-SUM($L266:AM266))) -> 3.657532115 | AO266: =IF($I266 >0, MIN(AN266,$I266-SUM($L266:AN266)), MAX(AN266,$I266-SUM($L266:AN266))) -> 3.657532115
E267: 2015-03-31 | G267: £m 09/10 prices | I267: 28.40082387 | J267: > | AJ267: =$I267/$I$244 -> 4.057260553 | AK267: =IF($I267 >0, MIN(AJ267,$I267-SUM($L267:AJ267)), MAX(AJ267,$I267-SUM($L267:AJ267))) -> 4.057260553 | AL267: =IF($I267 >0, MIN(AK267,$I267-SUM($L267:AK267)), MAX(AK267,$I267-SUM($L267:AK267))) -> 4.057260553 | AM267: =IF($I267 >0, MIN(AL267,$I267-SUM($L267:AL267)), MAX(AL267,$I267-SUM($L267:AL267))) -> 4.057260553 | AN267: =IF($I267 >0, MIN(AM267,$I267-SUM($L267:AM267)), MAX(AM267,$I267-SUM($L267:AM267))) -> 4.057260553 | AO267: =IF($I267 >0, MIN(AN267,$I267-SUM($L267:AN267)), MAX(AN267,$I267-SUM($L267:AN267))) -> 4.057260553
E268: 2016-03-31 | G268: £m 09/10 prices | I268: 29.93783089 | J268: > | AK268: =$I268/$I$244 -> 4.276832984 | AL268: =IF($I268 >0, MIN(AK268,$I268-SUM($L268:AK268)), MAX(AK268,$I268-SUM($L268:AK268))) -> 4.276832984 | AM268: =IF($I268 >0, MIN(AL268,$I268-SUM($L268:AL268)), MAX(AL268,$I268-SUM($L268:AL268))) -> 4.276832984 | AN268: =IF($I268 >0, MIN(AM268,$I268-SUM($L268:AM268)), MAX(AM268,$I268-SUM($L268:AM268))) -> 4.276832984 | AO268: =IF($I268 >0, MIN(AN268,$I268-SUM($L268:AN268)), MAX(AN268,$I268-SUM($L268:AN268))) -> 4.276832984
E269: 2017-03-31 | G269: £m 09/10 prices | I269: 28.30870617 | J269: > | AL269: =$I269/$I$244 -> 4.044100881 | AM269: =IF($I269 >0, MIN(AL269,$I269-SUM($L269:AL269)), MAX(AL269,$I269-SUM($L269:AL269))) -> 4.044100881 | AN269: =IF($I269 >0, MIN(AM269,$I269-SUM($L269:AM269)), MAX(AM269,$I269-SUM($L269:AM269))) -> 4.044100881 | AO269: =IF($I269 >0, MIN(AN269,$I269-SUM($L269:AN269)), MAX(AN269,$I269-SUM($L269:AN269))) -> 4.044100881
E270: 2018-03-31 | G270: £m 09/10 prices | I270: 25.34082147 | J270: > | AM270: =$I270/$I$244 -> 3.620117353 | AN270: =IF($I270 >0, MIN(AM270,$I270-SUM($L270:AM270)), MAX(AM270,$I270-SUM($L270:AM270))) -> 3.620117353 | AO270: =IF($I270 >0, MIN(AN270,$I270-SUM($L270:AN270)), MAX(AN270,$I270-SUM($L270:AN270))) -> 3.620117353
E271: 2019-03-31 | G271: £m 09/10 prices | I271: 25.69054127 | J271: > | AN271: =$I271/$I$244 -> 3.670077324 | AO271: =IF($I271 >0, MIN(AN271,$I271-SUM($L271:AN271)), MAX(AN271,$I271-SUM($L271:AN271))) -> 3.670077324
E272: 2020-03-31 | G272: £m 09/10 prices | I272: 26.75808984 | J272: > | AO272: =$I272/$I$244 -> 3.822584262
E273: 2021-03-31 | G273: £m 09/10 prices | I273: 25.25963621 | J273: >
E274: Total | G274: £m 09/10 prices | L274: =SUM(L255:L273) -> 0 | M274: =SUM(M255:M273) -> 0 | N274: 0 | O274: 0 | P274: 0 | Q274: 0 | R274: 0 | S274: 0 | T274: 0 | U274: 0 | V274: 0 | W274: 0 | X274: 0 | Y274: 0 | Z274: 0 | AA274: 0 | AB274: 0 | AC274: 1.568885234 | AD274: 2.655551886 | AE274: 4.102409028 | AF274: 5.417294931 | AG274: 7.070545381 | AH274: 10.54503449 | AI274: 14.20256661 | AJ274: 16.69094193 | AK274: 19.88110826 | AL274: 22.478352 | AM274: 24.78358345 | AN274: 26.80041032 | AO274: 27.14850547
B276: RAV
B277: Note: The RAV is presented separate pre-vesting and post-vesting balances brought together to form a combined "Running total."
C279: Running total
E281: Opening RAV (before transfers) | G281: £m 09/10 prices | AH281: =SUM(W78:AG78)-SUM(L274:AG274) -> 53.00055498 | AI281: =AH286 -> 68.05824529 | AJ281: 82.25650256 | AK281: 95.50339152 | AL281: 103.9309894 | AM281: 106.7934589 | AN281: 107.7004167 | AO281: 107.6580962
E282: Transfers | G282: £m 09/10 prices
E283: Opening RAV (after transfers) | G283: £m 09/10 prices | AH283: =SUM(AH281:AH282) -> 53.00055498 | AI283: 68.05824529 | AJ283: 82.25650256 | AK283: 95.50339152 | AL283: 103.9309894 | AM283: 106.7934589 | AN283: 107.7004167 | AO283: 107.6580962
E284: Net additions (after disposals) | G284: £m 09/10 prices | AH284: =AH162+AH79 -> 25.60272481 | AI284: 28.40082387 | AJ284: 29.93783089 | AK284: 28.30870617 | AL284: 25.34082147 | AM284: 25.69054127 | AN284: 26.75808984 | AO284: 25.25963621
E285: Depreciation | G285: £m 09/10 prices | AH285: =-AH274 -> -10.54503449 | AI285: =-AI274 -> -14.20256661 | AJ285: -16.69094193 | AK285: -19.88110826 | AL285: -22.478352 | AM285: -24.78358345 | AN285: -26.80041032 | AO285: -27.14850547
E286: Closing RAV | G286: £m 09/10 prices | AH286: =SUM(AH283:AH285) -> 68.05824529 | AI286: 82.25650256 | AJ286: 95.50339152 | AK286: 103.9309894 | AL286: 106.7934589 | AM286: 107.7004167 | AN286: 107.6580962 | AO286: 105.769227
B288: Return
C290: Return base
C291: Note: The "Return base" is calculated such that the net present value of the stream of depreciation and return flowing from a RAV addition is equal to the present value of the addition itself.
D293: Present value of closing RAV
E295: Vanilla WACC | G295: annual real % | AH295: =Input!AH42 -> 0.04375 | AI295: =Input!AI42 -> 0.0425 | AJ295: =Input!AJ42 -> 0.0414375 | AK295: =Input!AK42 -> 0.040375 | AL295: =Input!AL42 -> 0.039375 | AM295: =Input!AM42 -> 0.0381875 | AN295: =Input!AN42 -> 0.0381875 | AO295: =Input!AO42 -> 0.0381875
E296: Single year discount factor | G296: scalar | AH296: =1 / (1 + AH295) -> 0.9580838323 | AI296: =1 / (1 + AI295) -> 0.9592326139 | AJ296: 0.9602112465 | AK296: 0.9611918779 | AL296: 0.9621166566 | AM296: 0.9632171453 | AN296: 0.9632171453 | AO296: 0.9632171453
E298: Closing RAV | G298: £m 09/10 prices | AH298: =AH286 -> 68.05824529 | AI298: =AI286 -> 82.25650256 | AJ298: 95.50339152 | AK298: 103.9309894 | AL298: 106.7934589 | AM298: 107.7004167 | AN298: 107.6580962 | AO298: 105.769227
E300: Present value closing RAV | G300: £m 09/10 prices | AH300: =AH298 * AH296 -> 65.20550447 | AI300: 78.90311996 | AJ300: 91.70343061 | AK300: 99.8976229 | AL300: 102.7477656 | AM300: 103.7388879 | AN300: 103.6981241 | AO300: 101.8787329
... 107 more rows

Sheet Return&RAV
A1: Return & RAV
B2: =UserInterface!G17 -> NGGT TO
E3: Parameter | G3: Units | I3: Constant | AH3: Annual values
E4: PCFM year ending | F4: =Cover!C3 -> GT1 PCFM November 2017 DryRun3.xlsm | I4: =UserInterface!$G$10 -> 2019-03-31 | K4: 1991-03-31 | L4: 1992-03-31 | M4: 1993-03-31 | N4: 1994-03-31 | O4: 1995-03-31 | P4: 1996-03-31 | Q4: 1997-03-31 | R4: 1998-03-31 | S4: 1999-03-31 | T4: 2000-03-31 | U4: 2001-03-31 | V4: 2002-03-31 | W4: 2003-03-31 | X4: 2004-03-31 | Y4: 2005-03-31 | Z4: 2006-03-31 | AA4: 2007-03-31 | AB4: 2008-03-31 | AC4: 2009-03-31 | AD4: 2010-03-31 | AE4: 2011-03-31 | AF4: 2012-03-31 | AG4: 2013-03-31 | AH4: 2014-03-31 | AI4: 2015-03-31 | AJ4: 2016-03-31 | AK4: 2017-03-31 | AL4: 2018-03-31 | AM4: 2019-03-31 | AN4: 2020-03-31 | AO4: 2021-03-31
B6: Return
C8: Return base
C9: Note: The "Return base" is calculated such that the net present value of the stream of depreciation and return flowing from a RAV addition is equal to the present value of the addition itself.
D11: Present value of closing RAV
E13: Vanilla WACC | G13: annual real % | AH13: =Input!AH42 -> 0.04375 | AI13: =Input!AI42 -> 0.0425 | AJ13: =Input!AJ42 -> 0.0414375 | AK13: =Input!AK42 -> 0.040375 | AL13: =Input!AL42 -> 0.039375 | AM13: =Input!AM42 -> 0.0381875 | AN13: =Input!AN42 -> 0.0381875 | AO13: =Input!AO42 -> 0.0381875
E14: Single year discount factor | G14: scalar | AH14: =1 / (1 + AH13) -> 0.9580838323 | AI14: =1 / (1 + AI13) -> 0.9592326139 | AJ14: 0.9602112465 | AK14: 0.9611918779 | AL14: 0.9621166566 | AM14: 0.9632171453 | AN14: 0.9632171453 | AO14: 0.9632171453
E16: Closing RAV | G16: £m 09/10 prices | AH16: =AH44 -> 4316.57933 | AI16: 4304.614216 | AJ16: 4291.096737 | AK16: 4309.912348 | AL16: 4803.896308 | AM16: 4874.475827 | AN16: 4867.425846 | AO16: 4817.229814
E18: Discounted closing RAV | G18: £m 09/10 prices | AH18: =AH16 * AH14 -> 4135.644867 | AI18: 4129.126346 | AJ18: 4120.359347 | AK18: 4142.652743 | AL18: 4621.908655 | AM18: 4695.178691 | AN18: 4688.388029 | AO18: 4640.03835
D20: NPV-neutral RAV return base
E22: Opening RAV (after transfers) | G22: £m 09/10 prices | AH22: =AH41 -> 4253.307036 | AI22: 4318.168295 | AJ22: 4306.551381 | AK22: 4305.751438 | AL22: 4785.734488 | AM22: 4873.246112 | AN22: 4895.25527 | AO22: 4868.236469
E23: Discounted closing RAV | G23: £m 09/10 prices | AH23: =AH18 -> 4135.644867 | AI23: =AI18 -> 4129.126346 | AJ23: 4120.359347 | AK23: 4142.652743 | AL23: 4621.908655 | AM23: 4695.178691 | AN23: 4688.388029 | AO23: 4640.03835
E25: NPV-neutral RAV return base | G25: £m 09/10 prices | AH25: =AVERAGE(AH22:AH23) -> 4194.475952 | AI25: =AVERAGE(AI22:AI23) -> 4223.647321 | AJ25: 4213.455364 | AK25: 4224.202091 | AL25: 4703.821572 | AM25: 4784.212401 | AN25: 4791.821649 | AO25: 4754.137409
C27: Return on RAV
E29: NPV-neutral RAV return base | G29: £m 09/10 prices | AH29: =AH25 -> 4194.475952 | AI29: =AI25 -> 4223.647321 | AJ29: 4213.455364 | AK29: 4224.202091 | AL29: 4703.821572 | AM29: 4784.212401 | AN29: 4791.821649 | AO29: 4754.137409
E30: Vanilla WACC | G30: annual real % | AH30: =AH13 -> 0.04375 | AI30: =AI13 -> 0.0425 | AJ30: 0.0414375 | AK30: 0.040375 | AL30: 0.039375 | AM30: 0.0381875 | AN30: 0.0381875 | AO30: 0.0381875
E32: Return | G32: £m 09/10 prices | AH32: =AH29 * AH30 -> 183.5083229 | AI32: =AI29 * AI30 -> 179.5050111 | AJ32: 174.5950566 | AK32: 170.5521594 | AL32: 185.2129744 | AM32: 182.6971111 | AN32: 182.9876892 | AO32: 181.5486223
B34: RAV
B35: Note: The RAV is presented separate pre-vesting and post-vesting balances brought together to form a combined "Running total."
C37: Running total
E39: Opening RAV (before transfers) | G39: £m 09/10 prices | AH39: =(AH51 - AH60) + (AH77 - AH86) -> 4014.398548 | AI39: =AH44 -> 4316.57933 | AJ39: 4304.614216 | AK39: 4291.096737 | AL39: 4309.912348 | AM39: 4803.896308 | AN39: 4874.475827 | AO39: 4867.425846
E40: Transfers | G40: £m 09/10 prices | AH40: =(AH52 - AH61) + (AH78 - AH87) -> 238.9084878 | AI40: =(AI52 - AI61) + (AI78 - AI87) -> 1.58896496 | AJ40: 1.937165644 | AK40: 14.65470084 | AL40: 475.8221405 | AM40: 69.34980372 | AN40: 20.77944271 | AO40: 0.8106226531
E41: Opening RAV (after transfers) | G41: £m 09/10 prices | AH41: =SUM(AH39:AH40) -> 4253.307036 | AI41: 4318.168295 | AJ41: 4306.551381 | AK41: 4305.751438 | AL41: 4785.734488 | AM41: 4873.246112 | AN41: 4895.25527 | AO41: 4868.236469
E42: Net additions (after disposals) | G42: £m 09/10 prices | AH42: =AH54 + AH80 -> 202.050866 | AI42: =AI54 + AI80 -> 128.0770862 | AJ42: 127.3929913 | AK42: 148.5239464 | AL42: 175.9960279 | AM42: 162.8433177 | AN42: 136.191949 | AO42: 114.3864834
E43: Depreciation | G43: £m 09/10 prices | AH43: =-(AH63 + AH89) -> -138.7785718 | AI43: =-(AI63 + AI89) -> -141.6311658 | AJ43: -142.8476357 | AK43: -144.3630363 | AL43: -157.8342084 | AM43: -161.6136023 | AN43: -164.0213725 | AO43: -165.3931384
E44: Closing RAV | G44: £m 09/10 prices | AH44: =SUM(AH41:AH43) -> 4316.57933 | AI44: =SUM(AI41:AI43) -> 4304.614216 | AJ44: 4291.096737 | AK44: 4309.912348 | AL44: 4803.896308 | AM44: 4874.475827 | AN44: 4867.425846 | AO44: 4817.229814
C46: Pre-vesting balance
C47: Note: Pre-vesting RAV opening balances are inputs to the model. The continued depreciation of these assets uses annual depreciation rates calculated on the "Depn" sheet.
D49: Cost
E51: Opening balance brought forward (before transfers) | G51: £m 09/10 prices | AH51: =Input!AH186 -> 2669.686081 | AI51: =AH56 -> 2669.686081 | AJ51: =AI56 -> 2669.686081 | AK51: 2669.686081 | AL51: 2669.686081 | AM51: 2669.686081 | AN51: 2669.686081 | AO51: 2669.686081
E52: Transfers | G52: £m 09/10 prices
E53: Opening balance brought forward (after transfers) | G53: £m 09/10 prices | AH53: =SUM(AH51:AH52) -> 2669.686081 | AI53: =SUM(AI51:AI52) -> 2669.686081 | AJ53: 2669.686081 | AK53: 2669.686081 | AL53: 2669.686081 | AM53: 2669.686081 | AN53: 2669.686081 | AO53: 2669.686081
E54: Net additions (after disposals) | G54: £m 09/10 prices | AH54: =-Input!AH190 -> 0 | AI54: =-Input!AI190 -> 0 | AJ54: =-Input!AJ190 -> 0 | AK54: =-Input!AK190 -> 0 | AL54: =-Input!AL190 -> 0 | AM54: =-Input!AM190 -> 0 | AN54: =-Input!AN190 -> 0 | AO54: =-Input!AO190 -> 0
E55: Removals | G55: £m 09/10 prices
E56: Closing value carried forward | G56: £m 09/10 prices | AH56: =AH53 + AH54 - AH55 -> 2669.686081 | AI56: =AI53 + AI54 - AI55 -> 2669.686081 | AJ56: 2669.686081 | AK56: 2669.686081 | AL56: 2669.686081 | AM56: 2669.686081 | AN56: 2669.686081 | AO56: 2669.686081
D58: Cumulative depreciation
E60: Opening balance brought forward (before transfers) | G60: £m 09/10 prices | AH60: =Input!AH187 -> 938.4148523 | AI60: =AH65 -> 1013.687956 | AJ60: =AI65 -> 1087.288324 | AK60: 1159.215957 | AL60: 1229.470854 | AM60: 1298.053015 | AN60: 1364.962441 | AO60: 1430.19913
E61: Transfers | G61: £m 09/10 prices
E62: Opening balance brought forward (after transfers) | G62: £m 09/10 prices | AH62: =SUM(AH60:AH61) -> 938.4148523 | AI62: =SUM(AI60:AI61) -> 1013.687956 | AJ62: 1087.288324 | AK62: 1159.215957 | AL62: 1229.470854 | AM62: 1298.053015 | AN62: 1364.962441 | AO62: 1430.19913
E63: Depreciation | G63: £m 09/10 prices | AH63: =AH51 * Depn!AH29 -> 75.27310379 | AI63: =AI51 * Depn!AI29 -> 73.60036815 | AJ63: =AJ51 * Depn!AJ29 -> 71.92763251 | AK63: =AK51 * Depn!AK29 -> 70.25489687 | AL63: =AL51 * Depn!AL29 -> 68.58216123 | AM63: =AM51 * Depn!AM29 -> 66.90942559 | AN63: =AN51 * Depn!AN29 -> 65.23668995 | AO63: =AO51 * Depn!AO29 -> 63.56395431
E64: Removals | G64: £m 09/10 prices | AH64: =AH55 -> 0 | AI64: 0 | AJ64: 0 | AK64: 0 | AL64: 0 | AM64: 0 | AN64: 0 | AO64: 0
E65: Closing value carried forward | G65: £m 09/10 prices | AH65: =AH62 + AH63 - AH64 -> 1013.687956 | AI65: =AI62 + AI63 - AI64 -> 1087.288324 | AJ65: 1159.215957 | AK65: 1229.470854 | AL65: 1298.053015 | AM65: 1364.962441 | AN65: 1430.19913 | AO65: 1493.763085
D67: Asset balance
E69: Net value after regulatory depreciation | G69: £m 09/10 prices | AH69: =AH56 - AH65 -> 1655.998125 | AI69: 1582.397757 | AJ69: 1510.470124 | AK69: 1440.215228 | AL69: 1371.633066 | AM69: 1304.723641 | AN69: 1239.486951 | AO69: 1175.922996
C71: Post-vesting balance
C72: Note: Post-vesting RAV opening balances are generated from calculations built up since vesting. Net additions (after disposals), depreciation and removals are calculated principally on the "Depn" sheet.
C73: Assets with non-standard depreciation policies applied or that are transferred to the RAV during the price control are also brought into the RAV here.
D75: Cost
E77: Opening balance brought forward (before transfers) | G77: £m 09/10 prices | AH77: =Depn!AH116 + AH103 + AH138 -> 2591.400444 | AI77: =AH82 -> 3059.796927 | AJ77: 3189.462978 | AK77: 3318.793135 | AL77: 3483.39022 | AM77: 4192.338149 | AN77: 4424.531271 | AO77: 4581.502662
E78: Transfers | G78: £m 09/10 prices | AH78: =AH132 -> 266.3456174 | AI78: =AI132 -> 1.58896496 | AJ78: 1.937165644 | AK78: 16.07313831 | AL78: 532.9519012 | AM78: 69.34980372 | AN78: 20.77944271 | AO78: 0.8106226531
E79: Opening balance brought forward (after transfers) | G79: £m 09/10 prices | AH79: =SUM(AH77:AH78) -> 2857.746061 | AI79: 3061.385892 | AJ79: 3191.400144 | AK79: 3334.866274 | AL79: 4016.342121 | AM79: 4261.687953 | AN79: 4445.310713 | AO79: 4582.313285
E80: Net additions (after disposals) | G80: £m 09/10 prices | AH80: =Depn!AH15 + AH106 -> 202.050866 | AI80: =Depn!AI15 + AI106 -> 128.0770862 | AJ80: =Depn!AJ15 + AJ106 -> 127.3929913 | AK80: =Depn!AK15 + AK106 -> 148.5239464 | AL80: =Depn!AL15 + AL106 -> 175.9960279 | AM80: =Depn!AM15 + AM106 -> 162.8433177 | AN80: =Depn!AN15 + AN106 -> 136.191949 | AO80: =Depn!AO15 + AO106 -> 114.3864834
E81: Removals | G81: £m 09/10 prices | AH81: =Depn!AH107 -> 0 | AI81: =Depn!AI107 -> 0 | AJ81: =Depn!AJ107 -> 0 | AK81: =Depn!AK107 -> 0 | AL81: =Depn!AL107 -> 0 | AM81: =Depn!AM107 -> 0 | AN81: =Depn!AN107 -> 0 | AO81: =Depn!AO107 -> 0
E82: Closing value carried forward | G82: £m 09/10 prices | AH82: =AH79 + AH80 - AH81 -> 3059.796927 | AI82: =AI79 + AI80 - AI81 -> 3189.462978 | AJ82: 3318.793135 | AK82: 3483.39022 | AL82: 4192.338149 | AM82: 4424.531271 | AN82: 4581.502662 | AO82: 4696.699768
D84: Cumulative depreciation
E86: Opening balance brought forward (before transfers) | G86: £m 09/10 prices | AH86: =Depn!AH117 + AH114 + AH146 -> 308.2731242 | AI86: =AH91 -> 399.2157218 | AJ86: 467.2465194 | AK86: 538.1665226 | AL86: 613.6930995 | AM86: 760.0749074 | AN86: 854.7790842 | AO86: 953.5637667
E87: Transfers | G87: £m 09/10 prices | AH87: =- AH133 -> 27.43712958 | AI87: =- AI133 -> 0 | AJ87: 0 | AK87: 1.418437474 | AL87: 57.12976076 | AM87: 0 | AN87: 0 | AO87: 0
E88: Opening balance brought forward (after transfers) | G88: £m 09/10 prices | AH88: =SUM(AH86:AH87) -> 335.7102538 | AI88: 399.2157218 | AJ88: 467.2465194 | AK88: 539.5849601 | AL88: 670.8228603 | AM88: 760.0749074 | AN88: 854.7790842 | AO88: 953.5637667
E89: Depreciation | G89: £m 09/10 prices | AH89: =Depn!AH71 + AH117 + AH149 -> 63.50546803 | AI89: =Depn!AI71 + AI117 + AI149 -> 68.0307976 | AJ89: =Depn!AJ71 + AJ117 + AJ149 -> 70.9200032 | AK89: =Depn!AK71 + AK117 + AK149 -> 74.10813941 | AL89: =Depn!AL71 + AL117 + AL149 -> 89.25204714 | AM89: =Depn!AM71 + AM117 + AM149 -> 94.70417673 | AN89: =Depn!AN71 + AN117 + AN149 -> 98.78468252 | AO89: =Depn!AO71 + AO117 + AO149 -> 101.8291841
E90: Removals | G90: £m 09/10 prices | AH90: =AH81 -> 0 | AI90: 0 | AJ90: 0 | AK90: 0 | AL90: 0 | AM90: 0 | AN90: 0 | AO90: 0
E91: Closing value carried forward | G91: £m 09/10 prices | AH91: =AH88 + AH89 - AH90 -> 399.2157218 | AI91: =AI88 + AI89 - AI90 -> 467.2465194 | AJ91: 538.1665226 | AK91: 613.6930995 | AL91: 760.0749074 | AM91: 854.7790842 | AN91: 953.5637667 | AO91: 1055.392951
D93: Asset balance
E95: Net value after regulatory depreciation | G95: £m 09/10 prices | AH95: =AH82 - AH91 -> 2660.581205 | AI95: 2722.216459 | AJ95: 2780.626613 | AK95: 2869.69712 | AL95: 3432.263242 | AM95: 3569.752186 | AN95: 3627.938896 | AO95: 3641.306818
C98: Retrospective addition of logged-up and security costs
C99: Note: Retrospective logged-up and security cost calculations are kept separate due to their non-standard depreciation profile and deemed depreciation before transfer to RAV.
D101: Cost
E103: Opening balance brought forward | G103: £m 09/10 prices | J103: > | Z103: =Y108 -> 0 | AA103: 0 | AB103: 0.1604920542 | AC103: 89.75938335 | AD103: 97.10978852 | AE103: 109.7129365 | AF103: 168.0708871 | AG103: 225.4568222 | AH103: 225.4568222 | AI103: 225.4568222 | AJ103: 225.4568222 | AK103: 225.4568222 | AL103: 225.4568222 | AM103: 225.4568222 | AN103: 225.4568222 | AO103: 225.4568222
E104: Transfer | G104: £m 09/10 prices | J104: >
E105: Opening balance brought forward (after transfer) | G105: £m 09/10 prices | J105: > | Y105: =SUM(Y103:Y104) -> 0 | Z105: =SUM(Z103:Z104) -> 0 | AA105: =SUM(AA103:AA104) -> 0 | AB105: =SUM(AB103:AB104) -> 0.1604920542 | AC105: =SUM(AC103:AC104) -> 89.75938335 | AD105: =SUM(AD103:AD104) -> 97.10978852 | AE105: 109.7129365 | AF105: 168.0708871 | AG105: 225.4568222 | AH105: 225.4568222 | AI105: 225.4568222 | AJ105: 225.4568222 | AK105: 225.4568222 | AL105: 225.4568222 | AM105: 225.4568222 | AN105: 225.4568222 | AO105: 225.4568222
E106: Net additions (after disposals) | G106: £m 09/10 prices | J106: > | Y106: =Input!Y209 + Input!Y211 -> 0 | Z106: =Input!Z209 + Input!Z211 -> 0 | AA106: =Input!AA209 + Input!AA211 -> 0.1604920542 | AB106: =Input!AB209 + Input!AB211 -> 89.59889129 | AC106: =Input!AC209 + Input!AC211 -> 7.35040517 | AD106: =Input!AD209 + Input!AD211 -> 12.60314803 | AE106: =Input!AE209 + Input!AE211 -> 58.35795053 | AF106: =Input!AF209 + Input!AF211 -> 57.38593507 | AG106: =Input!AG209 + Input!AG211 -> 0
E107: Removals | G107: £m 09/10 prices | J107: >
E108: Balance carried forward | G108: £m 09/10 prices | J108: > | Y108: =Y105 + Y106 - Y107 -> 0 | Z108: =Z105 + Z106 - Z107 -> 0 | AA108: =AA105 + AA106 - AA107 -> 0.1604920542 | AB108: =AB105 + AB106 - AB107 -> 89.75938335 | AC108: =AC105 + AC106 - AC107 -> 97.10978852 | AD108: =AD105 + AD106 - AD107 -> 109.7129365 | AE108: 168.0708871 | AF108: 225.4568222 | AG108: 225.4568222 | AH108: 225.4568222 | AI108: 225.4568222 | AJ108: 225.4568222 | AK108: 225.4568222 | AL108: 225.4568222 | AM108: 225.4568222 | AN108: 225.4568222 | AO108: 225.4568222
D110: Accumulated depreciation
E112: Logged-up items and security costs asset life | G112: years | I112: =Input!I207 -> 45 | J112: >
E114: Opening balance brought forward | G114: £m 09/10 prices | J114: > | Z114: =Y119 -> 0 | AA114: 0 | AB114: 0 | AC114: 0.003566490094 | AD114: 1.998219453 | AE114: 4.156214754 | AF114: 6.59428001 | AG114: 10.32918861 | AH114: 15.33934022 | AI114: 20.34949182 | AJ114: 25.35964342 | AK114: 30.36979503 | AL114: 35.37994663 | AM114: 40.39009823 | AN114: 45.40024984 | AO114: 50.41040144
E115: Transfer | G115: £m 09/10 prices | J115: >
